Workbook

Sheet Cover
A1: =RIGHT(CELL("filename", $A$1), LEN(CELL("filename", $A$1)) - SEARCH("]", CELL("filename", $A$1))) -> Cover
B3: Chemicals removal
B5: Model code: | C5: PR24CA56
B6: Version number: | C6: 2
B7: File name: | C7: =MID(CELL("filename"), FIND("[", CELL("filename"), 1) + 1, FIND("]", CELL("filename"), 1) - FIND("[", CELL("filename"), 1) - 1) -> PR24CA56 - WW - chemicals removal.xlsm
B8: Date: | C8: 2024-12-01
B10: For enquiries please contact: | C10: PR24@ofwat.gov.uk
B29: 1) Company Wide Efficiency updated
B30: 2) SVE deep dived
B31: 3) Shallow dive allocation updated
B32: 4) change from modelled appraoch to shallow dive / deep dive due to low confidence in modelling
B34: Contents:
B36: Tab name | C36: Description
B37: Cover | C37: Details of the file and the enhancement assessment approach.
B38: Conceptual model | C38: Flow diagram of the high level enhancement assessment process within models.
B39: Inputs > > | C39: Blank - section header
B40: F_Inputs | C40: Submitted business plan data import from central database
B41: F_Inputs_adjusted | C41: Re-organising of input data to take account of transitional / accelerated process expenditure and drivers, and including any reallocations between enhancement lines.
B42: PR24_NETTOTEX_WASTE | C42: Wastewater price control net Totex data import from central database used for materiality assessment.
B43: Consolidated Input | C43: Combined input data taking account of any other contributing data, where applicable (eg historical APR data)
B44: F_Input Override | C44: Manual adjustments to requested data where not corrected in business plan data table resubmissions
B45: Final Input | C45: Final data used for the enhancement assessment
B46: Company level efficiencies | C46: Wastewater price control company-level efficiency challenges
B47: Data_final_model_format | C47: Summary of the expenditure and associated drivers used during the assessment
B48: Post Adj & FS Allowances | C48: Summary of imported, post-adjusted allowances per company per enhancement line per year.
B49: Analysis > > | C49: Blank - section header
B50: Materiality and shallow dive | C50: Initial assessment of the materiality of requested expenditure to inform the decision on the assessment approach
B51: Query responses | C51: Supplementary data from companies via the PR24 query process to disaggregate costs for modelling purposes
B52: Modelled costs | C52: Analysis undertaken to support a modelled assessment approach
B53: Modelled costs excl SVE&TMS | C53: Analysis undertaken to support a modelled assessment approach
B54: Deep dive_SVE | C54: Detailed assessment per company of the requested expenditure where costs are material and / or a modelled approach is not appropriate.
B55: Deep dive_TMS | C55: Detailed assessment per company of the requested expenditure where costs are material and / or a modelled approach is not appropriate.
B56: Outputs > > | C56: Blank - section header
B57: Allowance | C57: Summary of our assessed allowances per company before other adjustments (eg frontier shift)
B58: Outputs to aggregator | C58: Summary of submitted and assessed costs profiled over the 2023-30 period (including transitional and accelerated process expenditure)
B59: F_Outputs | C59: Allowance data export to central database
B60: PCD | C60: Price control deliverable assessment and decision on PCD rate(s) for applicable companies
B61: DROPDOWN LISTS | C61: Dropdown selections used in models
B64: Error log - Subsequent to this model being developed, we identified the following corrections that we will make for final determinations:
B66: Company | C66: Description of change to be made | D66: Sheet(s) in current model | E66: Model link(s)

Sheet Conceptual model
A1: =RIGHT(CELL("filename", A1), LEN(CELL("filename", A1)) - SEARCH("]", CELL("filename", A1))) -> Conceptual model
A3: Conceptual model
A49: End of sheet

Sheet Inputs >>

Sheet F_Inputs
A1: =RIGHT(CELL("filename", $A$1), LEN(CELL("filename", $A$1)) - SEARCH("]", CELL("filename", $A$1))) -> F_Inputs | E1: Run on 05 Sep 2024 9:35
A2: Acronym | B2: Reference | C2: Item description | D2: Unit | E2: Model | F2: 2023-24 | G2: 2024-25 | H2: 2025-26 | I2: 2026-27 | J2: 2027-28 | K2: 2028-29 | L2: 2029-30 | M2: Constant
F4: Price Review 2024 | G4: Price Review 2024 | H4: Price Review 2024 | I4: Price Review 2024 | J4: Price Review 2024 | K4: Price Review 2024 | L4: Price Review 2024 | M4: Price Review 2024
F5: Run 11 - PR24 FD Data | G5: Run 11 - PR24 FD Data | H5: Run 11 - PR24 FD Data | I5: Run 11 - PR24 FD Data | J5: Run 11 - PR24 FD Data | K5: Run 11 - PR24 FD Data | L5: Run 11 - PR24 FD Data | M5: Run 11 - PR24 FD Data
F6: Latest | G6: Latest | H6: Latest | I6: Latest | J6: Latest | K6: Latest | L6: Latest | M6: Latest
A7: ANH | B7: CWW3_049TOT_PR24 | C7: EA/NRW environmental programme wastewater (WINEP/NEP) - Treatment for chemical removal (WINEP/NEP) wastewater capex - Total | D7: £m | E7: Price Review 2024 | F7: 0 | G7: 0 | H7: 2.278 | I7: 7.788 | J7: 13.411 | K7: 12.868 | L7: 6.36
A8: ANH | B8: CWW3_050TOT_PR24 | C8: EA/NRW environmental programme wastewater (WINEP/NEP) - Treatment for chemical removal (WINEP/NEP) wastewater opex - Total | D8: £m | E8: Price Review 2024 | F8: 0.01748475474 | G8: 0.038 | H8: 0 | I8: 0.205 | J8: 0.016 | K8: 0.1 | L8: 0.31
A9: ANH | B9: CWW3_051TOT_PR24 | C9: EA/NRW environmental programme wastewater (WINEP/NEP) - Treatment for chemical removal (WINEP/NEP) wastewater totex - Total | D9: £m | E9: Price Review 2024 | F9: 0.01748475474 | G9: 0.038 | H9: 2.278 | I9: 7.993 | J9: 13.427 | K9: 12.968 | L9: 6.67
A10: ANH | B10: CWW12_049TOT_PR24 | C10: EA/NRW environmental programme wastewater (WINEP/NEP) - Treatment for chemical removal (WINEP/NEP) wastewater capex - Total | D10: £m | E10: Price Review 2024 | F10: 0 | G10: 0
A11: ANH | B11: CWW12_050TOT_PR24 | C11: EA/NRW environmental programme wastewater (WINEP/NEP) - Treatment for chemical removal (WINEP/NEP) wastewater opex - Total | D11: £m | E11: Price Review 2024 | F11: 0 | G11: 0
A12: ANH | B12: CWW12_051TOT_PR24 | C12: EA/NRW environmental programme wastewater (WINEP/NEP) - Treatment for chemical removal (WINEP/NEP) wastewater totex - Total | D12: £m | E12: Price Review 2024 | F12: 0 | G12: 0
A13: ANH | B13: CWW17_049TOT_PR24 | C13: EA/NRW environmental programme wastewater (WINEP/NEP) - Treatment for chemical removal (WINEP/NEP) wastewater capex - Total | D13: £m | E13: Price Review 2024 | F13: 0 | G13: 0 | H13: 0 | I13: 0 | J13: 0 | K13: 0 | L13: 0
A14: ANH | B14: CWW17_050TOT_PR24 | C14: EA/NRW environmental programme wastewater (WINEP/NEP) - Treatment for chemical removal (WINEP/NEP) wastewater opex - Total | D14: £m | E14: Price Review 2024 | F14: 0 | G14: 0 | H14: 0 | I14: 0 | J14: 0 | K14: 0 | L14: 0
A15: ANH | B15: CWW17_051TOT_PR24 | C15: EA/NRW environmental programme wastewater (WINEP/NEP) - Treatment for chemical removal (WINEP/NEP) wastewater totex - Total | D15: £m | E15: Price Review 2024 | F15: 0 | G15: 0 | H15: 0 | I15: 0 | J15: 0 | K15: 0 | L15: 0
A16: ANH | B16: S4031_PR24 | C16: Sewage treatment data - Current population equivalent served by STWs with tightened/new permits for chemicals / hazardous substances | D16: 000s | E16: Price Review 2024 | F16: 0 | G16: 25.09 | H16: 0 | I16: 1205.362 | J16: 0 | K16: 53.759 | L16: 103.676
A17: ANH | B17: CWW20A_S4031_PR24 | C17: Sewage treatment data - Current population equivalent served by STWs with tightened/new permits for chemicals / hazardous substances | D17: 000s | E17: Price Review 2024
A18: ANH | B18: CWW20_026_PR24 | C18: Sewage treatment data - Total number of schemes with tightened/new chemicals/hazardous substances permits | D18: nr | E18: Price Review 2024 | F18: 0 | G18: 0 | H18: 0 | I18: 30 | J18: 0 | K18: 4 | L18: 12
A19: ANH | B19: CWW20A_026_PR24 | C19: Sewage treatment data - Total number of schemes with tightened/new chemicals/hazardous substances permits | D19: nr | E19: Price Review 2024
A20: ANH | B20: PR24_E_WW051_TOTAL | C20: PR24 BP EA/NRW environmental programme wastewater (WINEP/NEP) - Treatment for chemical removal (WINEP/NEP) wastewater totex - Total inc. accelerated & transition costs | D20: £m | E20: Price Review 2024 | M20: 43.336
A21: ANH | B21: PR24_NETTOTEX_WASTE | C21: PR24 BP Net totex - Total inc. accelerated & transition costs | D21: £m | E21: Price Review 2024 | M21: 6050.179102
A22: WSH | B22: CWW3_049TOT_PR24 | C22: EA/NRW environmental programme wastewater (WINEP/NEP) - Treatment for chemical removal (WINEP/NEP) wastewater capex - Total | D22: £m | E22: Price Review 2024 | F22: 0 | G22: 0 | H22: 0 | I22: 0 | J22: 0 | K22: 0 | L22: 0
A23: WSH | B23: CWW3_050TOT_PR24 | C23: EA/NRW environmental programme wastewater (WINEP/NEP) - Treatment for chemical removal (WINEP/NEP) wastewater opex - Total | D23: £m | E23: Price Review 2024 | F23: 0 | G23: 0 | H23: 0 | I23: 0 | J23: 0 | K23: 0 | L23: 0
A24: WSH | B24: CWW3_051TOT_PR24 | C24: EA/NRW environmental programme wastewater (WINEP/NEP) - Treatment for chemical removal (WINEP/NEP) wastewater totex - Total | D24: £m | E24: Price Review 2024 | F24: 0 | G24: 0 | H24: 0 | I24: 0 | J24: 0 | K24: 0 | L24: 0
A25: WSH | B25: CWW12_049TOT_PR24 | C25: EA/NRW environmental programme wastewater (WINEP/NEP) - Treatment for chemical removal (WINEP/NEP) wastewater capex - Total | D25: £m | E25: Price Review 2024 | F25: 0 | G25: 0
A26: WSH | B26: CWW12_050TOT_PR24 | C26: EA/NRW environmental programme wastewater (WINEP/NEP) - Treatment for chemical removal (WINEP/NEP) wastewater opex - Total | D26: £m | E26: Price Review 2024 | F26: 0 | G26: 0
A27: WSH | B27: CWW12_051TOT_PR24 | C27: EA/NRW environmental programme wastewater (WINEP/NEP) - Treatment for chemical removal (WINEP/NEP) wastewater totex - Total | D27: £m | E27: Price Review 2024 | F27: 0 | G27: 0
A28: WSH | B28: CWW17_049TOT_PR24 | C28: EA/NRW environmental programme wastewater (WINEP/NEP) - Treatment for chemical removal (WINEP/NEP) wastewater capex - Total | D28: £m | E28: Price Review 2024 | F28: 0 | G28: 0 | H28: 0 | I28: 0 | J28: 0 | K28: 0 | L28: 0
A29: WSH | B29: CWW17_050TOT_PR24 | C29: EA/NRW environmental programme wastewater (WINEP/NEP) - Treatment for chemical removal (WINEP/NEP) wastewater opex - Total | D29: £m | E29: Price Review 2024 | F29: 0 | G29: 0 | H29: 0 | I29: 0 | J29: 0 | K29: 0 | L29: 0
A30: WSH | B30: CWW17_051TOT_PR24 | C30: EA/NRW environmental programme wastewater (WINEP/NEP) - Treatment for chemical removal (WINEP/NEP) wastewater totex - Total | D30: £m | E30: Price Review 2024 | F30: 0 | G30: 0 | H30: 0 | I30: 0 | J30: 0 | K30: 0 | L30: 0
A31: WSH | B31: S4031_PR24 | C31: Sewage treatment data - Current population equivalent served by STWs with tightened/new permits for chemicals / hazardous substances | D31: 000s | E31: Price Review 2024 | F31: 0 | G31: 0 | H31: 0 | I31: 0 | J31: 0 | K31: 0 | L31: 0
A32: WSH | B32: CWW20A_S4031_PR24 | C32: Sewage treatment data - Current population equivalent served by STWs with tightened/new permits for chemicals / hazardous substances | D32: 000s | E32: Price Review 2024
A33: WSH | B33: CWW20_026_PR24 | C33: Sewage treatment data - Total number of schemes with tightened/new chemicals/hazardous substances permits | D33: nr | E33: Price Review 2024 | F33: 0 | G33: 0 | H33: 0 | I33: 0 | J33: 0 | K33: 0 | L33: 0
A34: WSH | B34: CWW20A_026_PR24 | C34: Sewage treatment data - Total number of schemes with tightened/new chemicals/hazardous substances permits | D34: nr | E34: Price Review 2024
A35: WSH | B35: PR24_E_WW051_TOTAL | C35: PR24 BP EA/NRW environmental programme wastewater (WINEP/NEP) - Treatment for chemical removal (WINEP/NEP) wastewater totex - Total inc. accelerated & transition costs | D35: £m | E35: Price Review 2024 | M35: 0
A36: WSH | B36: PR24_NETTOTEX_WASTE | C36: PR24 BP Net totex - Total inc. accelerated & transition costs | D36: £m | E36: Price Review 2024 | M36: 3318.169
A37: HDD | B37: CWW3_049TOT_PR24 | C37: EA/NRW environmental programme wastewater (WINEP/NEP) - Treatment for chemical removal (WINEP/NEP) wastewater capex - Total | D37: £m | E37: Price Review 2024 | F37: 0 | G37: 0 | H37: 0 | I37: 0 | J37: 0 | K37: 0 | L37: 0
A38: HDD | B38: CWW3_050TOT_PR24 | C38: EA/NRW environmental programme wastewater (WINEP/NEP) - Treatment for chemical removal (WINEP/NEP) wastewater opex - Total | D38: £m | E38: Price Review 2024 | F38: 0 | G38: 0 | H38: 0 | I38: 0 | J38: 0 | K38: 0 | L38: 0
A39: HDD | B39: CWW3_051TOT_PR24 | C39: EA/NRW environmental programme wastewater (WINEP/NEP) - Treatment for chemical removal (WINEP/NEP) wastewater totex - Total | D39: £m | E39: Price Review 2024 | F39: 0 | G39: 0 | H39: 0 | I39: 0 | J39: 0 | K39: 0 | L39: 0
A40: HDD | B40: CWW12_049TOT_PR24 | C40: EA/NRW environmental programme wastewater (WINEP/NEP) - Treatment for chemical removal (WINEP/NEP) wastewater capex - Total | D40: £m | E40: Price Review 2024 | F40: 0 | G40: 0
A41: HDD | B41: CWW12_050TOT_PR24 | C41: EA/NRW environmental programme wastewater (WINEP/NEP) - Treatment for chemical removal (WINEP/NEP) wastewater opex - Total | D41: £m | E41: Price Review 2024 | F41: 0 | G41: 0
A42: HDD | B42: CWW12_051TOT_PR24 | C42: EA/NRW environmental programme wastewater (WINEP/NEP) - Treatment for chemical removal (WINEP/NEP) wastewater totex - Total | D42: £m | E42: Price Review 2024 | F42: 0 | G42: 0
A43: HDD | B43: CWW17_049TOT_PR24 | C43: EA/NRW environmental programme wastewater (WINEP/NEP) - Treatment for chemical removal (WINEP/NEP) wastewater capex - Total | D43: £m | E43: Price Review 2024 | F43: 0 | G43: 0 | H43: 0 | I43: 0 | J43: 0 | K43: 0 | L43: 0
A44: HDD | B44: CWW17_050TOT_PR24 | C44: EA/NRW environmental programme wastewater (WINEP/NEP) - Treatment for chemical removal (WINEP/NEP) wastewater opex - Total | D44: £m | E44: Price Review 2024 | F44: 0 | G44: 0 | H44: 0 | I44: 0 | J44: 0 | K44: 0 | L44: 0
A45: HDD | B45: CWW17_051TOT_PR24 | C45: EA/NRW environmental programme wastewater (WINEP/NEP) - Treatment for chemical removal (WINEP/NEP) wastewater totex - Total | D45: £m | E45: Price Review 2024 | F45: 0 | G45: 0 | H45: 0 | I45: 0 | J45: 0 | K45: 0 | L45: 0
A46: HDD | B46: S4031_PR24 | C46: Sewage treatment data - Current population equivalent served by STWs with tightened/new permits for chemicals / hazardous substances | D46: 000s | E46: Price Review 2024 | F46: 0 | G46: 0 | H46: 0 | I46: 0 | J46: 0 | K46: 0 | L46: 0
A47: HDD | B47: CWW20A_S4031_PR24 | C47: Sewage treatment data - Current population equivalent served by STWs with tightened/new permits for chemicals / hazardous substances | D47: 000s | E47: Price Review 2024
A48: HDD | B48: CWW20_026_PR24 | C48: Sewage treatment data - Total number of schemes with tightened/new chemicals/hazardous substances permits | D48: nr | E48: Price Review 2024 | F48: 0 | G48: 0 | H48: 0 | I48: 0 | J48: 0 | K48: 0 | L48: 0
A49: HDD | B49: CWW20A_026_PR24 | C49: Sewage treatment data - Total number of schemes with tightened/new chemicals/hazardous substances permits | D49: nr | E49: Price Review 2024
A50: HDD | B50: PR24_E_WW051_TOTAL | C50: PR24 BP EA/NRW environmental programme wastewater (WINEP/NEP) - Treatment for chemical removal (WINEP/NEP) wastewater totex - Total inc. accelerated & transition costs | D50: £m | E50: Price Review 2024 | M50: 0
A51: HDD | B51: PR24_NETTOTEX_WASTE | C51: PR24 BP Net totex - Total inc. accelerated & transition costs | D51: £m | E51: Price Review 2024 | M51: 61.30281202
A52: NES | B52: CWW3_049TOT_PR24 | C52: EA/NRW environmental programme wastewater (WINEP/NEP) - Treatment for chemical removal (WINEP/NEP) wastewater capex - Total | D52: £m | E52: Price Review 2024 | F52: 1.197 | G52: 8.50109779 | H52: 7.43310287 | I52: 7.43310287 | J52: 0.50500508 | K52: 0.50500508 | L52: 0.50500508
A53: NES | B53: CWW3_050TOT_PR24 | C53: EA/NRW environmental programme wastewater (WINEP/NEP) - Treatment for chemical removal (WINEP/NEP) wastewater opex - Total | D53: £m | E53: Price Review 2024 | F53: 0 | G53: 0.1728440448 | H53: 0.0030528 | I53: 0.23250168 | J53: 0.62478345 | K53: 0.61759545 | L53: 0.79321885
A54: NES | B54: CWW3_051TOT_PR24 | C54: EA/NRW environmental programme wastewater (WINEP/NEP) - Treatment for chemical removal (WINEP/NEP) wastewater totex - Total | D54: £m | E54: Price Review 2024 | F54: 1.197 | G54: 8.673941835 | H54: 7.43615567 | I54: 7.66560455 | J54: 1.12978853 | K54: 1.12260053 | L54: 1.29822393
A55: NES | B55: CWW12_049TOT_PR24 | C55: EA/NRW environmental programme wastewater (WINEP/NEP) - Treatment for chemical removal (WINEP/NEP) wastewater capex - Total | D55: £m | E55: Price Review 2024 | F55: 0 | G55: 6.92809779
A56: NES | B56: CWW12_050TOT_PR24 | C56: EA/NRW environmental programme wastewater (WINEP/NEP) - Treatment for chemical removal (WINEP/NEP) wastewater opex - Total | D56: £m | E56: Price Review 2024 | F56: 0.1707894472 | G56: 0.1728440448
A57: NES | B57: CWW12_051TOT_PR24 | C57: EA/NRW environmental programme wastewater (WINEP/NEP) - Treatment for chemical removal (WINEP/NEP) wastewater totex - Total | D57: £m | E57: Price Review 2024 | F57: 0.1707894472 | G57: 7.100941835
A58: NES | B58: CWW17_049TOT_PR24 | C58: EA/NRW environmental programme wastewater (WINEP/NEP) - Treatment for chemical removal (WINEP/NEP) wastewater capex - Total | D58: £m | E58: Price Review 2024 | F58: 0 | G58: 0 | H58: 0 | I58: 0 | J58: 0 | K58: 0 | L58: 0
A59: NES | B59: CWW17_050TOT_PR24 | C59: EA/NRW environmental programme wastewater (WINEP/NEP) - Treatment for chemical removal (WINEP/NEP) wastewater opex - Total | D59: £m | E59: Price Review 2024 | F59: 0 | G59: 0 | H59: 0 | I59: 0 | J59: 0 | K59: 0 | L59: 0
A60: NES | B60: CWW17_051TOT_PR24 | C60: EA/NRW environmental programme wastewater (WINEP/NEP) - Treatment for chemical removal (WINEP/NEP) wastewater totex - Total | D60: £m | E60: Price Review 2024 | F60: 0 | G60: 0 | H60: 0 | I60: 0 | J60: 0 | K60: 0 | L60: 0
A61: NES | B61: S4031_PR24 | C61: Sewage treatment data - Current population equivalent served by STWs with tightened/new permits for chemicals / hazardous substances | D61: 000s | E61: Price Review 2024 | F61: 0 | G61: 0 | H61: 0 | I61: 167.7155465 | J61: 0 | K61: 0 | L61: 0
A62: NES | B62: CWW20A_S4031_PR24 | C62: Sewage treatment data - Current population equivalent served by STWs with tightened/new permits for chemicals / hazardous substances | D62: 000s | E62: Price Review 2024
A63: NES | B63: CWW20_026_PR24 | C63: Sewage treatment data - Total number of schemes with tightened/new chemicals/hazardous substances permits | D63: nr | E63: Price Review 2024 | F63: 0 | G63: 0 | H63: 0 | I63: 15 | J63: 0 | K63: 0 | L63: 0
A64: NES | B64: CWW20A_026_PR24 | C64: Sewage treatment data - Total number of schemes with tightened/new chemicals/hazardous substances permits | D64: nr | E64: Price Review 2024
A65: NES | B65: PR24_E_WW051_TOTAL | C65: PR24 BP EA/NRW environmental programme wastewater (WINEP/NEP) - Treatment for chemical removal (WINEP/NEP) wastewater totex - Total inc. accelerated & transition costs | D65: £m | E65: Price Review 2024 | M65: 25.92410449
A66: NES | B66: PR24_NETTOTEX_WASTE | C66: PR24 BP Net totex - Total inc. accelerated & transition costs | D66: £m | E66: Price Review 2024 | M66: 3207.927402
A67: SVE | B67: CWW3_049TOT_PR24 | C67: EA/NRW environmental programme wastewater (WINEP/NEP) - Treatment for chemical removal (WINEP/NEP) wastewater capex - Total | D67: £m | E67: Price Review 2024 | F67: 11.475 | G67: 14.272 | H67: 1.508337983 | I67: 5.896235162 | J67: 35.96040672 | K67: 33.40246125 | L67: 4.366161361
A68: SVE | B68: CWW3_050TOT_PR24 | C68: EA/NRW environmental programme wastewater (WINEP/NEP) - Treatment for chemical removal (WINEP/NEP) wastewater opex - Total | D68: £m | E68: Price Review 2024 | F68: 0 | G68: 0.109 | H68: 0.03042889788 | I68: 0.4948076294 | J68: 0.1069111939 | K68: 0.8346738745 | L68: 1.554025705
A69: SVE | B69: CWW3_051TOT_PR24 | C69: EA/NRW environmental programme wastewater (WINEP/NEP) - Treatment for chemical removal (WINEP/NEP) wastewater totex - Total | D69: £m | E69: Price Review 2024 | F69: 11.475 | G69: 14.381 | H69: 1.538766881 | I69: 6.391042792 | J69: 36.06731791 | K69: 34.23713513 | L69: 5.920187066
A70: SVE | B70: CWW12_049TOT_PR24 | C70: EA/NRW environmental programme wastewater (WINEP/NEP) - Treatment for chemical removal (WINEP/NEP) wastewater capex - Total | D70: £m | E70: Price Review 2024 | F70: 0 | G70: 0
A71: SVE | B71: CWW12_050TOT_PR24 | C71: EA/NRW environmental programme wastewater (WINEP/NEP) - Treatment for chemical removal (WINEP/NEP) wastewater opex - Total | D71: £m | E71: Price Review 2024 | F71: 0 | G71: 0
A72: SVE | B72: CWW12_051TOT_PR24 | C72: EA/NRW environmental programme wastewater (WINEP/NEP) - Treatment for chemical removal (WINEP/NEP) wastewater totex - Total | D72: £m | E72: Price Review 2024 | F72: 0 | G72: 0
A73: SVE | B73: CWW17_049TOT_PR24 | C73: EA/NRW environmental programme wastewater (WINEP/NEP) - Treatment for chemical removal (WINEP/NEP) wastewater capex - Total | D73: £m | E73: Price Review 2024 | F73: 0 | G73: 0 | H73: 0 | I73: 0 | J73: 0 | K73: 0 | L73: 0
A74: SVE | B74: CWW17_050TOT_PR24 | C74: EA/NRW environmental programme wastewater (WINEP/NEP) - Treatment for chemical removal (WINEP/NEP) wastewater opex - Total | D74: £m | E74: Price Review 2024 | F74: 0 | G74: 0 | H74: 0 | I74: 0 | J74: 0 | K74: 0 | L74: 0
A75: SVE | B75: CWW17_051TOT_PR24 | C75: EA/NRW environmental programme wastewater (WINEP/NEP) - Treatment for chemical removal (WINEP/NEP) wastewater totex - Total | D75: £m | E75: Price Review 2024 | F75: 0 | G75: 0 | H75: 0 | I75: 0 | J75: 0 | K75: 0 | L75: 0
A76: SVE | B76: S4031_PR24 | C76: Sewage treatment data - Current population equivalent served by STWs with tightened/new permits for chemicals / hazardous substances | D76: 000s | E76: Price Review 2024 | F76: 0 | G76: 48.082 | H76: 119.362 | I76: 5551.071 | J76: 0 | K76: 0 | L76: 635.706
A77: SVE | B77: CWW20A_S4031_PR24 | C77: Sewage treatment data - Current population equivalent served by STWs with tightened/new permits for chemicals / hazardous substances | D77: 000s | E77: Price Review 2024
A78: SVE | B78: CWW20_026_PR24 | C78: Sewage treatment data - Total number of schemes with tightened/new chemicals/hazardous substances permits | D78: nr | E78: Price Review 2024 | F78: 0 | G78: 3 | H78: 6 | I78: 43 | J78: 0 | K78: 0 | L78: 2
A79: SVE | B79: CWW20A_026_PR24 | C79: Sewage treatment data - Total number of schemes with tightened/new chemicals/hazardous substances permits | D79: nr | E79: Price Review 2024
A80: SVE | B80: PR24_E_WW051_TOTAL | C80: PR24 BP EA/NRW environmental programme wastewater (WINEP/NEP) - Treatment for chemical removal (WINEP/NEP) wastewater totex - Total inc. accelerated & transition costs | D80: £m | E80: Price Review 2024 | M80: 84.15444978
A81: SVE | B81: PR24_NETTOTEX_WASTE | C81: PR24 BP Net totex - Total inc. accelerated & transition costs | D81: £m | E81: Price Review 2024 | M81: 8618.711997
A82: SWB | B82: CWW3_049TOT_PR24 | C82: EA/NRW environmental programme wastewater (WINEP/NEP) - Treatment for chemical removal (WINEP/NEP) wastewater capex - Total | D82: £m | E82: Price Review 2024 | F82: 0 | G82: 0 | H82: 7.722 | I82: 6.915 | J82: 0 | K82: 0 | L82: 0
A83: SWB | B83: CWW3_050TOT_PR24 | C83: EA/NRW environmental programme wastewater (WINEP/NEP) - Treatment for chemical removal (WINEP/NEP) wastewater opex - Total | D83: £m | E83: Price Review 2024 | F83: 0 | G83: 0 | H83: 0 | I83: 0 | J83: 0.133 | K83: 0.133 | L83: 0.133
A84: SWB | B84: CWW3_051TOT_PR24 | C84: EA/NRW environmental programme wastewater (WINEP/NEP) - Treatment for chemical removal (WINEP/NEP) wastewater totex - Total | D84: £m | E84: Price Review 2024 | F84: 0 | G84: 0 | H84: 7.722 | I84: 6.915 | J84: 0.133 | K84: 0.133 | L84: 0.133
A85: SWB | B85: CWW12_049TOT_PR24 | C85: EA/NRW environmental programme wastewater (WINEP/NEP) - Treatment for chemical removal (WINEP/NEP) wastewater capex - Total | D85: £m | E85: Price Review 2024 | F85: 0 | G85: 0
A86: SWB | B86: CWW12_050TOT_PR24 | C86: EA/NRW environmental programme wastewater (WINEP/NEP) - Treatment for chemical removal (WINEP/NEP) wastewater opex - Total | D86: £m | E86: Price Review 2024 | F86: 0 | G86: 0
A87: SWB | B87: CWW12_051TOT_PR24 | C87: EA/NRW environmental programme wastewater (WINEP/NEP) - Treatment for chemical removal (WINEP/NEP) wastewater totex - Total | D87: £m | E87: Price Review 2024 | F87: 0 | G87: 0
A88: SWB | B88: CWW17_049TOT_PR24 | C88: EA/NRW environmental programme wastewater (WINEP/NEP) - Treatment for chemical removal (WINEP/NEP) wastewater capex - Total | D88: £m | E88: Price Review 2024 | F88: 0 | G88: 0 | H88: 0 | I88: 0 | J88: 0 | K88: 0 | L88: 0
A89: SWB | B89: CWW17_050TOT_PR24 | C89: EA/NRW environmental programme wastewater (WINEP/NEP) - Treatment for chemical removal (WINEP/NEP) wastewater opex - Total | D89: £m | E89: Price Review 2024 | F89: 0 | G89: 0 | H89: 0 | I89: 0 | J89: 0 | K89: 0 | L89: 0
A90: SWB | B90: CWW17_051TOT_PR24 | C90: EA/NRW environmental programme wastewater (WINEP/NEP) - Treatment for chemical removal (WINEP/NEP) wastewater totex - Total | D90: £m | E90: Price Review 2024 | F90: 0 | G90: 0 | H90: 0 | I90: 0 | J90: 0 | K90: 0 | L90: 0
A91: SWB | B91: S4031_PR24 | C91: Sewage treatment data - Current population equivalent served by STWs with tightened/new permits for chemicals / hazardous substances | D91: 000s | E91: Price Review 2024 | F91: 0 | G91: 0 | H91: 0 | I91: 30.234 | J91: 0 | K91: 0 | L91: 0
A92: SWB | B92: CWW20A_S4031_PR24 | C92: Sewage treatment data - Current population equivalent served by STWs with tightened/new permits for chemicals / hazardous substances | D92: 000s | E92: Price Review 2024 | F92: 0
A93: SWB | B93: CWW20_026_PR24 | C93: Sewage treatment data - Total number of schemes with tightened/new chemicals/hazardous substances permits | D93: nr | E93: Price Review 2024 | F93: 0 | G93: 0 | H93: 0 | I93: 7 | J93: 0 | K93: 0 | L93: 0
A94: SWB | B94: CWW20A_026_PR24 | C94: Sewage treatment data - Total number of schemes with tightened/new chemicals/hazardous substances permits | D94: nr | E94: Price Review 2024 | F94: 0
A95: SWB | B95: PR24_E_WW051_TOTAL | C95: PR24 BP EA/NRW environmental programme wastewater (WINEP/NEP) - Treatment for chemical removal (WINEP/NEP) wastewater totex - Total inc. accelerated & transition costs | D95: £m | E95: Price Review 2024 | M95: 15.036
A96: SWB | B96: PR24_NETTOTEX_WASTE | C96: PR24 BP Net totex - Total inc. accelerated & transition costs | D96: £m | E96: Price Review 2024 | M96: 2220.37926
A97: SRN | B97: CWW3_049TOT_PR24 | C97: EA/NRW environmental programme wastewater (WINEP/NEP) - Treatment for chemical removal (WINEP/NEP) wastewater capex - Total | D97: £m | E97: Price Review 2024 | F97: 0.948 | G97: 0.211 | H97: 0.665 | I97: 4.564 | J97: 5.026 | K97: 6.647 | L97: 1.508
A98: SRN | B98: CWW3_050TOT_PR24 | C98: EA/NRW environmental programme wastewater (WINEP/NEP) - Treatment for chemical removal (WINEP/NEP) wastewater opex - Total | D98: £m | E98: Price Review 2024 | F98: 0 | G98: 0 | H98: 0 | I98: 0 | J98: 0.1 | K98: 0.2 | L98: 0.244
A99: SRN | B99: CWW3_051TOT_PR24 | C99: EA/NRW environmental programme wastewater (WINEP/NEP) - Treatment for chemical removal (WINEP/NEP) wastewater totex - Total | D99: £m | E99: Price Review 2024 | F99: 0.948 | G99: 0.211 | H99: 0.665 | I99: 4.564 | J99: 5.126 | K99: 6.847 | L99: 1.752
A100: SRN | B100: CWW12_049TOT_PR24 | C100: EA/NRW environmental programme wastewater (WINEP/NEP) - Treatment for chemical removal (WINEP/NEP) wastewater capex - Total | D100: £m | E100: Price Review 2024 | F100: 0 | G100: 0
A101: SRN | B101: CWW12_050TOT_PR24 | C101: EA/NRW environmental programme wastewater (WINEP/NEP) - Treatment for chemical removal (WINEP/NEP) wastewater opex - Total | D101: £m | E101: Price Review 2024 | F101: 0 | G101: 0
A102: SRN | B102: CWW12_051TOT_PR24 | C102: EA/NRW environmental programme wastewater (WINEP/NEP) - Treatment for chemical removal (WINEP/NEP) wastewater totex - Total | D102: £m | E102: Price Review 2024 | F102: 0 | G102: 0
A103: SRN | B103: CWW17_049TOT_PR24 | C103: EA/NRW environmental programme wastewater (WINEP/NEP) - Treatment for chemical removal (WINEP/NEP) wastewater capex - Total | D103: £m | E103: Price Review 2024 | F103: 0 | G103: 0 | H103: 0 | I103: 0 | J103: 0 | K103: 0 | L103: 0
A104: SRN | B104: CWW17_050TOT_PR24 | C104: EA/NRW environmental programme wastewater (WINEP/NEP) - Treatment for chemical removal (WINEP/NEP) wastewater opex - Total | D104: £m | E104: Price Review 2024 | F104: 0 | G104: 0 | H104: 0 | I104: 0 | J104: 0 | K104: 0 | L104: 0
A105: SRN | B105: CWW17_051TOT_PR24 | C105: EA/NRW environmental programme wastewater (WINEP/NEP) - Treatment for chemical removal (WINEP/NEP) wastewater totex - Total | D105: £m | E105: Price Review 2024 | F105: 0 | G105: 0 | H105: 0 | I105: 0 | J105: 0 | K105: 0 | L105: 0
A106: SRN | B106: S4031_PR24 | C106: Sewage treatment data - Current population equivalent served by STWs with tightened/new permits for chemicals / hazardous substances | D106: 000s | E106: Price Review 2024 | F106: 0 | G106: 3.694 | H106: 0 | I106: 571.596 | J106: 0 | K106: 0 | L106: 261.359
A107: SRN | B107: CWW20A_S4031_PR24 | C107: Sewage treatment data - Current population equivalent served by STWs with tightened/new permits for chemicals / hazardous substances | D107: 000s | E107: Price Review 2024
A108: SRN | B108: CWW20_026_PR24 | C108: Sewage treatment data - Total number of schemes with tightened/new chemicals/hazardous substances permits | D108: nr | E108: Price Review 2024 | F108: 0 | G108: 1 | H108: 0 | I108: 22 | J108: 0 | K108: 0 | L108: 13
A109: SRN | B109: CWW20A_026_PR24 | C109: Sewage treatment data - Total number of schemes with tightened/new chemicals/hazardous substances permits | D109: nr | E109: Price Review 2024
A110: SRN | B110: PR24_E_WW051_TOTAL | C110: PR24 BP EA/NRW environmental programme wastewater (WINEP/NEP) - Treatment for chemical removal (WINEP/NEP) wastewater totex - Total inc. accelerated & transition costs | D110: £m | E110: Price Review 2024 | M110: 18.954
A111: SRN | B111: PR24_NETTOTEX_WASTE | C111: PR24 BP Net totex - Total inc. accelerated & transition costs | D111: £m | E111: Price Review 2024 | M111: 5114.195692
A112: TMS | B112: CWW3_049TOT_PR24 | C112: EA/NRW environmental programme wastewater (WINEP/NEP) - Treatment for chemical removal (WINEP/NEP) wastewater capex - Total | D112: £m | E112: Price Review 2024 | F112: 0 | G112: 0.983 | H112: 0 | I112: 0 | J112: 20.777 | K112: 51.942 | L112: 135.05
A113: TMS | B113: CWW3_050TOT_PR24 | C113: EA/NRW environmental programme wastewater (WINEP/NEP) - Treatment for chemical removal (WINEP/NEP) wastewater opex - Total | D113: £m | E113: Price Review 2024 | F113: 0 | G113: 0.008 | H113: 0.467 | I113: 0.314 | J113: 1.549 | K113: 3.65 | L113: 4.302
A114: TMS | B114: CWW3_051TOT_PR24 | C114: EA/NRW environmental programme wastewater (WINEP/NEP) - Treatment for chemical removal (WINEP/NEP) wastewater totex - Total | D114: £m | E114: Price Review 2024 | F114: 0 | G114: 0.991 | H114: 0.467 | I114: 0.314 | J114: 22.326 | K114: 55.592 | L114: 139.352
A115: TMS | B115: CWW12_049TOT_PR24 | C115: EA/NRW environmental programme wastewater (WINEP/NEP) - Treatment for chemical removal (WINEP/NEP) wastewater capex - Total | D115: £m | E115: Price Review 2024 | F115: 0 | G115: 0
A116: TMS | B116: CWW12_050TOT_PR24 | C116: EA/NRW environmental programme wastewater (WINEP/NEP) - Treatment for chemical removal (WINEP/NEP) wastewater opex - Total | D116: £m | E116: Price Review 2024 | F116: 0 | G116: 0
A117: TMS | B117: CWW12_051TOT_PR24 | C117: EA/NRW environmental programme wastewater (WINEP/NEP) - Treatment for chemical removal (WINEP/NEP) wastewater totex - Total | D117: £m | E117: Price Review 2024 | F117: 0 | G117: 0
A118: TMS | B118: CWW17_049TOT_PR24 | C118: EA/NRW environmental programme wastewater (WINEP/NEP) - Treatment for chemical removal (WINEP/NEP) wastewater capex - Total | D118: £m | E118: Price Review 2024 | F118: 0 | G118: 0 | H118: 0 | I118: 0 | J118: 0 | K118: 0 | L118: 0
A119: TMS | B119: CWW17_050TOT_PR24 | C119: EA/NRW environmental programme wastewater (WINEP/NEP) - Treatment for chemical removal (WINEP/NEP) wastewater opex - Total | D119: £m | E119: Price Review 2024 | F119: 0 | G119: 0 | H119: 0 | I119: 0 | J119: 0 | K119: 0 | L119: 0
A120: TMS | B120: CWW17_051TOT_PR24 | C120: EA/NRW environmental programme wastewater (WINEP/NEP) - Treatment for chemical removal (WINEP/NEP) wastewater totex - Total | D120: £m | E120: Price Review 2024 | F120: 0 | G120: 0 | H120: 0 | I120: 0 | J120: 0 | K120: 0 | L120: 0
A121: TMS | B121: S4031_PR24 | C121: Sewage treatment data - Current population equivalent served by STWs with tightened/new permits for chemicals / hazardous substances | D121: 000s | E121: Price Review 2024 | F121: 0 | G121: 16.26482479 | H121: 0 | I121: 6588.013961 | J121: 0 | K121: 0 | L121: 264.7884228
A122: TMS | B122: CWW20A_S4031_PR24 | C122: Sewage treatment data - Current population equivalent served by STWs with tightened/new permits for chemicals / hazardous substances | D122: 000s | E122: Price Review 2024
A123: TMS | B123: CWW20_026_PR24 | C123: Sewage treatment data - Total number of schemes with tightened/new chemicals/hazardous substances permits | D123: nr | E123: Price Review 2024 | F123: 1 | G123: 1 | H123: 0 | I123: 1 | J123: 22 | K123: 0 | L123: 73
A124: TMS | B124: CWW20A_026_PR24 | C124: Sewage treatment data - Total number of schemes with tightened/new chemicals/hazardous substances permits | D124: nr | E124: Price Review 2024
A125: TMS | B125: PR24_E_WW051_TOTAL | C125: PR24 BP EA/NRW environmental programme wastewater (WINEP/NEP) - Treatment for chemical removal (WINEP/NEP) wastewater totex - Total inc. accelerated & transition costs | D125: £m | E125: Price Review 2024 | M125: 218.051
A126: TMS | B126: PR24_NETTOTEX_WASTE | C126: PR24 BP Net totex - Total inc. accelerated & transition costs | D126: £m | E126: Price Review 2024 | M126: 12775.4738
A127: NWT | B127: CWW3_049TOT_PR24 | C127: EA/NRW environmental programme wastewater (WINEP/NEP) - Treatment for chemical removal (WINEP/NEP) wastewater capex - Total | D127: £m | E127: Price Review 2024 | F127: 0 | G127: 0 | H127: 0 | I127: 0 | J127: 0 | K127: 0 | L127: 0
A128: NWT | B128: CWW3_050TOT_PR24 | C128: EA/NRW environmental programme wastewater (WINEP/NEP) - Treatment for chemical removal (WINEP/NEP) wastewater opex - Total | D128: £m | E128: Price Review 2024 | F128: 0 | G128: 0 | H128: 0 | I128: 0 | J128: 0 | K128: 0 | L128: 0
A129: NWT | B129: CWW3_051TOT_PR24 | C129: EA/NRW environmental programme wastewater (WINEP/NEP) - Treatment for chemical removal (WINEP/NEP) wastewater totex - Total | D129: £m | E129: Price Review 2024 | F129: 0 | G129: 0 | H129: 0 | I129: 0 | J129: 0 | K129: 0 | L129: 0
A130: NWT | B130: CWW12_049TOT_PR24 | C130: EA/NRW environmental programme wastewater (WINEP/NEP) - Treatment for chemical removal (WINEP/NEP) wastewater capex - Total | D130: £m | E130: Price Review 2024 | F130: 0 | G130: 0
A131: NWT | B131: CWW12_050TOT_PR24 | C131: EA/NRW environmental programme wastewater (WINEP/NEP) - Treatment for chemical removal (WINEP/NEP) wastewater opex - Total | D131: £m | E131: Price Review 2024 | F131: 0 | G131: 0
A132: NWT | B132: CWW12_051TOT_PR24 | C132: EA/NRW environmental programme wastewater (WINEP/NEP) - Treatment for chemical removal (WINEP/NEP) wastewater totex - Total | D132: £m | E132: Price Review 2024 | F132: 0 | G132: 0
A133: NWT | B133: CWW17_049TOT_PR24 | C133: EA/NRW environmental programme wastewater (WINEP/NEP) - Treatment for chemical removal (WINEP/NEP) wastewater capex - Total | D133: £m | E133: Price Review 2024 | F133: 0 | G133: 0 | H133: 0 | I133: 0 | J133: 0 | K133: 0 | L133: 0
A134: NWT | B134: CWW17_050TOT_PR24 | C134: EA/NRW environmental programme wastewater (WINEP/NEP) - Treatment for chemical removal (WINEP/NEP) wastewater opex - Total | D134: £m | E134: Price Review 2024 | F134: 0 | G134: 0 | H134: 0 | I134: 0 | J134: 0 | K134: 0 | L134: 0
A135: NWT | B135: CWW17_051TOT_PR24 | C135: EA/NRW environmental programme wastewater (WINEP/NEP) - Treatment for chemical removal (WINEP/NEP) wastewater totex - Total | D135: £m | E135: Price Review 2024 | F135: 0 | G135: 0 | H135: 0 | I135: 0 | J135: 0 | K135: 0 | L135: 0
A136: NWT | B136: S4031_PR24 | C136: Sewage treatment data - Current population equivalent served by STWs with tightened/new permits for chemicals / hazardous substances | D136: 000s | E136: Price Review 2024 | F136: 0 | G136: 0 | H136: 0 | I136: 5043.511143 | J136: 0 | K136: 129.9300152 | L136: 502.7675796
A137: NWT | B137: CWW20A_S4031_PR24 | C137: Sewage treatment data - Current population equivalent served by STWs with tightened/new permits for chemicals / hazardous substances | D137: 000s | E137: Price Review 2024 | F137: 0 | G137: 0
A138: NWT | B138: CWW20_026_PR24 | C138: Sewage treatment data - Total number of schemes with tightened/new chemicals/hazardous substances permits | D138: nr | E138: Price Review 2024 | F138: 0 | G138: 0 | H138: 0 | I138: 47 | J138: 0 | K138: 1 | L138: 3
A139: NWT | B139: CWW20A_026_PR24 | C139: Sewage treatment data - Total number of schemes with tightened/new chemicals/hazardous substances permits | D139: nr | E139: Price Review 2024 | F139: 0 | G139: 0
A140: NWT | B140: PR24_E_WW051_TOTAL | C140: PR24 BP EA/NRW environmental programme wastewater (WINEP/NEP) - Treatment for chemical removal (WINEP/NEP) wastewater totex - Total inc. accelerated & transition costs | D140: £m | E140: Price Review 2024 | M140: 0
A141: NWT | B141: PR24_NETTOTEX_WASTE | C141: PR24 BP Net totex - Total inc. accelerated & transition costs | D141: £m | E141: Price Review 2024 | M141: 8993.179575
A142: WSX | B142: CWW3_049TOT_PR24 | C142: EA/NRW environmental programme wastewater (WINEP/NEP) - Treatment for chemical removal (WINEP/NEP) wastewater capex - Total | D142: £m | E142: Price Review 2024 | F142: 0.008939 | G142: 0.002 | H142: 0.204452 | I142: 0.837309 | J142: 1.829495 | K142: 4.61958 | L142: 3.945597
A143: WSX | B143: CWW3_050TOT_PR24 | C143: EA/NRW environmental programme wastewater (WINEP/NEP) - Treatment for chemical removal (WINEP/NEP) wastewater opex - Total | D143: £m | E143: Price Review 2024 | F143: 0 | G143: 0 | H143: 0 | I143: 0.006121 | J143: 0.012303 | K143: 0.051004 | L143: 0.161134
A144: WSX | B144: CWW3_051TOT_PR24 | C144: EA/NRW environmental programme wastewater (WINEP/NEP) - Treatment for chemical removal (WINEP/NEP) wastewater totex - Total | D144: £m | E144: Price Review 2024 | F144: 0.008939 | G144: 0.002 | H144: 0.204452 | I144: 0.84343 | J144: 1.841798 | K144: 4.670584 | L144: 4.106731
A145: WSX | B145: CWW12_049TOT_PR24 | C145: EA/NRW environmental programme wastewater (WINEP/NEP) - Treatment for chemical removal (WINEP/NEP) wastewater capex - Total | D145: £m | E145: Price Review 2024 | F145: 0.008939 | G145: 0.002
A146: WSX | B146: CWW12_050TOT_PR24 | C146: EA/NRW environmental programme wastewater (WINEP/NEP) - Treatment for chemical removal (WINEP/NEP) wastewater opex - Total | D146: £m | E146: Price Review 2024 | F146: 0 | G146: 0
A147: WSX | B147: CWW12_051TOT_PR24 | C147: EA/NRW environmental programme wastewater (WINEP/NEP) - Treatment for chemical removal (WINEP/NEP) wastewater totex - Total | D147: £m | E147: Price Review 2024 | F147: 0.008939 | G147: 0.002
A148: WSX | B148: CWW17_049TOT_PR24 | C148: EA/NRW environmental programme wastewater (WINEP/NEP) - Treatment for chemical removal (WINEP/NEP) wastewater capex - Total | D148: £m | E148: Price Review 2024 | F148: 0 | G148: 0 | H148: 0 | I148: 0 | J148: 0 | K148: 0 | L148: 0
A149: WSX | B149: CWW17_050TOT_PR24 | C149: EA/NRW environmental programme wastewater (WINEP/NEP) - Treatment for chemical removal (WINEP/NEP) wastewater opex - Total | D149: £m | E149: Price Review 2024 | F149: 0 | G149: 0 | H149: 0 | I149: 0 | J149: 0 | K149: 0 | L149: 0
A150: WSX | B150: CWW17_051TOT_PR24 | C150: EA/NRW environmental programme wastewater (WINEP/NEP) - Treatment for chemical removal (WINEP/NEP) wastewater totex - Total | D150: £m | E150: Price Review 2024 | F150: 0 | G150: 0 | H150: 0 | I150: 0 | J150: 0 | K150: 0 | L150: 0
A151: WSX | B151: S4031_PR24 | C151: Sewage treatment data - Current population equivalent served by STWs with tightened/new permits for chemicals / hazardous substances | D151: 000s | E151: Price Review 2024 | F151: 0 | G151: 0 | H151: 0 | I151: 43.536 | J151: 0 | K151: 8.19 | L151: 64.247
A152: WSX | B152: CWW20A_S4031_PR24 | C152: Sewage treatment data - Current population equivalent served by STWs with tightened/new permits for chemicals / hazardous substances | D152: 000s | E152: Price Review 2024
A153: WSX | B153: CWW20_026_PR24 | C153: Sewage treatment data - Total number of schemes with tightened/new chemicals/hazardous substances permits | D153: nr | E153: Price Review 2024 | F153: 0 | G153: 0 | H153: 0 | I153: 3 | J153: 0 | K153: 1 | L153: 5
A154: WSX | B154: CWW20A_026_PR24 | C154: Sewage treatment data - Total number of schemes with tightened/new chemicals/hazardous substances permits | D154: nr | E154: Price Review 2024
A155: WSX | B155: PR24_E_WW051_TOTAL | C155: PR24 BP EA/NRW environmental programme wastewater (WINEP/NEP) - Treatment for chemical removal (WINEP/NEP) wastewater totex - Total inc. accelerated & transition costs | D155: £m | E155: Price Review 2024 | M155: 11.677934
A156: WSX | B156: PR24_NETTOTEX_WASTE | C156: PR24 BP Net totex - Total inc. accelerated & transition costs | D156: £m | E156: Price Review 2024 | M156: 3717.880959
A157: YKY | B157: CWW3_049TOT_PR24 | C157: EA/NRW environmental programme wastewater (WINEP/NEP) - Treatment for chemical removal (WINEP/NEP) wastewater capex - Total | D157: £m | E157: Price Review 2024 | F157: 1.672176792 | G157: 3.041 | H157: 0 | I157: 0 | J157: 0 | K157: 0 | L157: 0
A158: YKY | B158: CWW3_050TOT_PR24 | C158: EA/NRW environmental programme wastewater (WINEP/NEP) - Treatment for chemical removal (WINEP/NEP) wastewater opex - Total | D158: £m | E158: Price Review 2024 | F158: 0 | G158: 0 | H158: 0 | I158: 0 | J158: 0 | K158: 0 | L158: 0
A159: YKY | B159: CWW3_051TOT_PR24 | C159: EA/NRW environmental programme wastewater (WINEP/NEP) - Treatment for chemical removal (WINEP/NEP) wastewater totex - Total | D159: £m | E159: Price Review 2024 | F159: 1.672176792 | G159: 3.041 | H159: 0 | I159: 0 | J159: 0 | K159: 0 | L159: 0
A160: YKY | B160: CWW12_049TOT_PR24 | C160: EA/NRW environmental programme wastewater (WINEP/NEP) - Treatment for chemical removal (WINEP/NEP) wastewater capex - Total | D160: £m | E160: Price Review 2024 | F160: 0 | G160: 0
A161: YKY | B161: CWW12_050TOT_PR24 | C161: EA/NRW environmental programme wastewater (WINEP/NEP) - Treatment for chemical removal (WINEP/NEP) wastewater opex - Total | D161: £m | E161: Price Review 2024 | F161: 0 | G161: 0
A162: YKY | B162: CWW12_051TOT_PR24 | C162: EA/NRW environmental programme wastewater (WINEP/NEP) - Treatment for chemical removal (WINEP/NEP) wastewater totex - Total | D162: £m | E162: Price Review 2024 | F162: 0 | G162: 0
A163: YKY | B163: CWW17_049TOT_PR24 | C163: EA/NRW environmental programme wastewater (WINEP/NEP) - Treatment for chemical removal (WINEP/NEP) wastewater capex - Total | D163: £m | E163: Price Review 2024 | F163: 0 | G163: 0 | H163: 0 | I163: 0 | J163: 0 | K163: 0 | L163: 0
A164: YKY | B164: CWW17_050TOT_PR24 | C164: EA/NRW environmental programme wastewater (WINEP/NEP) - Treatment for chemical removal (WINEP/NEP) wastewater opex - Total | D164: £m | E164: Price Review 2024 | F164: 0 | G164: 0 | H164: 0 | I164: 0 | J164: 0 | K164: 0 | L164: 0
A165: YKY | B165: CWW17_051TOT_PR24 | C165: EA/NRW environmental programme wastewater (WINEP/NEP) - Treatment for chemical removal (WINEP/NEP) wastewater totex - Total | D165: £m | E165: Price Review 2024 | F165: 0 | G165: 0 | H165: 0 | I165: 0 | J165: 0 | K165: 0 | L165: 0
A166: YKY | B166: S4031_PR24 | C166: Sewage treatment data - Current population equivalent served by STWs with tightened/new permits for chemicals / hazardous substances | D166: 000s | E166: Price Review 2024 | F166: 0 | G166: 54.79 | H166: 0 | I166: 1993.505 | J166: 0 | K166: 0 | L166: 0
A167: YKY | B167: CWW20A_S4031_PR24 | C167: Sewage treatment data - Current population equivalent served by STWs with tightened/new permits for chemicals / hazardous substances | D167: 000s | E167: Price Review 2024
A168: YKY | B168: CWW20_026_PR24 | C168: Sewage treatment data - Total number of schemes with tightened/new chemicals/hazardous substances permits | D168: nr | E168: Price Review 2024 | F168: 0 | G168: 8 | H168: 0 | I168: 34 | J168: 0 | K168: 0 | L168: 0
A169: YKY | B169: CWW20A_026_PR24 | C169: Sewage treatment data - Total number of schemes with tightened/new chemicals/hazardous substances permits | D169: nr | E169: Price Review 2024
A170: YKY | B170: PR24_E_WW051_TOTAL | C170: PR24 BP EA/NRW environmental programme wastewater (WINEP/NEP) - Treatment for chemical removal (WINEP/NEP) wastewater totex - Total inc. accelerated & transition costs | D170: £m | E170: Price Review 2024 | M170: 0
A171: YKY | B171: PR24_NETTOTEX_WASTE | C171: PR24 BP Net totex - Total inc. accelerated & transition costs | D171: £m | E171: Price Review 2024 | M171: 4605.568446

Sheet F_Inputs_adjusted
A1: =RIGHT(CELL("filename", $A$1), LEN(CELL("filename", $A$1)) - SEARCH("]", CELL("filename", $A$1))) -> F_Inputs_adjusted
A2: =F_Inputs!A2 -> Acronym | B2: =F_Inputs!B2 -> Reference | C2: =F_Inputs!C2 -> Item description | D2: =F_Inputs!D2 -> Unit | E2: =F_Inputs!E2 -> Model | F2: =F_Inputs!F2 -> 2023-24 | G2: =F_Inputs!G2 -> 2024-25 | H2: =F_Inputs!H2 -> 2025-26 | I2: =F_Inputs!I2 -> 2026-27 | J2: =F_Inputs!J2 -> 2027-28 | K2: =F_Inputs!K2 -> 2028-29 | L2: =F_Inputs!L2 -> 2029-30 | M2: =F_Inputs!M2 -> Constant | R2: 2023-24 | S2: 2024-25 | T2: 2025-26 | U2: 2026-27 | V2: 2027-28 | W2: 2028-29 | X2: 2029-30 | Y2: Constant
A3: =F_Inputs!A3 -> 0 | B3: =F_Inputs!B3 -> 0 | C3: =F_Inputs!C3 -> 0 | D3: =F_Inputs!D3 -> 0 | E3: =F_Inputs!E3 -> 0 | F3: =F_Inputs!F3 -> 0 | G3: =F_Inputs!G3 -> 0 | H3: =F_Inputs!H3 -> 0 | I3: =F_Inputs!I3 -> 0 | J3: =F_Inputs!J3 -> 0 | K3: =F_Inputs!K3 -> 0 | L3: =F_Inputs!L3 -> 0
A4: =F_Inputs!A4 -> 0 | B4: =F_Inputs!B4 -> 0 | C4: =F_Inputs!C4 -> 0 | D4: =F_Inputs!D4 -> 0 | E4: =F_Inputs!E4 -> 0 | F4: =F_Inputs!F4 -> Price Review 2024 | G4: =F_Inputs!G4 -> Price Review 2024 | H4: =F_Inputs!H4 -> Price Review 2024 | I4: =F_Inputs!I4 -> Price Review 2024 | J4: =F_Inputs!J4 -> Price Review 2024 | K4: =F_Inputs!K4 -> Price Review 2024 | L4: =F_Inputs!L4 -> Price Review 2024 | M4: =F_Inputs!M4 -> Price Review 2024 | R4: Price Review 2024 | S4: Price Review 2024 | T4: Price Review 2024 | U4: Price Review 2024 | V4: Price Review 2024 | W4: Price Review 2024 | X4: Price Review 2024 | Y4: Price Review 2024
A5: =F_Inputs!A5 -> 0 | B5: =F_Inputs!B5 -> 0 | C5: =F_Inputs!C5 -> 0 | D5: =F_Inputs!D5 -> 0 | E5: =F_Inputs!E5 -> 0 | F5: =F_Inputs!F5 -> Run 11 - PR24 FD Data | G5: =F_Inputs!G5 -> Run 11 - PR24 FD Data | H5: =F_Inputs!H5 -> Run 11 - PR24 FD Data | I5: =F_Inputs!I5 -> Run 11 - PR24 FD Data | J5: =F_Inputs!J5 -> Run 11 - PR24 FD Data | K5: =F_Inputs!K5 -> Run 11 - PR24 FD Data | L5: =F_Inputs!L5 -> Run 11 - PR24 FD Data | M5: =F_Inputs!M5 -> Run 11 - PR24 FD Data | R5: PR24 Run 3: October Plans - Corrected | S5: PR24 Run 3: October Plans - Corrected | T5: PR24 Run 3: October Plans - Corrected | U5: PR24 Run 3: October Plans - Corrected | V5: PR24 Run 3: October Plans - Corrected | W5: PR24 Run 3: October Plans - Corrected | X5: PR24 Run 3: October Plans - Corrected | Y5: PR24 Run 3: October Plans - Corrected
A6: =F_Inputs!A6 -> 0 | B6: =F_Inputs!B6 -> 0 | C6: =F_Inputs!C6 -> 0 | D6: =F_Inputs!D6 -> 0 | E6: =F_Inputs!E6 -> 0 | F6: =F_Inputs!F6 -> Latest | G6: =F_Inputs!G6 -> Latest | H6: =F_Inputs!H6 -> Latest | I6: =F_Inputs!I6 -> Latest | J6: =F_Inputs!J6 -> Latest | K6: =F_Inputs!K6 -> Latest | L6: =F_Inputs!L6 -> Latest | M6: =F_Inputs!M6 -> Latest | R6: Latest | S6: Latest | T6: Latest | U6: Latest | V6: Latest | W6: Latest | X6: Latest | Y6: Latest
A7: =F_Inputs!A7 -> ANH | B7: =F_Inputs!B7 -> CWW3_049TOT_PR24 | C7: =F_Inputs!C7 -> EA/NRW environmental programme wastewater (WINEP/NEP) - Treatment for chemical removal (WINEP/NEP) wastewater capex - Total | D7: =F_Inputs!D7 -> £m | E7: =F_Inputs!E7 -> Price Review 2024 | F7: =F_Inputs!F7 -> 0 | G7: =F_Inputs!G7 -> 0 | H7: =F_Inputs!H7 -> 2.278 | I7: =F_Inputs!I7 -> 7.788 | J7: =F_Inputs!J7 -> 13.411 | K7: =F_Inputs!K7 -> 12.868 | L7: =F_Inputs!L7 -> 6.36 | M7: =F_Inputs!M7 ->  | Q7: =LEFT(B7,6) -> CWW3_0 | R7: =IF(OR($Q7="CWW12_",$Q7= "CWW17_",$Q7= "CWW20A"),F7,0) -> 0 | S7: =IF(OR($Q7="CWW12_",$Q7= "CWW17_",$Q7= "CWW20A"),G7,0) -> 0 | T7: =IF(OR($Q7="CWW3_0",$Q7="PR24_E",$Q7="PR24_N",$Q7= "CWW20_",$Q7="CWW1A_", $Q7="S4031_"),H7,0) -> 2.278 | U7: =IF(OR($Q7="CWW3_0",$Q7="PR24_E",$Q7="PR24_N",$Q7= "CWW20_",$Q7="CWW1A_", $Q7="S4031_"),I7,0) -> 7.788 | V7: 13.411 | W7: 12.868 | X7: 6.36
A8: =F_Inputs!A8 -> ANH | B8: =F_Inputs!B8 -> CWW3_050TOT_PR24 | C8: =F_Inputs!C8 -> EA/NRW environmental programme wastewater (WINEP/NEP) - Treatment for chemical removal (WINEP/NEP) wastewater opex - Total | D8: =F_Inputs!D8 -> £m | E8: =F_Inputs!E8 -> Price Review 2024 | F8: =F_Inputs!F8 -> 0.01748475474 | G8: =F_Inputs!G8 -> 0.038 | H8: =F_Inputs!H8 -> 0 | I8: =F_Inputs!I8 -> 0.205 | J8: =F_Inputs!J8 -> 0.016 | K8: =F_Inputs!K8 -> 0.1 | L8: =F_Inputs!L8 -> 0.31 | M8: =F_Inputs!M8 ->  | Q8: CWW3_0 | R8: =IF(OR($Q8="CWW12_",$Q8= "CWW17_",$Q8= "CWW20A"),F8,0) -> 0 | S8: =IF(OR($Q8="CWW12_",$Q8= "CWW17_",$Q8= "CWW20A"),G8,0) -> 0 | T8: =IF(OR($Q8="CWW3_0",$Q8="PR24_E",$Q8="PR24_N",$Q8= "CWW20_",$Q8="CWW1A_", $Q8="S4031_"),H8,0) -> 0 | U8: =IF(OR($Q8="CWW3_0",$Q8="PR24_E",$Q8="PR24_N",$Q8= "CWW20_",$Q8="CWW1A_", $Q8="S4031_"),I8,0) -> 0.205 | V8: =IF(OR($Q8="CWW3_0",$Q8="PR24_E",$Q8="PR24_N",$Q8= "CWW20_",$Q8="CWW1A_", $Q8="S4031_"),J8,0) -> 0.016 | W8: =IF(OR($Q8="CWW3_0",$Q8="PR24_E",$Q8="PR24_N",$Q8= "CWW20_",$Q8="CWW1A_", $Q8="S4031_"),K8,0) -> 0.1 | X8: =IF(OR($Q8="CWW3_0",$Q8="PR24_E",$Q8="PR24_N",$Q8= "CWW20_",$Q8="CWW1A_", $Q8="S4031_"),L8,0) -> 0.31 | Y8: =IF(OR($Q8="CWW3_0",$Q8="PR24_E",$Q8="PR24_N",$Q8= "CWW20_",$Q8="CWW1A_", $Q8="S4031_"),M8,0) -> 
A9: =F_Inputs!A9 -> ANH | B9: =F_Inputs!B9 -> CWW3_051TOT_PR24 | C9: =F_Inputs!C9 -> EA/NRW environmental programme wastewater (WINEP/NEP) - Treatment for chemical removal (WINEP/NEP) wastewater totex - Total | D9: =F_Inputs!D9 -> £m | E9: =F_Inputs!E9 -> Price Review 2024 | F9: =F_Inputs!F9 -> 0.01748475474 | G9: =F_Inputs!G9 -> 0.038 | H9: =F_Inputs!H9 -> 2.278 | I9: =F_Inputs!I9 -> 7.993 | J9: =F_Inputs!J9 -> 13.427 | K9: =F_Inputs!K9 -> 12.968 | L9: =F_Inputs!L9 -> 6.67 | M9: =F_Inputs!M9 ->  | Q9: CWW3_0 | R9: 0 | S9: 0 | T9: 2.278 | U9: 7.993 | V9: 13.427 | W9: 12.968 | X9: 6.67
A10: =F_Inputs!A10 -> ANH | B10: =F_Inputs!B10 -> CWW12_049TOT_PR24 | C10: =F_Inputs!C10 -> EA/NRW environmental programme wastewater (WINEP/NEP) - Treatment for chemical removal (WINEP/NEP) wastewater capex - Total | D10: =F_Inputs!D10 -> £m | E10: =F_Inputs!E10 -> Price Review 2024 | F10: =F_Inputs!F10 -> 0 | G10: =F_Inputs!G10 -> 0 | H10: =F_Inputs!H10 ->  | I10: =F_Inputs!I10 ->  | J10: =F_Inputs!J10 ->  | K10: =F_Inputs!K10 ->  | L10: =F_Inputs!L10 ->  | M10: =F_Inputs!M10 ->  | Q10: CWW12_ | R10: 0 | S10: 0 | T10: 0 | U10: 0 | V10: 0 | W10: 0 | X10: 0 | Y10: 0
A11: =F_Inputs!A11 -> ANH | B11: =F_Inputs!B11 -> CWW12_050TOT_PR24 | C11: =F_Inputs!C11 -> EA/NRW environmental programme wastewater (WINEP/NEP) - Treatment for chemical removal (WINEP/NEP) wastewater opex - Total | D11: =F_Inputs!D11 -> £m | E11: =F_Inputs!E11 -> Price Review 2024 | F11: =F_Inputs!F11 -> 0 | G11: =F_Inputs!G11 -> 0 | H11: =F_Inputs!H11 ->  | I11: =F_Inputs!I11 ->  | J11: =F_Inputs!J11 ->  | K11: =F_Inputs!K11 ->  | L11: =F_Inputs!L11 ->  | M11: =F_Inputs!M11 ->  | Q11: CWW12_ | R11: 0 | S11: 0 | T11: 0 | U11: 0 | V11: 0 | W11: 0 | X11: 0 | Y11: 0
A12: =F_Inputs!A12 -> ANH | B12: =F_Inputs!B12 -> CWW12_051TOT_PR24 | C12: =F_Inputs!C12 -> EA/NRW environmental programme wastewater (WINEP/NEP) - Treatment for chemical removal (WINEP/NEP) wastewater totex - Total | D12: =F_Inputs!D12 -> £m | E12: =F_Inputs!E12 -> Price Review 2024 | F12: =F_Inputs!F12 -> 0 | G12: =F_Inputs!G12 -> 0 | H12: =F_Inputs!H12 ->  | I12: =F_Inputs!I12 ->  | J12: =F_Inputs!J12 ->  | K12: =F_Inputs!K12 ->  | L12: =F_Inputs!L12 ->  | M12: =F_Inputs!M12 ->  | Q12: CWW12_ | R12: 0 | S12: 0 | T12: 0 | U12: 0 | V12: 0 | W12: 0 | X12: 0 | Y12: 0
A13: =F_Inputs!A13 -> ANH | B13: =F_Inputs!B13 -> CWW17_049TOT_PR24 | C13: =F_Inputs!C13 -> EA/NRW environmental programme wastewater (WINEP/NEP) - Treatment for chemical removal (WINEP/NEP) wastewater capex - Total | D13: =F_Inputs!D13 -> £m | E13: =F_Inputs!E13 -> Price Review 2024 | F13: =F_Inputs!F13 -> 0 | G13: =F_Inputs!G13 -> 0 | H13: =F_Inputs!H13 -> 0 | I13: =F_Inputs!I13 -> 0 | J13: =F_Inputs!J13 -> 0 | K13: =F_Inputs!K13 -> 0 | L13: =F_Inputs!L13 -> 0 | M13: =F_Inputs!M13 ->  | Q13: CWW17_ | R13: 0 | S13: 0 | T13: 0 | U13: 0 | V13: 0 | W13: 0 | X13: 0 | Y13: 0
A14: =F_Inputs!A14 -> ANH | B14: =F_Inputs!B14 -> CWW17_050TOT_PR24 | C14: =F_Inputs!C14 -> EA/NRW environmental programme wastewater (WINEP/NEP) - Treatment for chemical removal (WINEP/NEP) wastewater opex - Total | D14: =F_Inputs!D14 -> £m | E14: =F_Inputs!E14 -> Price Review 2024 | F14: =F_Inputs!F14 -> 0 | G14: =F_Inputs!G14 -> 0 | H14: =F_Inputs!H14 -> 0 | I14: =F_Inputs!I14 -> 0 | J14: =F_Inputs!J14 -> 0 | K14: =F_Inputs!K14 -> 0 | L14: =F_Inputs!L14 -> 0 | M14: =F_Inputs!M14 ->  | Q14: CWW17_ | R14: 0 | S14: 0 | T14: 0 | U14: 0 | V14: 0 | W14: 0 | X14: 0 | Y14: 0
A15: =F_Inputs!A15 -> ANH | B15: =F_Inputs!B15 -> CWW17_051TOT_PR24 | C15: =F_Inputs!C15 -> EA/NRW environmental programme wastewater (WINEP/NEP) - Treatment for chemical removal (WINEP/NEP) wastewater totex - Total | D15: =F_Inputs!D15 -> £m | E15: =F_Inputs!E15 -> Price Review 2024 | F15: =F_Inputs!F15 -> 0 | G15: =F_Inputs!G15 -> 0 | H15: =F_Inputs!H15 -> 0 | I15: =F_Inputs!I15 -> 0 | J15: =F_Inputs!J15 -> 0 | K15: =F_Inputs!K15 -> 0 | L15: =F_Inputs!L15 -> 0 | M15: =F_Inputs!M15 ->  | Q15: CWW17_ | R15: 0 | S15: 0 | T15: 0 | U15: 0 | V15: 0 | W15: 0 | X15: 0 | Y15: 0
A16: =F_Inputs!A16 -> ANH | B16: =F_Inputs!B16 -> S4031_PR24 | C16: =F_Inputs!C16 -> Sewage treatment data - Current population equivalent served by STWs with tightened/new permits for chemicals / hazardous substances | D16: =F_Inputs!D16 -> 000s | E16: =F_Inputs!E16 -> Price Review 2024 | F16: =F_Inputs!F16 -> 0 | G16: =F_Inputs!G16 -> 25.09 | H16: =F_Inputs!H16 -> 0 | I16: =F_Inputs!I16 -> 1205.362 | J16: =F_Inputs!J16 -> 0 | K16: =F_Inputs!K16 -> 53.759 | L16: =F_Inputs!L16 -> 103.676 | M16: =F_Inputs!M16 ->  | Q16: S4031_ | R16: 0 | S16: 0 | T16: 0 | U16: 1205.362 | V16: 0 | W16: 53.759 | X16: 103.676
A17: =F_Inputs!A17 -> ANH | B17: =F_Inputs!B17 -> CWW20A_S4031_PR24 | C17: =F_Inputs!C17 -> Sewage treatment data - Current population equivalent served by STWs with tightened/new permits for chemicals / hazardous substances | D17: =F_Inputs!D17 -> 000s | E17: =F_Inputs!E17 -> Price Review 2024 | F17: =F_Inputs!F17 ->  | G17: =F_Inputs!G17 ->  | H17: =F_Inputs!H17 ->  | I17: =F_Inputs!I17 ->  | J17: =F_Inputs!J17 ->  | K17: =F_Inputs!K17 ->  | L17: =F_Inputs!L17 ->  | M17: =F_Inputs!M17 ->  | Q17: CWW20A | T17: 0 | U17: 0 | V17: 0 | W17: 0 | X17: 0 | Y17: 0
A18: =F_Inputs!A18 -> ANH | B18: =F_Inputs!B18 -> CWW20_026_PR24 | C18: =F_Inputs!C18 -> Sewage treatment data - Total number of schemes with tightened/new chemicals/hazardous substances permits | D18: =F_Inputs!D18 -> nr | E18: =F_Inputs!E18 -> Price Review 2024 | F18: =F_Inputs!F18 -> 0 | G18: =F_Inputs!G18 -> 0 | H18: =F_Inputs!H18 -> 0 | I18: =F_Inputs!I18 -> 30 | J18: =F_Inputs!J18 -> 0 | K18: =F_Inputs!K18 -> 4 | L18: =F_Inputs!L18 -> 12 | M18: =F_Inputs!M18 ->  | Q18: CWW20_ | R18: 0 | S18: 0 | T18: 0 | U18: 30 | V18: 0 | W18: 4 | X18: 12
A19: =F_Inputs!A19 -> ANH | B19: =F_Inputs!B19 -> CWW20A_026_PR24 | C19: =F_Inputs!C19 -> Sewage treatment data - Total number of schemes with tightened/new chemicals/hazardous substances permits | D19: =F_Inputs!D19 -> nr | E19: =F_Inputs!E19 -> Price Review 2024 | F19: =F_Inputs!F19 ->  | G19: =F_Inputs!G19 ->  | H19: =F_Inputs!H19 ->  | I19: =F_Inputs!I19 ->  | J19: =F_Inputs!J19 ->  | K19: =F_Inputs!K19 ->  | L19: =F_Inputs!L19 ->  | M19: =F_Inputs!M19 ->  | Q19: CWW20A | T19: 0 | U19: 0 | V19: 0 | W19: 0 | X19: 0 | Y19: 0
A20: =F_Inputs!A20 -> ANH | B20: =F_Inputs!B20 -> PR24_E_WW051_TOTAL | C20: =F_Inputs!C20 -> PR24 BP EA/NRW environmental programme wastewater (WINEP/NEP) - Treatment for chemical removal (WINEP/NEP) wastewater totex - Total inc. accelerated & transition costs | D20: =F_Inputs!D20 -> £m | E20: =F_Inputs!E20 -> Price Review 2024 | F20: =F_Inputs!F20 ->  | G20: =F_Inputs!G20 ->  | H20: =F_Inputs!H20 ->  | I20: =F_Inputs!I20 ->  | J20: =F_Inputs!J20 ->  | K20: =F_Inputs!K20 ->  | L20: =F_Inputs!L20 ->  | M20: =F_Inputs!M20 -> 43.336 | Q20: PR24_E | R20: 0 | S20: 0 | Y20: 43.336
A21: =F_Inputs!A21 -> ANH | B21: =F_Inputs!B21 -> PR24_NETTOTEX_WASTE | C21: =F_Inputs!C21 -> PR24 BP Net totex - Total inc. accelerated & transition costs | D21: =F_Inputs!D21 -> £m | E21: =F_Inputs!E21 -> Price Review 2024 | F21: =F_Inputs!F21 ->  | G21: =F_Inputs!G21 ->  | H21: =F_Inputs!H21 ->  | I21: =F_Inputs!I21 ->  | J21: =F_Inputs!J21 ->  | K21: =F_Inputs!K21 ->  | L21: =F_Inputs!L21 ->  | M21: =F_Inputs!M21 -> 6050.179102 | Q21: PR24_N | R21: 0 | S21: 0 | Y21: 6050.179102
A22: =F_Inputs!A22 -> WSH | B22: =F_Inputs!B22 -> CWW3_049TOT_PR24 | C22: =F_Inputs!C22 -> EA/NRW environmental programme wastewater (WINEP/NEP) - Treatment for chemical removal (WINEP/NEP) wastewater capex - Total | D22: =F_Inputs!D22 -> £m | E22: =F_Inputs!E22 -> Price Review 2024 | F22: =F_Inputs!F22 -> 0 | G22: =F_Inputs!G22 -> 0 | H22: =F_Inputs!H22 -> 0 | I22: =F_Inputs!I22 -> 0 | J22: =F_Inputs!J22 -> 0 | K22: =F_Inputs!K22 -> 0 | L22: =F_Inputs!L22 -> 0 | M22: =F_Inputs!M22 ->  | Q22: CWW3_0 | R22: 0 | S22: 0 | T22: 0 | U22: 0 | V22: 0 | W22: 0 | X22: 0
A23: =F_Inputs!A23 -> WSH | B23: =F_Inputs!B23 -> CWW3_050TOT_PR24 | C23: =F_Inputs!C23 -> EA/NRW environmental programme wastewater (WINEP/NEP) - Treatment for chemical removal (WINEP/NEP) wastewater opex - Total | D23: =F_Inputs!D23 -> £m | E23: =F_Inputs!E23 -> Price Review 2024 | F23: =F_Inputs!F23 -> 0 | G23: =F_Inputs!G23 -> 0 | H23: =F_Inputs!H23 -> 0 | I23: =F_Inputs!I23 -> 0 | J23: =F_Inputs!J23 -> 0 | K23: =F_Inputs!K23 -> 0 | L23: =F_Inputs!L23 -> 0 | M23: =F_Inputs!M23 ->  | Q23: CWW3_0 | R23: 0 | S23: 0 | T23: 0 | U23: 0 | V23: 0 | W23: 0 | X23: 0
A24: =F_Inputs!A24 -> WSH | B24: =F_Inputs!B24 -> CWW3_051TOT_PR24 | C24: =F_Inputs!C24 -> EA/NRW environmental programme wastewater (WINEP/NEP) - Treatment for chemical removal (WINEP/NEP) wastewater totex - Total | D24: =F_Inputs!D24 -> £m | E24: =F_Inputs!E24 -> Price Review 2024 | F24: =F_Inputs!F24 -> 0 | G24: =F_Inputs!G24 -> 0 | H24: =F_Inputs!H24 -> 0 | I24: =F_Inputs!I24 -> 0 | J24: =F_Inputs!J24 -> 0 | K24: =F_Inputs!K24 -> 0 | L24: =F_Inputs!L24 -> 0 | M24: =F_Inputs!M24 ->  | Q24: CWW3_0 | R24: 0 | S24: 0 | T24: 0 | U24: 0 | V24: 0 | W24: 0 | X24: 0
A25: =F_Inputs!A25 -> WSH | B25: =F_Inputs!B25 -> CWW12_049TOT_PR24 | C25: =F_Inputs!C25 -> EA/NRW environmental programme wastewater (WINEP/NEP) - Treatment for chemical removal (WINEP/NEP) wastewater capex - Total | D25: =F_Inputs!D25 -> £m | E25: =F_Inputs!E25 -> Price Review 2024 | F25: =F_Inputs!F25 -> 0 | G25: =F_Inputs!G25 -> 0 | H25: =F_Inputs!H25 ->  | I25: =F_Inputs!I25 ->  | J25: =F_Inputs!J25 ->  | K25: =F_Inputs!K25 ->  | L25: =F_Inputs!L25 ->  | M25: =F_Inputs!M25 ->  | Q25: CWW12_ | R25: 0 | S25: 0 | T25: 0 | U25: 0 | V25: 0 | W25: 0 | X25: 0 | Y25: 0
A26: =F_Inputs!A26 -> WSH | B26: =F_Inputs!B26 -> CWW12_050TOT_PR24 | C26: =F_Inputs!C26 -> EA/NRW environmental programme wastewater (WINEP/NEP) - Treatment for chemical removal (WINEP/NEP) wastewater opex - Total | D26: =F_Inputs!D26 -> £m | E26: =F_Inputs!E26 -> Price Review 2024 | F26: =F_Inputs!F26 -> 0 | G26: =F_Inputs!G26 -> 0 | H26: =F_Inputs!H26 ->  | I26: =F_Inputs!I26 ->  | J26: =F_Inputs!J26 ->  | K26: =F_Inputs!K26 ->  | L26: =F_Inputs!L26 ->  | M26: =F_Inputs!M26 ->  | Q26: CWW12_ | R26: 0 | S26: 0 | T26: 0 | U26: 0 | V26: 0 | W26: 0 | X26: 0 | Y26: 0
A27: =F_Inputs!A27 -> WSH | B27: =F_Inputs!B27 -> CWW12_051TOT_PR24 | C27: =F_Inputs!C27 -> EA/NRW environmental programme wastewater (WINEP/NEP) - Treatment for chemical removal (WINEP/NEP) wastewater totex - Total | D27: =F_Inputs!D27 -> £m | E27: =F_Inputs!E27 -> Price Review 2024 | F27: =F_Inputs!F27 -> 0 | G27: =F_Inputs!G27 -> 0 | H27: =F_Inputs!H27 ->  | I27: =F_Inputs!I27 ->  | J27: =F_Inputs!J27 ->  | K27: =F_Inputs!K27 ->  | L27: =F_Inputs!L27 ->  | M27: =F_Inputs!M27 ->  | Q27: CWW12_ | R27: 0 | S27: 0 | T27: 0 | U27: 0 | V27: 0 | W27: 0 | X27: 0 | Y27: 0
A28: =F_Inputs!A28 -> WSH | B28: =F_Inputs!B28 -> CWW17_049TOT_PR24 | C28: =F_Inputs!C28 -> EA/NRW environmental programme wastewater (WINEP/NEP) - Treatment for chemical removal (WINEP/NEP) wastewater capex - Total | D28: =F_Inputs!D28 -> £m | E28: =F_Inputs!E28 -> Price Review 2024 | F28: =F_Inputs!F28 -> 0 | G28: =F_Inputs!G28 -> 0 | H28: =F_Inputs!H28 -> 0 | I28: =F_Inputs!I28 -> 0 | J28: =F_Inputs!J28 -> 0 | K28: =F_Inputs!K28 -> 0 | L28: =F_Inputs!L28 -> 0 | M28: =F_Inputs!M28 ->  | Q28: CWW17_ | R28: 0 | S28: 0 | T28: 0 | U28: 0 | V28: 0 | W28: 0 | X28: 0 | Y28: 0
A29: =F_Inputs!A29 -> WSH | B29: =F_Inputs!B29 -> CWW17_050TOT_PR24 | C29: =F_Inputs!C29 -> EA/NRW environmental programme wastewater (WINEP/NEP) - Treatment for chemical removal (WINEP/NEP) wastewater opex - Total | D29: =F_Inputs!D29 -> £m | E29: =F_Inputs!E29 -> Price Review 2024 | F29: =F_Inputs!F29 -> 0 | G29: =F_Inputs!G29 -> 0 | H29: =F_Inputs!H29 -> 0 | I29: =F_Inputs!I29 -> 0 | J29: =F_Inputs!J29 -> 0 | K29: =F_Inputs!K29 -> 0 | L29: =F_Inputs!L29 -> 0 | M29: =F_Inputs!M29 ->  | Q29: CWW17_ | R29: 0 | S29: 0 | T29: 0 | U29: 0 | V29: 0 | W29: 0 | X29: 0 | Y29: 0
A30: =F_Inputs!A30 -> WSH | B30: =F_Inputs!B30 -> CWW17_051TOT_PR24 | C30: =F_Inputs!C30 -> EA/NRW environmental programme wastewater (WINEP/NEP) - Treatment for chemical removal (WINEP/NEP) wastewater totex - Total | D30: =F_Inputs!D30 -> £m | E30: =F_Inputs!E30 -> Price Review 2024 | F30: =F_Inputs!F30 -> 0 | G30: =F_Inputs!G30 -> 0 | H30: =F_Inputs!H30 -> 0 | I30: =F_Inputs!I30 -> 0 | J30: =F_Inputs!J30 -> 0 | K30: =F_Inputs!K30 -> 0 | L30: =F_Inputs!L30 -> 0 | M30: =F_Inputs!M30 ->  | Q30: CWW17_ | R30: 0 | S30: 0 | T30: 0 | U30: 0 | V30: 0 | W30: 0 | X30: 0 | Y30: 0
A31: =F_Inputs!A31 -> WSH | B31: =F_Inputs!B31 -> S4031_PR24 | C31: =F_Inputs!C31 -> Sewage treatment data - Current population equivalent served by STWs with tightened/new permits for chemicals / hazardous substances | D31: =F_Inputs!D31 -> 000s | E31: =F_Inputs!E31 -> Price Review 2024 | F31: =F_Inputs!F31 -> 0 | G31: =F_Inputs!G31 -> 0 | H31: =F_Inputs!H31 -> 0 | I31: =F_Inputs!I31 -> 0 | J31: =F_Inputs!J31 -> 0 | K31: =F_Inputs!K31 -> 0 | L31: =F_Inputs!L31 -> 0 | M31: =F_Inputs!M31 ->  | Q31: S4031_ | R31: 0 | S31: 0 | T31: 0 | U31: 0 | V31: 0 | W31: 0 | X31: 0
A32: =F_Inputs!A32 -> WSH | B32: =F_Inputs!B32 -> CWW20A_S4031_PR24 | C32: =F_Inputs!C32 -> Sewage treatment data - Current population equivalent served by STWs with tightened/new permits for chemicals / hazardous substances | D32: =F_Inputs!D32 -> 000s | E32: =F_Inputs!E32 -> Price Review 2024 | F32: =F_Inputs!F32 ->  | G32: =F_Inputs!G32 ->  | H32: =F_Inputs!H32 ->  | I32: =F_Inputs!I32 ->  | J32: =F_Inputs!J32 ->  | K32: =F_Inputs!K32 ->  | L32: =F_Inputs!L32 ->  | M32: =F_Inputs!M32 ->  | Q32: CWW20A | T32: 0 | U32: 0 | V32: 0 | W32: 0 | X32: 0 | Y32: 0
A33: =F_Inputs!A33 -> WSH | B33: =F_Inputs!B33 -> CWW20_026_PR24 | C33: =F_Inputs!C33 -> Sewage treatment data - Total number of schemes with tightened/new chemicals/hazardous substances permits | D33: =F_Inputs!D33 -> nr | E33: =F_Inputs!E33 -> Price Review 2024 | F33: =F_Inputs!F33 -> 0 | G33: =F_Inputs!G33 -> 0 | H33: =F_Inputs!H33 -> 0 | I33: =F_Inputs!I33 -> 0 | J33: =F_Inputs!J33 -> 0 | K33: =F_Inputs!K33 -> 0 | L33: =F_Inputs!L33 -> 0 | M33: =F_Inputs!M33 ->  | Q33: CWW20_ | R33: 0 | S33: 0 | T33: 0 | U33: 0 | V33: 0 | W33: 0 | X33: 0
A34: =F_Inputs!A34 -> WSH | B34: =F_Inputs!B34 -> CWW20A_026_PR24 | C34: =F_Inputs!C34 -> Sewage treatment data - Total number of schemes with tightened/new chemicals/hazardous substances permits | D34: =F_Inputs!D34 -> nr | E34: =F_Inputs!E34 -> Price Review 2024 | F34: =F_Inputs!F34 ->  | G34: =F_Inputs!G34 ->  | H34: =F_Inputs!H34 ->  | I34: =F_Inputs!I34 ->  | J34: =F_Inputs!J34 ->  | K34: =F_Inputs!K34 ->  | L34: =F_Inputs!L34 ->  | M34: =F_Inputs!M34 ->  | Q34: CWW20A | T34: 0 | U34: 0 | V34: 0 | W34: 0 | X34: 0 | Y34: 0
A35: =F_Inputs!A35 -> WSH | B35: =F_Inputs!B35 -> PR24_E_WW051_TOTAL | C35: =F_Inputs!C35 -> PR24 BP EA/NRW environmental programme wastewater (WINEP/NEP) - Treatment for chemical removal (WINEP/NEP) wastewater totex - Total inc. accelerated & transition costs | D35: =F_Inputs!D35 -> £m | E35: =F_Inputs!E35 -> Price Review 2024 | F35: =F_Inputs!F35 ->  | G35: =F_Inputs!G35 ->  | H35: =F_Inputs!H35 ->  | I35: =F_Inputs!I35 ->  | J35: =F_Inputs!J35 ->  | K35: =F_Inputs!K35 ->  | L35: =F_Inputs!L35 ->  | M35: =F_Inputs!M35 -> 0 | Q35: PR24_E | R35: 0 | S35: 0 | Y35: 0
A36: =F_Inputs!A36 -> WSH | B36: =F_Inputs!B36 -> PR24_NETTOTEX_WASTE | C36: =F_Inputs!C36 -> PR24 BP Net totex - Total inc. accelerated & transition costs | D36: =F_Inputs!D36 -> £m | E36: =F_Inputs!E36 -> Price Review 2024 | F36: =F_Inputs!F36 ->  | G36: =F_Inputs!G36 ->  | H36: =F_Inputs!H36 ->  | I36: =F_Inputs!I36 ->  | J36: =F_Inputs!J36 ->  | K36: =F_Inputs!K36 ->  | L36: =F_Inputs!L36 ->  | M36: =F_Inputs!M36 -> 3318.169 | Q36: PR24_N | R36: 0 | S36: 0 | Y36: 3318.169
A37: =F_Inputs!A37 -> HDD | B37: =F_Inputs!B37 -> CWW3_049TOT_PR24 | C37: =F_Inputs!C37 -> EA/NRW environmental programme wastewater (WINEP/NEP) - Treatment for chemical removal (WINEP/NEP) wastewater capex - Total | D37: =F_Inputs!D37 -> £m | E37: =F_Inputs!E37 -> Price Review 2024 | F37: =F_Inputs!F37 -> 0 | G37: =F_Inputs!G37 -> 0 | H37: =F_Inputs!H37 -> 0 | I37: =F_Inputs!I37 -> 0 | J37: =F_Inputs!J37 -> 0 | K37: =F_Inputs!K37 -> 0 | L37: =F_Inputs!L37 -> 0 | M37: =F_Inputs!M37 ->  | Q37: CWW3_0 | R37: 0 | S37: 0 | T37: 0 | U37: 0 | V37: 0 | W37: 0 | X37: 0
A38: =F_Inputs!A38 -> HDD | B38: =F_Inputs!B38 -> CWW3_050TOT_PR24 | C38: =F_Inputs!C38 -> EA/NRW environmental programme wastewater (WINEP/NEP) - Treatment for chemical removal (WINEP/NEP) wastewater opex - Total | D38: =F_Inputs!D38 -> £m | E38: =F_Inputs!E38 -> Price Review 2024 | F38: =F_Inputs!F38 -> 0 | G38: =F_Inputs!G38 -> 0 | H38: =F_Inputs!H38 -> 0 | I38: =F_Inputs!I38 -> 0 | J38: =F_Inputs!J38 -> 0 | K38: =F_Inputs!K38 -> 0 | L38: =F_Inputs!L38 -> 0 | M38: =F_Inputs!M38 ->  | Q38: CWW3_0 | R38: 0 | S38: 0 | T38: 0 | U38: 0 | V38: 0 | W38: 0 | X38: 0
A39: =F_Inputs!A39 -> HDD | B39: =F_Inputs!B39 -> CWW3_051TOT_PR24 | C39: =F_Inputs!C39 -> EA/NRW environmental programme wastewater (WINEP/NEP) - Treatment for chemical removal (WINEP/NEP) wastewater totex - Total | D39: =F_Inputs!D39 -> £m | E39: =F_Inputs!E39 -> Price Review 2024 | F39: =F_Inputs!F39 -> 0 | G39: =F_Inputs!G39 -> 0 | H39: =F_Inputs!H39 -> 0 | I39: =F_Inputs!I39 -> 0 | J39: =F_Inputs!J39 -> 0 | K39: =F_Inputs!K39 -> 0 | L39: =F_Inputs!L39 -> 0 | M39: =F_Inputs!M39 ->  | Q39: CWW3_0 | R39: 0 | S39: 0 | T39: 0 | U39: 0 | V39: 0 | W39: 0 | X39: 0
A40: =F_Inputs!A40 -> HDD | B40: =F_Inputs!B40 -> CWW12_049TOT_PR24 | C40: =F_Inputs!C40 -> EA/NRW environmental programme wastewater (WINEP/NEP) - Treatment for chemical removal (WINEP/NEP) wastewater capex - Total | D40: =F_Inputs!D40 -> £m | E40: =F_Inputs!E40 -> Price Review 2024 | F40: =F_Inputs!F40 -> 0 | G40: =F_Inputs!G40 -> 0 | H40: =F_Inputs!H40 ->  | I40: =F_Inputs!I40 ->  | J40: =F_Inputs!J40 ->  | K40: =F_Inputs!K40 ->  | L40: =F_Inputs!L40 ->  | M40: =F_Inputs!M40 ->  | Q40: CWW12_ | R40: 0 | S40: 0 | T40: 0 | U40: 0 | V40: 0 | W40: 0 | X40: 0 | Y40: 0
A41: =F_Inputs!A41 -> HDD | B41: =F_Inputs!B41 -> CWW12_050TOT_PR24 | C41: =F_Inputs!C41 -> EA/NRW environmental programme wastewater (WINEP/NEP) - Treatment for chemical removal (WINEP/NEP) wastewater opex - Total | D41: =F_Inputs!D41 -> £m | E41: =F_Inputs!E41 -> Price Review 2024 | F41: =F_Inputs!F41 -> 0 | G41: =F_Inputs!G41 -> 0 | H41: =F_Inputs!H41 ->  | I41: =F_Inputs!I41 ->  | J41: =F_Inputs!J41 ->  | K41: =F_Inputs!K41 ->  | L41: =F_Inputs!L41 ->  | M41: =F_Inputs!M41 ->  | Q41: CWW12_ | R41: 0 | S41: 0 | T41: 0 | U41: 0 | V41: 0 | W41: 0 | X41: 0 | Y41: 0
A42: =F_Inputs!A42 -> HDD | B42: =F_Inputs!B42 -> CWW12_051TOT_PR24 | C42: =F_Inputs!C42 -> EA/NRW environmental programme wastewater (WINEP/NEP) - Treatment for chemical removal (WINEP/NEP) wastewater totex - Total | D42: =F_Inputs!D42 -> £m | E42: =F_Inputs!E42 -> Price Review 2024 | F42: =F_Inputs!F42 -> 0 | G42: =F_Inputs!G42 -> 0 | H42: =F_Inputs!H42 ->  | I42: =F_Inputs!I42 ->  | J42: =F_Inputs!J42 ->  | K42: =F_Inputs!K42 ->  | L42: =F_Inputs!L42 ->  | M42: =F_Inputs!M42 ->  | Q42: CWW12_ | R42: 0 | S42: 0 | T42: 0 | U42: 0 | V42: 0 | W42: 0 | X42: 0 | Y42: 0
A43: =F_Inputs!A43 -> HDD | B43: =F_Inputs!B43 -> CWW17_049TOT_PR24 | C43: =F_Inputs!C43 -> EA/NRW environmental programme wastewater (WINEP/NEP) - Treatment for chemical removal (WINEP/NEP) wastewater capex - Total | D43: =F_Inputs!D43 -> £m | E43: =F_Inputs!E43 -> Price Review 2024 | F43: =F_Inputs!F43 -> 0 | G43: =F_Inputs!G43 -> 0 | H43: =F_Inputs!H43 -> 0 | I43: =F_Inputs!I43 -> 0 | J43: =F_Inputs!J43 -> 0 | K43: =F_Inputs!K43 -> 0 | L43: =F_Inputs!L43 -> 0 | M43: =F_Inputs!M43 ->  | Q43: CWW17_ | R43: 0 | S43: 0 | T43: 0 | U43: 0 | V43: 0 | W43: 0 | X43: 0 | Y43: 0
A44: =F_Inputs!A44 -> HDD | B44: =F_Inputs!B44 -> CWW17_050TOT_PR24 | C44: =F_Inputs!C44 -> EA/NRW environmental programme wastewater (WINEP/NEP) - Treatment for chemical removal (WINEP/NEP) wastewater opex - Total | D44: =F_Inputs!D44 -> £m | E44: =F_Inputs!E44 -> Price Review 2024 | F44: =F_Inputs!F44 -> 0 | G44: =F_Inputs!G44 -> 0 | H44: =F_Inputs!H44 -> 0 | I44: =F_Inputs!I44 -> 0 | J44: =F_Inputs!J44 -> 0 | K44: =F_Inputs!K44 -> 0 | L44: =F_Inputs!L44 -> 0 | M44: =F_Inputs!M44 ->  | Q44: CWW17_ | R44: 0 | S44: 0 | T44: 0 | U44: 0 | V44: 0 | W44: 0 | X44: 0 | Y44: 0
A45: =F_Inputs!A45 -> HDD | B45: =F_Inputs!B45 -> CWW17_051TOT_PR24 | C45: =F_Inputs!C45 -> EA/NRW environmental programme wastewater (WINEP/NEP) - Treatment for chemical removal (WINEP/NEP) wastewater totex - Total | D45: =F_Inputs!D45 -> £m | E45: =F_Inputs!E45 -> Price Review 2024 | F45: =F_Inputs!F45 -> 0 | G45: =F_Inputs!G45 -> 0 | H45: =F_Inputs!H45 -> 0 | I45: =F_Inputs!I45 -> 0 | J45: =F_Inputs!J45 -> 0 | K45: =F_Inputs!K45 -> 0 | L45: =F_Inputs!L45 -> 0 | M45: =F_Inputs!M45 ->  | Q45: CWW17_ | R45: 0 | S45: 0 | T45: 0 | U45: 0 | V45: 0 | W45: 0 | X45: 0 | Y45: 0
A46: =F_Inputs!A46 -> HDD | B46: =F_Inputs!B46 -> S4031_PR24 | C46: =F_Inputs!C46 -> Sewage treatment data - Current population equivalent served by STWs with tightened/new permits for chemicals / hazardous substances | D46: =F_Inputs!D46 -> 000s | E46: =F_Inputs!E46 -> Price Review 2024 | F46: =F_Inputs!F46 -> 0 | G46: =F_Inputs!G46 -> 0 | H46: =F_Inputs!H46 -> 0 | I46: =F_Inputs!I46 -> 0 | J46: =F_Inputs!J46 -> 0 | K46: =F_Inputs!K46 -> 0 | L46: =F_Inputs!L46 -> 0 | M46: =F_Inputs!M46 ->  | Q46: S4031_ | R46: 0 | S46: 0 | T46: 0 | U46: 0 | V46: 0 | W46: 0 | X46: 0
A47: =F_Inputs!A47 -> HDD | B47: =F_Inputs!B47 -> CWW20A_S4031_PR24 | C47: =F_Inputs!C47 -> Sewage treatment data - Current population equivalent served by STWs with tightened/new permits for chemicals / hazardous substances | D47: =F_Inputs!D47 -> 000s | E47: =F_Inputs!E47 -> Price Review 2024 | F47: =F_Inputs!F47 ->  | G47: =F_Inputs!G47 ->  | H47: =F_Inputs!H47 ->  | I47: =F_Inputs!I47 ->  | J47: =F_Inputs!J47 ->  | K47: =F_Inputs!K47 ->  | L47: =F_Inputs!L47 ->  | M47: =F_Inputs!M47 ->  | Q47: CWW20A | T47: 0 | U47: 0 | V47: 0 | W47: 0 | X47: 0 | Y47: 0
A48: =F_Inputs!A48 -> HDD | B48: =F_Inputs!B48 -> CWW20_026_PR24 | C48: =F_Inputs!C48 -> Sewage treatment data - Total number of schemes with tightened/new chemicals/hazardous substances permits | D48: =F_Inputs!D48 -> nr | E48: =F_Inputs!E48 -> Price Review 2024 | F48: =F_Inputs!F48 -> 0 | G48: =F_Inputs!G48 -> 0 | H48: =F_Inputs!H48 -> 0 | I48: =F_Inputs!I48 -> 0 | J48: =F_Inputs!J48 -> 0 | K48: =F_Inputs!K48 -> 0 | L48: =F_Inputs!L48 -> 0 | M48: =F_Inputs!M48 ->  | Q48: CWW20_ | R48: 0 | S48: 0 | T48: 0 | U48: 0 | V48: 0 | W48: 0 | X48: 0
A49: =F_Inputs!A49 -> HDD | B49: =F_Inputs!B49 -> CWW20A_026_PR24 | C49: =F_Inputs!C49 -> Sewage treatment data - Total number of schemes with tightened/new chemicals/hazardous substances permits | D49: =F_Inputs!D49 -> nr | E49: =F_Inputs!E49 -> Price Review 2024 | F49: =F_Inputs!F49 ->  | G49: =F_Inputs!G49 ->  | H49: =F_Inputs!H49 ->  | I49: =F_Inputs!I49 ->  | J49: =F_Inputs!J49 ->  | K49: =F_Inputs!K49 ->  | L49: =F_Inputs!L49 ->  | M49: =F_Inputs!M49 ->  | Q49: CWW20A | T49: 0 | U49: 0 | V49: 0 | W49: 0 | X49: 0 | Y49: 0
A50: =F_Inputs!A50 -> HDD | B50: =F_Inputs!B50 -> PR24_E_WW051_TOTAL | C50: =F_Inputs!C50 -> PR24 BP EA/NRW environmental programme wastewater (WINEP/NEP) - Treatment for chemical removal (WINEP/NEP) wastewater totex - Total inc. accelerated & transition costs | D50: =F_Inputs!D50 -> £m | E50: =F_Inputs!E50 -> Price Review 2024 | F50: =F_Inputs!F50 ->  | G50: =F_Inputs!G50 ->  | H50: =F_Inputs!H50 ->  | I50: =F_Inputs!I50 ->  | J50: =F_Inputs!J50 ->  | K50: =F_Inputs!K50 ->  | L50: =F_Inputs!L50 ->  | M50: =F_Inputs!M50 -> 0 | Q50: PR24_E | R50: 0 | S50: 0 | Y50: 0
A51: =F_Inputs!A51 -> HDD | B51: =F_Inputs!B51 -> PR24_NETTOTEX_WASTE | C51: =F_Inputs!C51 -> PR24 BP Net totex - Total inc. accelerated & transition costs | D51: =F_Inputs!D51 -> £m | E51: =F_Inputs!E51 -> Price Review 2024 | F51: =F_Inputs!F51 ->  | G51: =F_Inputs!G51 ->  | H51: =F_Inputs!H51 ->  | I51: =F_Inputs!I51 ->  | J51: =F_Inputs!J51 ->  | K51: =F_Inputs!K51 ->  | L51: =F_Inputs!L51 ->  | M51: =F_Inputs!M51 -> 61.30281202 | Q51: PR24_N | R51: 0 | S51: 0 | Y51: 61.30281202
A52: =F_Inputs!A52 -> NES | B52: =F_Inputs!B52 -> CWW3_049TOT_PR24 | C52: =F_Inputs!C52 -> EA/NRW environmental programme wastewater (WINEP/NEP) - Treatment for chemical removal (WINEP/NEP) wastewater capex - Total | D52: =F_Inputs!D52 -> £m | E52: =F_Inputs!E52 -> Price Review 2024 | F52: =F_Inputs!F52 -> 1.197 | G52: =F_Inputs!G52 -> 8.50109779 | H52: =F_Inputs!H52 -> 7.43310287 | I52: =F_Inputs!I52 -> 7.43310287 | J52: =F_Inputs!J52 -> 0.50500508 | K52: =F_Inputs!K52 -> 0.50500508 | L52: =F_Inputs!L52 -> 0.50500508 | M52: =F_Inputs!M52 ->  | Q52: CWW3_0 | R52: 0 | S52: 0 | T52: 7.43310287 | U52: 7.43310287 | V52: 0.50500508 | W52: 0.50500508 | X52: 0.50500508
A53: =F_Inputs!A53 -> NES | B53: =F_Inputs!B53 -> CWW3_050TOT_PR24 | C53: =F_Inputs!C53 -> EA/NRW environmental programme wastewater (WINEP/NEP) - Treatment for chemical removal (WINEP/NEP) wastewater opex - Total | D53: =F_Inputs!D53 -> £m | E53: =F_Inputs!E53 -> Price Review 2024 | F53: =F_Inputs!F53 -> 0 | G53: =F_Inputs!G53 -> 0.1728440448 | H53: =F_Inputs!H53 -> 0.0030528 | I53: =F_Inputs!I53 -> 0.23250168 | J53: =F_Inputs!J53 -> 0.62478345 | K53: =F_Inputs!K53 -> 0.61759545 | L53: =F_Inputs!L53 -> 0.79321885 | M53: =F_Inputs!M53 ->  | Q53: CWW3_0 | R53: 0 | S53: 0 | T53: 0.0030528 | U53: 0.23250168 | V53: 0.62478345 | W53: 0.61759545 | X53: 0.79321885
A54: =F_Inputs!A54 -> NES | B54: =F_Inputs!B54 -> CWW3_051TOT_PR24 | C54: =F_Inputs!C54 -> EA/NRW environmental programme wastewater (WINEP/NEP) - Treatment for chemical removal (WINEP/NEP) wastewater totex - Total | D54: =F_Inputs!D54 -> £m | E54: =F_Inputs!E54 -> Price Review 2024 | F54: =F_Inputs!F54 -> 1.197 | G54: =F_Inputs!G54 -> 8.673941835 | H54: =F_Inputs!H54 -> 7.43615567 | I54: =F_Inputs!I54 -> 7.66560455 | J54: =F_Inputs!J54 -> 1.12978853 | K54: =F_Inputs!K54 -> 1.12260053 | L54: =F_Inputs!L54 -> 1.29822393 | M54: =F_Inputs!M54 ->  | Q54: CWW3_0 | R54: 0 | S54: 0 | T54: 7.43615567 | U54: 7.66560455 | V54: 1.12978853 | W54: 1.12260053 | X54: 1.29822393
A55: =F_Inputs!A55 -> NES | B55: =F_Inputs!B55 -> CWW12_049TOT_PR24 | C55: =F_Inputs!C55 -> EA/NRW environmental programme wastewater (WINEP/NEP) - Treatment for chemical removal (WINEP/NEP) wastewater capex - Total | D55: =F_Inputs!D55 -> £m | E55: =F_Inputs!E55 -> Price Review 2024 | F55: =F_Inputs!F55 -> 0 | G55: =F_Inputs!G55 -> 6.92809779 | H55: =F_Inputs!H55 ->  | I55: =F_Inputs!I55 ->  | J55: =F_Inputs!J55 ->  | K55: =F_Inputs!K55 ->  | L55: =F_Inputs!L55 ->  | M55: =F_Inputs!M55 ->  | Q55: CWW12_ | R55: 0 | S55: 6.92809779 | T55: 0 | U55: 0 | V55: 0 | W55: 0 | X55: 0 | Y55: 0
A56: =F_Inputs!A56 -> NES | B56: =F_Inputs!B56 -> CWW12_050TOT_PR24 | C56: =F_Inputs!C56 -> EA/NRW environmental programme wastewater (WINEP/NEP) - Treatment for chemical removal (WINEP/NEP) wastewater opex - Total | D56: =F_Inputs!D56 -> £m | E56: =F_Inputs!E56 -> Price Review 2024 | F56: =F_Inputs!F56 -> 0.1707894472 | G56: =F_Inputs!G56 -> 0.1728440448 | H56: =F_Inputs!H56 ->  | I56: =F_Inputs!I56 ->  | J56: =F_Inputs!J56 ->  | K56: =F_Inputs!K56 ->  | L56: =F_Inputs!L56 ->  | M56: =F_Inputs!M56 ->  | Q56: CWW12_ | R56: 0.1707894472 | S56: 0.1728440448 | T56: 0 | U56: 0 | V56: 0 | W56: 0 | X56: 0 | Y56: 0
A57: =F_Inputs!A57 -> NES | B57: =F_Inputs!B57 -> CWW12_051TOT_PR24 | C57: =F_Inputs!C57 -> EA/NRW environmental programme wastewater (WINEP/NEP) - Treatment for chemical removal (WINEP/NEP) wastewater totex - Total | D57: =F_Inputs!D57 -> £m | E57: =F_Inputs!E57 -> Price Review 2024 | F57: =F_Inputs!F57 -> 0.1707894472 | G57: =F_Inputs!G57 -> 7.100941835 | H57: =F_Inputs!H57 ->  | I57: =F_Inputs!I57 ->  | J57: =F_Inputs!J57 ->  | K57: =F_Inputs!K57 ->  | L57: =F_Inputs!L57 ->  | M57: =F_Inputs!M57 ->  | Q57: CWW12_ | R57: 0.1707894472 | S57: 7.100941835 | T57: 0 | U57: 0 | V57: 0 | W57: 0 | X57: 0 | Y57: 0
A58: =F_Inputs!A58 -> NES | B58: =F_Inputs!B58 -> CWW17_049TOT_PR24 | C58: =F_Inputs!C58 -> EA/NRW environmental programme wastewater (WINEP/NEP) - Treatment for chemical removal (WINEP/NEP) wastewater capex - Total | D58: =F_Inputs!D58 -> £m | E58: =F_Inputs!E58 -> Price Review 2024 | F58: =F_Inputs!F58 -> 0 | G58: =F_Inputs!G58 -> 0 | H58: =F_Inputs!H58 -> 0 | I58: =F_Inputs!I58 -> 0 | J58: =F_Inputs!J58 -> 0 | K58: =F_Inputs!K58 -> 0 | L58: =F_Inputs!L58 -> 0 | M58: =F_Inputs!M58 ->  | Q58: CWW17_ | R58: 0 | S58: 0 | T58: 0 | U58: 0 | V58: 0 | W58: 0 | X58: 0 | Y58: 0
A59: =F_Inputs!A59 -> NES | B59: =F_Inputs!B59 -> CWW17_050TOT_PR24 | C59: =F_Inputs!C59 -> EA/NRW environmental programme wastewater (WINEP/NEP) - Treatment for chemical removal (WINEP/NEP) wastewater opex - Total | D59: =F_Inputs!D59 -> £m | E59: =F_Inputs!E59 -> Price Review 2024 | F59: =F_Inputs!F59 -> 0 | G59: =F_Inputs!G59 -> 0 | H59: =F_Inputs!H59 -> 0 | I59: =F_Inputs!I59 -> 0 | J59: =F_Inputs!J59 -> 0 | K59: =F_Inputs!K59 -> 0 | L59: =F_Inputs!L59 -> 0 | M59: =F_Inputs!M59 ->  | Q59: CWW17_ | R59: 0 | S59: 0 | T59: 0 | U59: 0 | V59: 0 | W59: 0 | X59: 0 | Y59: 0
A60: =F_Inputs!A60 -> NES | B60: =F_Inputs!B60 -> CWW17_051TOT_PR24 | C60: =F_Inputs!C60 -> EA/NRW environmental programme wastewater (WINEP/NEP) - Treatment for chemical removal (WINEP/NEP) wastewater totex - Total | D60: =F_Inputs!D60 -> £m | E60: =F_Inputs!E60 -> Price Review 2024 | F60: =F_Inputs!F60 -> 0 | G60: =F_Inputs!G60 -> 0 | H60: =F_Inputs!H60 -> 0 | I60: =F_Inputs!I60 -> 0 | J60: =F_Inputs!J60 -> 0 | K60: =F_Inputs!K60 -> 0 | L60: =F_Inputs!L60 -> 0 | M60: =F_Inputs!M60 ->  | Q60: CWW17_ | R60: 0 | S60: 0 | T60: 0 | U60: 0 | V60: 0 | W60: 0 | X60: 0 | Y60: 0
A61: =F_Inputs!A61 -> NES | B61: =F_Inputs!B61 -> S4031_PR24 | C61: =F_Inputs!C61 -> Sewage treatment data - Current population equivalent served by STWs with tightened/new permits for chemicals / hazardous substances | D61: =F_Inputs!D61 -> 000s | E61: =F_Inputs!E61 -> Price Review 2024 | F61: =F_Inputs!F61 -> 0 | G61: =F_Inputs!G61 -> 0 | H61: =F_Inputs!H61 -> 0 | I61: =F_Inputs!I61 -> 167.7155465 | J61: =F_Inputs!J61 -> 0 | K61: =F_Inputs!K61 -> 0 | L61: =F_Inputs!L61 -> 0 | M61: =F_Inputs!M61 ->  | Q61: S4031_ | R61: 0 | S61: 0 | T61: 0 | U61: 167.7155465 | V61: 0 | W61: 0 | X61: 0
A62: =F_Inputs!A62 -> NES | B62: =F_Inputs!B62 -> CWW20A_S4031_PR24 | C62: =F_Inputs!C62 -> Sewage treatment data - Current population equivalent served by STWs with tightened/new permits for chemicals / hazardous substances | D62: =F_Inputs!D62 -> 000s | E62: =F_Inputs!E62 -> Price Review 2024 | F62: =F_Inputs!F62 ->  | G62: =F_Inputs!G62 ->  | H62: =F_Inputs!H62 ->  | I62: =F_Inputs!I62 ->  | J62: =F_Inputs!J62 ->  | K62: =F_Inputs!K62 ->  | L62: =F_Inputs!L62 ->  | M62: =F_Inputs!M62 ->  | Q62: CWW20A | T62: 0 | U62: 0 | V62: 0 | W62: 0 | X62: 0 | Y62: 0
A63: =F_Inputs!A63 -> NES | B63: =F_Inputs!B63 -> CWW20_026_PR24 | C63: =F_Inputs!C63 -> Sewage treatment data - Total number of schemes with tightened/new chemicals/hazardous substances permits | D63: =F_Inputs!D63 -> nr | E63: =F_Inputs!E63 -> Price Review 2024 | F63: =F_Inputs!F63 -> 0 | G63: =F_Inputs!G63 -> 0 | H63: =F_Inputs!H63 -> 0 | I63: =F_Inputs!I63 -> 15 | J63: =F_Inputs!J63 -> 0 | K63: =F_Inputs!K63 -> 0 | L63: =F_Inputs!L63 -> 0 | M63: =F_Inputs!M63 ->  | Q63: CWW20_ | R63: 0 | S63: 0 | T63: 0 | U63: 15 | V63: 0 | W63: 0 | X63: 0
A64: =F_Inputs!A64 -> NES | B64: =F_Inputs!B64 -> CWW20A_026_PR24 | C64: =F_Inputs!C64 -> Sewage treatment data - Total number of schemes with tightened/new chemicals/hazardous substances permits | D64: =F_Inputs!D64 -> nr | E64: =F_Inputs!E64 -> Price Review 2024 | F64: =F_Inputs!F64 ->  | G64: =F_Inputs!G64 ->  | H64: =F_Inputs!H64 ->  | I64: =F_Inputs!I64 ->  | J64: =F_Inputs!J64 ->  | K64: =F_Inputs!K64 ->  | L64: =F_Inputs!L64 ->  | M64: =F_Inputs!M64 ->  | Q64: CWW20A | T64: 0 | U64: 0 | V64: 0 | W64: 0 | X64: 0 | Y64: 0
A65: =F_Inputs!A65 -> NES | B65: =F_Inputs!B65 -> PR24_E_WW051_TOTAL | C65: =F_Inputs!C65 -> PR24 BP EA/NRW environmental programme wastewater (WINEP/NEP) - Treatment for chemical removal (WINEP/NEP) wastewater totex - Total inc. accelerated & transition costs | D65: =F_Inputs!D65 -> £m | E65: =F_Inputs!E65 -> Price Review 2024 | F65: =F_Inputs!F65 ->  | G65: =F_Inputs!G65 ->  | H65: =F_Inputs!H65 ->  | I65: =F_Inputs!I65 ->  | J65: =F_Inputs!J65 ->  | K65: =F_Inputs!K65 ->  | L65: =F_Inputs!L65 ->  | M65: =F_Inputs!M65 -> 25.92410449 | Q65: PR24_E | R65: 0 | S65: 0 | Y65: 25.92410449
A66: =F_Inputs!A66 -> NES | B66: =F_Inputs!B66 -> PR24_NETTOTEX_WASTE | C66: =F_Inputs!C66 -> PR24 BP Net totex - Total inc. accelerated & transition costs | D66: =F_Inputs!D66 -> £m | E66: =F_Inputs!E66 -> Price Review 2024 | F66: =F_Inputs!F66 ->  | G66: =F_Inputs!G66 ->  | H66: =F_Inputs!H66 ->  | I66: =F_Inputs!I66 ->  | J66: =F_Inputs!J66 ->  | K66: =F_Inputs!K66 ->  | L66: =F_Inputs!L66 ->  | M66: =F_Inputs!M66 -> 3207.927402 | Q66: PR24_N | R66: 0 | S66: 0 | Y66: 3207.927402
A67: =F_Inputs!A67 -> SVE | B67: =F_Inputs!B67 -> CWW3_049TOT_PR24 | C67: =F_Inputs!C67 -> EA/NRW environmental programme wastewater (WINEP/NEP) - Treatment for chemical removal (WINEP/NEP) wastewater capex - Total | D67: =F_Inputs!D67 -> £m | E67: =F_Inputs!E67 -> Price Review 2024 | F67: =F_Inputs!F67 -> 11.475 | G67: =F_Inputs!G67 -> 14.272 | H67: =F_Inputs!H67 -> 1.508337983 | I67: =F_Inputs!I67 -> 5.896235162 | J67: =F_Inputs!J67 -> 35.96040672 | K67: =F_Inputs!K67 -> 33.40246125 | L67: =F_Inputs!L67 -> 4.366161361 | M67: =F_Inputs!M67 ->  | Q67: CWW3_0 | R67: 0 | S67: 0 | T67: 1.508337983 | U67: 5.896235162 | V67: 35.96040672 | W67: 33.40246125 | X67: 4.366161361
A68: =F_Inputs!A68 -> SVE | B68: =F_Inputs!B68 -> CWW3_050TOT_PR24 | C68: =F_Inputs!C68 -> EA/NRW environmental programme wastewater (WINEP/NEP) - Treatment for chemical removal (WINEP/NEP) wastewater opex - Total | D68: =F_Inputs!D68 -> £m | E68: =F_Inputs!E68 -> Price Review 2024 | F68: =F_Inputs!F68 -> 0 | G68: =F_Inputs!G68 -> 0.109 | H68: =F_Inputs!H68 -> 0.03042889788 | I68: =F_Inputs!I68 -> 0.4948076294 | J68: =F_Inputs!J68 -> 0.1069111939 | K68: =F_Inputs!K68 -> 0.8346738745 | L68: =F_Inputs!L68 -> 1.554025705 | M68: =F_Inputs!M68 ->  | Q68: CWW3_0 | R68: 0 | S68: 0 | T68: 0.03042889788 | U68: 0.4948076294 | V68: 0.1069111939 | W68: 0.8346738745 | X68: 1.554025705
A69: =F_Inputs!A69 -> SVE | B69: =F_Inputs!B69 -> CWW3_051TOT_PR24 | C69: =F_Inputs!C69 -> EA/NRW environmental programme wastewater (WINEP/NEP) - Treatment for chemical removal (WINEP/NEP) wastewater totex - Total | D69: =F_Inputs!D69 -> £m | E69: =F_Inputs!E69 -> Price Review 2024 | F69: =F_Inputs!F69 -> 11.475 | G69: =F_Inputs!G69 -> 14.381 | H69: =F_Inputs!H69 -> 1.538766881 | I69: =F_Inputs!I69 -> 6.391042792 | J69: =F_Inputs!J69 -> 36.06731791 | K69: =F_Inputs!K69 -> 34.23713513 | L69: =F_Inputs!L69 -> 5.920187066 | M69: =F_Inputs!M69 ->  | Q69: CWW3_0 | R69: 0 | S69: 0 | T69: 1.538766881 | U69: 6.391042792 | V69: 36.06731791 | W69: 34.23713513 | X69: 5.920187066
A70: =F_Inputs!A70 -> SVE | B70: =F_Inputs!B70 -> CWW12_049TOT_PR24 | C70: =F_Inputs!C70 -> EA/NRW environmental programme wastewater (WINEP/NEP) - Treatment for chemical removal (WINEP/NEP) wastewater capex - Total | D70: =F_Inputs!D70 -> £m | E70: =F_Inputs!E70 -> Price Review 2024 | F70: =F_Inputs!F70 -> 0 | G70: =F_Inputs!G70 -> 0 | H70: =F_Inputs!H70 ->  | I70: =F_Inputs!I70 ->  | J70: =F_Inputs!J70 ->  | K70: =F_Inputs!K70 ->  | L70: =F_Inputs!L70 ->  | M70: =F_Inputs!M70 ->  | Q70: CWW12_ | R70: 0 | S70: 0 | T70: 0 | U70: 0 | V70: 0 | W70: 0 | X70: 0 | Y70: 0
A71: =F_Inputs!A71 -> SVE | B71: =F_Inputs!B71 -> CWW12_050TOT_PR24 | C71: =F_Inputs!C71 -> EA/NRW environmental programme wastewater (WINEP/NEP) - Treatment for chemical removal (WINEP/NEP) wastewater opex - Total | D71: =F_Inputs!D71 -> £m | E71: =F_Inputs!E71 -> Price Review 2024 | F71: =F_Inputs!F71 -> 0 | G71: =F_Inputs!G71 -> 0 | H71: =F_Inputs!H71 ->  | I71: =F_Inputs!I71 ->  | J71: =F_Inputs!J71 ->  | K71: =F_Inputs!K71 ->  | L71: =F_Inputs!L71 ->  | M71: =F_Inputs!M71 ->  | Q71: =LEFT(B71,6) -> CWW12_ | R71: 0 | S71: 0 | T71: 0 | U71: 0 | V71: 0 | W71: 0 | X71: 0 | Y71: 0
A72: =F_Inputs!A72 -> SVE | B72: =F_Inputs!B72 -> CWW12_051TOT_PR24 | C72: =F_Inputs!C72 -> EA/NRW environmental programme wastewater (WINEP/NEP) - Treatment for chemical removal (WINEP/NEP) wastewater totex - Total | D72: =F_Inputs!D72 -> £m | E72: =F_Inputs!E72 -> Price Review 2024 | F72: =F_Inputs!F72 -> 0 | G72: =F_Inputs!G72 -> 0 | H72: =F_Inputs!H72 ->  | I72: =F_Inputs!I72 ->  | J72: =F_Inputs!J72 ->  | K72: =F_Inputs!K72 ->  | L72: =F_Inputs!L72 ->  | M72: =F_Inputs!M72 ->  | Q72: CWW12_ | R72: =IF(OR($Q72="CWW12_",$Q72= "CWW17_",$Q72= "CWW20A"),F72,0) -> 0 | S72: =IF(OR($Q72="CWW12_",$Q72= "CWW17_",$Q72= "CWW20A"),G72,0) -> 0 | T72: =IF(OR($Q72="CWW3_0",$Q72="PR24_E",$Q72="PR24_N",$Q72= "CWW20_",$Q72="CWW1A_", $Q72="S4031_"),H72,0) -> 0 | U72: =IF(OR($Q72="CWW3_0",$Q72="PR24_E",$Q72="PR24_N",$Q72= "CWW20_",$Q72="CWW1A_", $Q72="S4031_"),I72,0) -> 0 | V72: =IF(OR($Q72="CWW3_0",$Q72="PR24_E",$Q72="PR24_N",$Q72= "CWW20_",$Q72="CWW1A_", $Q72="S4031_"),J72,0) -> 0 | W72: =IF(OR($Q72="CWW3_0",$Q72="PR24_E",$Q72="PR24_N",$Q72= "CWW20_",$Q72="CWW1A_", $Q72="S4031_"),K72,0) -> 0 | X72: =IF(OR($Q72="CWW3_0",$Q72="PR24_E",$Q72="PR24_N",$Q72= "CWW20_",$Q72="CWW1A_", $Q72="S4031_"),L72,0) -> 0 | Y72: =IF(OR($Q72="CWW3_0",$Q72="PR24_E",$Q72="PR24_N",$Q72= "CWW20_",$Q72="CWW1A_", $Q72="S4031_"),M72,0) -> 0
A73: =F_Inputs!A73 -> SVE | B73: =F_Inputs!B73 -> CWW17_049TOT_PR24 | C73: =F_Inputs!C73 -> EA/NRW environmental programme wastewater (WINEP/NEP) - Treatment for chemical removal (WINEP/NEP) wastewater capex - Total | D73: =F_Inputs!D73 -> £m | E73: =F_Inputs!E73 -> Price Review 2024 | F73: =F_Inputs!F73 -> 0 | G73: =F_Inputs!G73 -> 0 | H73: =F_Inputs!H73 -> 0 | I73: =F_Inputs!I73 -> 0 | J73: =F_Inputs!J73 -> 0 | K73: =F_Inputs!K73 -> 0 | L73: =F_Inputs!L73 -> 0 | M73: =F_Inputs!M73 ->  | Q73: CWW17_ | R73: 0 | S73: 0 | T73: 0 | U73: 0 | V73: 0 | W73: 0 | X73: 0 | Y73: 0
A74: =F_Inputs!A74 -> SVE | B74: =F_Inputs!B74 -> CWW17_050TOT_PR24 | C74: =F_Inputs!C74 -> EA/NRW environmental programme wastewater (WINEP/NEP) - Treatment for chemical removal (WINEP/NEP) wastewater opex - Total | D74: =F_Inputs!D74 -> £m | E74: =F_Inputs!E74 -> Price Review 2024 | F74: =F_Inputs!F74 -> 0 | G74: =F_Inputs!G74 -> 0 | H74: =F_Inputs!H74 -> 0 | I74: =F_Inputs!I74 -> 0 | J74: =F_Inputs!J74 -> 0 | K74: =F_Inputs!K74 -> 0 | L74: =F_Inputs!L74 -> 0 | M74: =F_Inputs!M74 ->  | Q74: CWW17_ | R74: 0 | S74: 0 | T74: 0 | U74: 0 | V74: 0 | W74: 0 | X74: 0 | Y74: 0
A75: =F_Inputs!A75 -> SVE | B75: =F_Inputs!B75 -> CWW17_051TOT_PR24 | C75: =F_Inputs!C75 -> EA/NRW environmental programme wastewater (WINEP/NEP) - Treatment for chemical removal (WINEP/NEP) wastewater totex - Total | D75: =F_Inputs!D75 -> £m | E75: =F_Inputs!E75 -> Price Review 2024 | F75: =F_Inputs!F75 -> 0 | G75: =F_Inputs!G75 -> 0 | H75: =F_Inputs!H75 -> 0 | I75: =F_Inputs!I75 -> 0 | J75: =F_Inputs!J75 -> 0 | K75: =F_Inputs!K75 -> 0 | L75: =F_Inputs!L75 -> 0 | M75: =F_Inputs!M75 ->  | Q75: CWW17_ | R75: 0 | S75: 0 | T75: 0 | U75: 0 | V75: 0 | W75: 0 | X75: 0 | Y75: 0
A76: =F_Inputs!A76 -> SVE | B76: =F_Inputs!B76 -> S4031_PR24 | C76: =F_Inputs!C76 -> Sewage treatment data - Current population equivalent served by STWs with tightened/new permits for chemicals / hazardous substances | D76: =F_Inputs!D76 -> 000s | E76: =F_Inputs!E76 -> Price Review 2024 | F76: =F_Inputs!F76 -> 0 | G76: =F_Inputs!G76 -> 48.082 | H76: =F_Inputs!H76 -> 119.362 | I76: =F_Inputs!I76 -> 5551.071 | J76: =F_Inputs!J76 -> 0 | K76: =F_Inputs!K76 -> 0 | L76: =F_Inputs!L76 -> 635.706 | M76: =F_Inputs!M76 ->  | Q76: S4031_ | R76: 0 | S76: 0 | T76: 119.362 | U76: 5551.071 | V76: 0 | W76: 0 | X76: 635.706
A77: =F_Inputs!A77 -> SVE | B77: =F_Inputs!B77 -> CWW20A_S4031_PR24 | C77: =F_Inputs!C77 -> Sewage treatment data - Current population equivalent served by STWs with tightened/new permits for chemicals / hazardous substances | D77: =F_Inputs!D77 -> 000s | E77: =F_Inputs!E77 -> Price Review 2024 | F77: =F_Inputs!F77 ->  | G77: =F_Inputs!G77 ->  | H77: =F_Inputs!H77 ->  | I77: =F_Inputs!I77 ->  | J77: =F_Inputs!J77 ->  | K77: =F_Inputs!K77 ->  | L77: =F_Inputs!L77 ->  | M77: =F_Inputs!M77 ->  | Q77: CWW20A | T77: 0 | U77: 0 | V77: 0 | W77: 0 | X77: 0 | Y77: 0
A78: =F_Inputs!A78 -> SVE | B78: =F_Inputs!B78 -> CWW20_026_PR24 | C78: =F_Inputs!C78 -> Sewage treatment data - Total number of schemes with tightened/new chemicals/hazardous substances permits | D78: =F_Inputs!D78 -> nr | E78: =F_Inputs!E78 -> Price Review 2024 | F78: =F_Inputs!F78 -> 0 | G78: =F_Inputs!G78 -> 3 | H78: =F_Inputs!H78 -> 6 | I78: =F_Inputs!I78 -> 43 | J78: =F_Inputs!J78 -> 0 | K78: =F_Inputs!K78 -> 0 | L78: =F_Inputs!L78 -> 2 | M78: =F_Inputs!M78 ->  | Q78: CWW20_ | R78: 0 | S78: 0 | T78: 6 | U78: 43 | V78: 0 | W78: 0 | X78: 2
A79: =F_Inputs!A79 -> SVE | B79: =F_Inputs!B79 -> CWW20A_026_PR24 | C79: =F_Inputs!C79 -> Sewage treatment data - Total number of schemes with tightened/new chemicals/hazardous substances permits | D79: =F_Inputs!D79 -> nr | E79: =F_Inputs!E79 -> Price Review 2024 | F79: =F_Inputs!F79 ->  | G79: =F_Inputs!G79 ->  | H79: =F_Inputs!H79 ->  | I79: =F_Inputs!I79 ->  | J79: =F_Inputs!J79 ->  | K79: =F_Inputs!K79 ->  | L79: =F_Inputs!L79 ->  | M79: =F_Inputs!M79 ->  | Q79: CWW20A | T79: 0 | U79: 0 | V79: 0 | W79: 0 | X79: 0 | Y79: 0
A80: =F_Inputs!A80 -> SVE | B80: =F_Inputs!B80 -> PR24_E_WW051_TOTAL | C80: =F_Inputs!C80 -> PR24 BP EA/NRW environmental programme wastewater (WINEP/NEP) - Treatment for chemical removal (WINEP/NEP) wastewater totex - Total inc. accelerated & transition costs | D80: =F_Inputs!D80 -> £m | E80: =F_Inputs!E80 -> Price Review 2024 | F80: =F_Inputs!F80 ->  | G80: =F_Inputs!G80 ->  | H80: =F_Inputs!H80 ->  | I80: =F_Inputs!I80 ->  | J80: =F_Inputs!J80 ->  | K80: =F_Inputs!K80 ->  | L80: =F_Inputs!L80 ->  | M80: =F_Inputs!M80 -> 84.15444978 | Q80: PR24_E | R80: 0 | S80: 0 | Y80: 84.15444978
A81: =F_Inputs!A81 -> SVE | B81: =F_Inputs!B81 -> PR24_NETTOTEX_WASTE | C81: =F_Inputs!C81 -> PR24 BP Net totex - Total inc. accelerated & transition costs | D81: =F_Inputs!D81 -> £m | E81: =F_Inputs!E81 -> Price Review 2024 | F81: =F_Inputs!F81 ->  | G81: =F_Inputs!G81 ->  | H81: =F_Inputs!H81 ->  | I81: =F_Inputs!I81 ->  | J81: =F_Inputs!J81 ->  | K81: =F_Inputs!K81 ->  | L81: =F_Inputs!L81 ->  | M81: =F_Inputs!M81 -> 8618.711997 | Q81: PR24_N | R81: 0 | S81: 0 | Y81: 8618.711997
A82: =F_Inputs!A82 -> SWB | B82: =F_Inputs!B82 -> CWW3_049TOT_PR24 | C82: =F_Inputs!C82 -> EA/NRW environmental programme wastewater (WINEP/NEP) - Treatment for chemical removal (WINEP/NEP) wastewater capex - Total | D82: =F_Inputs!D82 -> £m | E82: =F_Inputs!E82 -> Price Review 2024 | F82: =F_Inputs!F82 -> 0 | G82: =F_Inputs!G82 -> 0 | H82: =F_Inputs!H82 -> 7.722 | I82: =F_Inputs!I82 -> 6.915 | J82: =F_Inputs!J82 -> 0 | K82: =F_Inputs!K82 -> 0 | L82: =F_Inputs!L82 -> 0 | M82: =F_Inputs!M82 ->  | Q82: CWW3_0 | R82: 0 | S82: 0 | T82: 7.722 | U82: 6.915 | V82: 0 | W82: 0 | X82: 0
A83: =F_Inputs!A83 -> SWB | B83: =F_Inputs!B83 -> CWW3_050TOT_PR24 | C83: =F_Inputs!C83 -> EA/NRW environmental programme wastewater (WINEP/NEP) - Treatment for chemical removal (WINEP/NEP) wastewater opex - Total | D83: =F_Inputs!D83 -> £m | E83: =F_Inputs!E83 -> Price Review 2024 | F83: =F_Inputs!F83 -> 0 | G83: =F_Inputs!G83 -> 0 | H83: =F_Inputs!H83 -> 0 | I83: =F_Inputs!I83 -> 0 | J83: =F_Inputs!J83 -> 0.133 | K83: =F_Inputs!K83 -> 0.133 | L83: =F_Inputs!L83 -> 0.133 | M83: =F_Inputs!M83 ->  | Q83: CWW3_0 | R83: 0 | S83: 0 | T83: 0 | U83: 0 | V83: 0.133 | W83: 0.133 | X83: 0.133
A84: =F_Inputs!A84 -> SWB | B84: =F_Inputs!B84 -> CWW3_051TOT_PR24 | C84: =F_Inputs!C84 -> EA/NRW environmental programme wastewater (WINEP/NEP) - Treatment for chemical removal (WINEP/NEP) wastewater totex - Total | D84: =F_Inputs!D84 -> £m | E84: =F_Inputs!E84 -> Price Review 2024 | F84: =F_Inputs!F84 -> 0 | G84: =F_Inputs!G84 -> 0 | H84: =F_Inputs!H84 -> 7.722 | I84: =F_Inputs!I84 -> 6.915 | J84: =F_Inputs!J84 -> 0.133 | K84: =F_Inputs!K84 -> 0.133 | L84: =F_Inputs!L84 -> 0.133 | M84: =F_Inputs!M84 ->  | Q84: CWW3_0 | R84: 0 | S84: 0 | T84: 7.722 | U84: 6.915 | V84: 0.133 | W84: 0.133 | X84: 0.133
A85: =F_Inputs!A85 -> SWB | B85: =F_Inputs!B85 -> CWW12_049TOT_PR24 | C85: =F_Inputs!C85 -> EA/NRW environmental programme wastewater (WINEP/NEP) - Treatment for chemical removal (WINEP/NEP) wastewater capex - Total | D85: =F_Inputs!D85 -> £m | E85: =F_Inputs!E85 -> Price Review 2024 | F85: =F_Inputs!F85 -> 0 | G85: =F_Inputs!G85 -> 0 | H85: =F_Inputs!H85 ->  | I85: =F_Inputs!I85 ->  | J85: =F_Inputs!J85 ->  | K85: =F_Inputs!K85 ->  | L85: =F_Inputs!L85 ->  | M85: =F_Inputs!M85 ->  | Q85: CWW12_ | R85: 0 | S85: 0 | T85: 0 | U85: 0 | V85: 0 | W85: 0 | X85: 0 | Y85: 0
A86: =F_Inputs!A86 -> SWB | B86: =F_Inputs!B86 -> CWW12_050TOT_PR24 | C86: =F_Inputs!C86 -> EA/NRW environmental programme wastewater (WINEP/NEP) - Treatment for chemical removal (WINEP/NEP) wastewater opex - Total | D86: =F_Inputs!D86 -> £m | E86: =F_Inputs!E86 -> Price Review 2024 | F86: =F_Inputs!F86 -> 0 | G86: =F_Inputs!G86 -> 0 | H86: =F_Inputs!H86 ->  | I86: =F_Inputs!I86 ->  | J86: =F_Inputs!J86 ->  | K86: =F_Inputs!K86 ->  | L86: =F_Inputs!L86 ->  | M86: =F_Inputs!M86 ->  | Q86: CWW12_ | R86: 0 | S86: 0 | T86: 0 | U86: 0 | V86: 0 | W86: 0 | X86: 0 | Y86: 0
A87: =F_Inputs!A87 -> SWB | B87: =F_Inputs!B87 -> CWW12_051TOT_PR24 | C87: =F_Inputs!C87 -> EA/NRW environmental programme wastewater (WINEP/NEP) - Treatment for chemical removal (WINEP/NEP) wastewater totex - Total | D87: =F_Inputs!D87 -> £m | E87: =F_Inputs!E87 -> Price Review 2024 | F87: =F_Inputs!F87 -> 0 | G87: =F_Inputs!G87 -> 0 | H87: =F_Inputs!H87 ->  | I87: =F_Inputs!I87 ->  | J87: =F_Inputs!J87 ->  | K87: =F_Inputs!K87 ->  | L87: =F_Inputs!L87 ->  | M87: =F_Inputs!M87 ->  | Q87: CWW12_ | R87: 0 | S87: 0 | T87: 0 | U87: 0 | V87: 0 | W87: 0 | X87: 0 | Y87: 0
A88: =F_Inputs!A88 -> SWB | B88: =F_Inputs!B88 -> CWW17_049TOT_PR24 | C88: =F_Inputs!C88 -> EA/NRW environmental programme wastewater (WINEP/NEP) - Treatment for chemical removal (WINEP/NEP) wastewater capex - Total | D88: =F_Inputs!D88 -> £m | E88: =F_Inputs!E88 -> Price Review 2024 | F88: =F_Inputs!F88 -> 0 | G88: =F_Inputs!G88 -> 0 | H88: =F_Inputs!H88 -> 0 | I88: =F_Inputs!I88 -> 0 | J88: =F_Inputs!J88 -> 0 | K88: =F_Inputs!K88 -> 0 | L88: =F_Inputs!L88 -> 0 | M88: =F_Inputs!M88 ->  | Q88: CWW17_ | R88: 0 | S88: 0 | T88: 0 | U88: 0 | V88: 0 | W88: 0 | X88: 0 | Y88: 0
A89: =F_Inputs!A89 -> SWB | B89: =F_Inputs!B89 -> CWW17_050TOT_PR24 | C89: =F_Inputs!C89 -> EA/NRW environmental programme wastewater (WINEP/NEP) - Treatment for chemical removal (WINEP/NEP) wastewater opex - Total | D89: =F_Inputs!D89 -> £m | E89: =F_Inputs!E89 -> Price Review 2024 | F89: =F_Inputs!F89 -> 0 | G89: =F_Inputs!G89 -> 0 | H89: =F_Inputs!H89 -> 0 | I89: =F_Inputs!I89 -> 0 | J89: =F_Inputs!J89 -> 0 | K89: =F_Inputs!K89 -> 0 | L89: =F_Inputs!L89 -> 0 | M89: =F_Inputs!M89 ->  | Q89: CWW17_ | R89: 0 | S89: 0 | T89: 0 | U89: 0 | V89: 0 | W89: 0 | X89: 0 | Y89: 0
A90: =F_Inputs!A90 -> SWB | B90: =F_Inputs!B90 -> CWW17_051TOT_PR24 | C90: =F_Inputs!C90 -> EA/NRW environmental programme wastewater (WINEP/NEP) - Treatment for chemical removal (WINEP/NEP) wastewater totex - Total | D90: =F_Inputs!D90 -> £m | E90: =F_Inputs!E90 -> Price Review 2024 | F90: =F_Inputs!F90 -> 0 | G90: =F_Inputs!G90 -> 0 | H90: =F_Inputs!H90 -> 0 | I90: =F_Inputs!I90 -> 0 | J90: =F_Inputs!J90 -> 0 | K90: =F_Inputs!K90 -> 0 | L90: =F_Inputs!L90 -> 0 | M90: =F_Inputs!M90 ->  | Q90: CWW17_ | R90: 0 | S90: 0 | T90: 0 | U90: 0 | V90: 0 | W90: 0 | X90: 0 | Y90: 0
A91: =F_Inputs!A91 -> SWB | B91: =F_Inputs!B91 -> S4031_PR24 | C91: =F_Inputs!C91 -> Sewage treatment data - Current population equivalent served by STWs with tightened/new permits for chemicals / hazardous substances | D91: =F_Inputs!D91 -> 000s | E91: =F_Inputs!E91 -> Price Review 2024 | F91: =F_Inputs!F91 -> 0 | G91: =F_Inputs!G91 -> 0 | H91: =F_Inputs!H91 -> 0 | I91: =F_Inputs!I91 -> 30.234 | J91: =F_Inputs!J91 -> 0 | K91: =F_Inputs!K91 -> 0 | L91: =F_Inputs!L91 -> 0 | M91: =F_Inputs!M91 ->  | Q91: S4031_ | R91: 0 | S91: 0 | T91: 0 | U91: 30.234 | V91: 0 | W91: 0 | X91: 0
A92: =F_Inputs!A92 -> SWB | B92: =F_Inputs!B92 -> CWW20A_S4031_PR24 | C92: =F_Inputs!C92 -> Sewage treatment data - Current population equivalent served by STWs with tightened/new permits for chemicals / hazardous substances | D92: =F_Inputs!D92 -> 000s | E92: =F_Inputs!E92 -> Price Review 2024 | F92: =F_Inputs!F92 -> 0 | G92: =F_Inputs!G92 ->  | H92: =F_Inputs!H92 ->  | I92: =F_Inputs!I92 ->  | J92: =F_Inputs!J92 ->  | K92: =F_Inputs!K92 ->  | L92: =F_Inputs!L92 ->  | M92: =F_Inputs!M92 ->  | Q92: CWW20A | R92: 0 | T92: 0 | U92: 0 | V92: 0 | W92: 0 | X92: 0 | Y92: 0
A93: =F_Inputs!A93 -> SWB | B93: =F_Inputs!B93 -> CWW20_026_PR24 | C93: =F_Inputs!C93 -> Sewage treatment data - Total number of schemes with tightened/new chemicals/hazardous substances permits | D93: =F_Inputs!D93 -> nr | E93: =F_Inputs!E93 -> Price Review 2024 | F93: =F_Inputs!F93 -> 0 | G93: =F_Inputs!G93 -> 0 | H93: =F_Inputs!H93 -> 0 | I93: =F_Inputs!I93 -> 7 | J93: =F_Inputs!J93 -> 0 | K93: =F_Inputs!K93 -> 0 | L93: =F_Inputs!L93 -> 0 | M93: =F_Inputs!M93 ->  | Q93: CWW20_ | R93: 0 | S93: 0 | T93: 0 | U93: 7 | V93: 0 | W93: 0 | X93: 0
A94: =F_Inputs!A94 -> SWB | B94: =F_Inputs!B94 -> CWW20A_026_PR24 | C94: =F_Inputs!C94 -> Sewage treatment data - Total number of schemes with tightened/new chemicals/hazardous substances permits | D94: =F_Inputs!D94 -> nr | E94: =F_Inputs!E94 -> Price Review 2024 | F94: =F_Inputs!F94 -> 0 | G94: =F_Inputs!G94 ->  | H94: =F_Inputs!H94 ->  | I94: =F_Inputs!I94 ->  | J94: =F_Inputs!J94 ->  | K94: =F_Inputs!K94 ->  | L94: =F_Inputs!L94 ->  | M94: =F_Inputs!M94 ->  | Q94: CWW20A | R94: 0 | T94: 0 | U94: 0 | V94: 0 | W94: 0 | X94: 0 | Y94: 0
A95: =F_Inputs!A95 -> SWB | B95: =F_Inputs!B95 -> PR24_E_WW051_TOTAL | C95: =F_Inputs!C95 -> PR24 BP EA/NRW environmental programme wastewater (WINEP/NEP) - Treatment for chemical removal (WINEP/NEP) wastewater totex - Total inc. accelerated & transition costs | D95: =F_Inputs!D95 -> £m | E95: =F_Inputs!E95 -> Price Review 2024 | F95: =F_Inputs!F95 ->  | G95: =F_Inputs!G95 ->  | H95: =F_Inputs!H95 ->  | I95: =F_Inputs!I95 ->  | J95: =F_Inputs!J95 ->  | K95: =F_Inputs!K95 ->  | L95: =F_Inputs!L95 ->  | M95: =F_Inputs!M95 -> 15.036 | Q95: PR24_E | R95: 0 | S95: 0 | Y95: 15.036
A96: =F_Inputs!A96 -> SWB | B96: =F_Inputs!B96 -> PR24_NETTOTEX_WASTE | C96: =F_Inputs!C96 -> PR24 BP Net totex - Total inc. accelerated & transition costs | D96: =F_Inputs!D96 -> £m | E96: =F_Inputs!E96 -> Price Review 2024 | F96: =F_Inputs!F96 ->  | G96: =F_Inputs!G96 ->  | H96: =F_Inputs!H96 ->  | I96: =F_Inputs!I96 ->  | J96: =F_Inputs!J96 ->  | K96: =F_Inputs!K96 ->  | L96: =F_Inputs!L96 ->  | M96: =F_Inputs!M96 -> 2220.37926 | Q96: PR24_N | R96: 0 | S96: 0 | Y96: 2220.37926
A97: =F_Inputs!A97 -> SRN | B97: =F_Inputs!B97 -> CWW3_049TOT_PR24 | C97: =F_Inputs!C97 -> EA/NRW environmental programme wastewater (WINEP/NEP) - Treatment for chemical removal (WINEP/NEP) wastewater capex - Total | D97: =F_Inputs!D97 -> £m | E97: =F_Inputs!E97 -> Price Review 2024 | F97: =F_Inputs!F97 -> 0.948 | G97: =F_Inputs!G97 -> 0.211 | H97: =F_Inputs!H97 -> 0.665 | I97: =F_Inputs!I97 -> 4.564 | J97: =F_Inputs!J97 -> 5.026 | K97: =F_Inputs!K97 -> 6.647 | L97: =F_Inputs!L97 -> 1.508 | M97: =F_Inputs!M97 ->  | Q97: CWW3_0 | R97: 0 | S97: 0 | T97: 0.665 | U97: 4.564 | V97: 5.026 | W97: 6.647 | X97: 1.508
A98: =F_Inputs!A98 -> SRN | B98: =F_Inputs!B98 -> CWW3_050TOT_PR24 | C98: =F_Inputs!C98 -> EA/NRW environmental programme wastewater (WINEP/NEP) - Treatment for chemical removal (WINEP/NEP) wastewater opex - Total | D98: =F_Inputs!D98 -> £m | E98: =F_Inputs!E98 -> Price Review 2024 | F98: =F_Inputs!F98 -> 0 | G98: =F_Inputs!G98 -> 0 | H98: =F_Inputs!H98 -> 0 | I98: =F_Inputs!I98 -> 0 | J98: =F_Inputs!J98 -> 0.1 | K98: =F_Inputs!K98 -> 0.2 | L98: =F_Inputs!L98 -> 0.244 | M98: =F_Inputs!M98 ->  | Q98: CWW3_0 | R98: 0 | S98: 0 | T98: 0 | U98: 0 | V98: 0.1 | W98: 0.2 | X98: 0.244
A99: =F_Inputs!A99 -> SRN | B99: =F_Inputs!B99 -> CWW3_051TOT_PR24 | C99: =F_Inputs!C99 -> EA/NRW environmental programme wastewater (WINEP/NEP) - Treatment for chemical removal (WINEP/NEP) wastewater totex - Total | D99: =F_Inputs!D99 -> £m | E99: =F_Inputs!E99 -> Price Review 2024 | F99: =F_Inputs!F99 -> 0.948 | G99: =F_Inputs!G99 -> 0.211 | H99: =F_Inputs!H99 -> 0.665 | I99: =F_Inputs!I99 -> 4.564 | J99: =F_Inputs!J99 -> 5.126 | K99: =F_Inputs!K99 -> 6.847 | L99: =F_Inputs!L99 -> 1.752 | M99: =F_Inputs!M99 ->  | Q99: CWW3_0 | R99: 0 | S99: 0 | T99: 0.665 | U99: 4.564 | V99: 5.126 | W99: 6.847 | X99: 1.752
A100: =F_Inputs!A100 -> SRN | B100: =F_Inputs!B100 -> CWW12_049TOT_PR24 | C100: =F_Inputs!C100 -> EA/NRW environmental programme wastewater (WINEP/NEP) - Treatment for chemical removal (WINEP/NEP) wastewater capex - Total | D100: =F_Inputs!D100 -> £m | E100: =F_Inputs!E100 -> Price Review 2024 | F100: =F_Inputs!F100 -> 0 | G100: =F_Inputs!G100 -> 0 | H100: =F_Inputs!H100 ->  | I100: =F_Inputs!I100 ->  | J100: =F_Inputs!J100 ->  | K100: =F_Inputs!K100 ->  | L100: =F_Inputs!L100 ->  | M100: =F_Inputs!M100 ->  | Q100: CWW12_ | R100: 0 | S100: 0 | T100: 0 | U100: 0 | V100: 0 | W100: 0 | X100: 0 | Y100: 0
A101: =F_Inputs!A101 -> SRN | B101: =F_Inputs!B101 -> CWW12_050TOT_PR24 | C101: =F_Inputs!C101 -> EA/NRW environmental programme wastewater (WINEP/NEP) - Treatment for chemical removal (WINEP/NEP) wastewater opex - Total | D101: =F_Inputs!D101 -> £m | E101: =F_Inputs!E101 -> Price Review 2024 | F101: =F_Inputs!F101 -> 0 | G101: =F_Inputs!G101 -> 0 | H101: =F_Inputs!H101 ->  | I101: =F_Inputs!I101 ->  | J101: =F_Inputs!J101 ->  | K101: =F_Inputs!K101 ->  | L101: =F_Inputs!L101 ->  | M101: =F_Inputs!M101 ->  | Q101: CWW12_ | R101: 0 | S101: 0 | T101: 0 | U101: 0 | V101: 0 | W101: 0 | X101: 0 | Y101: 0
A102: =F_Inputs!A102 -> SRN | B102: =F_Inputs!B102 -> CWW12_051TOT_PR24 | C102: =F_Inputs!C102 -> EA/NRW environmental programme wastewater (WINEP/NEP) - Treatment for chemical removal (WINEP/NEP) wastewater totex - Total | D102: =F_Inputs!D102 -> £m | E102: =F_Inputs!E102 -> Price Review 2024 | F102: =F_Inputs!F102 -> 0 | G102: =F_Inputs!G102 -> 0 | H102: =F_Inputs!H102 ->  | I102: =F_Inputs!I102 ->  | J102: =F_Inputs!J102 ->  | K102: =F_Inputs!K102 ->  | L102: =F_Inputs!L102 ->  | M102: =F_Inputs!M102 ->  | Q102: CWW12_ | R102: 0 | S102: 0 | T102: 0 | U102: 0 | V102: 0 | W102: 0 | X102: 0 | Y102: 0
A103: =F_Inputs!A103 -> SRN | B103: =F_Inputs!B103 -> CWW17_049TOT_PR24 | C103: =F_Inputs!C103 -> EA/NRW environmental programme wastewater (WINEP/NEP) - Treatment for chemical removal (WINEP/NEP) wastewater capex - Total | D103: =F_Inputs!D103 -> £m | E103: =F_Inputs!E103 -> Price Review 2024 | F103: =F_Inputs!F103 -> 0 | G103: =F_Inputs!G103 -> 0 | H103: =F_Inputs!H103 -> 0 | I103: =F_Inputs!I103 -> 0 | J103: =F_Inputs!J103 -> 0 | K103: =F_Inputs!K103 -> 0 | L103: =F_Inputs!L103 -> 0 | M103: =F_Inputs!M103 ->  | Q103: CWW17_ | R103: 0 | S103: 0 | T103: 0 | U103: 0 | V103: 0 | W103: 0 | X103: 0 | Y103: 0
A104: =F_Inputs!A104 -> SRN | B104: =F_Inputs!B104 -> CWW17_050TOT_PR24 | C104: =F_Inputs!C104 -> EA/NRW environmental programme wastewater (WINEP/NEP) - Treatment for chemical removal (WINEP/NEP) wastewater opex - Total | D104: =F_Inputs!D104 -> £m | E104: =F_Inputs!E104 -> Price Review 2024 | F104: =F_Inputs!F104 -> 0 | G104: =F_Inputs!G104 -> 0 | H104: =F_Inputs!H104 -> 0 | I104: =F_Inputs!I104 -> 0 | J104: =F_Inputs!J104 -> 0 | K104: =F_Inputs!K104 -> 0 | L104: =F_Inputs!L104 -> 0 | M104: =F_Inputs!M104 ->  | Q104: CWW17_ | R104: 0 | S104: 0 | T104: 0 | U104: 0 | V104: 0 | W104: 0 | X104: 0 | Y104: 0
A105: =F_Inputs!A105 -> SRN | B105: =F_Inputs!B105 -> CWW17_051TOT_PR24 | C105: =F_Inputs!C105 -> EA/NRW environmental programme wastewater (WINEP/NEP) - Treatment for chemical removal (WINEP/NEP) wastewater totex - Total | D105: =F_Inputs!D105 -> £m | E105: =F_Inputs!E105 -> Price Review 2024 | F105: =F_Inputs!F105 -> 0 | G105: =F_Inputs!G105 -> 0 | H105: =F_Inputs!H105 -> 0 | I105: =F_Inputs!I105 -> 0 | J105: =F_Inputs!J105 -> 0 | K105: =F_Inputs!K105 -> 0 | L105: =F_Inputs!L105 -> 0 | M105: =F_Inputs!M105 ->  | Q105: CWW17_ | R105: 0 | S105: 0 | T105: 0 | U105: 0 | V105: 0 | W105: 0 | X105: 0 | Y105: 0
A106: =F_Inputs!A106 -> SRN | B106: =F_Inputs!B106 -> S4031_PR24 | C106: =F_Inputs!C106 -> Sewage treatment data - Current population equivalent served by STWs with tightened/new permits for chemicals / hazardous substances | D106: =F_Inputs!D106 -> 000s | E106: =F_Inputs!E106 -> Price Review 2024 | F106: =F_Inputs!F106 -> 0 | G106: =F_Inputs!G106 -> 3.694 | H106: =F_Inputs!H106 -> 0 | I106: =F_Inputs!I106 -> 571.596 | J106: =F_Inputs!J106 -> 0 | K106: =F_Inputs!K106 -> 0 | L106: =F_Inputs!L106 -> 261.359 | M106: =F_Inputs!M106 ->  | Q106: S4031_ | R106: 0 | S106: 0 | T106: 0 | U106: 571.596 | V106: 0 | W106: 0 | X106: 261.359
A107: =F_Inputs!A107 -> SRN | B107: =F_Inputs!B107 -> CWW20A_S4031_PR24 | C107: =F_Inputs!C107 -> Sewage treatment data - Current population equivalent served by STWs with tightened/new permits for chemicals / hazardous substances | D107: =F_Inputs!D107 -> 000s | E107: =F_Inputs!E107 -> Price Review 2024 | F107: =F_Inputs!F107 ->  | G107: =F_Inputs!G107 ->  | H107: =F_Inputs!H107 ->  | I107: =F_Inputs!I107 ->  | J107: =F_Inputs!J107 ->  | K107: =F_Inputs!K107 ->  | L107: =F_Inputs!L107 ->  | M107: =F_Inputs!M107 ->  | Q107: CWW20A | T107: 0 | U107: 0 | V107: 0 | W107: 0 | X107: 0 | Y107: 0
A108: =F_Inputs!A108 -> SRN | B108: =F_Inputs!B108 -> CWW20_026_PR24 | C108: =F_Inputs!C108 -> Sewage treatment data - Total number of schemes with tightened/new chemicals/hazardous substances permits | D108: =F_Inputs!D108 -> nr | E108: =F_Inputs!E108 -> Price Review 2024 | F108: =F_Inputs!F108 -> 0 | G108: =F_Inputs!G108 -> 1 | H108: =F_Inputs!H108 -> 0 | I108: =F_Inputs!I108 -> 22 | J108: =F_Inputs!J108 -> 0 | K108: =F_Inputs!K108 -> 0 | L108: =F_Inputs!L108 -> 13 | M108: =F_Inputs!M108 ->  | Q108: CWW20_ | R108: 0 | S108: 0 | T108: 0 | U108: 22 | V108: 0 | W108: 0 | X108: 13
A109: =F_Inputs!A109 -> SRN | B109: =F_Inputs!B109 -> CWW20A_026_PR24 | C109: =F_Inputs!C109 -> Sewage treatment data - Total number of schemes with tightened/new chemicals/hazardous substances permits | D109: =F_Inputs!D109 -> nr | E109: =F_Inputs!E109 -> Price Review 2024 | F109: =F_Inputs!F109 ->  | G109: =F_Inputs!G109 ->  | H109: =F_Inputs!H109 ->  | I109: =F_Inputs!I109 ->  | J109: =F_Inputs!J109 ->  | K109: =F_Inputs!K109 ->  | L109: =F_Inputs!L109 ->  | M109: =F_Inputs!M109 ->  | Q109: CWW20A | T109: 0 | U109: 0 | V109: 0 | W109: 0 | X109: 0 | Y109: 0
A110: =F_Inputs!A110 -> SRN | B110: =F_Inputs!B110 -> PR24_E_WW051_TOTAL | C110: =F_Inputs!C110 -> PR24 BP EA/NRW environmental programme wastewater (WINEP/NEP) - Treatment for chemical removal (WINEP/NEP) wastewater totex - Total inc. accelerated & transition costs | D110: =F_Inputs!D110 -> £m | E110: =F_Inputs!E110 -> Price Review 2024 | F110: =F_Inputs!F110 ->  | G110: =F_Inputs!G110 ->  | H110: =F_Inputs!H110 ->  | I110: =F_Inputs!I110 ->  | J110: =F_Inputs!J110 ->  | K110: =F_Inputs!K110 ->  | L110: =F_Inputs!L110 ->  | M110: =F_Inputs!M110 -> 18.954 | Q110: PR24_E | R110: 0 | S110: 0 | Y110: 18.954
A111: =F_Inputs!A111 -> SRN | B111: =F_Inputs!B111 -> PR24_NETTOTEX_WASTE | C111: =F_Inputs!C111 -> PR24 BP Net totex - Total inc. accelerated & transition costs | D111: =F_Inputs!D111 -> £m | E111: =F_Inputs!E111 -> Price Review 2024 | F111: =F_Inputs!F111 ->  | G111: =F_Inputs!G111 ->  | H111: =F_Inputs!H111 ->  | I111: =F_Inputs!I111 ->  | J111: =F_Inputs!J111 ->  | K111: =F_Inputs!K111 ->  | L111: =F_Inputs!L111 ->  | M111: =F_Inputs!M111 -> 5114.195692 | Q111: PR24_N | R111: 0 | S111: 0 | Y111: 5114.195692
A112: =F_Inputs!A112 -> TMS | B112: =F_Inputs!B112 -> CWW3_049TOT_PR24 | C112: =F_Inputs!C112 -> EA/NRW environmental programme wastewater (WINEP/NEP) - Treatment for chemical removal (WINEP/NEP) wastewater capex - Total | D112: =F_Inputs!D112 -> £m | E112: =F_Inputs!E112 -> Price Review 2024 | F112: =F_Inputs!F112 -> 0 | G112: =F_Inputs!G112 -> 0.983 | H112: =F_Inputs!H112 -> 0 | I112: =F_Inputs!I112 -> 0 | J112: =F_Inputs!J112 -> 20.777 | K112: =F_Inputs!K112 -> 51.942 | L112: =F_Inputs!L112 -> 135.05 | M112: =F_Inputs!M112 ->  | Q112: CWW3_0 | R112: 0 | S112: 0 | T112: 0 | U112: 0 | V112: 20.777 | W112: 51.942 | X112: 135.05
A113: =F_Inputs!A113 -> TMS | B113: =F_Inputs!B113 -> CWW3_050TOT_PR24 | C113: =F_Inputs!C113 -> EA/NRW environmental programme wastewater (WINEP/NEP) - Treatment for chemical removal (WINEP/NEP) wastewater opex - Total | D113: =F_Inputs!D113 -> £m | E113: =F_Inputs!E113 -> Price Review 2024 | F113: =F_Inputs!F113 -> 0 | G113: =F_Inputs!G113 -> 0.008 | H113: =F_Inputs!H113 -> 0.467 | I113: =F_Inputs!I113 -> 0.314 | J113: =F_Inputs!J113 -> 1.549 | K113: =F_Inputs!K113 -> 3.65 | L113: =F_Inputs!L113 -> 4.302 | M113: =F_Inputs!M113 ->  | Q113: CWW3_0 | R113: 0 | S113: 0 | T113: 0.467 | U113: 0.314 | V113: 1.549 | W113: 3.65 | X113: 4.302
A114: =F_Inputs!A114 -> TMS | B114: =F_Inputs!B114 -> CWW3_051TOT_PR24 | C114: =F_Inputs!C114 -> EA/NRW environmental programme wastewater (WINEP/NEP) - Treatment for chemical removal (WINEP/NEP) wastewater totex - Total | D114: =F_Inputs!D114 -> £m | E114: =F_Inputs!E114 -> Price Review 2024 | F114: =F_Inputs!F114 -> 0 | G114: =F_Inputs!G114 -> 0.991 | H114: =F_Inputs!H114 -> 0.467 | I114: =F_Inputs!I114 -> 0.314 | J114: =F_Inputs!J114 -> 22.326 | K114: =F_Inputs!K114 -> 55.592 | L114: =F_Inputs!L114 -> 139.352 | M114: =F_Inputs!M114 ->  | Q114: CWW3_0 | R114: 0 | S114: 0 | T114: 0.467 | U114: 0.314 | V114: 22.326 | W114: 55.592 | X114: 139.352
A115: =F_Inputs!A115 -> TMS | B115: =F_Inputs!B115 -> CWW12_049TOT_PR24 | C115: =F_Inputs!C115 -> EA/NRW environmental programme wastewater (WINEP/NEP) - Treatment for chemical removal (WINEP/NEP) wastewater capex - Total | D115: =F_Inputs!D115 -> £m | E115: =F_Inputs!E115 -> Price Review 2024 | F115: =F_Inputs!F115 -> 0 | G115: =F_Inputs!G115 -> 0 | H115: =F_Inputs!H115 ->  | I115: =F_Inputs!I115 ->  | J115: =F_Inputs!J115 ->  | K115: =F_Inputs!K115 ->  | L115: =F_Inputs!L115 ->  | M115: =F_Inputs!M115 ->  | Q115: CWW12_ | R115: 0 | S115: 0 | T115: 0 | U115: 0 | V115: 0 | W115: 0 | X115: 0 | Y115: 0
A116: =F_Inputs!A116 -> TMS | B116: =F_Inputs!B116 -> CWW12_050TOT_PR24 | C116: =F_Inputs!C116 -> EA/NRW environmental programme wastewater (WINEP/NEP) - Treatment for chemical removal (WINEP/NEP) wastewater opex - Total | D116: =F_Inputs!D116 -> £m | E116: =F_Inputs!E116 -> Price Review 2024 | F116: =F_Inputs!F116 -> 0 | G116: =F_Inputs!G116 -> 0 | H116: =F_Inputs!H116 ->  | I116: =F_Inputs!I116 ->  | J116: =F_Inputs!J116 ->  | K116: =F_Inputs!K116 ->  | L116: =F_Inputs!L116 ->  | M116: =F_Inputs!M116 ->  | Q116: CWW12_ | R116: 0 | S116: 0 | T116: 0 | U116: 0 | V116: 0 | W116: 0 | X116: 0 | Y116: 0
A117: =F_Inputs!A117 -> TMS | B117: =F_Inputs!B117 -> CWW12_051TOT_PR24 | C117: =F_Inputs!C117 -> EA/NRW environmental programme wastewater (WINEP/NEP) - Treatment for chemical removal (WINEP/NEP) wastewater totex - Total | D117: =F_Inputs!D117 -> £m | E117: =F_Inputs!E117 -> Price Review 2024 | F117: =F_Inputs!F117 -> 0 | G117: =F_Inputs!G117 -> 0 | H117: =F_Inputs!H117 ->  | I117: =F_Inputs!I117 ->  | J117: =F_Inputs!J117 ->  | K117: =F_Inputs!K117 ->  | L117: =F_Inputs!L117 ->  | M117: =F_Inputs!M117 ->  | Q117: CWW12_ | R117: 0 | S117: 0 | T117: 0 | U117: 0 | V117: 0 | W117: 0 | X117: 0 | Y117: 0
A118: =F_Inputs!A118 -> TMS | B118: =F_Inputs!B118 -> CWW17_049TOT_PR24 | C118: =F_Inputs!C118 -> EA/NRW environmental programme wastewater (WINEP/NEP) - Treatment for chemical removal (WINEP/NEP) wastewater capex - Total | D118: =F_Inputs!D118 -> £m | E118: =F_Inputs!E118 -> Price Review 2024 | F118: =F_Inputs!F118 -> 0 | G118: =F_Inputs!G118 -> 0 | H118: =F_Inputs!H118 -> 0 | I118: =F_Inputs!I118 -> 0 | J118: =F_Inputs!J118 -> 0 | K118: =F_Inputs!K118 -> 0 | L118: =F_Inputs!L118 -> 0 | M118: =F_Inputs!M118 ->  | Q118: CWW17_ | R118: 0 | S118: 0 | T118: 0 | U118: 0 | V118: 0 | W118: 0 | X118: 0 | Y118: 0
A119: =F_Inputs!A119 -> TMS | B119: =F_Inputs!B119 -> CWW17_050TOT_PR24 | C119: =F_Inputs!C119 -> EA/NRW environmental programme wastewater (WINEP/NEP) - Treatment for chemical removal (WINEP/NEP) wastewater opex - Total | D119: =F_Inputs!D119 -> £m | E119: =F_Inputs!E119 -> Price Review 2024 | F119: =F_Inputs!F119 -> 0 | G119: =F_Inputs!G119 -> 0 | H119: =F_Inputs!H119 -> 0 | I119: =F_Inputs!I119 -> 0 | J119: =F_Inputs!J119 -> 0 | K119: =F_Inputs!K119 -> 0 | L119: =F_Inputs!L119 -> 0 | M119: =F_Inputs!M119 ->  | Q119: CWW17_ | R119: 0 | S119: 0 | T119: 0 | U119: 0 | V119: 0 | W119: 0 | X119: 0 | Y119: 0
A120: =F_Inputs!A120 -> TMS | B120: =F_Inputs!B120 -> CWW17_051TOT_PR24 | C120: =F_Inputs!C120 -> EA/NRW environmental programme wastewater (WINEP/NEP) - Treatment for chemical removal (WINEP/NEP) wastewater totex - Total | D120: =F_Inputs!D120 -> £m | E120: =F_Inputs!E120 -> Price Review 2024 | F120: =F_Inputs!F120 -> 0 | G120: =F_Inputs!G120 -> 0 | H120: =F_Inputs!H120 -> 0 | I120: =F_Inputs!I120 -> 0 | J120: =F_Inputs!J120 -> 0 | K120: =F_Inputs!K120 -> 0 | L120: =F_Inputs!L120 -> 0 | M120: =F_Inputs!M120 ->  | Q120: CWW17_ | R120: 0 | S120: 0 | T120: 0 | U120: 0 | V120: 0 | W120: 0 | X120: 0 | Y120: 0
A121: =F_Inputs!A121 -> TMS | B121: =F_Inputs!B121 -> S4031_PR24 | C121: =F_Inputs!C121 -> Sewage treatment data - Current population equivalent served by STWs with tightened/new permits for chemicals / hazardous substances | D121: =F_Inputs!D121 -> 000s | E121: =F_Inputs!E121 -> Price Review 2024 | F121: =F_Inputs!F121 -> 0 | G121: =F_Inputs!G121 -> 16.26482479 | H121: =F_Inputs!H121 -> 0 | I121: =F_Inputs!I121 -> 6588.013961 | J121: =F_Inputs!J121 -> 0 | K121: =F_Inputs!K121 -> 0 | L121: =F_Inputs!L121 -> 264.7884228 | M121: =F_Inputs!M121 ->  | Q121: S4031_ | R121: 0 | S121: 0 | T121: 0 | U121: 6588.013961 | V121: 0 | W121: 0 | X121: 264.7884228
A122: =F_Inputs!A122 -> TMS | B122: =F_Inputs!B122 -> CWW20A_S4031_PR24 | C122: =F_Inputs!C122 -> Sewage treatment data - Current population equivalent served by STWs with tightened/new permits for chemicals / hazardous substances | D122: =F_Inputs!D122 -> 000s | E122: =F_Inputs!E122 -> Price Review 2024 | F122: =F_Inputs!F122 ->  | G122: =F_Inputs!G122 ->  | H122: =F_Inputs!H122 ->  | I122: =F_Inputs!I122 ->  | J122: =F_Inputs!J122 ->  | K122: =F_Inputs!K122 ->  | L122: =F_Inputs!L122 ->  | M122: =F_Inputs!M122 ->  | Q122: CWW20A | T122: 0 | U122: 0 | V122: 0 | W122: 0 | X122: 0 | Y122: 0
A123: =F_Inputs!A123 -> TMS | B123: =F_Inputs!B123 -> CWW20_026_PR24 | C123: =F_Inputs!C123 -> Sewage treatment data - Total number of schemes with tightened/new chemicals/hazardous substances permits | D123: =F_Inputs!D123 -> nr | E123: =F_Inputs!E123 -> Price Review 2024 | F123: =F_Inputs!F123 -> 1 | G123: =F_Inputs!G123 -> 1 | H123: =F_Inputs!H123 -> 0 | I123: =F_Inputs!I123 -> 1 | J123: =F_Inputs!J123 -> 22 | K123: =F_Inputs!K123 -> 0 | L123: =F_Inputs!L123 -> 73 | M123: =F_Inputs!M123 ->  | Q123: CWW20_ | R123: 0 | S123: 0 | T123: 0 | U123: 1 | V123: 22 | W123: 0 | X123: 73
A124: =F_Inputs!A124 -> TMS | B124: =F_Inputs!B124 -> CWW20A_026_PR24 | C124: =F_Inputs!C124 -> Sewage treatment data - Total number of schemes with tightened/new chemicals/hazardous substances permits | D124: =F_Inputs!D124 -> nr | E124: =F_Inputs!E124 -> Price Review 2024 | F124: =F_Inputs!F124 ->  | G124: =F_Inputs!G124 ->  | H124: =F_Inputs!H124 ->  | I124: =F_Inputs!I124 ->  | J124: =F_Inputs!J124 ->  | K124: =F_Inputs!K124 ->  | L124: =F_Inputs!L124 ->  | M124: =F_Inputs!M124 ->  | Q124: CWW20A | T124: 0 | U124: 0 | V124: 0 | W124: 0 | X124: 0 | Y124: 0
A125: =F_Inputs!A125 -> TMS | B125: =F_Inputs!B125 -> PR24_E_WW051_TOTAL | C125: =F_Inputs!C125 -> PR24 BP EA/NRW environmental programme wastewater (WINEP/NEP) - Treatment for chemical removal (WINEP/NEP) wastewater totex - Total inc. accelerated & transition costs | D125: =F_Inputs!D125 -> £m | E125: =F_Inputs!E125 -> Price Review 2024 | F125: =F_Inputs!F125 ->  | G125: =F_Inputs!G125 ->  | H125: =F_Inputs!H125 ->  | I125: =F_Inputs!I125 ->  | J125: =F_Inputs!J125 ->  | K125: =F_Inputs!K125 ->  | L125: =F_Inputs!L125 ->  | M125: =F_Inputs!M125 -> 218.051 | Q125: PR24_E | R125: 0 | S125: 0 | Y125: 218.051
A126: =F_Inputs!A126 -> TMS | B126: =F_Inputs!B126 -> PR24_NETTOTEX_WASTE | C126: =F_Inputs!C126 -> PR24 BP Net totex - Total inc. accelerated & transition costs | D126: =F_Inputs!D126 -> £m | E126: =F_Inputs!E126 -> Price Review 2024 | F126: =F_Inputs!F126 ->  | G126: =F_Inputs!G126 ->  | H126: =F_Inputs!H126 ->  | I126: =F_Inputs!I126 ->  | J126: =F_Inputs!J126 ->  | K126: =F_Inputs!K126 ->  | L126: =F_Inputs!L126 ->  | M126: =F_Inputs!M126 -> 12775.4738 | Q126: PR24_N | R126: 0 | S126: 0 | Y126: 12775.4738
A127: =F_Inputs!A127 -> NWT | B127: =F_Inputs!B127 -> CWW3_049TOT_PR24 | C127: =F_Inputs!C127 -> EA/NRW environmental programme wastewater (WINEP/NEP) - Treatment for chemical removal (WINEP/NEP) wastewater capex - Total | D127: =F_Inputs!D127 -> £m | E127: =F_Inputs!E127 -> Price Review 2024 | F127: =F_Inputs!F127 -> 0 | G127: =F_Inputs!G127 -> 0 | H127: =F_Inputs!H127 -> 0 | I127: =F_Inputs!I127 -> 0 | J127: =F_Inputs!J127 -> 0 | K127: =F_Inputs!K127 -> 0 | L127: =F_Inputs!L127 -> 0 | M127: =F_Inputs!M127 ->  | Q127: CWW3_0 | R127: 0 | S127: 0 | T127: 0 | U127: 0 | V127: 0 | W127: 0 | X127: 0
A128: =F_Inputs!A128 -> NWT | B128: =F_Inputs!B128 -> CWW3_050TOT_PR24 | C128: =F_Inputs!C128 -> EA/NRW environmental programme wastewater (WINEP/NEP) - Treatment for chemical removal (WINEP/NEP) wastewater opex - Total | D128: =F_Inputs!D128 -> £m | E128: =F_Inputs!E128 -> Price Review 2024 | F128: =F_Inputs!F128 -> 0 | G128: =F_Inputs!G128 -> 0 | H128: =F_Inputs!H128 -> 0 | I128: =F_Inputs!I128 -> 0 | J128: =F_Inputs!J128 -> 0 | K128: =F_Inputs!K128 -> 0 | L128: =F_Inputs!L128 -> 0 | M128: =F_Inputs!M128 ->  | Q128: CWW3_0 | R128: 0 | S128: 0 | T128: 0 | U128: 0 | V128: 0 | W128: 0 | X128: 0
A129: =F_Inputs!A129 -> NWT | B129: =F_Inputs!B129 -> CWW3_051TOT_PR24 | C129: =F_Inputs!C129 -> EA/NRW environmental programme wastewater (WINEP/NEP) - Treatment for chemical removal (WINEP/NEP) wastewater totex - Total | D129: =F_Inputs!D129 -> £m | E129: =F_Inputs!E129 -> Price Review 2024 | F129: =F_Inputs!F129 -> 0 | G129: =F_Inputs!G129 -> 0 | H129: =F_Inputs!H129 -> 0 | I129: =F_Inputs!I129 -> 0 | J129: =F_Inputs!J129 -> 0 | K129: =F_Inputs!K129 -> 0 | L129: =F_Inputs!L129 -> 0 | M129: =F_Inputs!M129 ->  | Q129: CWW3_0 | R129: 0 | S129: 0 | T129: 0 | U129: 0 | V129: 0 | W129: 0 | X129: 0
A130: =F_Inputs!A130 -> NWT | B130: =F_Inputs!B130 -> CWW12_049TOT_PR24 | C130: =F_Inputs!C130 -> EA/NRW environmental programme wastewater (WINEP/NEP) - Treatment for chemical removal (WINEP/NEP) wastewater capex - Total | D130: =F_Inputs!D130 -> £m | E130: =F_Inputs!E130 -> Price Review 2024 | F130: =F_Inputs!F130 -> 0 | G130: =F_Inputs!G130 -> 0 | H130: =F_Inputs!H130 ->  | I130: =F_Inputs!I130 ->  | J130: =F_Inputs!J130 ->  | K130: =F_Inputs!K130 ->  | L130: =F_Inputs!L130 ->  | M130: =F_Inputs!M130 ->  | Q130: CWW12_ | R130: 0 | S130: 0 | T130: 0 | U130: 0 | V130: 0 | W130: 0 | X130: 0 | Y130: 0
A131: =F_Inputs!A131 -> NWT | B131: =F_Inputs!B131 -> CWW12_050TOT_PR24 | C131: =F_Inputs!C131 -> EA/NRW environmental programme wastewater (WINEP/NEP) - Treatment for chemical removal (WINEP/NEP) wastewater opex - Total | D131: =F_Inputs!D131 -> £m | E131: =F_Inputs!E131 -> Price Review 2024 | F131: =F_Inputs!F131 -> 0 | G131: =F_Inputs!G131 -> 0 | H131: =F_Inputs!H131 ->  | I131: =F_Inputs!I131 ->  | J131: =F_Inputs!J131 ->  | K131: =F_Inputs!K131 ->  | L131: =F_Inputs!L131 ->  | M131: =F_Inputs!M131 ->  | Q131: CWW12_ | R131: 0 | S131: 0 | T131: 0 | U131: 0 | V131: 0 | W131: 0 | X131: 0 | Y131: 0
A132: =F_Inputs!A132 -> NWT | B132: =F_Inputs!B132 -> CWW12_051TOT_PR24 | C132: =F_Inputs!C132 -> EA/NRW environmental programme wastewater (WINEP/NEP) - Treatment for chemical removal (WINEP/NEP) wastewater totex - Total | D132: =F_Inputs!D132 -> £m | E132: =F_Inputs!E132 -> Price Review 2024 | F132: =F_Inputs!F132 -> 0 | G132: =F_Inputs!G132 -> 0 | H132: =F_Inputs!H132 ->  | I132: =F_Inputs!I132 ->  | J132: =F_Inputs!J132 ->  | K132: =F_Inputs!K132 ->  | L132: =F_Inputs!L132 ->  | M132: =F_Inputs!M132 ->  | Q132: CWW12_ | R132: 0 | S132: 0 | T132: 0 | U132: 0 | V132: 0 | W132: 0 | X132: 0 | Y132: 0
A133: =F_Inputs!A133 -> NWT | B133: =F_Inputs!B133 -> CWW17_049TOT_PR24 | C133: =F_Inputs!C133 -> EA/NRW environmental programme wastewater (WINEP/NEP) - Treatment for chemical removal (WINEP/NEP) wastewater capex - Total | D133: =F_Inputs!D133 -> £m | E133: =F_Inputs!E133 -> Price Review 2024 | F133: =F_Inputs!F133 -> 0 | G133: =F_Inputs!G133 -> 0 | H133: =F_Inputs!H133 -> 0 | I133: =F_Inputs!I133 -> 0 | J133: =F_Inputs!J133 -> 0 | K133: =F_Inputs!K133 -> 0 | L133: =F_Inputs!L133 -> 0 | M133: =F_Inputs!M133 ->  | Q133: CWW17_ | R133: 0 | S133: 0 | T133: 0 | U133: 0 | V133: 0 | W133: 0 | X133: 0 | Y133: 0
A134: =F_Inputs!A134 -> NWT | B134: =F_Inputs!B134 -> CWW17_050TOT_PR24 | C134: =F_Inputs!C134 -> EA/NRW environmental programme wastewater (WINEP/NEP) - Treatment for chemical removal (WINEP/NEP) wastewater opex - Total | D134: =F_Inputs!D134 -> £m | E134: =F_Inputs!E134 -> Price Review 2024 | F134: =F_Inputs!F134 -> 0 | G134: =F_Inputs!G134 -> 0 | H134: =F_Inputs!H134 -> 0 | I134: =F_Inputs!I134 -> 0 | J134: =F_Inputs!J134 -> 0 | K134: =F_Inputs!K134 -> 0 | L134: =F_Inputs!L134 -> 0 | M134: =F_Inputs!M134 ->  | Q134: CWW17_ | R134: 0 | S134: 0 | T134: 0 | U134: 0 | V134: 0 | W134: 0 | X134: 0 | Y134: 0
A135: =F_Inputs!A135 -> NWT | B135: =F_Inputs!B135 -> CWW17_051TOT_PR24 | C135: =F_Inputs!C135 -> EA/NRW environmental programme wastewater (WINEP/NEP) - Treatment for chemical removal (WINEP/NEP) wastewater totex - Total | D135: =F_Inputs!D135 -> £m | E135: =F_Inputs!E135 -> Price Review 2024 | F135: =F_Inputs!F135 -> 0 | G135: =F_Inputs!G135 -> 0 | H135: =F_Inputs!H135 -> 0 | I135: =F_Inputs!I135 -> 0 | J135: =F_Inputs!J135 -> 0 | K135: =F_Inputs!K135 -> 0 | L135: =F_Inputs!L135 -> 0 | M135: =F_Inputs!M135 ->  | Q135: =LEFT(B135,6) -> CWW17_ | R135: 0 | S135: 0 | T135: 0 | U135: 0 | V135: 0 | W135: 0 | X135: 0 | Y135: 0
A136: =F_Inputs!A136 -> NWT | B136: =F_Inputs!B136 -> S4031_PR24 | C136: =F_Inputs!C136 -> Sewage treatment data - Current population equivalent served by STWs with tightened/new permits for chemicals / hazardous substances | D136: =F_Inputs!D136 -> 000s | E136: =F_Inputs!E136 -> Price Review 2024 | F136: =F_Inputs!F136 -> 0 | G136: =F_Inputs!G136 -> 0 | H136: =F_Inputs!H136 -> 0 | I136: =F_Inputs!I136 -> 5043.511143 | J136: =F_Inputs!J136 -> 0 | K136: =F_Inputs!K136 -> 129.9300152 | L136: =F_Inputs!L136 -> 502.7675796 | M136: =F_Inputs!M136 ->  | Q136: S4031_ | R136: =IF(OR($Q136="CWW12_",$Q136= "CWW17_",$Q136= "CWW20A"),F136,0) -> 0 | S136: =IF(OR($Q136="CWW12_",$Q136= "CWW17_",$Q136= "CWW20A"),G136,0) -> 0 | T136: =IF(OR($Q136="CWW3_0",$Q136="PR24_E",$Q136="PR24_N",$Q136= "CWW20_",$Q136="CWW1A_", $Q136="S4031_"),H136,0) -> 0 | U136: =IF(OR($Q136="CWW3_0",$Q136="PR24_E",$Q136="PR24_N",$Q136= "CWW20_",$Q136="CWW1A_", $Q136="S4031_"),I136,0) -> 5043.511143 | V136: =IF(OR($Q136="CWW3_0",$Q136="PR24_E",$Q136="PR24_N",$Q136= "CWW20_",$Q136="CWW1A_", $Q136="S4031_"),J136,0) -> 0 | W136: =IF(OR($Q136="CWW3_0",$Q136="PR24_E",$Q136="PR24_N",$Q136= "CWW20_",$Q136="CWW1A_", $Q136="S4031_"),K136,0) -> 129.9300152 | X136: =IF(OR($Q136="CWW3_0",$Q136="PR24_E",$Q136="PR24_N",$Q136= "CWW20_",$Q136="CWW1A_", $Q136="S4031_"),L136,0) -> 502.7675796 | Y136: =IF(OR($Q136="CWW3_0",$Q136="PR24_E",$Q136="PR24_N",$Q136= "CWW20_",$Q136="CWW1A_", $Q136="S4031_"),M136,0) -> 
A137: =F_Inputs!A137 -> NWT | B137: =F_Inputs!B137 -> CWW20A_S4031_PR24 | C137: =F_Inputs!C137 -> Sewage treatment data - Current population equivalent served by STWs with tightened/new permits for chemicals / hazardous substances | D137: =F_Inputs!D137 -> 000s | E137: =F_Inputs!E137 -> Price Review 2024 | F137: =F_Inputs!F137 -> 0 | G137: =F_Inputs!G137 -> 0 | H137: =F_Inputs!H137 ->  | I137: =F_Inputs!I137 ->  | J137: =F_Inputs!J137 ->  | K137: =F_Inputs!K137 ->  | L137: =F_Inputs!L137 ->  | M137: =F_Inputs!M137 ->  | Q137: CWW20A | R137: 0 | S137: 0 | T137: 0 | U137: 0 | V137: 0 | W137: 0 | X137: 0 | Y137: 0
A138: =F_Inputs!A138 -> NWT | B138: =F_Inputs!B138 -> CWW20_026_PR24 | C138: =F_Inputs!C138 -> Sewage treatment data - Total number of schemes with tightened/new chemicals/hazardous substances permits | D138: =F_Inputs!D138 -> nr | E138: =F_Inputs!E138 -> Price Review 2024 | F138: =F_Inputs!F138 -> 0 | G138: =F_Inputs!G138 -> 0 | H138: =F_Inputs!H138 -> 0 | I138: =F_Inputs!I138 -> 47 | J138: =F_Inputs!J138 -> 0 | K138: =F_Inputs!K138 -> 1 | L138: =F_Inputs!L138 -> 3 | M138: =F_Inputs!M138 ->  | Q138: CWW20_ | R138: 0 | S138: 0 | T138: 0 | U138: 47 | V138: 0 | W138: 1 | X138: 3
A139: =F_Inputs!A139 -> NWT | B139: =F_Inputs!B139 -> CWW20A_026_PR24 | C139: =F_Inputs!C139 -> Sewage treatment data - Total number of schemes with tightened/new chemicals/hazardous substances permits | D139: =F_Inputs!D139 -> nr | E139: =F_Inputs!E139 -> Price Review 2024 | F139: =F_Inputs!F139 -> 0 | G139: =F_Inputs!G139 -> 0 | H139: =F_Inputs!H139 ->  | I139: =F_Inputs!I139 ->  | J139: =F_Inputs!J139 ->  | K139: =F_Inputs!K139 ->  | L139: =F_Inputs!L139 ->  | M139: =F_Inputs!M139 ->  | Q139: CWW20A | R139: 0 | S139: 0 | T139: 0 | U139: 0 | V139: 0 | W139: 0 | X139: 0 | Y139: 0
A140: =F_Inputs!A140 -> NWT | B140: =F_Inputs!B140 -> PR24_E_WW051_TOTAL | C140: =F_Inputs!C140 -> PR24 BP EA/NRW environmental programme wastewater (WINEP/NEP) - Treatment for chemical removal (WINEP/NEP) wastewater totex - Total inc. accelerated & transition costs | D140: =F_Inputs!D140 -> £m | E140: =F_Inputs!E140 -> Price Review 2024 | F140: =F_Inputs!F140 ->  | G140: =F_Inputs!G140 ->  | H140: =F_Inputs!H140 ->  | I140: =F_Inputs!I140 ->  | J140: =F_Inputs!J140 ->  | K140: =F_Inputs!K140 ->  | L140: =F_Inputs!L140 ->  | M140: =F_Inputs!M140 -> 0 | Q140: PR24_E | R140: 0 | S140: 0 | Y140: 0
A141: =F_Inputs!A141 -> NWT | B141: =F_Inputs!B141 -> PR24_NETTOTEX_WASTE | C141: =F_Inputs!C141 -> PR24 BP Net totex - Total inc. accelerated & transition costs | D141: =F_Inputs!D141 -> £m | E141: =F_Inputs!E141 -> Price Review 2024 | F141: =F_Inputs!F141 ->  | G141: =F_Inputs!G141 ->  | H141: =F_Inputs!H141 ->  | I141: =F_Inputs!I141 ->  | J141: =F_Inputs!J141 ->  | K141: =F_Inputs!K141 ->  | L141: =F_Inputs!L141 ->  | M141: =F_Inputs!M141 -> 8993.179575 | Q141: PR24_N | R141: 0 | S141: 0 | Y141: 8993.179575
A142: =F_Inputs!A142 -> WSX | B142: =F_Inputs!B142 -> CWW3_049TOT_PR24 | C142: =F_Inputs!C142 -> EA/NRW environmental programme wastewater (WINEP/NEP) - Treatment for chemical removal (WINEP/NEP) wastewater capex - Total | D142: =F_Inputs!D142 -> £m | E142: =F_Inputs!E142 -> Price Review 2024 | F142: =F_Inputs!F142 -> 0.008939 | G142: =F_Inputs!G142 -> 0.002 | H142: =F_Inputs!H142 -> 0.204452 | I142: =F_Inputs!I142 -> 0.837309 | J142: =F_Inputs!J142 -> 1.829495 | K142: =F_Inputs!K142 -> 4.61958 | L142: =F_Inputs!L142 -> 3.945597 | M142: =F_Inputs!M142 ->  | Q142: CWW3_0 | R142: 0 | S142: 0 | T142: 0.204452 | U142: 0.837309 | V142: 1.829495 | W142: 4.61958 | X142: 3.945597
A143: =F_Inputs!A143 -> WSX | B143: =F_Inputs!B143 -> CWW3_050TOT_PR24 | C143: =F_Inputs!C143 -> EA/NRW environmental programme wastewater (WINEP/NEP) - Treatment for chemical removal (WINEP/NEP) wastewater opex - Total | D143: =F_Inputs!D143 -> £m | E143: =F_Inputs!E143 -> Price Review 2024 | F143: =F_Inputs!F143 -> 0 | G143: =F_Inputs!G143 -> 0 | H143: =F_Inputs!H143 -> 0 | I143: =F_Inputs!I143 -> 0.006121 | J143: =F_Inputs!J143 -> 0.012303 | K143: =F_Inputs!K143 -> 0.051004 | L143: =F_Inputs!L143 -> 0.161134 | M143: =F_Inputs!M143 ->  | Q143: CWW3_0 | R143: 0 | S143: 0 | T143: 0 | U143: 0.006121 | V143: 0.012303 | W143: 0.051004 | X143: 0.161134
A144: =F_Inputs!A144 -> WSX | B144: =F_Inputs!B144 -> CWW3_051TOT_PR24 | C144: =F_Inputs!C144 -> EA/NRW environmental programme wastewater (WINEP/NEP) - Treatment for chemical removal (WINEP/NEP) wastewater totex - Total | D144: =F_Inputs!D144 -> £m | E144: =F_Inputs!E144 -> Price Review 2024 | F144: =F_Inputs!F144 -> 0.008939 | G144: =F_Inputs!G144 -> 0.002 | H144: =F_Inputs!H144 -> 0.204452 | I144: =F_Inputs!I144 -> 0.84343 | J144: =F_Inputs!J144 -> 1.841798 | K144: =F_Inputs!K144 -> 4.670584 | L144: =F_Inputs!L144 -> 4.106731 | M144: =F_Inputs!M144 ->  | Q144: CWW3_0 | R144: 0 | S144: 0 | T144: 0.204452 | U144: 0.84343 | V144: 1.841798 | W144: 4.670584 | X144: 4.106731
A145: =F_Inputs!A145 -> WSX | B145: =F_Inputs!B145 -> CWW12_049TOT_PR24 | C145: =F_Inputs!C145 -> EA/NRW environmental programme wastewater (WINEP/NEP) - Treatment for chemical removal (WINEP/NEP) wastewater capex - Total | D145: =F_Inputs!D145 -> £m | E145: =F_Inputs!E145 -> Price Review 2024 | F145: =F_Inputs!F145 -> 0.008939 | G145: =F_Inputs!G145 -> 0.002 | H145: =F_Inputs!H145 ->  | I145: =F_Inputs!I145 ->  | J145: =F_Inputs!J145 ->  | K145: =F_Inputs!K145 ->  | L145: =F_Inputs!L145 ->  | M145: =F_Inputs!M145 ->  | Q145: CWW12_ | R145: 0.008939 | S145: 0.002 | T145: 0 | U145: 0 | V145: 0 | W145: 0 | X145: 0 | Y145: 0
A146: =F_Inputs!A146 -> WSX | B146: =F_Inputs!B146 -> CWW12_050TOT_PR24 | C146: =F_Inputs!C146 -> EA/NRW environmental programme wastewater (WINEP/NEP) - Treatment for chemical removal (WINEP/NEP) wastewater opex - Total | D146: =F_Inputs!D146 -> £m | E146: =F_Inputs!E146 -> Price Review 2024 | F146: =F_Inputs!F146 -> 0 | G146: =F_Inputs!G146 -> 0 | H146: =F_Inputs!H146 ->  | I146: =F_Inputs!I146 ->  | J146: =F_Inputs!J146 ->  | K146: =F_Inputs!K146 ->  | L146: =F_Inputs!L146 ->  | M146: =F_Inputs!M146 ->  | Q146: CWW12_ | R146: 0 | S146: 0 | T146: 0 | U146: 0 | V146: 0 | W146: 0 | X146: 0 | Y146: 0
A147: =F_Inputs!A147 -> WSX | B147: =F_Inputs!B147 -> CWW12_051TOT_PR24 | C147: =F_Inputs!C147 -> EA/NRW environmental programme wastewater (WINEP/NEP) - Treatment for chemical removal (WINEP/NEP) wastewater totex - Total | D147: =F_Inputs!D147 -> £m | E147: =F_Inputs!E147 -> Price Review 2024 | F147: =F_Inputs!F147 -> 0.008939 | G147: =F_Inputs!G147 -> 0.002 | H147: =F_Inputs!H147 ->  | I147: =F_Inputs!I147 ->  | J147: =F_Inputs!J147 ->  | K147: =F_Inputs!K147 ->  | L147: =F_Inputs!L147 ->  | M147: =F_Inputs!M147 ->  | Q147: CWW12_ | R147: 0.008939 | S147: 0.002 | T147: 0 | U147: 0 | V147: 0 | W147: 0 | X147: 0 | Y147: 0
A148: =F_Inputs!A148 -> WSX | B148: =F_Inputs!B148 -> CWW17_049TOT_PR24 | C148: =F_Inputs!C148 -> EA/NRW environmental programme wastewater (WINEP/NEP) - Treatment for chemical removal (WINEP/NEP) wastewater capex - Total | D148: =F_Inputs!D148 -> £m | E148: =F_Inputs!E148 -> Price Review 2024 | F148: =F_Inputs!F148 -> 0 | G148: =F_Inputs!G148 -> 0 | H148: =F_Inputs!H148 -> 0 | I148: =F_Inputs!I148 -> 0 | J148: =F_Inputs!J148 -> 0 | K148: =F_Inputs!K148 -> 0 | L148: =F_Inputs!L148 -> 0 | M148: =F_Inputs!M148 ->  | Q148: CWW17_ | R148: 0 | S148: 0 | T148: 0 | U148: 0 | V148: 0 | W148: 0 | X148: 0 | Y148: 0
A149: =F_Inputs!A149 -> WSX | B149: =F_Inputs!B149 -> CWW17_050TOT_PR24 | C149: =F_Inputs!C149 -> EA/NRW environmental programme wastewater (WINEP/NEP) - Treatment for chemical removal (WINEP/NEP) wastewater opex - Total | D149: =F_Inputs!D149 -> £m | E149: =F_Inputs!E149 -> Price Review 2024 | F149: =F_Inputs!F149 -> 0 | G149: =F_Inputs!G149 -> 0 | H149: =F_Inputs!H149 -> 0 | I149: =F_Inputs!I149 -> 0 | J149: =F_Inputs!J149 -> 0 | K149: =F_Inputs!K149 -> 0 | L149: =F_Inputs!L149 -> 0 | M149: =F_Inputs!M149 ->  | Q149: CWW17_ | R149: 0 | S149: 0 | T149: 0 | U149: 0 | V149: 0 | W149: 0 | X149: 0 | Y149: 0
A150: =F_Inputs!A150 -> WSX | B150: =F_Inputs!B150 -> CWW17_051TOT_PR24 | C150: =F_Inputs!C150 -> EA/NRW environmental programme wastewater (WINEP/NEP) - Treatment for chemical removal (WINEP/NEP) wastewater totex - Total | D150: =F_Inputs!D150 -> £m | E150: =F_Inputs!E150 -> Price Review 2024 | F150: =F_Inputs!F150 -> 0 | G150: =F_Inputs!G150 -> 0 | H150: =F_Inputs!H150 -> 0 | I150: =F_Inputs!I150 -> 0 | J150: =F_Inputs!J150 -> 0 | K150: =F_Inputs!K150 -> 0 | L150: =F_Inputs!L150 -> 0 | M150: =F_Inputs!M150 ->  | Q150: CWW17_ | R150: 0 | S150: 0 | T150: 0 | U150: 0 | V150: 0 | W150: 0 | X150: 0 | Y150: 0
A151: =F_Inputs!A151 -> WSX | B151: =F_Inputs!B151 -> S4031_PR24 | C151: =F_Inputs!C151 -> Sewage treatment data - Current population equivalent served by STWs with tightened/new permits for chemicals / hazardous substances | D151: =F_Inputs!D151 -> 000s | E151: =F_Inputs!E151 -> Price Review 2024 | F151: =F_Inputs!F151 -> 0 | G151: =F_Inputs!G151 -> 0 | H151: =F_Inputs!H151 -> 0 | I151: =F_Inputs!I151 -> 43.536 | J151: =F_Inputs!J151 -> 0 | K151: =F_Inputs!K151 -> 8.19 | L151: =F_Inputs!L151 -> 64.247 | M151: =F_Inputs!M151 ->  | Q151: S4031_ | R151: 0 | S151: 0 | T151: 0 | U151: 43.536 | V151: 0 | W151: 8.19 | X151: 64.247
A152: =F_Inputs!A152 -> WSX | B152: =F_Inputs!B152 -> CWW20A_S4031_PR24 | C152: =F_Inputs!C152 -> Sewage treatment data - Current population equivalent served by STWs with tightened/new permits for chemicals / hazardous substances | D152: =F_Inputs!D152 -> 000s | E152: =F_Inputs!E152 -> Price Review 2024 | F152: =F_Inputs!F152 ->  | G152: =F_Inputs!G152 ->  | H152: =F_Inputs!H152 ->  | I152: =F_Inputs!I152 ->  | J152: =F_Inputs!J152 ->  | K152: =F_Inputs!K152 ->  | L152: =F_Inputs!L152 ->  | M152: =F_Inputs!M152 ->  | Q152: CWW20A | T152: 0 | U152: 0 | V152: 0 | W152: 0 | X152: 0 | Y152: 0
A153: =F_Inputs!A153 -> WSX | B153: =F_Inputs!B153 -> CWW20_026_PR24 | C153: =F_Inputs!C153 -> Sewage treatment data - Total number of schemes with tightened/new chemicals/hazardous substances permits | D153: =F_Inputs!D153 -> nr | E153: =F_Inputs!E153 -> Price Review 2024 | F153: =F_Inputs!F153 -> 0 | G153: =F_Inputs!G153 -> 0 | H153: =F_Inputs!H153 -> 0 | I153: =F_Inputs!I153 -> 3 | J153: =F_Inputs!J153 -> 0 | K153: =F_Inputs!K153 -> 1 | L153: =F_Inputs!L153 -> 5 | M153: =F_Inputs!M153 ->  | Q153: CWW20_ | R153: 0 | S153: 0 | T153: 0 | U153: 3 | V153: 0 | W153: 1 | X153: 5
A154: =F_Inputs!A154 -> WSX | B154: =F_Inputs!B154 -> CWW20A_026_PR24 | C154: =F_Inputs!C154 -> Sewage treatment data - Total number of schemes with tightened/new chemicals/hazardous substances permits | D154: =F_Inputs!D154 -> nr | E154: =F_Inputs!E154 -> Price Review 2024 | F154: =F_Inputs!F154 ->  | G154: =F_Inputs!G154 ->  | H154: =F_Inputs!H154 ->  | I154: =F_Inputs!I154 ->  | J154: =F_Inputs!J154 ->  | K154: =F_Inputs!K154 ->  | L154: =F_Inputs!L154 ->  | M154: =F_Inputs!M154 ->  | Q154: CWW20A | T154: 0 | U154: 0 | V154: 0 | W154: 0 | X154: 0 | Y154: 0
A155: =F_Inputs!A155 -> WSX | B155: =F_Inputs!B155 -> PR24_E_WW051_TOTAL | C155: =F_Inputs!C155 -> PR24 BP EA/NRW environmental programme wastewater (WINEP/NEP) - Treatment for chemical removal (WINEP/NEP) wastewater totex - Total inc. accelerated & transition costs | D155: =F_Inputs!D155 -> £m | E155: =F_Inputs!E155 -> Price Review 2024 | F155: =F_Inputs!F155 ->  | G155: =F_Inputs!G155 ->  | H155: =F_Inputs!H155 ->  | I155: =F_Inputs!I155 ->  | J155: =F_Inputs!J155 ->  | K155: =F_Inputs!K155 ->  | L155: =F_Inputs!L155 ->  | M155: =F_Inputs!M155 -> 11.677934 | Q155: PR24_E | R155: 0 | S155: 0 | Y155: 11.677934
A156: =F_Inputs!A156 -> WSX | B156: =F_Inputs!B156 -> PR24_NETTOTEX_WASTE | C156: =F_Inputs!C156 -> PR24 BP Net totex - Total inc. accelerated & transition costs | D156: =F_Inputs!D156 -> £m | E156: =F_Inputs!E156 -> Price Review 2024 | F156: =F_Inputs!F156 ->  | G156: =F_Inputs!G156 ->  | H156: =F_Inputs!H156 ->  | I156: =F_Inputs!I156 ->  | J156: =F_Inputs!J156 ->  | K156: =F_Inputs!K156 ->  | L156: =F_Inputs!L156 ->  | M156: =F_Inputs!M156 -> 3717.880959 | Q156: PR24_N | R156: 0 | S156: 0 | Y156: 3717.880959
A157: =F_Inputs!A157 -> YKY | B157: =F_Inputs!B157 -> CWW3_049TOT_PR24 | C157: =F_Inputs!C157 -> EA/NRW environmental programme wastewater (WINEP/NEP) - Treatment for chemical removal (WINEP/NEP) wastewater capex - Total | D157: =F_Inputs!D157 -> £m | E157: =F_Inputs!E157 -> Price Review 2024 | F157: =F_Inputs!F157 -> 1.672176792 | G157: =F_Inputs!G157 -> 3.041 | H157: =F_Inputs!H157 -> 0 | I157: =F_Inputs!I157 -> 0 | J157: =F_Inputs!J157 -> 0 | K157: =F_Inputs!K157 -> 0 | L157: =F_Inputs!L157 -> 0 | M157: =F_Inputs!M157 ->  | Q157: CWW3_0 | R157: 0 | S157: 0 | T157: 0 | U157: 0 | V157: 0 | W157: 0 | X157: 0
A158: =F_Inputs!A158 -> YKY | B158: =F_Inputs!B158 -> CWW3_050TOT_PR24 | C158: =F_Inputs!C158 -> EA/NRW environmental programme wastewater (WINEP/NEP) - Treatment for chemical removal (WINEP/NEP) wastewater opex - Total | D158: =F_Inputs!D158 -> £m | E158: =F_Inputs!E158 -> Price Review 2024 | F158: =F_Inputs!F158 -> 0 | G158: =F_Inputs!G158 -> 0 | H158: =F_Inputs!H158 -> 0 | I158: =F_Inputs!I158 -> 0 | J158: =F_Inputs!J158 -> 0 | K158: =F_Inputs!K158 -> 0 | L158: =F_Inputs!L158 -> 0 | M158: =F_Inputs!M158 ->  | Q158: CWW3_0 | R158: 0 | S158: 0 | T158: 0 | U158: 0 | V158: 0 | W158: 0 | X158: 0
A159: =F_Inputs!A159 -> YKY | B159: =F_Inputs!B159 -> CWW3_051TOT_PR24 | C159: =F_Inputs!C159 -> EA/NRW environmental programme wastewater (WINEP/NEP) - Treatment for chemical removal (WINEP/NEP) wastewater totex - Total | D159: =F_Inputs!D159 -> £m | E159: =F_Inputs!E159 -> Price Review 2024 | F159: =F_Inputs!F159 -> 1.672176792 | G159: =F_Inputs!G159 -> 3.041 | H159: =F_Inputs!H159 -> 0 | I159: =F_Inputs!I159 -> 0 | J159: =F_Inputs!J159 -> 0 | K159: =F_Inputs!K159 -> 0 | L159: =F_Inputs!L159 -> 0 | M159: =F_Inputs!M159 ->  | Q159: CWW3_0 | R159: 0 | S159: 0 | T159: 0 | U159: 0 | V159: 0 | W159: 0 | X159: 0
A160: =F_Inputs!A160 -> YKY | B160: =F_Inputs!B160 -> CWW12_049TOT_PR24 | C160: =F_Inputs!C160 -> EA/NRW environmental programme wastewater (WINEP/NEP) - Treatment for chemical removal (WINEP/NEP) wastewater capex - Total | D160: =F_Inputs!D160 -> £m | E160: =F_Inputs!E160 -> Price Review 2024 | F160: =F_Inputs!F160 -> 0 | G160: =F_Inputs!G160 -> 0 | H160: =F_Inputs!H160 ->  | I160: =F_Inputs!I160 ->  | J160: =F_Inputs!J160 ->  | K160: =F_Inputs!K160 ->  | L160: =F_Inputs!L160 ->  | M160: =F_Inputs!M160 ->  | Q160: CWW12_ | R160: 0 | S160: 0 | T160: 0 | U160: 0 | V160: 0 | W160: 0 | X160: 0 | Y160: 0
A161: =F_Inputs!A161 -> YKY | B161: =F_Inputs!B161 -> CWW12_050TOT_PR24 | C161: =F_Inputs!C161 -> EA/NRW environmental programme wastewater (WINEP/NEP) - Treatment for chemical removal (WINEP/NEP) wastewater opex - Total | D161: =F_Inputs!D161 -> £m | E161: =F_Inputs!E161 -> Price Review 2024 | F161: =F_Inputs!F161 -> 0 | G161: =F_Inputs!G161 -> 0 | H161: =F_Inputs!H161 ->  | I161: =F_Inputs!I161 ->  | J161: =F_Inputs!J161 ->  | K161: =F_Inputs!K161 ->  | L161: =F_Inputs!L161 ->  | M161: =F_Inputs!M161 ->  | Q161: CWW12_ | R161: 0 | S161: 0 | T161: 0 | U161: 0 | V161: 0 | W161: 0 | X161: 0 | Y161: 0
A162: =F_Inputs!A162 -> YKY | B162: =F_Inputs!B162 -> CWW12_051TOT_PR24 | C162: =F_Inputs!C162 -> EA/NRW environmental programme wastewater (WINEP/NEP) - Treatment for chemical removal (WINEP/NEP) wastewater totex - Total | D162: =F_Inputs!D162 -> £m | E162: =F_Inputs!E162 -> Price Review 2024 | F162: =F_Inputs!F162 -> 0 | G162: =F_Inputs!G162 -> 0 | H162: =F_Inputs!H162 ->  | I162: =F_Inputs!I162 ->  | J162: =F_Inputs!J162 ->  | K162: =F_Inputs!K162 ->  | L162: =F_Inputs!L162 ->  | M162: =F_Inputs!M162 ->  | Q162: CWW12_ | R162: 0 | S162: 0 | T162: 0 | U162: 0 | V162: 0 | W162: 0 | X162: 0 | Y162: 0
A163: =F_Inputs!A163 -> YKY | B163: =F_Inputs!B163 -> CWW17_049TOT_PR24 | C163: =F_Inputs!C163 -> EA/NRW environmental programme wastewater (WINEP/NEP) - Treatment for chemical removal (WINEP/NEP) wastewater capex - Total | D163: =F_Inputs!D163 -> £m | E163: =F_Inputs!E163 -> Price Review 2024 | F163: =F_Inputs!F163 -> 0 | G163: =F_Inputs!G163 -> 0 | H163: =F_Inputs!H163 -> 0 | I163: =F_Inputs!I163 -> 0 | J163: =F_Inputs!J163 -> 0 | K163: =F_Inputs!K163 -> 0 | L163: =F_Inputs!L163 -> 0 | M163: =F_Inputs!M163 ->  | Q163: CWW17_ | R163: 0 | S163: 0 | T163: 0 | U163: 0 | V163: 0 | W163: 0 | X163: 0 | Y163: 0
A164: =F_Inputs!A164 -> YKY | B164: =F_Inputs!B164 -> CWW17_050TOT_PR24 | C164: =F_Inputs!C164 -> EA/NRW environmental programme wastewater (WINEP/NEP) - Treatment for chemical removal (WINEP/NEP) wastewater opex - Total | D164: =F_Inputs!D164 -> £m | E164: =F_Inputs!E164 -> Price Review 2024 | F164: =F_Inputs!F164 -> 0 | G164: =F_Inputs!G164 -> 0 | H164: =F_Inputs!H164 -> 0 | I164: =F_Inputs!I164 -> 0 | J164: =F_Inputs!J164 -> 0 | K164: =F_Inputs!K164 -> 0 | L164: =F_Inputs!L164 -> 0 | M164: =F_Inputs!M164 ->  | Q164: CWW17_ | R164: 0 | S164: 0 | T164: 0 | U164: 0 | V164: 0 | W164: 0 | X164: 0 | Y164: 0
A165: =F_Inputs!A165 -> YKY | B165: =F_Inputs!B165 -> CWW17_051TOT_PR24 | C165: =F_Inputs!C165 -> EA/NRW environmental programme wastewater (WINEP/NEP) - Treatment for chemical removal (WINEP/NEP) wastewater totex - Total | D165: =F_Inputs!D165 -> £m | E165: =F_Inputs!E165 -> Price Review 2024 | F165: =F_Inputs!F165 -> 0 | G165: =F_Inputs!G165 -> 0 | H165: =F_Inputs!H165 -> 0 | I165: =F_Inputs!I165 -> 0 | J165: =F_Inputs!J165 -> 0 | K165: =F_Inputs!K165 -> 0 | L165: =F_Inputs!L165 -> 0 | M165: =F_Inputs!M165 ->  | Q165: CWW17_ | R165: 0 | S165: 0 | T165: 0 | U165: 0 | V165: 0 | W165: 0 | X165: 0 | Y165: 0
A166: =F_Inputs!A166 -> YKY | B166: =F_Inputs!B166 -> S4031_PR24 | C166: =F_Inputs!C166 -> Sewage treatment data - Current population equivalent served by STWs with tightened/new permits for chemicals / hazardous substances | D166: =F_Inputs!D166 -> 000s | E166: =F_Inputs!E166 -> Price Review 2024 | F166: =F_Inputs!F166 -> 0 | G166: =F_Inputs!G166 -> 54.79 | H166: =F_Inputs!H166 -> 0 | I166: =F_Inputs!I166 -> 1993.505 | J166: =F_Inputs!J166 -> 0 | K166: =F_Inputs!K166 -> 0 | L166: =F_Inputs!L166 -> 0 | M166: =F_Inputs!M166 ->  | Q166: S4031_ | R166: 0 | S166: 0 | T166: 0 | U166: 1993.505 | V166: 0 | W166: 0 | X166: 0
A167: =F_Inputs!A167 -> YKY | B167: =F_Inputs!B167 -> CWW20A_S4031_PR24 | C167: =F_Inputs!C167 -> Sewage treatment data - Current population equivalent served by STWs with tightened/new permits for chemicals / hazardous substances | D167: =F_Inputs!D167 -> 000s | E167: =F_Inputs!E167 -> Price Review 2024 | F167: =F_Inputs!F167 ->  | G167: =F_Inputs!G167 ->  | H167: =F_Inputs!H167 ->  | I167: =F_Inputs!I167 ->  | J167: =F_Inputs!J167 ->  | K167: =F_Inputs!K167 ->  | L167: =F_Inputs!L167 ->  | M167: =F_Inputs!M167 ->  | Q167: CWW20A | T167: 0 | U167: 0 | V167: 0 | W167: 0 | X167: 0 | Y167: 0
A168: =F_Inputs!A168 -> YKY | B168: =F_Inputs!B168 -> CWW20_026_PR24 | C168: =F_Inputs!C168 -> Sewage treatment data - Total number of schemes with tightened/new chemicals/hazardous substances permits | D168: =F_Inputs!D168 -> nr | E168: =F_Inputs!E168 -> Price Review 2024 | F168: =F_Inputs!F168 -> 0 | G168: =F_Inputs!G168 -> 8 | H168: =F_Inputs!H168 -> 0 | I168: =F_Inputs!I168 -> 34 | J168: =F_Inputs!J168 -> 0 | K168: =F_Inputs!K168 -> 0 | L168: =F_Inputs!L168 -> 0 | M168: =F_Inputs!M168 ->  | Q168: CWW20_ | R168: 0 | S168: 0 | T168: 0 | U168: 34 | V168: 0 | W168: 0 | X168: 0
A169: =F_Inputs!A169 -> YKY | B169: =F_Inputs!B169 -> CWW20A_026_PR24 | C169: =F_Inputs!C169 -> Sewage treatment data - Total number of schemes with tightened/new chemicals/hazardous substances permits | D169: =F_Inputs!D169 -> nr | E169: =F_Inputs!E169 -> Price Review 2024 | F169: =F_Inputs!F169 ->  | G169: =F_Inputs!G169 ->  | H169: =F_Inputs!H169 ->  | I169: =F_Inputs!I169 ->  | J169: =F_Inputs!J169 ->  | K169: =F_Inputs!K169 ->  | L169: =F_Inputs!L169 ->  | M169: =F_Inputs!M169 ->  | Q169: CWW20A | T169: 0 | U169: 0 | V169: 0 | W169: 0 | X169: 0 | Y169: 0
A170: =F_Inputs!A170 -> YKY | B170: =F_Inputs!B170 -> PR24_E_WW051_TOTAL | C170: =F_Inputs!C170 -> PR24 BP EA/NRW environmental programme wastewater (WINEP/NEP) - Treatment for chemical removal (WINEP/NEP) wastewater totex - Total inc. accelerated & transition costs | D170: =F_Inputs!D170 -> £m | E170: =F_Inputs!E170 -> Price Review 2024 | F170: =F_Inputs!F170 ->  | G170: =F_Inputs!G170 ->  | H170: =F_Inputs!H170 ->  | I170: =F_Inputs!I170 ->  | J170: =F_Inputs!J170 ->  | K170: =F_Inputs!K170 ->  | L170: =F_Inputs!L170 ->  | M170: =F_Inputs!M170 -> 0 | Q170: PR24_E | R170: 0 | S170: 0 | Y170: 0
A171: =F_Inputs!A171 -> YKY | B171: =F_Inputs!B171 -> PR24_NETTOTEX_WASTE | C171: =F_Inputs!C171 -> PR24 BP Net totex - Total inc. accelerated & transition costs | D171: =F_Inputs!D171 -> £m | E171: =F_Inputs!E171 -> Price Review 2024 | F171: =F_Inputs!F171 ->  | G171: =F_Inputs!G171 ->  | H171: =F_Inputs!H171 ->  | I171: =F_Inputs!I171 ->  | J171: =F_Inputs!J171 ->  | K171: =F_Inputs!K171 ->  | L171: =F_Inputs!L171 ->  | M171: =F_Inputs!M171 -> 4605.568446 | Q171: PR24_N | R171: 0 | S171: 0 | Y171: 4605.568446

Sheet PR24_NETTOTEX_WASTE
A1: =RIGHT(CELL("filename", $A$1), LEN(CELL("filename", $A$1)) - SEARCH("]", CELL("filename", $A$1))) -> PR24_NETTOTEX_WASTE
D3: PR24_NETTOTEX_WASTE_Run8 | F3: Run on 05 Sep 2024 8:57
B4: Acronym | C4: Reference | D4: Item description | E4: Unit | F4: Model | G4: Constant
G6: Price Review 2024
G7: Run 11 - PR24 FD Data
G8: Latest
B9: ANH | C9: PR24_NETTOTEX_WASTE | D9: PR24 BP Net totex - Total inc. accelerated & transition costs | E9: £m | F9: Price Review 2024 | G9: 6050.179
B10: WSH | C10: PR24_NETTOTEX_WASTE | D10: PR24 BP Net totex - Total inc. accelerated & transition costs | E10: £m | F10: Price Review 2024 | G10: 3318.169
B11: HDD | C11: PR24_NETTOTEX_WASTE | D11: PR24 BP Net totex - Total inc. accelerated & transition costs | E11: £m | F11: Price Review 2024 | G11: 61.303
B12: NES | C12: PR24_NETTOTEX_WASTE | D12: PR24 BP Net totex - Total inc. accelerated & transition costs | E12: £m | F12: Price Review 2024 | G12: 3207.927
B13: SVE | C13: PR24_NETTOTEX_WASTE | D13: PR24 BP Net totex - Total inc. accelerated & transition costs | E13: £m | F13: Price Review 2024 | G13: 8618.712
B14: SWB | C14: PR24_NETTOTEX_WASTE | D14: PR24 BP Net totex - Total inc. accelerated & transition costs | E14: £m | F14: Price Review 2024 | G14: 2220.379
B15: SRN | C15: PR24_NETTOTEX_WASTE | D15: PR24 BP Net totex - Total inc. accelerated & transition costs | E15: £m | F15: Price Review 2024 | G15: 5114.196
B16: TMS | C16: PR24_NETTOTEX_WASTE | D16: PR24 BP Net totex - Total inc. accelerated & transition costs | E16: £m | F16: Price Review 2024 | G16: 12775.474
B17: NWT | C17: PR24_NETTOTEX_WASTE | D17: PR24 BP Net totex - Total inc. accelerated & transition costs | E17: £m | F17: Price Review 2024 | G17: 8993.18
B18: WSX | C18: PR24_NETTOTEX_WASTE | D18: PR24 BP Net totex - Total inc. accelerated & transition costs | E18: £m | F18: Price Review 2024 | G18: 3717.881
B19: YKY | C19: PR24_NETTOTEX_WASTE | D19: PR24 BP Net totex - Total inc. accelerated & transition costs | E19: £m | F19: Price Review 2024 | G19: 4605.568

Sheet Consolidated Input
A1: =RIGHT(CELL("filename", $A$1), LEN(CELL("filename", $A$1)) - SEARCH("]", CELL("filename", $A$1))) -> Consolidated Input
A4: Acronym | B4: BON code | C4: Item Description | D4: Unit | E4: 2023-24 | F4: 2024-25 | G4: 2025-26 | H4: 2026-27 | I4: 2027-28 | J4: 2028-29 | K4: 2029-30 | L4: Constant
A5: =F_Inputs_adjusted!A7 -> ANH | B5: =F_Inputs_adjusted!B7 -> CWW3_049TOT_PR24 | C5: =F_Inputs_adjusted!C7 -> EA/NRW environmental programme wastewater (WINEP/NEP) - Treatment for chemical removal (WINEP/NEP) wastewater capex - Total | D5: =F_Inputs_adjusted!D7 -> £m | E5: =SUMIFS(F_Inputs_adjusted!R:R,F_Inputs_adjusted!$A:$A,$A5,F_Inputs_adjusted!$B:$B,$B5) -> 0 | F5: =SUMIFS(F_Inputs_adjusted!S:S,F_Inputs_adjusted!$A:$A,$A5,F_Inputs_adjusted!$B:$B,$B5) -> 0 | G5: =SUMIFS(F_Inputs_adjusted!T:T,F_Inputs_adjusted!$A:$A,$A5,F_Inputs_adjusted!$B:$B,$B5) -> 2.278 | H5: =SUMIFS(F_Inputs_adjusted!U:U,F_Inputs_adjusted!$A:$A,$A5,F_Inputs_adjusted!$B:$B,$B5) -> 7.788 | I5: =SUMIFS(F_Inputs_adjusted!V:V,F_Inputs_adjusted!$A:$A,$A5,F_Inputs_adjusted!$B:$B,$B5) -> 13.411 | J5: =SUMIFS(F_Inputs_adjusted!W:W,F_Inputs_adjusted!$A:$A,$A5,F_Inputs_adjusted!$B:$B,$B5) -> 12.868 | K5: =SUMIFS(F_Inputs_adjusted!X:X,F_Inputs_adjusted!$A:$A,$A5,F_Inputs_adjusted!$B:$B,$B5) -> 6.36 | L5: =SUMIFS(F_Inputs_adjusted!Y:Y,F_Inputs_adjusted!$A:$A,$A5,F_Inputs_adjusted!$B:$B,$B5) -> 0
A6: =F_Inputs_adjusted!A8 -> ANH | B6: =F_Inputs_adjusted!B8 -> CWW3_050TOT_PR24 | C6: =F_Inputs_adjusted!C8 -> EA/NRW environmental programme wastewater (WINEP/NEP) - Treatment for chemical removal (WINEP/NEP) wastewater opex - Total | D6: =F_Inputs_adjusted!D8 -> £m | E6: =SUMIFS(F_Inputs_adjusted!R:R,F_Inputs_adjusted!$A:$A,$A6,F_Inputs_adjusted!$B:$B,$B6) -> 0 | F6: =SUMIFS(F_Inputs_adjusted!S:S,F_Inputs_adjusted!$A:$A,$A6,F_Inputs_adjusted!$B:$B,$B6) -> 0 | G6: =SUMIFS(F_Inputs_adjusted!T:T,F_Inputs_adjusted!$A:$A,$A6,F_Inputs_adjusted!$B:$B,$B6) -> 0 | H6: =SUMIFS(F_Inputs_adjusted!U:U,F_Inputs_adjusted!$A:$A,$A6,F_Inputs_adjusted!$B:$B,$B6) -> 0.205 | I6: =SUMIFS(F_Inputs_adjusted!V:V,F_Inputs_adjusted!$A:$A,$A6,F_Inputs_adjusted!$B:$B,$B6) -> 0.016 | J6: =SUMIFS(F_Inputs_adjusted!W:W,F_Inputs_adjusted!$A:$A,$A6,F_Inputs_adjusted!$B:$B,$B6) -> 0.1 | K6: =SUMIFS(F_Inputs_adjusted!X:X,F_Inputs_adjusted!$A:$A,$A6,F_Inputs_adjusted!$B:$B,$B6) -> 0.31 | L6: =SUMIFS(F_Inputs_adjusted!Y:Y,F_Inputs_adjusted!$A:$A,$A6,F_Inputs_adjusted!$B:$B,$B6) -> 0
A7: =F_Inputs_adjusted!A9 -> ANH | B7: =F_Inputs_adjusted!B9 -> CWW3_051TOT_PR24 | C7: =F_Inputs_adjusted!C9 -> EA/NRW environmental programme wastewater (WINEP/NEP) - Treatment for chemical removal (WINEP/NEP) wastewater totex - Total | D7: =F_Inputs_adjusted!D9 -> £m | E7: =SUMIFS(F_Inputs_adjusted!R:R,F_Inputs_adjusted!$A:$A,$A7,F_Inputs_adjusted!$B:$B,$B7) -> 0 | F7: =SUMIFS(F_Inputs_adjusted!S:S,F_Inputs_adjusted!$A:$A,$A7,F_Inputs_adjusted!$B:$B,$B7) -> 0 | G7: =SUMIFS(F_Inputs_adjusted!T:T,F_Inputs_adjusted!$A:$A,$A7,F_Inputs_adjusted!$B:$B,$B7) -> 2.278 | H7: =SUMIFS(F_Inputs_adjusted!U:U,F_Inputs_adjusted!$A:$A,$A7,F_Inputs_adjusted!$B:$B,$B7) -> 7.993 | I7: =SUMIFS(F_Inputs_adjusted!V:V,F_Inputs_adjusted!$A:$A,$A7,F_Inputs_adjusted!$B:$B,$B7) -> 13.427 | J7: =SUMIFS(F_Inputs_adjusted!W:W,F_Inputs_adjusted!$A:$A,$A7,F_Inputs_adjusted!$B:$B,$B7) -> 12.968 | K7: =SUMIFS(F_Inputs_adjusted!X:X,F_Inputs_adjusted!$A:$A,$A7,F_Inputs_adjusted!$B:$B,$B7) -> 6.67 | L7: =SUMIFS(F_Inputs_adjusted!Y:Y,F_Inputs_adjusted!$A:$A,$A7,F_Inputs_adjusted!$B:$B,$B7) -> 0
A8: =F_Inputs_adjusted!A10 -> ANH | B8: =F_Inputs_adjusted!B10 -> CWW12_049TOT_PR24 | C8: =F_Inputs_adjusted!C10 -> EA/NRW environmental programme wastewater (WINEP/NEP) - Treatment for chemical removal (WINEP/NEP) wastewater capex - Total | D8: =F_Inputs_adjusted!D10 -> £m | E8: =SUMIFS(F_Inputs_adjusted!R:R,F_Inputs_adjusted!$A:$A,$A8,F_Inputs_adjusted!$B:$B,$B8) -> 0 | F8: =SUMIFS(F_Inputs_adjusted!S:S,F_Inputs_adjusted!$A:$A,$A8,F_Inputs_adjusted!$B:$B,$B8) -> 0 | G8: =SUMIFS(F_Inputs_adjusted!T:T,F_Inputs_adjusted!$A:$A,$A8,F_Inputs_adjusted!$B:$B,$B8) -> 0 | H8: =SUMIFS(F_Inputs_adjusted!U:U,F_Inputs_adjusted!$A:$A,$A8,F_Inputs_adjusted!$B:$B,$B8) -> 0 | I8: =SUMIFS(F_Inputs_adjusted!V:V,F_Inputs_adjusted!$A:$A,$A8,F_Inputs_adjusted!$B:$B,$B8) -> 0 | J8: =SUMIFS(F_Inputs_adjusted!W:W,F_Inputs_adjusted!$A:$A,$A8,F_Inputs_adjusted!$B:$B,$B8) -> 0 | K8: =SUMIFS(F_Inputs_adjusted!X:X,F_Inputs_adjusted!$A:$A,$A8,F_Inputs_adjusted!$B:$B,$B8) -> 0 | L8: =SUMIFS(F_Inputs_adjusted!Y:Y,F_Inputs_adjusted!$A:$A,$A8,F_Inputs_adjusted!$B:$B,$B8) -> 0
A9: =F_Inputs_adjusted!A11 -> ANH | B9: =F_Inputs_adjusted!B11 -> CWW12_050TOT_PR24 | C9: =F_Inputs_adjusted!C11 -> EA/NRW environmental programme wastewater (WINEP/NEP) - Treatment for chemical removal (WINEP/NEP) wastewater opex - Total | D9: =F_Inputs_adjusted!D11 -> £m | E9: =SUMIFS(F_Inputs_adjusted!R:R,F_Inputs_adjusted!$A:$A,$A9,F_Inputs_adjusted!$B:$B,$B9) -> 0 | F9: =SUMIFS(F_Inputs_adjusted!S:S,F_Inputs_adjusted!$A:$A,$A9,F_Inputs_adjusted!$B:$B,$B9) -> 0 | G9: =SUMIFS(F_Inputs_adjusted!T:T,F_Inputs_adjusted!$A:$A,$A9,F_Inputs_adjusted!$B:$B,$B9) -> 0 | H9: =SUMIFS(F_Inputs_adjusted!U:U,F_Inputs_adjusted!$A:$A,$A9,F_Inputs_adjusted!$B:$B,$B9) -> 0 | I9: =SUMIFS(F_Inputs_adjusted!V:V,F_Inputs_adjusted!$A:$A,$A9,F_Inputs_adjusted!$B:$B,$B9) -> 0 | J9: =SUMIFS(F_Inputs_adjusted!W:W,F_Inputs_adjusted!$A:$A,$A9,F_Inputs_adjusted!$B:$B,$B9) -> 0 | K9: =SUMIFS(F_Inputs_adjusted!X:X,F_Inputs_adjusted!$A:$A,$A9,F_Inputs_adjusted!$B:$B,$B9) -> 0 | L9: =SUMIFS(F_Inputs_adjusted!Y:Y,F_Inputs_adjusted!$A:$A,$A9,F_Inputs_adjusted!$B:$B,$B9) -> 0
A10: =F_Inputs_adjusted!A12 -> ANH | B10: =F_Inputs_adjusted!B12 -> CWW12_051TOT_PR24 | C10: =F_Inputs_adjusted!C12 -> EA/NRW environmental programme wastewater (WINEP/NEP) - Treatment for chemical removal (WINEP/NEP) wastewater totex - Total | D10: =F_Inputs_adjusted!D12 -> £m | E10: =SUMIFS(F_Inputs_adjusted!R:R,F_Inputs_adjusted!$A:$A,$A10,F_Inputs_adjusted!$B:$B,$B10) -> 0 | F10: =SUMIFS(F_Inputs_adjusted!S:S,F_Inputs_adjusted!$A:$A,$A10,F_Inputs_adjusted!$B:$B,$B10) -> 0 | G10: =SUMIFS(F_Inputs_adjusted!T:T,F_Inputs_adjusted!$A:$A,$A10,F_Inputs_adjusted!$B:$B,$B10) -> 0 | H10: =SUMIFS(F_Inputs_adjusted!U:U,F_Inputs_adjusted!$A:$A,$A10,F_Inputs_adjusted!$B:$B,$B10) -> 0 | I10: =SUMIFS(F_Inputs_adjusted!V:V,F_Inputs_adjusted!$A:$A,$A10,F_Inputs_adjusted!$B:$B,$B10) -> 0 | J10: =SUMIFS(F_Inputs_adjusted!W:W,F_Inputs_adjusted!$A:$A,$A10,F_Inputs_adjusted!$B:$B,$B10) -> 0 | K10: =SUMIFS(F_Inputs_adjusted!X:X,F_Inputs_adjusted!$A:$A,$A10,F_Inputs_adjusted!$B:$B,$B10) -> 0 | L10: =SUMIFS(F_Inputs_adjusted!Y:Y,F_Inputs_adjusted!$A:$A,$A10,F_Inputs_adjusted!$B:$B,$B10) -> 0
A11: =F_Inputs_adjusted!A13 -> ANH | B11: =F_Inputs_adjusted!B13 -> CWW17_049TOT_PR24 | C11: =F_Inputs_adjusted!C13 -> EA/NRW environmental programme wastewater (WINEP/NEP) - Treatment for chemical removal (WINEP/NEP) wastewater capex - Total | D11: =F_Inputs_adjusted!D13 -> £m | E11: =SUMIFS(F_Inputs_adjusted!R:R,F_Inputs_adjusted!$A:$A,$A11,F_Inputs_adjusted!$B:$B,$B11) -> 0 | F11: =SUMIFS(F_Inputs_adjusted!S:S,F_Inputs_adjusted!$A:$A,$A11,F_Inputs_adjusted!$B:$B,$B11) -> 0 | G11: =SUMIFS(F_Inputs_adjusted!T:T,F_Inputs_adjusted!$A:$A,$A11,F_Inputs_adjusted!$B:$B,$B11) -> 0 | H11: =SUMIFS(F_Inputs_adjusted!U:U,F_Inputs_adjusted!$A:$A,$A11,F_Inputs_adjusted!$B:$B,$B11) -> 0 | I11: =SUMIFS(F_Inputs_adjusted!V:V,F_Inputs_adjusted!$A:$A,$A11,F_Inputs_adjusted!$B:$B,$B11) -> 0 | J11: =SUMIFS(F_Inputs_adjusted!W:W,F_Inputs_adjusted!$A:$A,$A11,F_Inputs_adjusted!$B:$B,$B11) -> 0 | K11: =SUMIFS(F_Inputs_adjusted!X:X,F_Inputs_adjusted!$A:$A,$A11,F_Inputs_adjusted!$B:$B,$B11) -> 0 | L11: =SUMIFS(F_Inputs_adjusted!Y:Y,F_Inputs_adjusted!$A:$A,$A11,F_Inputs_adjusted!$B:$B,$B11) -> 0
A12: =F_Inputs_adjusted!A14 -> ANH | B12: =F_Inputs_adjusted!B14 -> CWW17_050TOT_PR24 | C12: =F_Inputs_adjusted!C14 -> EA/NRW environmental programme wastewater (WINEP/NEP) - Treatment for chemical removal (WINEP/NEP) wastewater opex - Total | D12: =F_Inputs_adjusted!D14 -> £m | E12: =SUMIFS(F_Inputs_adjusted!R:R,F_Inputs_adjusted!$A:$A,$A12,F_Inputs_adjusted!$B:$B,$B12) -> 0 | F12: =SUMIFS(F_Inputs_adjusted!S:S,F_Inputs_adjusted!$A:$A,$A12,F_Inputs_adjusted!$B:$B,$B12) -> 0 | G12: =SUMIFS(F_Inputs_adjusted!T:T,F_Inputs_adjusted!$A:$A,$A12,F_Inputs_adjusted!$B:$B,$B12) -> 0 | H12: =SUMIFS(F_Inputs_adjusted!U:U,F_Inputs_adjusted!$A:$A,$A12,F_Inputs_adjusted!$B:$B,$B12) -> 0 | I12: =SUMIFS(F_Inputs_adjusted!V:V,F_Inputs_adjusted!$A:$A,$A12,F_Inputs_adjusted!$B:$B,$B12) -> 0 | J12: =SUMIFS(F_Inputs_adjusted!W:W,F_Inputs_adjusted!$A:$A,$A12,F_Inputs_adjusted!$B:$B,$B12) -> 0 | K12: =SUMIFS(F_Inputs_adjusted!X:X,F_Inputs_adjusted!$A:$A,$A12,F_Inputs_adjusted!$B:$B,$B12) -> 0 | L12: =SUMIFS(F_Inputs_adjusted!Y:Y,F_Inputs_adjusted!$A:$A,$A12,F_Inputs_adjusted!$B:$B,$B12) -> 0
A13: =F_Inputs_adjusted!A15 -> ANH | B13: =F_Inputs_adjusted!B15 -> CWW17_051TOT_PR24 | C13: =F_Inputs_adjusted!C15 -> EA/NRW environmental programme wastewater (WINEP/NEP) - Treatment for chemical removal (WINEP/NEP) wastewater totex - Total | D13: =F_Inputs_adjusted!D15 -> £m | E13: =SUMIFS(F_Inputs_adjusted!R:R,F_Inputs_adjusted!$A:$A,$A13,F_Inputs_adjusted!$B:$B,$B13) -> 0 | F13: =SUMIFS(F_Inputs_adjusted!S:S,F_Inputs_adjusted!$A:$A,$A13,F_Inputs_adjusted!$B:$B,$B13) -> 0 | G13: =SUMIFS(F_Inputs_adjusted!T:T,F_Inputs_adjusted!$A:$A,$A13,F_Inputs_adjusted!$B:$B,$B13) -> 0 | H13: =SUMIFS(F_Inputs_adjusted!U:U,F_Inputs_adjusted!$A:$A,$A13,F_Inputs_adjusted!$B:$B,$B13) -> 0 | I13: =SUMIFS(F_Inputs_adjusted!V:V,F_Inputs_adjusted!$A:$A,$A13,F_Inputs_adjusted!$B:$B,$B13) -> 0 | J13: =SUMIFS(F_Inputs_adjusted!W:W,F_Inputs_adjusted!$A:$A,$A13,F_Inputs_adjusted!$B:$B,$B13) -> 0 | K13: =SUMIFS(F_Inputs_adjusted!X:X,F_Inputs_adjusted!$A:$A,$A13,F_Inputs_adjusted!$B:$B,$B13) -> 0 | L13: =SUMIFS(F_Inputs_adjusted!Y:Y,F_Inputs_adjusted!$A:$A,$A13,F_Inputs_adjusted!$B:$B,$B13) -> 0
A14: =F_Inputs_adjusted!A16 -> ANH | B14: =F_Inputs_adjusted!B16 -> S4031_PR24 | C14: =F_Inputs_adjusted!C16 -> Sewage treatment data - Current population equivalent served by STWs with tightened/new permits for chemicals / hazardous substances | D14: =F_Inputs_adjusted!D16 -> 000s | E14: =SUMIFS(F_Inputs_adjusted!R:R,F_Inputs_adjusted!$A:$A,$A14,F_Inputs_adjusted!$B:$B,$B14) -> 0 | F14: =SUMIFS(F_Inputs_adjusted!S:S,F_Inputs_adjusted!$A:$A,$A14,F_Inputs_adjusted!$B:$B,$B14) -> 0 | G14: =SUMIFS(F_Inputs_adjusted!T:T,F_Inputs_adjusted!$A:$A,$A14,F_Inputs_adjusted!$B:$B,$B14) -> 0 | H14: =SUMIFS(F_Inputs_adjusted!U:U,F_Inputs_adjusted!$A:$A,$A14,F_Inputs_adjusted!$B:$B,$B14) -> 1205.362 | I14: =SUMIFS(F_Inputs_adjusted!V:V,F_Inputs_adjusted!$A:$A,$A14,F_Inputs_adjusted!$B:$B,$B14) -> 0 | J14: =SUMIFS(F_Inputs_adjusted!W:W,F_Inputs_adjusted!$A:$A,$A14,F_Inputs_adjusted!$B:$B,$B14) -> 53.759 | K14: =SUMIFS(F_Inputs_adjusted!X:X,F_Inputs_adjusted!$A:$A,$A14,F_Inputs_adjusted!$B:$B,$B14) -> 103.676 | L14: =SUMIFS(F_Inputs_adjusted!Y:Y,F_Inputs_adjusted!$A:$A,$A14,F_Inputs_adjusted!$B:$B,$B14) -> 0
A15: =F_Inputs_adjusted!A17 -> ANH | B15: =F_Inputs_adjusted!B17 -> CWW20A_S4031_PR24 | C15: =F_Inputs_adjusted!C17 -> Sewage treatment data - Current population equivalent served by STWs with tightened/new permits for chemicals / hazardous substances | D15: =F_Inputs_adjusted!D17 -> 000s | E15: =SUMIFS(F_Inputs_adjusted!R:R,F_Inputs_adjusted!$A:$A,$A15,F_Inputs_adjusted!$B:$B,$B15) -> 0 | F15: =SUMIFS(F_Inputs_adjusted!S:S,F_Inputs_adjusted!$A:$A,$A15,F_Inputs_adjusted!$B:$B,$B15) -> 0 | G15: =SUMIFS(F_Inputs_adjusted!T:T,F_Inputs_adjusted!$A:$A,$A15,F_Inputs_adjusted!$B:$B,$B15) -> 0 | H15: =SUMIFS(F_Inputs_adjusted!U:U,F_Inputs_adjusted!$A:$A,$A15,F_Inputs_adjusted!$B:$B,$B15) -> 0 | I15: =SUMIFS(F_Inputs_adjusted!V:V,F_Inputs_adjusted!$A:$A,$A15,F_Inputs_adjusted!$B:$B,$B15) -> 0 | J15: =SUMIFS(F_Inputs_adjusted!W:W,F_Inputs_adjusted!$A:$A,$A15,F_Inputs_adjusted!$B:$B,$B15) -> 0 | K15: =SUMIFS(F_Inputs_adjusted!X:X,F_Inputs_adjusted!$A:$A,$A15,F_Inputs_adjusted!$B:$B,$B15) -> 0 | L15: =SUMIFS(F_Inputs_adjusted!Y:Y,F_Inputs_adjusted!$A:$A,$A15,F_Inputs_adjusted!$B:$B,$B15) -> 0
A16: =F_Inputs_adjusted!A18 -> ANH | B16: =F_Inputs_adjusted!B18 -> CWW20_026_PR24 | C16: =F_Inputs_adjusted!C18 -> Sewage treatment data - Total number of schemes with tightened/new chemicals/hazardous substances permits | D16: =F_Inputs_adjusted!D18 -> nr | E16: =SUMIFS(F_Inputs_adjusted!R:R,F_Inputs_adjusted!$A:$A,$A16,F_Inputs_adjusted!$B:$B,$B16) -> 0 | F16: =SUMIFS(F_Inputs_adjusted!S:S,F_Inputs_adjusted!$A:$A,$A16,F_Inputs_adjusted!$B:$B,$B16) -> 0 | G16: =SUMIFS(F_Inputs_adjusted!T:T,F_Inputs_adjusted!$A:$A,$A16,F_Inputs_adjusted!$B:$B,$B16) -> 0 | H16: =SUMIFS(F_Inputs_adjusted!U:U,F_Inputs_adjusted!$A:$A,$A16,F_Inputs_adjusted!$B:$B,$B16) -> 30 | I16: =SUMIFS(F_Inputs_adjusted!V:V,F_Inputs_adjusted!$A:$A,$A16,F_Inputs_adjusted!$B:$B,$B16) -> 0 | J16: =SUMIFS(F_Inputs_adjusted!W:W,F_Inputs_adjusted!$A:$A,$A16,F_Inputs_adjusted!$B:$B,$B16) -> 4 | K16: =SUMIFS(F_Inputs_adjusted!X:X,F_Inputs_adjusted!$A:$A,$A16,F_Inputs_adjusted!$B:$B,$B16) -> 12 | L16: =SUMIFS(F_Inputs_adjusted!Y:Y,F_Inputs_adjusted!$A:$A,$A16,F_Inputs_adjusted!$B:$B,$B16) -> 0
A17: =F_Inputs_adjusted!A19 -> ANH | B17: =F_Inputs_adjusted!B19 -> CWW20A_026_PR24 | C17: =F_Inputs_adjusted!C19 -> Sewage treatment data - Total number of schemes with tightened/new chemicals/hazardous substances permits | D17: =F_Inputs_adjusted!D19 -> nr | E17: =SUMIFS(F_Inputs_adjusted!R:R,F_Inputs_adjusted!$A:$A,$A17,F_Inputs_adjusted!$B:$B,$B17) -> 0 | F17: =SUMIFS(F_Inputs_adjusted!S:S,F_Inputs_adjusted!$A:$A,$A17,F_Inputs_adjusted!$B:$B,$B17) -> 0 | G17: =SUMIFS(F_Inputs_adjusted!T:T,F_Inputs_adjusted!$A:$A,$A17,F_Inputs_adjusted!$B:$B,$B17) -> 0 | H17: =SUMIFS(F_Inputs_adjusted!U:U,F_Inputs_adjusted!$A:$A,$A17,F_Inputs_adjusted!$B:$B,$B17) -> 0 | I17: =SUMIFS(F_Inputs_adjusted!V:V,F_Inputs_adjusted!$A:$A,$A17,F_Inputs_adjusted!$B:$B,$B17) -> 0 | J17: =SUMIFS(F_Inputs_adjusted!W:W,F_Inputs_adjusted!$A:$A,$A17,F_Inputs_adjusted!$B:$B,$B17) -> 0 | K17: =SUMIFS(F_Inputs_adjusted!X:X,F_Inputs_adjusted!$A:$A,$A17,F_Inputs_adjusted!$B:$B,$B17) -> 0 | L17: =SUMIFS(F_Inputs_adjusted!Y:Y,F_Inputs_adjusted!$A:$A,$A17,F_Inputs_adjusted!$B:$B,$B17) -> 0
A18: =F_Inputs_adjusted!A20 -> ANH | B18: =F_Inputs_adjusted!B20 -> PR24_E_WW051_TOTAL | C18: =F_Inputs_adjusted!C20 -> PR24 BP EA/NRW environmental programme wastewater (WINEP/NEP) - Treatment for chemical removal (WINEP/NEP) wastewater totex - Total inc. accelerated & transition costs | D18: =F_Inputs_adjusted!D20 -> £m | E18: =SUMIFS(F_Inputs_adjusted!R:R,F_Inputs_adjusted!$A:$A,$A18,F_Inputs_adjusted!$B:$B,$B18) -> 0 | F18: =SUMIFS(F_Inputs_adjusted!S:S,F_Inputs_adjusted!$A:$A,$A18,F_Inputs_adjusted!$B:$B,$B18) -> 0 | G18: =SUMIFS(F_Inputs_adjusted!T:T,F_Inputs_adjusted!$A:$A,$A18,F_Inputs_adjusted!$B:$B,$B18) -> 0 | H18: =SUMIFS(F_Inputs_adjusted!U:U,F_Inputs_adjusted!$A:$A,$A18,F_Inputs_adjusted!$B:$B,$B18) -> 0 | I18: =SUMIFS(F_Inputs_adjusted!V:V,F_Inputs_adjusted!$A:$A,$A18,F_Inputs_adjusted!$B:$B,$B18) -> 0 | J18: =SUMIFS(F_Inputs_adjusted!W:W,F_Inputs_adjusted!$A:$A,$A18,F_Inputs_adjusted!$B:$B,$B18) -> 0 | K18: =SUMIFS(F_Inputs_adjusted!X:X,F_Inputs_adjusted!$A:$A,$A18,F_Inputs_adjusted!$B:$B,$B18) -> 0 | L18: =SUMIFS(F_Inputs_adjusted!Y:Y,F_Inputs_adjusted!$A:$A,$A18,F_Inputs_adjusted!$B:$B,$B18) -> 43.336
A19: =F_Inputs_adjusted!A21 -> ANH | B19: =F_Inputs_adjusted!B21 -> PR24_NETTOTEX_WASTE | C19: =F_Inputs_adjusted!C21 -> PR24 BP Net totex - Total inc. accelerated & transition costs | D19: =F_Inputs_adjusted!D21 -> £m | E19: =SUMIFS(F_Inputs_adjusted!R:R,F_Inputs_adjusted!$A:$A,$A19,F_Inputs_adjusted!$B:$B,$B19) -> 0 | F19: =SUMIFS(F_Inputs_adjusted!S:S,F_Inputs_adjusted!$A:$A,$A19,F_Inputs_adjusted!$B:$B,$B19) -> 0 | G19: =SUMIFS(F_Inputs_adjusted!T:T,F_Inputs_adjusted!$A:$A,$A19,F_Inputs_adjusted!$B:$B,$B19) -> 0 | H19: =SUMIFS(F_Inputs_adjusted!U:U,F_Inputs_adjusted!$A:$A,$A19,F_Inputs_adjusted!$B:$B,$B19) -> 0 | I19: =SUMIFS(F_Inputs_adjusted!V:V,F_Inputs_adjusted!$A:$A,$A19,F_Inputs_adjusted!$B:$B,$B19) -> 0 | J19: =SUMIFS(F_Inputs_adjusted!W:W,F_Inputs_adjusted!$A:$A,$A19,F_Inputs_adjusted!$B:$B,$B19) -> 0 | K19: =SUMIFS(F_Inputs_adjusted!X:X,F_Inputs_adjusted!$A:$A,$A19,F_Inputs_adjusted!$B:$B,$B19) -> 0 | L19: =SUMIFS(F_Inputs_adjusted!Y:Y,F_Inputs_adjusted!$A:$A,$A19,F_Inputs_adjusted!$B:$B,$B19) -> 6050.179102
A20: =F_Inputs_adjusted!A22 -> WSH | B20: =F_Inputs_adjusted!B22 -> CWW3_049TOT_PR24 | C20: =F_Inputs_adjusted!C22 -> EA/NRW environmental programme wastewater (WINEP/NEP) - Treatment for chemical removal (WINEP/NEP) wastewater capex - Total | D20: =F_Inputs_adjusted!D22 -> £m | E20: =SUMIFS(F_Inputs_adjusted!R:R,F_Inputs_adjusted!$A:$A,$A20,F_Inputs_adjusted!$B:$B,$B20) -> 0 | F20: =SUMIFS(F_Inputs_adjusted!S:S,F_Inputs_adjusted!$A:$A,$A20,F_Inputs_adjusted!$B:$B,$B20) -> 0 | G20: =SUMIFS(F_Inputs_adjusted!T:T,F_Inputs_adjusted!$A:$A,$A20,F_Inputs_adjusted!$B:$B,$B20) -> 0 | H20: =SUMIFS(F_Inputs_adjusted!U:U,F_Inputs_adjusted!$A:$A,$A20,F_Inputs_adjusted!$B:$B,$B20) -> 0 | I20: =SUMIFS(F_Inputs_adjusted!V:V,F_Inputs_adjusted!$A:$A,$A20,F_Inputs_adjusted!$B:$B,$B20) -> 0 | J20: =SUMIFS(F_Inputs_adjusted!W:W,F_Inputs_adjusted!$A:$A,$A20,F_Inputs_adjusted!$B:$B,$B20) -> 0 | K20: =SUMIFS(F_Inputs_adjusted!X:X,F_Inputs_adjusted!$A:$A,$A20,F_Inputs_adjusted!$B:$B,$B20) -> 0 | L20: =SUMIFS(F_Inputs_adjusted!Y:Y,F_Inputs_adjusted!$A:$A,$A20,F_Inputs_adjusted!$B:$B,$B20) -> 0
A21: =F_Inputs_adjusted!A23 -> WSH | B21: =F_Inputs_adjusted!B23 -> CWW3_050TOT_PR24 | C21: =F_Inputs_adjusted!C23 -> EA/NRW environmental programme wastewater (WINEP/NEP) - Treatment for chemical removal (WINEP/NEP) wastewater opex - Total | D21: =F_Inputs_adjusted!D23 -> £m | E21: =SUMIFS(F_Inputs_adjusted!R:R,F_Inputs_adjusted!$A:$A,$A21,F_Inputs_adjusted!$B:$B,$B21) -> 0 | F21: =SUMIFS(F_Inputs_adjusted!S:S,F_Inputs_adjusted!$A:$A,$A21,F_Inputs_adjusted!$B:$B,$B21) -> 0 | G21: =SUMIFS(F_Inputs_adjusted!T:T,F_Inputs_adjusted!$A:$A,$A21,F_Inputs_adjusted!$B:$B,$B21) -> 0 | H21: =SUMIFS(F_Inputs_adjusted!U:U,F_Inputs_adjusted!$A:$A,$A21,F_Inputs_adjusted!$B:$B,$B21) -> 0 | I21: =SUMIFS(F_Inputs_adjusted!V:V,F_Inputs_adjusted!$A:$A,$A21,F_Inputs_adjusted!$B:$B,$B21) -> 0 | J21: =SUMIFS(F_Inputs_adjusted!W:W,F_Inputs_adjusted!$A:$A,$A21,F_Inputs_adjusted!$B:$B,$B21) -> 0 | K21: =SUMIFS(F_Inputs_adjusted!X:X,F_Inputs_adjusted!$A:$A,$A21,F_Inputs_adjusted!$B:$B,$B21) -> 0 | L21: =SUMIFS(F_Inputs_adjusted!Y:Y,F_Inputs_adjusted!$A:$A,$A21,F_Inputs_adjusted!$B:$B,$B21) -> 0
A22: =F_Inputs_adjusted!A24 -> WSH | B22: =F_Inputs_adjusted!B24 -> CWW3_051TOT_PR24 | C22: =F_Inputs_adjusted!C24 -> EA/NRW environmental programme wastewater (WINEP/NEP) - Treatment for chemical removal (WINEP/NEP) wastewater totex - Total | D22: =F_Inputs_adjusted!D24 -> £m | E22: =SUMIFS(F_Inputs_adjusted!R:R,F_Inputs_adjusted!$A:$A,$A22,F_Inputs_adjusted!$B:$B,$B22) -> 0 | F22: =SUMIFS(F_Inputs_adjusted!S:S,F_Inputs_adjusted!$A:$A,$A22,F_Inputs_adjusted!$B:$B,$B22) -> 0 | G22: =SUMIFS(F_Inputs_adjusted!T:T,F_Inputs_adjusted!$A:$A,$A22,F_Inputs_adjusted!$B:$B,$B22) -> 0 | H22: =SUMIFS(F_Inputs_adjusted!U:U,F_Inputs_adjusted!$A:$A,$A22,F_Inputs_adjusted!$B:$B,$B22) -> 0 | I22: =SUMIFS(F_Inputs_adjusted!V:V,F_Inputs_adjusted!$A:$A,$A22,F_Inputs_adjusted!$B:$B,$B22) -> 0 | J22: =SUMIFS(F_Inputs_adjusted!W:W,F_Inputs_adjusted!$A:$A,$A22,F_Inputs_adjusted!$B:$B,$B22) -> 0 | K22: =SUMIFS(F_Inputs_adjusted!X:X,F_Inputs_adjusted!$A:$A,$A22,F_Inputs_adjusted!$B:$B,$B22) -> 0 | L22: =SUMIFS(F_Inputs_adjusted!Y:Y,F_Inputs_adjusted!$A:$A,$A22,F_Inputs_adjusted!$B:$B,$B22) -> 0
A23: =F_Inputs_adjusted!A25 -> WSH | B23: =F_Inputs_adjusted!B25 -> CWW12_049TOT_PR24 | C23: =F_Inputs_adjusted!C25 -> EA/NRW environmental programme wastewater (WINEP/NEP) - Treatment for chemical removal (WINEP/NEP) wastewater capex - Total | D23: =F_Inputs_adjusted!D25 -> £m | E23: =SUMIFS(F_Inputs_adjusted!R:R,F_Inputs_adjusted!$A:$A,$A23,F_Inputs_adjusted!$B:$B,$B23) -> 0 | F23: =SUMIFS(F_Inputs_adjusted!S:S,F_Inputs_adjusted!$A:$A,$A23,F_Inputs_adjusted!$B:$B,$B23) -> 0 | G23: =SUMIFS(F_Inputs_adjusted!T:T,F_Inputs_adjusted!$A:$A,$A23,F_Inputs_adjusted!$B:$B,$B23) -> 0 | H23: =SUMIFS(F_Inputs_adjusted!U:U,F_Inputs_adjusted!$A:$A,$A23,F_Inputs_adjusted!$B:$B,$B23) -> 0 | I23: =SUMIFS(F_Inputs_adjusted!V:V,F_Inputs_adjusted!$A:$A,$A23,F_Inputs_adjusted!$B:$B,$B23) -> 0 | J23: =SUMIFS(F_Inputs_adjusted!W:W,F_Inputs_adjusted!$A:$A,$A23,F_Inputs_adjusted!$B:$B,$B23) -> 0 | K23: =SUMIFS(F_Inputs_adjusted!X:X,F_Inputs_adjusted!$A:$A,$A23,F_Inputs_adjusted!$B:$B,$B23) -> 0 | L23: =SUMIFS(F_Inputs_adjusted!Y:Y,F_Inputs_adjusted!$A:$A,$A23,F_Inputs_adjusted!$B:$B,$B23) -> 0
A24: =F_Inputs_adjusted!A26 -> WSH | B24: =F_Inputs_adjusted!B26 -> CWW12_050TOT_PR24 | C24: =F_Inputs_adjusted!C26 -> EA/NRW environmental programme wastewater (WINEP/NEP) - Treatment for chemical removal (WINEP/NEP) wastewater opex - Total | D24: =F_Inputs_adjusted!D26 -> £m | E24: =SUMIFS(F_Inputs_adjusted!R:R,F_Inputs_adjusted!$A:$A,$A24,F_Inputs_adjusted!$B:$B,$B24) -> 0 | F24: =SUMIFS(F_Inputs_adjusted!S:S,F_Inputs_adjusted!$A:$A,$A24,F_Inputs_adjusted!$B:$B,$B24) -> 0 | G24: =SUMIFS(F_Inputs_adjusted!T:T,F_Inputs_adjusted!$A:$A,$A24,F_Inputs_adjusted!$B:$B,$B24) -> 0 | H24: =SUMIFS(F_Inputs_adjusted!U:U,F_Inputs_adjusted!$A:$A,$A24,F_Inputs_adjusted!$B:$B,$B24) -> 0 | I24: =SUMIFS(F_Inputs_adjusted!V:V,F_Inputs_adjusted!$A:$A,$A24,F_Inputs_adjusted!$B:$B,$B24) -> 0 | J24: =SUMIFS(F_Inputs_adjusted!W:W,F_Inputs_adjusted!$A:$A,$A24,F_Inputs_adjusted!$B:$B,$B24) -> 0 | K24: =SUMIFS(F_Inputs_adjusted!X:X,F_Inputs_adjusted!$A:$A,$A24,F_Inputs_adjusted!$B:$B,$B24) -> 0 | L24: =SUMIFS(F_Inputs_adjusted!Y:Y,F_Inputs_adjusted!$A:$A,$A24,F_Inputs_adjusted!$B:$B,$B24) -> 0
A25: =F_Inputs_adjusted!A27 -> WSH | B25: =F_Inputs_adjusted!B27 -> CWW12_051TOT_PR24 | C25: =F_Inputs_adjusted!C27 -> EA/NRW environmental programme wastewater (WINEP/NEP) - Treatment for chemical removal (WINEP/NEP) wastewater totex - Total | D25: =F_Inputs_adjusted!D27 -> £m | E25: =SUMIFS(F_Inputs_adjusted!R:R,F_Inputs_adjusted!$A:$A,$A25,F_Inputs_adjusted!$B:$B,$B25) -> 0 | F25: =SUMIFS(F_Inputs_adjusted!S:S,F_Inputs_adjusted!$A:$A,$A25,F_Inputs_adjusted!$B:$B,$B25) -> 0 | G25: =SUMIFS(F_Inputs_adjusted!T:T,F_Inputs_adjusted!$A:$A,$A25,F_Inputs_adjusted!$B:$B,$B25) -> 0 | H25: =SUMIFS(F_Inputs_adjusted!U:U,F_Inputs_adjusted!$A:$A,$A25,F_Inputs_adjusted!$B:$B,$B25) -> 0 | I25: =SUMIFS(F_Inputs_adjusted!V:V,F_Inputs_adjusted!$A:$A,$A25,F_Inputs_adjusted!$B:$B,$B25) -> 0 | J25: =SUMIFS(F_Inputs_adjusted!W:W,F_Inputs_adjusted!$A:$A,$A25,F_Inputs_adjusted!$B:$B,$B25) -> 0 | K25: =SUMIFS(F_Inputs_adjusted!X:X,F_Inputs_adjusted!$A:$A,$A25,F_Inputs_adjusted!$B:$B,$B25) -> 0 | L25: =SUMIFS(F_Inputs_adjusted!Y:Y,F_Inputs_adjusted!$A:$A,$A25,F_Inputs_adjusted!$B:$B,$B25) -> 0
A26: =F_Inputs_adjusted!A28 -> WSH | B26: =F_Inputs_adjusted!B28 -> CWW17_049TOT_PR24 | C26: =F_Inputs_adjusted!C28 -> EA/NRW environmental programme wastewater (WINEP/NEP) - Treatment for chemical removal (WINEP/NEP) wastewater capex - Total | D26: =F_Inputs_adjusted!D28 -> £m | E26: =SUMIFS(F_Inputs_adjusted!R:R,F_Inputs_adjusted!$A:$A,$A26,F_Inputs_adjusted!$B:$B,$B26) -> 0 | F26: =SUMIFS(F_Inputs_adjusted!S:S,F_Inputs_adjusted!$A:$A,$A26,F_Inputs_adjusted!$B:$B,$B26) -> 0 | G26: =SUMIFS(F_Inputs_adjusted!T:T,F_Inputs_adjusted!$A:$A,$A26,F_Inputs_adjusted!$B:$B,$B26) -> 0 | H26: =SUMIFS(F_Inputs_adjusted!U:U,F_Inputs_adjusted!$A:$A,$A26,F_Inputs_adjusted!$B:$B,$B26) -> 0 | I26: =SUMIFS(F_Inputs_adjusted!V:V,F_Inputs_adjusted!$A:$A,$A26,F_Inputs_adjusted!$B:$B,$B26) -> 0 | J26: =SUMIFS(F_Inputs_adjusted!W:W,F_Inputs_adjusted!$A:$A,$A26,F_Inputs_adjusted!$B:$B,$B26) -> 0 | K26: =SUMIFS(F_Inputs_adjusted!X:X,F_Inputs_adjusted!$A:$A,$A26,F_Inputs_adjusted!$B:$B,$B26) -> 0 | L26: =SUMIFS(F_Inputs_adjusted!Y:Y,F_Inputs_adjusted!$A:$A,$A26,F_Inputs_adjusted!$B:$B,$B26) -> 0
A27: =F_Inputs_adjusted!A29 -> WSH | B27: =F_Inputs_adjusted!B29 -> CWW17_050TOT_PR24 | C27: =F_Inputs_adjusted!C29 -> EA/NRW environmental programme wastewater (WINEP/NEP) - Treatment for chemical removal (WINEP/NEP) wastewater opex - Total | D27: =F_Inputs_adjusted!D29 -> £m | E27: =SUMIFS(F_Inputs_adjusted!R:R,F_Inputs_adjusted!$A:$A,$A27,F_Inputs_adjusted!$B:$B,$B27) -> 0 | F27: =SUMIFS(F_Inputs_adjusted!S:S,F_Inputs_adjusted!$A:$A,$A27,F_Inputs_adjusted!$B:$B,$B27) -> 0 | G27: =SUMIFS(F_Inputs_adjusted!T:T,F_Inputs_adjusted!$A:$A,$A27,F_Inputs_adjusted!$B:$B,$B27) -> 0 | H27: =SUMIFS(F_Inputs_adjusted!U:U,F_Inputs_adjusted!$A:$A,$A27,F_Inputs_adjusted!$B:$B,$B27) -> 0 | I27: =SUMIFS(F_Inputs_adjusted!V:V,F_Inputs_adjusted!$A:$A,$A27,F_Inputs_adjusted!$B:$B,$B27) -> 0 | J27: =SUMIFS(F_Inputs_adjusted!W:W,F_Inputs_adjusted!$A:$A,$A27,F_Inputs_adjusted!$B:$B,$B27) -> 0 | K27: =SUMIFS(F_Inputs_adjusted!X:X,F_Inputs_adjusted!$A:$A,$A27,F_Inputs_adjusted!$B:$B,$B27) -> 0 | L27: =SUMIFS(F_Inputs_adjusted!Y:Y,F_Inputs_adjusted!$A:$A,$A27,F_Inputs_adjusted!$B:$B,$B27) -> 0
A28: =F_Inputs_adjusted!A30 -> WSH | B28: =F_Inputs_adjusted!B30 -> CWW17_051TOT_PR24 | C28: =F_Inputs_adjusted!C30 -> EA/NRW environmental programme wastewater (WINEP/NEP) - Treatment for chemical removal (WINEP/NEP) wastewater totex - Total | D28: =F_Inputs_adjusted!D30 -> £m | E28: =SUMIFS(F_Inputs_adjusted!R:R,F_Inputs_adjusted!$A:$A,$A28,F_Inputs_adjusted!$B:$B,$B28) -> 0 | F28: =SUMIFS(F_Inputs_adjusted!S:S,F_Inputs_adjusted!$A:$A,$A28,F_Inputs_adjusted!$B:$B,$B28) -> 0 | G28: =SUMIFS(F_Inputs_adjusted!T:T,F_Inputs_adjusted!$A:$A,$A28,F_Inputs_adjusted!$B:$B,$B28) -> 0 | H28: =SUMIFS(F_Inputs_adjusted!U:U,F_Inputs_adjusted!$A:$A,$A28,F_Inputs_adjusted!$B:$B,$B28) -> 0 | I28: =SUMIFS(F_Inputs_adjusted!V:V,F_Inputs_adjusted!$A:$A,$A28,F_Inputs_adjusted!$B:$B,$B28) -> 0 | J28: =SUMIFS(F_Inputs_adjusted!W:W,F_Inputs_adjusted!$A:$A,$A28,F_Inputs_adjusted!$B:$B,$B28) -> 0 | K28: =SUMIFS(F_Inputs_adjusted!X:X,F_Inputs_adjusted!$A:$A,$A28,F_Inputs_adjusted!$B:$B,$B28) -> 0 | L28: =SUMIFS(F_Inputs_adjusted!Y:Y,F_Inputs_adjusted!$A:$A,$A28,F_Inputs_adjusted!$B:$B,$B28) -> 0
A29: =F_Inputs_adjusted!A31 -> WSH | B29: =F_Inputs_adjusted!B31 -> S4031_PR24 | C29: =F_Inputs_adjusted!C31 -> Sewage treatment data - Current population equivalent served by STWs with tightened/new permits for chemicals / hazardous substances | D29: =F_Inputs_adjusted!D31 -> 000s | E29: =SUMIFS(F_Inputs_adjusted!R:R,F_Inputs_adjusted!$A:$A,$A29,F_Inputs_adjusted!$B:$B,$B29) -> 0 | F29: =SUMIFS(F_Inputs_adjusted!S:S,F_Inputs_adjusted!$A:$A,$A29,F_Inputs_adjusted!$B:$B,$B29) -> 0 | G29: =SUMIFS(F_Inputs_adjusted!T:T,F_Inputs_adjusted!$A:$A,$A29,F_Inputs_adjusted!$B:$B,$B29) -> 0 | H29: =SUMIFS(F_Inputs_adjusted!U:U,F_Inputs_adjusted!$A:$A,$A29,F_Inputs_adjusted!$B:$B,$B29) -> 0 | I29: =SUMIFS(F_Inputs_adjusted!V:V,F_Inputs_adjusted!$A:$A,$A29,F_Inputs_adjusted!$B:$B,$B29) -> 0 | J29: =SUMIFS(F_Inputs_adjusted!W:W,F_Inputs_adjusted!$A:$A,$A29,F_Inputs_adjusted!$B:$B,$B29) -> 0 | K29: =SUMIFS(F_Inputs_adjusted!X:X,F_Inputs_adjusted!$A:$A,$A29,F_Inputs_adjusted!$B:$B,$B29) -> 0 | L29: =SUMIFS(F_Inputs_adjusted!Y:Y,F_Inputs_adjusted!$A:$A,$A29,F_Inputs_adjusted!$B:$B,$B29) -> 0
A30: =F_Inputs_adjusted!A32 -> WSH | B30: =F_Inputs_adjusted!B32 -> CWW20A_S4031_PR24 | C30: =F_Inputs_adjusted!C32 -> Sewage treatment data - Current population equivalent served by STWs with tightened/new permits for chemicals / hazardous substances | D30: =F_Inputs_adjusted!D32 -> 000s | E30: =SUMIFS(F_Inputs_adjusted!R:R,F_Inputs_adjusted!$A:$A,$A30,F_Inputs_adjusted!$B:$B,$B30) -> 0 | F30: =SUMIFS(F_Inputs_adjusted!S:S,F_Inputs_adjusted!$A:$A,$A30,F_Inputs_adjusted!$B:$B,$B30) -> 0 | G30: =SUMIFS(F_Inputs_adjusted!T:T,F_Inputs_adjusted!$A:$A,$A30,F_Inputs_adjusted!$B:$B,$B30) -> 0 | H30: =SUMIFS(F_Inputs_adjusted!U:U,F_Inputs_adjusted!$A:$A,$A30,F_Inputs_adjusted!$B:$B,$B30) -> 0 | I30: =SUMIFS(F_Inputs_adjusted!V:V,F_Inputs_adjusted!$A:$A,$A30,F_Inputs_adjusted!$B:$B,$B30) -> 0 | J30: =SUMIFS(F_Inputs_adjusted!W:W,F_Inputs_adjusted!$A:$A,$A30,F_Inputs_adjusted!$B:$B,$B30) -> 0 | K30: =SUMIFS(F_Inputs_adjusted!X:X,F_Inputs_adjusted!$A:$A,$A30,F_Inputs_adjusted!$B:$B,$B30) -> 0 | L30: =SUMIFS(F_Inputs_adjusted!Y:Y,F_Inputs_adjusted!$A:$A,$A30,F_Inputs_adjusted!$B:$B,$B30) -> 0
A31: =F_Inputs_adjusted!A33 -> WSH | B31: =F_Inputs_adjusted!B33 -> CWW20_026_PR24 | C31: =F_Inputs_adjusted!C33 -> Sewage treatment data - Total number of schemes with tightened/new chemicals/hazardous substances permits | D31: =F_Inputs_adjusted!D33 -> nr | E31: =SUMIFS(F_Inputs_adjusted!R:R,F_Inputs_adjusted!$A:$A,$A31,F_Inputs_adjusted!$B:$B,$B31) -> 0 | F31: =SUMIFS(F_Inputs_adjusted!S:S,F_Inputs_adjusted!$A:$A,$A31,F_Inputs_adjusted!$B:$B,$B31) -> 0 | G31: =SUMIFS(F_Inputs_adjusted!T:T,F_Inputs_adjusted!$A:$A,$A31,F_Inputs_adjusted!$B:$B,$B31) -> 0 | H31: =SUMIFS(F_Inputs_adjusted!U:U,F_Inputs_adjusted!$A:$A,$A31,F_Inputs_adjusted!$B:$B,$B31) -> 0 | I31: =SUMIFS(F_Inputs_adjusted!V:V,F_Inputs_adjusted!$A:$A,$A31,F_Inputs_adjusted!$B:$B,$B31) -> 0 | J31: =SUMIFS(F_Inputs_adjusted!W:W,F_Inputs_adjusted!$A:$A,$A31,F_Inputs_adjusted!$B:$B,$B31) -> 0 | K31: =SUMIFS(F_Inputs_adjusted!X:X,F_Inputs_adjusted!$A:$A,$A31,F_Inputs_adjusted!$B:$B,$B31) -> 0 | L31: =SUMIFS(F_Inputs_adjusted!Y:Y,F_Inputs_adjusted!$A:$A,$A31,F_Inputs_adjusted!$B:$B,$B31) -> 0
A32: =F_Inputs_adjusted!A34 -> WSH | B32: =F_Inputs_adjusted!B34 -> CWW20A_026_PR24 | C32: =F_Inputs_adjusted!C34 -> Sewage treatment data - Total number of schemes with tightened/new chemicals/hazardous substances permits | D32: =F_Inputs_adjusted!D34 -> nr | E32: =SUMIFS(F_Inputs_adjusted!R:R,F_Inputs_adjusted!$A:$A,$A32,F_Inputs_adjusted!$B:$B,$B32) -> 0 | F32: =SUMIFS(F_Inputs_adjusted!S:S,F_Inputs_adjusted!$A:$A,$A32,F_Inputs_adjusted!$B:$B,$B32) -> 0 | G32: =SUMIFS(F_Inputs_adjusted!T:T,F_Inputs_adjusted!$A:$A,$A32,F_Inputs_adjusted!$B:$B,$B32) -> 0 | H32: =SUMIFS(F_Inputs_adjusted!U:U,F_Inputs_adjusted!$A:$A,$A32,F_Inputs_adjusted!$B:$B,$B32) -> 0 | I32: =SUMIFS(F_Inputs_adjusted!V:V,F_Inputs_adjusted!$A:$A,$A32,F_Inputs_adjusted!$B:$B,$B32) -> 0 | J32: =SUMIFS(F_Inputs_adjusted!W:W,F_Inputs_adjusted!$A:$A,$A32,F_Inputs_adjusted!$B:$B,$B32) -> 0 | K32: =SUMIFS(F_Inputs_adjusted!X:X,F_Inputs_adjusted!$A:$A,$A32,F_Inputs_adjusted!$B:$B,$B32) -> 0 | L32: =SUMIFS(F_Inputs_adjusted!Y:Y,F_Inputs_adjusted!$A:$A,$A32,F_Inputs_adjusted!$B:$B,$B32) -> 0
A33: =F_Inputs_adjusted!A35 -> WSH | B33: =F_Inputs_adjusted!B35 -> PR24_E_WW051_TOTAL | C33: =F_Inputs_adjusted!C35 -> PR24 BP EA/NRW environmental programme wastewater (WINEP/NEP) - Treatment for chemical removal (WINEP/NEP) wastewater totex - Total inc. accelerated & transition costs | D33: =F_Inputs_adjusted!D35 -> £m | E33: =SUMIFS(F_Inputs_adjusted!R:R,F_Inputs_adjusted!$A:$A,$A33,F_Inputs_adjusted!$B:$B,$B33) -> 0 | F33: =SUMIFS(F_Inputs_adjusted!S:S,F_Inputs_adjusted!$A:$A,$A33,F_Inputs_adjusted!$B:$B,$B33) -> 0 | G33: =SUMIFS(F_Inputs_adjusted!T:T,F_Inputs_adjusted!$A:$A,$A33,F_Inputs_adjusted!$B:$B,$B33) -> 0 | H33: =SUMIFS(F_Inputs_adjusted!U:U,F_Inputs_adjusted!$A:$A,$A33,F_Inputs_adjusted!$B:$B,$B33) -> 0 | I33: =SUMIFS(F_Inputs_adjusted!V:V,F_Inputs_adjusted!$A:$A,$A33,F_Inputs_adjusted!$B:$B,$B33) -> 0 | J33: =SUMIFS(F_Inputs_adjusted!W:W,F_Inputs_adjusted!$A:$A,$A33,F_Inputs_adjusted!$B:$B,$B33) -> 0 | K33: =SUMIFS(F_Inputs_adjusted!X:X,F_Inputs_adjusted!$A:$A,$A33,F_Inputs_adjusted!$B:$B,$B33) -> 0 | L33: =SUMIFS(F_Inputs_adjusted!Y:Y,F_Inputs_adjusted!$A:$A,$A33,F_Inputs_adjusted!$B:$B,$B33) -> 0
A34: =F_Inputs_adjusted!A36 -> WSH | B34: =F_Inputs_adjusted!B36 -> PR24_NETTOTEX_WASTE | C34: =F_Inputs_adjusted!C36 -> PR24 BP Net totex - Total inc. accelerated & transition costs | D34: =F_Inputs_adjusted!D36 -> £m | E34: =SUMIFS(F_Inputs_adjusted!R:R,F_Inputs_adjusted!$A:$A,$A34,F_Inputs_adjusted!$B:$B,$B34) -> 0 | F34: =SUMIFS(F_Inputs_adjusted!S:S,F_Inputs_adjusted!$A:$A,$A34,F_Inputs_adjusted!$B:$B,$B34) -> 0 | G34: =SUMIFS(F_Inputs_adjusted!T:T,F_Inputs_adjusted!$A:$A,$A34,F_Inputs_adjusted!$B:$B,$B34) -> 0 | H34: =SUMIFS(F_Inputs_adjusted!U:U,F_Inputs_adjusted!$A:$A,$A34,F_Inputs_adjusted!$B:$B,$B34) -> 0 | I34: =SUMIFS(F_Inputs_adjusted!V:V,F_Inputs_adjusted!$A:$A,$A34,F_Inputs_adjusted!$B:$B,$B34) -> 0 | J34: =SUMIFS(F_Inputs_adjusted!W:W,F_Inputs_adjusted!$A:$A,$A34,F_Inputs_adjusted!$B:$B,$B34) -> 0 | K34: =SUMIFS(F_Inputs_adjusted!X:X,F_Inputs_adjusted!$A:$A,$A34,F_Inputs_adjusted!$B:$B,$B34) -> 0 | L34: =SUMIFS(F_Inputs_adjusted!Y:Y,F_Inputs_adjusted!$A:$A,$A34,F_Inputs_adjusted!$B:$B,$B34) -> 3318.169
A35: =F_Inputs_adjusted!A37 -> HDD | B35: =F_Inputs_adjusted!B37 -> CWW3_049TOT_PR24 | C35: =F_Inputs_adjusted!C37 -> EA/NRW environmental programme wastewater (WINEP/NEP) - Treatment for chemical removal (WINEP/NEP) wastewater capex - Total | D35: =F_Inputs_adjusted!D37 -> £m | E35: =SUMIFS(F_Inputs_adjusted!R:R,F_Inputs_adjusted!$A:$A,$A35,F_Inputs_adjusted!$B:$B,$B35) -> 0 | F35: =SUMIFS(F_Inputs_adjusted!S:S,F_Inputs_adjusted!$A:$A,$A35,F_Inputs_adjusted!$B:$B,$B35) -> 0 | G35: =SUMIFS(F_Inputs_adjusted!T:T,F_Inputs_adjusted!$A:$A,$A35,F_Inputs_adjusted!$B:$B,$B35) -> 0 | H35: =SUMIFS(F_Inputs_adjusted!U:U,F_Inputs_adjusted!$A:$A,$A35,F_Inputs_adjusted!$B:$B,$B35) -> 0 | I35: =SUMIFS(F_Inputs_adjusted!V:V,F_Inputs_adjusted!$A:$A,$A35,F_Inputs_adjusted!$B:$B,$B35) -> 0 | J35: =SUMIFS(F_Inputs_adjusted!W:W,F_Inputs_adjusted!$A:$A,$A35,F_Inputs_adjusted!$B:$B,$B35) -> 0 | K35: =SUMIFS(F_Inputs_adjusted!X:X,F_Inputs_adjusted!$A:$A,$A35,F_Inputs_adjusted!$B:$B,$B35) -> 0 | L35: =SUMIFS(F_Inputs_adjusted!Y:Y,F_Inputs_adjusted!$A:$A,$A35,F_Inputs_adjusted!$B:$B,$B35) -> 0
A36: =F_Inputs_adjusted!A38 -> HDD | B36: =F_Inputs_adjusted!B38 -> CWW3_050TOT_PR24 | C36: =F_Inputs_adjusted!C38 -> EA/NRW environmental programme wastewater (WINEP/NEP) - Treatment for chemical removal (WINEP/NEP) wastewater opex - Total | D36: =F_Inputs_adjusted!D38 -> £m | E36: =SUMIFS(F_Inputs_adjusted!R:R,F_Inputs_adjusted!$A:$A,$A36,F_Inputs_adjusted!$B:$B,$B36) -> 0 | F36: =SUMIFS(F_Inputs_adjusted!S:S,F_Inputs_adjusted!$A:$A,$A36,F_Inputs_adjusted!$B:$B,$B36) -> 0 | G36: =SUMIFS(F_Inputs_adjusted!T:T,F_Inputs_adjusted!$A:$A,$A36,F_Inputs_adjusted!$B:$B,$B36) -> 0 | H36: =SUMIFS(F_Inputs_adjusted!U:U,F_Inputs_adjusted!$A:$A,$A36,F_Inputs_adjusted!$B:$B,$B36) -> 0 | I36: =SUMIFS(F_Inputs_adjusted!V:V,F_Inputs_adjusted!$A:$A,$A36,F_Inputs_adjusted!$B:$B,$B36) -> 0 | J36: =SUMIFS(F_Inputs_adjusted!W:W,F_Inputs_adjusted!$A:$A,$A36,F_Inputs_adjusted!$B:$B,$B36) -> 0 | K36: =SUMIFS(F_Inputs_adjusted!X:X,F_Inputs_adjusted!$A:$A,$A36,F_Inputs_adjusted!$B:$B,$B36) -> 0 | L36: =SUMIFS(F_Inputs_adjusted!Y:Y,F_Inputs_adjusted!$A:$A,$A36,F_Inputs_adjusted!$B:$B,$B36) -> 0
A37: =F_Inputs_adjusted!A39 -> HDD | B37: =F_Inputs_adjusted!B39 -> CWW3_051TOT_PR24 | C37: =F_Inputs_adjusted!C39 -> EA/NRW environmental programme wastewater (WINEP/NEP) - Treatment for chemical removal (WINEP/NEP) wastewater totex - Total | D37: =F_Inputs_adjusted!D39 -> £m | E37: =SUMIFS(F_Inputs_adjusted!R:R,F_Inputs_adjusted!$A:$A,$A37,F_Inputs_adjusted!$B:$B,$B37) -> 0 | F37: =SUMIFS(F_Inputs_adjusted!S:S,F_Inputs_adjusted!$A:$A,$A37,F_Inputs_adjusted!$B:$B,$B37) -> 0 | G37: =SUMIFS(F_Inputs_adjusted!T:T,F_Inputs_adjusted!$A:$A,$A37,F_Inputs_adjusted!$B:$B,$B37) -> 0 | H37: =SUMIFS(F_Inputs_adjusted!U:U,F_Inputs_adjusted!$A:$A,$A37,F_Inputs_adjusted!$B:$B,$B37) -> 0 | I37: =SUMIFS(F_Inputs_adjusted!V:V,F_Inputs_adjusted!$A:$A,$A37,F_Inputs_adjusted!$B:$B,$B37) -> 0 | J37: =SUMIFS(F_Inputs_adjusted!W:W,F_Inputs_adjusted!$A:$A,$A37,F_Inputs_adjusted!$B:$B,$B37) -> 0 | K37: =SUMIFS(F_Inputs_adjusted!X:X,F_Inputs_adjusted!$A:$A,$A37,F_Inputs_adjusted!$B:$B,$B37) -> 0 | L37: =SUMIFS(F_Inputs_adjusted!Y:Y,F_Inputs_adjusted!$A:$A,$A37,F_Inputs_adjusted!$B:$B,$B37) -> 0
A38: =F_Inputs_adjusted!A40 -> HDD | B38: =F_Inputs_adjusted!B40 -> CWW12_049TOT_PR24 | C38: =F_Inputs_adjusted!C40 -> EA/NRW environmental programme wastewater (WINEP/NEP) - Treatment for chemical removal (WINEP/NEP) wastewater capex - Total | D38: =F_Inputs_adjusted!D40 -> £m | E38: =SUMIFS(F_Inputs_adjusted!R:R,F_Inputs_adjusted!$A:$A,$A38,F_Inputs_adjusted!$B:$B,$B38) -> 0 | F38: =SUMIFS(F_Inputs_adjusted!S:S,F_Inputs_adjusted!$A:$A,$A38,F_Inputs_adjusted!$B:$B,$B38) -> 0 | G38: =SUMIFS(F_Inputs_adjusted!T:T,F_Inputs_adjusted!$A:$A,$A38,F_Inputs_adjusted!$B:$B,$B38) -> 0 | H38: =SUMIFS(F_Inputs_adjusted!U:U,F_Inputs_adjusted!$A:$A,$A38,F_Inputs_adjusted!$B:$B,$B38) -> 0 | I38: =SUMIFS(F_Inputs_adjusted!V:V,F_Inputs_adjusted!$A:$A,$A38,F_Inputs_adjusted!$B:$B,$B38) -> 0 | J38: =SUMIFS(F_Inputs_adjusted!W:W,F_Inputs_adjusted!$A:$A,$A38,F_Inputs_adjusted!$B:$B,$B38) -> 0 | K38: =SUMIFS(F_Inputs_adjusted!X:X,F_Inputs_adjusted!$A:$A,$A38,F_Inputs_adjusted!$B:$B,$B38) -> 0 | L38: =SUMIFS(F_Inputs_adjusted!Y:Y,F_Inputs_adjusted!$A:$A,$A38,F_Inputs_adjusted!$B:$B,$B38) -> 0
A39: =F_Inputs_adjusted!A41 -> HDD | B39: =F_Inputs_adjusted!B41 -> CWW12_050TOT_PR24 | C39: =F_Inputs_adjusted!C41 -> EA/NRW environmental programme wastewater (WINEP/NEP) - Treatment for chemical removal (WINEP/NEP) wastewater opex - Total | D39: =F_Inputs_adjusted!D41 -> £m | E39: =SUMIFS(F_Inputs_adjusted!R:R,F_Inputs_adjusted!$A:$A,$A39,F_Inputs_adjusted!$B:$B,$B39) -> 0 | F39: =SUMIFS(F_Inputs_adjusted!S:S,F_Inputs_adjusted!$A:$A,$A39,F_Inputs_adjusted!$B:$B,$B39) -> 0 | G39: =SUMIFS(F_Inputs_adjusted!T:T,F_Inputs_adjusted!$A:$A,$A39,F_Inputs_adjusted!$B:$B,$B39) -> 0 | H39: =SUMIFS(F_Inputs_adjusted!U:U,F_Inputs_adjusted!$A:$A,$A39,F_Inputs_adjusted!$B:$B,$B39) -> 0 | I39: =SUMIFS(F_Inputs_adjusted!V:V,F_Inputs_adjusted!$A:$A,$A39,F_Inputs_adjusted!$B:$B,$B39) -> 0 | J39: =SUMIFS(F_Inputs_adjusted!W:W,F_Inputs_adjusted!$A:$A,$A39,F_Inputs_adjusted!$B:$B,$B39) -> 0 | K39: =SUMIFS(F_Inputs_adjusted!X:X,F_Inputs_adjusted!$A:$A,$A39,F_Inputs_adjusted!$B:$B,$B39) -> 0 | L39: =SUMIFS(F_Inputs_adjusted!Y:Y,F_Inputs_adjusted!$A:$A,$A39,F_Inputs_adjusted!$B:$B,$B39) -> 0
A40: =F_Inputs_adjusted!A42 -> HDD | B40: =F_Inputs_adjusted!B42 -> CWW12_051TOT_PR24 | C40: =F_Inputs_adjusted!C42 -> EA/NRW environmental programme wastewater (WINEP/NEP) - Treatment for chemical removal (WINEP/NEP) wastewater totex - Total | D40: =F_Inputs_adjusted!D42 -> £m | E40: =SUMIFS(F_Inputs_adjusted!R:R,F_Inputs_adjusted!$A:$A,$A40,F_Inputs_adjusted!$B:$B,$B40) -> 0 | F40: =SUMIFS(F_Inputs_adjusted!S:S,F_Inputs_adjusted!$A:$A,$A40,F_Inputs_adjusted!$B:$B,$B40) -> 0 | G40: =SUMIFS(F_Inputs_adjusted!T:T,F_Inputs_adjusted!$A:$A,$A40,F_Inputs_adjusted!$B:$B,$B40) -> 0 | H40: =SUMIFS(F_Inputs_adjusted!U:U,F_Inputs_adjusted!$A:$A,$A40,F_Inputs_adjusted!$B:$B,$B40) -> 0 | I40: =SUMIFS(F_Inputs_adjusted!V:V,F_Inputs_adjusted!$A:$A,$A40,F_Inputs_adjusted!$B:$B,$B40) -> 0 | J40: =SUMIFS(F_Inputs_adjusted!W:W,F_Inputs_adjusted!$A:$A,$A40,F_Inputs_adjusted!$B:$B,$B40) -> 0 | K40: =SUMIFS(F_Inputs_adjusted!X:X,F_Inputs_adjusted!$A:$A,$A40,F_Inputs_adjusted!$B:$B,$B40) -> 0 | L40: =SUMIFS(F_Inputs_adjusted!Y:Y,F_Inputs_adjusted!$A:$A,$A40,F_Inputs_adjusted!$B:$B,$B40) -> 0
A41: =F_Inputs_adjusted!A43 -> HDD | B41: =F_Inputs_adjusted!B43 -> CWW17_049TOT_PR24 | C41: =F_Inputs_adjusted!C43 -> EA/NRW environmental programme wastewater (WINEP/NEP) - Treatment for chemical removal (WINEP/NEP) wastewater capex - Total | D41: =F_Inputs_adjusted!D43 -> £m | E41: =SUMIFS(F_Inputs_adjusted!R:R,F_Inputs_adjusted!$A:$A,$A41,F_Inputs_adjusted!$B:$B,$B41) -> 0 | F41: =SUMIFS(F_Inputs_adjusted!S:S,F_Inputs_adjusted!$A:$A,$A41,F_Inputs_adjusted!$B:$B,$B41) -> 0 | G41: =SUMIFS(F_Inputs_adjusted!T:T,F_Inputs_adjusted!$A:$A,$A41,F_Inputs_adjusted!$B:$B,$B41) -> 0 | H41: =SUMIFS(F_Inputs_adjusted!U:U,F_Inputs_adjusted!$A:$A,$A41,F_Inputs_adjusted!$B:$B,$B41) -> 0 | I41: =SUMIFS(F_Inputs_adjusted!V:V,F_Inputs_adjusted!$A:$A,$A41,F_Inputs_adjusted!$B:$B,$B41) -> 0 | J41: =SUMIFS(F_Inputs_adjusted!W:W,F_Inputs_adjusted!$A:$A,$A41,F_Inputs_adjusted!$B:$B,$B41) -> 0 | K41: =SUMIFS(F_Inputs_adjusted!X:X,F_Inputs_adjusted!$A:$A,$A41,F_Inputs_adjusted!$B:$B,$B41) -> 0 | L41: =SUMIFS(F_Inputs_adjusted!Y:Y,F_Inputs_adjusted!$A:$A,$A41,F_Inputs_adjusted!$B:$B,$B41) -> 0
A42: =F_Inputs_adjusted!A44 -> HDD | B42: =F_Inputs_adjusted!B44 -> CWW17_050TOT_PR24 | C42: =F_Inputs_adjusted!C44 -> EA/NRW environmental programme wastewater (WINEP/NEP) - Treatment for chemical removal (WINEP/NEP) wastewater opex - Total | D42: =F_Inputs_adjusted!D44 -> £m | E42: =SUMIFS(F_Inputs_adjusted!R:R,F_Inputs_adjusted!$A:$A,$A42,F_Inputs_adjusted!$B:$B,$B42) -> 0 | F42: =SUMIFS(F_Inputs_adjusted!S:S,F_Inputs_adjusted!$A:$A,$A42,F_Inputs_adjusted!$B:$B,$B42) -> 0 | G42: =SUMIFS(F_Inputs_adjusted!T:T,F_Inputs_adjusted!$A:$A,$A42,F_Inputs_adjusted!$B:$B,$B42) -> 0 | H42: =SUMIFS(F_Inputs_adjusted!U:U,F_Inputs_adjusted!$A:$A,$A42,F_Inputs_adjusted!$B:$B,$B42) -> 0 | I42: =SUMIFS(F_Inputs_adjusted!V:V,F_Inputs_adjusted!$A:$A,$A42,F_Inputs_adjusted!$B:$B,$B42) -> 0 | J42: =SUMIFS(F_Inputs_adjusted!W:W,F_Inputs_adjusted!$A:$A,$A42,F_Inputs_adjusted!$B:$B,$B42) -> 0 | K42: =SUMIFS(F_Inputs_adjusted!X:X,F_Inputs_adjusted!$A:$A,$A42,F_Inputs_adjusted!$B:$B,$B42) -> 0 | L42: =SUMIFS(F_Inputs_adjusted!Y:Y,F_Inputs_adjusted!$A:$A,$A42,F_Inputs_adjusted!$B:$B,$B42) -> 0
A43: =F_Inputs_adjusted!A45 -> HDD | B43: =F_Inputs_adjusted!B45 -> CWW17_051TOT_PR24 | C43: =F_Inputs_adjusted!C45 -> EA/NRW environmental programme wastewater (WINEP/NEP) - Treatment for chemical removal (WINEP/NEP) wastewater totex - Total | D43: =F_Inputs_adjusted!D45 -> £m | E43: =SUMIFS(F_Inputs_adjusted!R:R,F_Inputs_adjusted!$A:$A,$A43,F_Inputs_adjusted!$B:$B,$B43) -> 0 | F43: =SUMIFS(F_Inputs_adjusted!S:S,F_Inputs_adjusted!$A:$A,$A43,F_Inputs_adjusted!$B:$B,$B43) -> 0 | G43: =SUMIFS(F_Inputs_adjusted!T:T,F_Inputs_adjusted!$A:$A,$A43,F_Inputs_adjusted!$B:$B,$B43) -> 0 | H43: =SUMIFS(F_Inputs_adjusted!U:U,F_Inputs_adjusted!$A:$A,$A43,F_Inputs_adjusted!$B:$B,$B43) -> 0 | I43: =SUMIFS(F_Inputs_adjusted!V:V,F_Inputs_adjusted!$A:$A,$A43,F_Inputs_adjusted!$B:$B,$B43) -> 0 | J43: =SUMIFS(F_Inputs_adjusted!W:W,F_Inputs_adjusted!$A:$A,$A43,F_Inputs_adjusted!$B:$B,$B43) -> 0 | K43: =SUMIFS(F_Inputs_adjusted!X:X,F_Inputs_adjusted!$A:$A,$A43,F_Inputs_adjusted!$B:$B,$B43) -> 0 | L43: =SUMIFS(F_Inputs_adjusted!Y:Y,F_Inputs_adjusted!$A:$A,$A43,F_Inputs_adjusted!$B:$B,$B43) -> 0
A44: =F_Inputs_adjusted!A46 -> HDD | B44: =F_Inputs_adjusted!B46 -> S4031_PR24 | C44: =F_Inputs_adjusted!C46 -> Sewage treatment data - Current population equivalent served by STWs with tightened/new permits for chemicals / hazardous substances | D44: =F_Inputs_adjusted!D46 -> 000s | E44: =SUMIFS(F_Inputs_adjusted!R:R,F_Inputs_adjusted!$A:$A,$A44,F_Inputs_adjusted!$B:$B,$B44) -> 0 | F44: =SUMIFS(F_Inputs_adjusted!S:S,F_Inputs_adjusted!$A:$A,$A44,F_Inputs_adjusted!$B:$B,$B44) -> 0 | G44: =SUMIFS(F_Inputs_adjusted!T:T,F_Inputs_adjusted!$A:$A,$A44,F_Inputs_adjusted!$B:$B,$B44) -> 0 | H44: =SUMIFS(F_Inputs_adjusted!U:U,F_Inputs_adjusted!$A:$A,$A44,F_Inputs_adjusted!$B:$B,$B44) -> 0 | I44: =SUMIFS(F_Inputs_adjusted!V:V,F_Inputs_adjusted!$A:$A,$A44,F_Inputs_adjusted!$B:$B,$B44) -> 0 | J44: =SUMIFS(F_Inputs_adjusted!W:W,F_Inputs_adjusted!$A:$A,$A44,F_Inputs_adjusted!$B:$B,$B44) -> 0 | K44: =SUMIFS(F_Inputs_adjusted!X:X,F_Inputs_adjusted!$A:$A,$A44,F_Inputs_adjusted!$B:$B,$B44) -> 0 | L44: =SUMIFS(F_Inputs_adjusted!Y:Y,F_Inputs_adjusted!$A:$A,$A44,F_Inputs_adjusted!$B:$B,$B44) -> 0
A45: =F_Inputs_adjusted!A47 -> HDD | B45: =F_Inputs_adjusted!B47 -> CWW20A_S4031_PR24 | C45: =F_Inputs_adjusted!C47 -> Sewage treatment data - Current population equivalent served by STWs with tightened/new permits for chemicals / hazardous substances | D45: =F_Inputs_adjusted!D47 -> 000s | E45: =SUMIFS(F_Inputs_adjusted!R:R,F_Inputs_adjusted!$A:$A,$A45,F_Inputs_adjusted!$B:$B,$B45) -> 0 | F45: =SUMIFS(F_Inputs_adjusted!S:S,F_Inputs_adjusted!$A:$A,$A45,F_Inputs_adjusted!$B:$B,$B45) -> 0 | G45: =SUMIFS(F_Inputs_adjusted!T:T,F_Inputs_adjusted!$A:$A,$A45,F_Inputs_adjusted!$B:$B,$B45) -> 0 | H45: =SUMIFS(F_Inputs_adjusted!U:U,F_Inputs_adjusted!$A:$A,$A45,F_Inputs_adjusted!$B:$B,$B45) -> 0 | I45: =SUMIFS(F_Inputs_adjusted!V:V,F_Inputs_adjusted!$A:$A,$A45,F_Inputs_adjusted!$B:$B,$B45) -> 0 | J45: =SUMIFS(F_Inputs_adjusted!W:W,F_Inputs_adjusted!$A:$A,$A45,F_Inputs_adjusted!$B:$B,$B45) -> 0 | K45: =SUMIFS(F_Inputs_adjusted!X:X,F_Inputs_adjusted!$A:$A,$A45,F_Inputs_adjusted!$B:$B,$B45) -> 0 | L45: =SUMIFS(F_Inputs_adjusted!Y:Y,F_Inputs_adjusted!$A:$A,$A45,F_Inputs_adjusted!$B:$B,$B45) -> 0
A46: =F_Inputs_adjusted!A48 -> HDD | B46: =F_Inputs_adjusted!B48 -> CWW20_026_PR24 | C46: =F_Inputs_adjusted!C48 -> Sewage treatment data - Total number of schemes with tightened/new chemicals/hazardous substances permits | D46: =F_Inputs_adjusted!D48 -> nr | E46: =SUMIFS(F_Inputs_adjusted!R:R,F_Inputs_adjusted!$A:$A,$A46,F_Inputs_adjusted!$B:$B,$B46) -> 0 | F46: =SUMIFS(F_Inputs_adjusted!S:S,F_Inputs_adjusted!$A:$A,$A46,F_Inputs_adjusted!$B:$B,$B46) -> 0 | G46: =SUMIFS(F_Inputs_adjusted!T:T,F_Inputs_adjusted!$A:$A,$A46,F_Inputs_adjusted!$B:$B,$B46) -> 0 | H46: =SUMIFS(F_Inputs_adjusted!U:U,F_Inputs_adjusted!$A:$A,$A46,F_Inputs_adjusted!$B:$B,$B46) -> 0 | I46: =SUMIFS(F_Inputs_adjusted!V:V,F_Inputs_adjusted!$A:$A,$A46,F_Inputs_adjusted!$B:$B,$B46) -> 0 | J46: =SUMIFS(F_Inputs_adjusted!W:W,F_Inputs_adjusted!$A:$A,$A46,F_Inputs_adjusted!$B:$B,$B46) -> 0 | K46: =SUMIFS(F_Inputs_adjusted!X:X,F_Inputs_adjusted!$A:$A,$A46,F_Inputs_adjusted!$B:$B,$B46) -> 0 | L46: =SUMIFS(F_Inputs_adjusted!Y:Y,F_Inputs_adjusted!$A:$A,$A46,F_Inputs_adjusted!$B:$B,$B46) -> 0
A47: =F_Inputs_adjusted!A49 -> HDD | B47: =F_Inputs_adjusted!B49 -> CWW20A_026_PR24 | C47: =F_Inputs_adjusted!C49 -> Sewage treatment data - Total number of schemes with tightened/new chemicals/hazardous substances permits | D47: =F_Inputs_adjusted!D49 -> nr | E47: =SUMIFS(F_Inputs_adjusted!R:R,F_Inputs_adjusted!$A:$A,$A47,F_Inputs_adjusted!$B:$B,$B47) -> 0 | F47: =SUMIFS(F_Inputs_adjusted!S:S,F_Inputs_adjusted!$A:$A,$A47,F_Inputs_adjusted!$B:$B,$B47) -> 0 | G47: =SUMIFS(F_Inputs_adjusted!T:T,F_Inputs_adjusted!$A:$A,$A47,F_Inputs_adjusted!$B:$B,$B47) -> 0 | H47: =SUMIFS(F_Inputs_adjusted!U:U,F_Inputs_adjusted!$A:$A,$A47,F_Inputs_adjusted!$B:$B,$B47) -> 0 | I47: =SUMIFS(F_Inputs_adjusted!V:V,F_Inputs_adjusted!$A:$A,$A47,F_Inputs_adjusted!$B:$B,$B47) -> 0 | J47: =SUMIFS(F_Inputs_adjusted!W:W,F_Inputs_adjusted!$A:$A,$A47,F_Inputs_adjusted!$B:$B,$B47) -> 0 | K47: =SUMIFS(F_Inputs_adjusted!X:X,F_Inputs_adjusted!$A:$A,$A47,F_Inputs_adjusted!$B:$B,$B47) -> 0 | L47: =SUMIFS(F_Inputs_adjusted!Y:Y,F_Inputs_adjusted!$A:$A,$A47,F_Inputs_adjusted!$B:$B,$B47) -> 0
A48: =F_Inputs_adjusted!A50 -> HDD | B48: =F_Inputs_adjusted!B50 -> PR24_E_WW051_TOTAL | C48: =F_Inputs_adjusted!C50 -> PR24 BP EA/NRW environmental programme wastewater (WINEP/NEP) - Treatment for chemical removal (WINEP/NEP) wastewater totex - Total inc. accelerated & transition costs | D48: =F_Inputs_adjusted!D50 -> £m | E48: =SUMIFS(F_Inputs_adjusted!R:R,F_Inputs_adjusted!$A:$A,$A48,F_Inputs_adjusted!$B:$B,$B48) -> 0 | F48: =SUMIFS(F_Inputs_adjusted!S:S,F_Inputs_adjusted!$A:$A,$A48,F_Inputs_adjusted!$B:$B,$B48) -> 0 | G48: =SUMIFS(F_Inputs_adjusted!T:T,F_Inputs_adjusted!$A:$A,$A48,F_Inputs_adjusted!$B:$B,$B48) -> 0 | H48: =SUMIFS(F_Inputs_adjusted!U:U,F_Inputs_adjusted!$A:$A,$A48,F_Inputs_adjusted!$B:$B,$B48) -> 0 | I48: =SUMIFS(F_Inputs_adjusted!V:V,F_Inputs_adjusted!$A:$A,$A48,F_Inputs_adjusted!$B:$B,$B48) -> 0 | J48: =SUMIFS(F_Inputs_adjusted!W:W,F_Inputs_adjusted!$A:$A,$A48,F_Inputs_adjusted!$B:$B,$B48) -> 0 | K48: =SUMIFS(F_Inputs_adjusted!X:X,F_Inputs_adjusted!$A:$A,$A48,F_Inputs_adjusted!$B:$B,$B48) -> 0 | L48: =SUMIFS(F_Inputs_adjusted!Y:Y,F_Inputs_adjusted!$A:$A,$A48,F_Inputs_adjusted!$B:$B,$B48) -> 0
A49: =F_Inputs_adjusted!A51 -> HDD | B49: =F_Inputs_adjusted!B51 -> PR24_NETTOTEX_WASTE | C49: =F_Inputs_adjusted!C51 -> PR24 BP Net totex - Total inc. accelerated & transition costs | D49: =F_Inputs_adjusted!D51 -> £m | E49: =SUMIFS(F_Inputs_adjusted!R:R,F_Inputs_adjusted!$A:$A,$A49,F_Inputs_adjusted!$B:$B,$B49) -> 0 | F49: =SUMIFS(F_Inputs_adjusted!S:S,F_Inputs_adjusted!$A:$A,$A49,F_Inputs_adjusted!$B:$B,$B49) -> 0 | G49: =SUMIFS(F_Inputs_adjusted!T:T,F_Inputs_adjusted!$A:$A,$A49,F_Inputs_adjusted!$B:$B,$B49) -> 0 | H49: =SUMIFS(F_Inputs_adjusted!U:U,F_Inputs_adjusted!$A:$A,$A49,F_Inputs_adjusted!$B:$B,$B49) -> 0 | I49: =SUMIFS(F_Inputs_adjusted!V:V,F_Inputs_adjusted!$A:$A,$A49,F_Inputs_adjusted!$B:$B,$B49) -> 0 | J49: =SUMIFS(F_Inputs_adjusted!W:W,F_Inputs_adjusted!$A:$A,$A49,F_Inputs_adjusted!$B:$B,$B49) -> 0 | K49: =SUMIFS(F_Inputs_adjusted!X:X,F_Inputs_adjusted!$A:$A,$A49,F_Inputs_adjusted!$B:$B,$B49) -> 0 | L49: =SUMIFS(F_Inputs_adjusted!Y:Y,F_Inputs_adjusted!$A:$A,$A49,F_Inputs_adjusted!$B:$B,$B49) -> 61.30281202
A50: =F_Inputs_adjusted!A52 -> NES | B50: =F_Inputs_adjusted!B52 -> CWW3_049TOT_PR24 | C50: =F_Inputs_adjusted!C52 -> EA/NRW environmental programme wastewater (WINEP/NEP) - Treatment for chemical removal (WINEP/NEP) wastewater capex - Total | D50: =F_Inputs_adjusted!D52 -> £m | E50: =SUMIFS(F_Inputs_adjusted!R:R,F_Inputs_adjusted!$A:$A,$A50,F_Inputs_adjusted!$B:$B,$B50) -> 0 | F50: =SUMIFS(F_Inputs_adjusted!S:S,F_Inputs_adjusted!$A:$A,$A50,F_Inputs_adjusted!$B:$B,$B50) -> 0 | G50: =SUMIFS(F_Inputs_adjusted!T:T,F_Inputs_adjusted!$A:$A,$A50,F_Inputs_adjusted!$B:$B,$B50) -> 7.43310287 | H50: =SUMIFS(F_Inputs_adjusted!U:U,F_Inputs_adjusted!$A:$A,$A50,F_Inputs_adjusted!$B:$B,$B50) -> 7.43310287 | I50: =SUMIFS(F_Inputs_adjusted!V:V,F_Inputs_adjusted!$A:$A,$A50,F_Inputs_adjusted!$B:$B,$B50) -> 0.50500508 | J50: =SUMIFS(F_Inputs_adjusted!W:W,F_Inputs_adjusted!$A:$A,$A50,F_Inputs_adjusted!$B:$B,$B50) -> 0.50500508 | K50: =SUMIFS(F_Inputs_adjusted!X:X,F_Inputs_adjusted!$A:$A,$A50,F_Inputs_adjusted!$B:$B,$B50) -> 0.50500508 | L50: =SUMIFS(F_Inputs_adjusted!Y:Y,F_Inputs_adjusted!$A:$A,$A50,F_Inputs_adjusted!$B:$B,$B50) -> 0
A51: =F_Inputs_adjusted!A53 -> NES | B51: =F_Inputs_adjusted!B53 -> CWW3_050TOT_PR24 | C51: =F_Inputs_adjusted!C53 -> EA/NRW environmental programme wastewater (WINEP/NEP) - Treatment for chemical removal (WINEP/NEP) wastewater opex - Total | D51: =F_Inputs_adjusted!D53 -> £m | E51: =SUMIFS(F_Inputs_adjusted!R:R,F_Inputs_adjusted!$A:$A,$A51,F_Inputs_adjusted!$B:$B,$B51) -> 0 | F51: =SUMIFS(F_Inputs_adjusted!S:S,F_Inputs_adjusted!$A:$A,$A51,F_Inputs_adjusted!$B:$B,$B51) -> 0 | G51: =SUMIFS(F_Inputs_adjusted!T:T,F_Inputs_adjusted!$A:$A,$A51,F_Inputs_adjusted!$B:$B,$B51) -> 0.0030528 | H51: =SUMIFS(F_Inputs_adjusted!U:U,F_Inputs_adjusted!$A:$A,$A51,F_Inputs_adjusted!$B:$B,$B51) -> 0.23250168 | I51: =SUMIFS(F_Inputs_adjusted!V:V,F_Inputs_adjusted!$A:$A,$A51,F_Inputs_adjusted!$B:$B,$B51) -> 0.62478345 | J51: =SUMIFS(F_Inputs_adjusted!W:W,F_Inputs_adjusted!$A:$A,$A51,F_Inputs_adjusted!$B:$B,$B51) -> 0.61759545 | K51: =SUMIFS(F_Inputs_adjusted!X:X,F_Inputs_adjusted!$A:$A,$A51,F_Inputs_adjusted!$B:$B,$B51) -> 0.79321885 | L51: =SUMIFS(F_Inputs_adjusted!Y:Y,F_Inputs_adjusted!$A:$A,$A51,F_Inputs_adjusted!$B:$B,$B51) -> 0
A52: =F_Inputs_adjusted!A54 -> NES | B52: =F_Inputs_adjusted!B54 -> CWW3_051TOT_PR24 | C52: =F_Inputs_adjusted!C54 -> EA/NRW environmental programme wastewater (WINEP/NEP) - Treatment for chemical removal (WINEP/NEP) wastewater totex - Total | D52: =F_Inputs_adjusted!D54 -> £m | E52: =SUMIFS(F_Inputs_adjusted!R:R,F_Inputs_adjusted!$A:$A,$A52,F_Inputs_adjusted!$B:$B,$B52) -> 0 | F52: =SUMIFS(F_Inputs_adjusted!S:S,F_Inputs_adjusted!$A:$A,$A52,F_Inputs_adjusted!$B:$B,$B52) -> 0 | G52: =SUMIFS(F_Inputs_adjusted!T:T,F_Inputs_adjusted!$A:$A,$A52,F_Inputs_adjusted!$B:$B,$B52) -> 7.43615567 | H52: =SUMIFS(F_Inputs_adjusted!U:U,F_Inputs_adjusted!$A:$A,$A52,F_Inputs_adjusted!$B:$B,$B52) -> 7.66560455 | I52: =SUMIFS(F_Inputs_adjusted!V:V,F_Inputs_adjusted!$A:$A,$A52,F_Inputs_adjusted!$B:$B,$B52) -> 1.12978853 | J52: =SUMIFS(F_Inputs_adjusted!W:W,F_Inputs_adjusted!$A:$A,$A52,F_Inputs_adjusted!$B:$B,$B52) -> 1.12260053 | K52: =SUMIFS(F_Inputs_adjusted!X:X,F_Inputs_adjusted!$A:$A,$A52,F_Inputs_adjusted!$B:$B,$B52) -> 1.29822393 | L52: =SUMIFS(F_Inputs_adjusted!Y:Y,F_Inputs_adjusted!$A:$A,$A52,F_Inputs_adjusted!$B:$B,$B52) -> 0
A53: =F_Inputs_adjusted!A55 -> NES | B53: =F_Inputs_adjusted!B55 -> CWW12_049TOT_PR24 | C53: =F_Inputs_adjusted!C55 -> EA/NRW environmental programme wastewater (WINEP/NEP) - Treatment for chemical removal (WINEP/NEP) wastewater capex - Total | D53: =F_Inputs_adjusted!D55 -> £m | E53: =SUMIFS(F_Inputs_adjusted!R:R,F_Inputs_adjusted!$A:$A,$A53,F_Inputs_adjusted!$B:$B,$B53) -> 0 | F53: =SUMIFS(F_Inputs_adjusted!S:S,F_Inputs_adjusted!$A:$A,$A53,F_Inputs_adjusted!$B:$B,$B53) -> 6.92809779 | G53: =SUMIFS(F_Inputs_adjusted!T:T,F_Inputs_adjusted!$A:$A,$A53,F_Inputs_adjusted!$B:$B,$B53) -> 0 | H53: =SUMIFS(F_Inputs_adjusted!U:U,F_Inputs_adjusted!$A:$A,$A53,F_Inputs_adjusted!$B:$B,$B53) -> 0 | I53: =SUMIFS(F_Inputs_adjusted!V:V,F_Inputs_adjusted!$A:$A,$A53,F_Inputs_adjusted!$B:$B,$B53) -> 0 | J53: =SUMIFS(F_Inputs_adjusted!W:W,F_Inputs_adjusted!$A:$A,$A53,F_Inputs_adjusted!$B:$B,$B53) -> 0 | K53: =SUMIFS(F_Inputs_adjusted!X:X,F_Inputs_adjusted!$A:$A,$A53,F_Inputs_adjusted!$B:$B,$B53) -> 0 | L53: =SUMIFS(F_Inputs_adjusted!Y:Y,F_Inputs_adjusted!$A:$A,$A53,F_Inputs_adjusted!$B:$B,$B53) -> 0
A54: =F_Inputs_adjusted!A56 -> NES | B54: =F_Inputs_adjusted!B56 -> CWW12_050TOT_PR24 | C54: =F_Inputs_adjusted!C56 -> EA/NRW environmental programme wastewater (WINEP/NEP) - Treatment for chemical removal (WINEP/NEP) wastewater opex - Total | D54: =F_Inputs_adjusted!D56 -> £m | E54: =SUMIFS(F_Inputs_adjusted!R:R,F_Inputs_adjusted!$A:$A,$A54,F_Inputs_adjusted!$B:$B,$B54) -> 0.1707894472 | F54: =SUMIFS(F_Inputs_adjusted!S:S,F_Inputs_adjusted!$A:$A,$A54,F_Inputs_adjusted!$B:$B,$B54) -> 0.1728440448 | G54: =SUMIFS(F_Inputs_adjusted!T:T,F_Inputs_adjusted!$A:$A,$A54,F_Inputs_adjusted!$B:$B,$B54) -> 0 | H54: =SUMIFS(F_Inputs_adjusted!U:U,F_Inputs_adjusted!$A:$A,$A54,F_Inputs_adjusted!$B:$B,$B54) -> 0 | I54: =SUMIFS(F_Inputs_adjusted!V:V,F_Inputs_adjusted!$A:$A,$A54,F_Inputs_adjusted!$B:$B,$B54) -> 0 | J54: =SUMIFS(F_Inputs_adjusted!W:W,F_Inputs_adjusted!$A:$A,$A54,F_Inputs_adjusted!$B:$B,$B54) -> 0 | K54: =SUMIFS(F_Inputs_adjusted!X:X,F_Inputs_adjusted!$A:$A,$A54,F_Inputs_adjusted!$B:$B,$B54) -> 0 | L54: =SUMIFS(F_Inputs_adjusted!Y:Y,F_Inputs_adjusted!$A:$A,$A54,F_Inputs_adjusted!$B:$B,$B54) -> 0
A55: =F_Inputs_adjusted!A57 -> NES | B55: =F_Inputs_adjusted!B57 -> CWW12_051TOT_PR24 | C55: =F_Inputs_adjusted!C57 -> EA/NRW environmental programme wastewater (WINEP/NEP) - Treatment for chemical removal (WINEP/NEP) wastewater totex - Total | D55: =F_Inputs_adjusted!D57 -> £m | E55: =SUMIFS(F_Inputs_adjusted!R:R,F_Inputs_adjusted!$A:$A,$A55,F_Inputs_adjusted!$B:$B,$B55) -> 0.1707894472 | F55: =SUMIFS(F_Inputs_adjusted!S:S,F_Inputs_adjusted!$A:$A,$A55,F_Inputs_adjusted!$B:$B,$B55) -> 7.100941835 | G55: =SUMIFS(F_Inputs_adjusted!T:T,F_Inputs_adjusted!$A:$A,$A55,F_Inputs_adjusted!$B:$B,$B55) -> 0 | H55: =SUMIFS(F_Inputs_adjusted!U:U,F_Inputs_adjusted!$A:$A,$A55,F_Inputs_adjusted!$B:$B,$B55) -> 0 | I55: =SUMIFS(F_Inputs_adjusted!V:V,F_Inputs_adjusted!$A:$A,$A55,F_Inputs_adjusted!$B:$B,$B55) -> 0 | J55: =SUMIFS(F_Inputs_adjusted!W:W,F_Inputs_adjusted!$A:$A,$A55,F_Inputs_adjusted!$B:$B,$B55) -> 0 | K55: =SUMIFS(F_Inputs_adjusted!X:X,F_Inputs_adjusted!$A:$A,$A55,F_Inputs_adjusted!$B:$B,$B55) -> 0 | L55: =SUMIFS(F_Inputs_adjusted!Y:Y,F_Inputs_adjusted!$A:$A,$A55,F_Inputs_adjusted!$B:$B,$B55) -> 0
A56: =F_Inputs_adjusted!A58 -> NES | B56: =F_Inputs_adjusted!B58 -> CWW17_049TOT_PR24 | C56: =F_Inputs_adjusted!C58 -> EA/NRW environmental programme wastewater (WINEP/NEP) - Treatment for chemical removal (WINEP/NEP) wastewater capex - Total | D56: =F_Inputs_adjusted!D58 -> £m | E56: =SUMIFS(F_Inputs_adjusted!R:R,F_Inputs_adjusted!$A:$A,$A56,F_Inputs_adjusted!$B:$B,$B56) -> 0 | F56: =SUMIFS(F_Inputs_adjusted!S:S,F_Inputs_adjusted!$A:$A,$A56,F_Inputs_adjusted!$B:$B,$B56) -> 0 | G56: =SUMIFS(F_Inputs_adjusted!T:T,F_Inputs_adjusted!$A:$A,$A56,F_Inputs_adjusted!$B:$B,$B56) -> 0 | H56: =SUMIFS(F_Inputs_adjusted!U:U,F_Inputs_adjusted!$A:$A,$A56,F_Inputs_adjusted!$B:$B,$B56) -> 0 | I56: =SUMIFS(F_Inputs_adjusted!V:V,F_Inputs_adjusted!$A:$A,$A56,F_Inputs_adjusted!$B:$B,$B56) -> 0 | J56: =SUMIFS(F_Inputs_adjusted!W:W,F_Inputs_adjusted!$A:$A,$A56,F_Inputs_adjusted!$B:$B,$B56) -> 0 | K56: =SUMIFS(F_Inputs_adjusted!X:X,F_Inputs_adjusted!$A:$A,$A56,F_Inputs_adjusted!$B:$B,$B56) -> 0 | L56: =SUMIFS(F_Inputs_adjusted!Y:Y,F_Inputs_adjusted!$A:$A,$A56,F_Inputs_adjusted!$B:$B,$B56) -> 0
A57: =F_Inputs_adjusted!A59 -> NES | B57: =F_Inputs_adjusted!B59 -> CWW17_050TOT_PR24 | C57: =F_Inputs_adjusted!C59 -> EA/NRW environmental programme wastewater (WINEP/NEP) - Treatment for chemical removal (WINEP/NEP) wastewater opex - Total | D57: =F_Inputs_adjusted!D59 -> £m | E57: =SUMIFS(F_Inputs_adjusted!R:R,F_Inputs_adjusted!$A:$A,$A57,F_Inputs_adjusted!$B:$B,$B57) -> 0 | F57: =SUMIFS(F_Inputs_adjusted!S:S,F_Inputs_adjusted!$A:$A,$A57,F_Inputs_adjusted!$B:$B,$B57) -> 0 | G57: =SUMIFS(F_Inputs_adjusted!T:T,F_Inputs_adjusted!$A:$A,$A57,F_Inputs_adjusted!$B:$B,$B57) -> 0 | H57: =SUMIFS(F_Inputs_adjusted!U:U,F_Inputs_adjusted!$A:$A,$A57,F_Inputs_adjusted!$B:$B,$B57) -> 0 | I57: =SUMIFS(F_Inputs_adjusted!V:V,F_Inputs_adjusted!$A:$A,$A57,F_Inputs_adjusted!$B:$B,$B57) -> 0 | J57: =SUMIFS(F_Inputs_adjusted!W:W,F_Inputs_adjusted!$A:$A,$A57,F_Inputs_adjusted!$B:$B,$B57) -> 0 | K57: =SUMIFS(F_Inputs_adjusted!X:X,F_Inputs_adjusted!$A:$A,$A57,F_Inputs_adjusted!$B:$B,$B57) -> 0 | L57: =SUMIFS(F_Inputs_adjusted!Y:Y,F_Inputs_adjusted!$A:$A,$A57,F_Inputs_adjusted!$B:$B,$B57) -> 0
A58: =F_Inputs_adjusted!A60 -> NES | B58: =F_Inputs_adjusted!B60 -> CWW17_051TOT_PR24 | C58: =F_Inputs_adjusted!C60 -> EA/NRW environmental programme wastewater (WINEP/NEP) - Treatment for chemical removal (WINEP/NEP) wastewater totex - Total | D58: =F_Inputs_adjusted!D60 -> £m | E58: =SUMIFS(F_Inputs_adjusted!R:R,F_Inputs_adjusted!$A:$A,$A58,F_Inputs_adjusted!$B:$B,$B58) -> 0 | F58: =SUMIFS(F_Inputs_adjusted!S:S,F_Inputs_adjusted!$A:$A,$A58,F_Inputs_adjusted!$B:$B,$B58) -> 0 | G58: =SUMIFS(F_Inputs_adjusted!T:T,F_Inputs_adjusted!$A:$A,$A58,F_Inputs_adjusted!$B:$B,$B58) -> 0 | H58: =SUMIFS(F_Inputs_adjusted!U:U,F_Inputs_adjusted!$A:$A,$A58,F_Inputs_adjusted!$B:$B,$B58) -> 0 | I58: =SUMIFS(F_Inputs_adjusted!V:V,F_Inputs_adjusted!$A:$A,$A58,F_Inputs_adjusted!$B:$B,$B58) -> 0 | J58: =SUMIFS(F_Inputs_adjusted!W:W,F_Inputs_adjusted!$A:$A,$A58,F_Inputs_adjusted!$B:$B,$B58) -> 0 | K58: =SUMIFS(F_Inputs_adjusted!X:X,F_Inputs_adjusted!$A:$A,$A58,F_Inputs_adjusted!$B:$B,$B58) -> 0 | L58: =SUMIFS(F_Inputs_adjusted!Y:Y,F_Inputs_adjusted!$A:$A,$A58,F_Inputs_adjusted!$B:$B,$B58) -> 0
A59: =F_Inputs_adjusted!A61 -> NES | B59: =F_Inputs_adjusted!B61 -> S4031_PR24 | C59: =F_Inputs_adjusted!C61 -> Sewage treatment data - Current population equivalent served by STWs with tightened/new permits for chemicals / hazardous substances | D59: =F_Inputs_adjusted!D61 -> 000s | E59: =SUMIFS(F_Inputs_adjusted!R:R,F_Inputs_adjusted!$A:$A,$A59,F_Inputs_adjusted!$B:$B,$B59) -> 0 | F59: =SUMIFS(F_Inputs_adjusted!S:S,F_Inputs_adjusted!$A:$A,$A59,F_Inputs_adjusted!$B:$B,$B59) -> 0 | G59: =SUMIFS(F_Inputs_adjusted!T:T,F_Inputs_adjusted!$A:$A,$A59,F_Inputs_adjusted!$B:$B,$B59) -> 0 | H59: =SUMIFS(F_Inputs_adjusted!U:U,F_Inputs_adjusted!$A:$A,$A59,F_Inputs_adjusted!$B:$B,$B59) -> 167.7155465 | I59: =SUMIFS(F_Inputs_adjusted!V:V,F_Inputs_adjusted!$A:$A,$A59,F_Inputs_adjusted!$B:$B,$B59) -> 0 | J59: =SUMIFS(F_Inputs_adjusted!W:W,F_Inputs_adjusted!$A:$A,$A59,F_Inputs_adjusted!$B:$B,$B59) -> 0 | K59: =SUMIFS(F_Inputs_adjusted!X:X,F_Inputs_adjusted!$A:$A,$A59,F_Inputs_adjusted!$B:$B,$B59) -> 0 | L59: =SUMIFS(F_Inputs_adjusted!Y:Y,F_Inputs_adjusted!$A:$A,$A59,F_Inputs_adjusted!$B:$B,$B59) -> 0
A60: =F_Inputs_adjusted!A62 -> NES | B60: =F_Inputs_adjusted!B62 -> CWW20A_S4031_PR24 | C60: =F_Inputs_adjusted!C62 -> Sewage treatment data - Current population equivalent served by STWs with tightened/new permits for chemicals / hazardous substances | D60: =F_Inputs_adjusted!D62 -> 000s | E60: =SUMIFS(F_Inputs_adjusted!R:R,F_Inputs_adjusted!$A:$A,$A60,F_Inputs_adjusted!$B:$B,$B60) -> 0 | F60: =SUMIFS(F_Inputs_adjusted!S:S,F_Inputs_adjusted!$A:$A,$A60,F_Inputs_adjusted!$B:$B,$B60) -> 0 | G60: =SUMIFS(F_Inputs_adjusted!T:T,F_Inputs_adjusted!$A:$A,$A60,F_Inputs_adjusted!$B:$B,$B60) -> 0 | H60: =SUMIFS(F_Inputs_adjusted!U:U,F_Inputs_adjusted!$A:$A,$A60,F_Inputs_adjusted!$B:$B,$B60) -> 0 | I60: =SUMIFS(F_Inputs_adjusted!V:V,F_Inputs_adjusted!$A:$A,$A60,F_Inputs_adjusted!$B:$B,$B60) -> 0 | J60: =SUMIFS(F_Inputs_adjusted!W:W,F_Inputs_adjusted!$A:$A,$A60,F_Inputs_adjusted!$B:$B,$B60) -> 0 | K60: =SUMIFS(F_Inputs_adjusted!X:X,F_Inputs_adjusted!$A:$A,$A60,F_Inputs_adjusted!$B:$B,$B60) -> 0 | L60: =SUMIFS(F_Inputs_adjusted!Y:Y,F_Inputs_adjusted!$A:$A,$A60,F_Inputs_adjusted!$B:$B,$B60) -> 0
A61: =F_Inputs_adjusted!A63 -> NES | B61: =F_Inputs_adjusted!B63 -> CWW20_026_PR24 | C61: =F_Inputs_adjusted!C63 -> Sewage treatment data - Total number of schemes with tightened/new chemicals/hazardous substances permits | D61: =F_Inputs_adjusted!D63 -> nr | E61: =SUMIFS(F_Inputs_adjusted!R:R,F_Inputs_adjusted!$A:$A,$A61,F_Inputs_adjusted!$B:$B,$B61) -> 0 | F61: =SUMIFS(F_Inputs_adjusted!S:S,F_Inputs_adjusted!$A:$A,$A61,F_Inputs_adjusted!$B:$B,$B61) -> 0 | G61: =SUMIFS(F_Inputs_adjusted!T:T,F_Inputs_adjusted!$A:$A,$A61,F_Inputs_adjusted!$B:$B,$B61) -> 0 | H61: =SUMIFS(F_Inputs_adjusted!U:U,F_Inputs_adjusted!$A:$A,$A61,F_Inputs_adjusted!$B:$B,$B61) -> 15 | I61: =SUMIFS(F_Inputs_adjusted!V:V,F_Inputs_adjusted!$A:$A,$A61,F_Inputs_adjusted!$B:$B,$B61) -> 0 | J61: =SUMIFS(F_Inputs_adjusted!W:W,F_Inputs_adjusted!$A:$A,$A61,F_Inputs_adjusted!$B:$B,$B61) -> 0 | K61: =SUMIFS(F_Inputs_adjusted!X:X,F_Inputs_adjusted!$A:$A,$A61,F_Inputs_adjusted!$B:$B,$B61) -> 0 | L61: =SUMIFS(F_Inputs_adjusted!Y:Y,F_Inputs_adjusted!$A:$A,$A61,F_Inputs_adjusted!$B:$B,$B61) -> 0
A62: =F_Inputs_adjusted!A64 -> NES | B62: =F_Inputs_adjusted!B64 -> CWW20A_026_PR24 | C62: =F_Inputs_adjusted!C64 -> Sewage treatment data - Total number of schemes with tightened/new chemicals/hazardous substances permits | D62: =F_Inputs_adjusted!D64 -> nr | E62: =SUMIFS(F_Inputs_adjusted!R:R,F_Inputs_adjusted!$A:$A,$A62,F_Inputs_adjusted!$B:$B,$B62) -> 0 | F62: =SUMIFS(F_Inputs_adjusted!S:S,F_Inputs_adjusted!$A:$A,$A62,F_Inputs_adjusted!$B:$B,$B62) -> 0 | G62: =SUMIFS(F_Inputs_adjusted!T:T,F_Inputs_adjusted!$A:$A,$A62,F_Inputs_adjusted!$B:$B,$B62) -> 0 | H62: =SUMIFS(F_Inputs_adjusted!U:U,F_Inputs_adjusted!$A:$A,$A62,F_Inputs_adjusted!$B:$B,$B62) -> 0 | I62: =SUMIFS(F_Inputs_adjusted!V:V,F_Inputs_adjusted!$A:$A,$A62,F_Inputs_adjusted!$B:$B,$B62) -> 0 | J62: =SUMIFS(F_Inputs_adjusted!W:W,F_Inputs_adjusted!$A:$A,$A62,F_Inputs_adjusted!$B:$B,$B62) -> 0 | K62: =SUMIFS(F_Inputs_adjusted!X:X,F_Inputs_adjusted!$A:$A,$A62,F_Inputs_adjusted!$B:$B,$B62) -> 0 | L62: =SUMIFS(F_Inputs_adjusted!Y:Y,F_Inputs_adjusted!$A:$A,$A62,F_Inputs_adjusted!$B:$B,$B62) -> 0
A63: =F_Inputs_adjusted!A65 -> NES | B63: =F_Inputs_adjusted!B65 -> PR24_E_WW051_TOTAL | C63: =F_Inputs_adjusted!C65 -> PR24 BP EA/NRW environmental programme wastewater (WINEP/NEP) - Treatment for chemical removal (WINEP/NEP) wastewater totex - Total inc. accelerated & transition costs | D63: =F_Inputs_adjusted!D65 -> £m | E63: =SUMIFS(F_Inputs_adjusted!R:R,F_Inputs_adjusted!$A:$A,$A63,F_Inputs_adjusted!$B:$B,$B63) -> 0 | F63: =SUMIFS(F_Inputs_adjusted!S:S,F_Inputs_adjusted!$A:$A,$A63,F_Inputs_adjusted!$B:$B,$B63) -> 0 | G63: =SUMIFS(F_Inputs_adjusted!T:T,F_Inputs_adjusted!$A:$A,$A63,F_Inputs_adjusted!$B:$B,$B63) -> 0 | H63: =SUMIFS(F_Inputs_adjusted!U:U,F_Inputs_adjusted!$A:$A,$A63,F_Inputs_adjusted!$B:$B,$B63) -> 0 | I63: =SUMIFS(F_Inputs_adjusted!V:V,F_Inputs_adjusted!$A:$A,$A63,F_Inputs_adjusted!$B:$B,$B63) -> 0 | J63: =SUMIFS(F_Inputs_adjusted!W:W,F_Inputs_adjusted!$A:$A,$A63,F_Inputs_adjusted!$B:$B,$B63) -> 0 | K63: =SUMIFS(F_Inputs_adjusted!X:X,F_Inputs_adjusted!$A:$A,$A63,F_Inputs_adjusted!$B:$B,$B63) -> 0 | L63: =SUMIFS(F_Inputs_adjusted!Y:Y,F_Inputs_adjusted!$A:$A,$A63,F_Inputs_adjusted!$B:$B,$B63) -> 25.92410449
A64: =F_Inputs_adjusted!A66 -> NES | B64: =F_Inputs_adjusted!B66 -> PR24_NETTOTEX_WASTE | C64: =F_Inputs_adjusted!C66 -> PR24 BP Net totex - Total inc. accelerated & transition costs | D64: =F_Inputs_adjusted!D66 -> £m | E64: =SUMIFS(F_Inputs_adjusted!R:R,F_Inputs_adjusted!$A:$A,$A64,F_Inputs_adjusted!$B:$B,$B64) -> 0 | F64: =SUMIFS(F_Inputs_adjusted!S:S,F_Inputs_adjusted!$A:$A,$A64,F_Inputs_adjusted!$B:$B,$B64) -> 0 | G64: =SUMIFS(F_Inputs_adjusted!T:T,F_Inputs_adjusted!$A:$A,$A64,F_Inputs_adjusted!$B:$B,$B64) -> 0 | H64: =SUMIFS(F_Inputs_adjusted!U:U,F_Inputs_adjusted!$A:$A,$A64,F_Inputs_adjusted!$B:$B,$B64) -> 0 | I64: =SUMIFS(F_Inputs_adjusted!V:V,F_Inputs_adjusted!$A:$A,$A64,F_Inputs_adjusted!$B:$B,$B64) -> 0 | J64: =SUMIFS(F_Inputs_adjusted!W:W,F_Inputs_adjusted!$A:$A,$A64,F_Inputs_adjusted!$B:$B,$B64) -> 0 | K64: =SUMIFS(F_Inputs_adjusted!X:X,F_Inputs_adjusted!$A:$A,$A64,F_Inputs_adjusted!$B:$B,$B64) -> 0 | L64: =SUMIFS(F_Inputs_adjusted!Y:Y,F_Inputs_adjusted!$A:$A,$A64,F_Inputs_adjusted!$B:$B,$B64) -> 3207.927402
A65: =F_Inputs_adjusted!A67 -> SVE | B65: =F_Inputs_adjusted!B67 -> CWW3_049TOT_PR24 | C65: =F_Inputs_adjusted!C67 -> EA/NRW environmental programme wastewater (WINEP/NEP) - Treatment for chemical removal (WINEP/NEP) wastewater capex - Total | D65: =F_Inputs_adjusted!D67 -> £m | E65: =SUMIFS(F_Inputs_adjusted!R:R,F_Inputs_adjusted!$A:$A,$A65,F_Inputs_adjusted!$B:$B,$B65) -> 0 | F65: =SUMIFS(F_Inputs_adjusted!S:S,F_Inputs_adjusted!$A:$A,$A65,F_Inputs_adjusted!$B:$B,$B65) -> 0 | G65: =SUMIFS(F_Inputs_adjusted!T:T,F_Inputs_adjusted!$A:$A,$A65,F_Inputs_adjusted!$B:$B,$B65) -> 1.508337983 | H65: =SUMIFS(F_Inputs_adjusted!U:U,F_Inputs_adjusted!$A:$A,$A65,F_Inputs_adjusted!$B:$B,$B65) -> 5.896235162 | I65: =SUMIFS(F_Inputs_adjusted!V:V,F_Inputs_adjusted!$A:$A,$A65,F_Inputs_adjusted!$B:$B,$B65) -> 35.96040672 | J65: =SUMIFS(F_Inputs_adjusted!W:W,F_Inputs_adjusted!$A:$A,$A65,F_Inputs_adjusted!$B:$B,$B65) -> 33.40246125 | K65: =SUMIFS(F_Inputs_adjusted!X:X,F_Inputs_adjusted!$A:$A,$A65,F_Inputs_adjusted!$B:$B,$B65) -> 4.366161361 | L65: =SUMIFS(F_Inputs_adjusted!Y:Y,F_Inputs_adjusted!$A:$A,$A65,F_Inputs_adjusted!$B:$B,$B65) -> 0
A66: =F_Inputs_adjusted!A68 -> SVE | B66: =F_Inputs_adjusted!B68 -> CWW3_050TOT_PR24 | C66: =F_Inputs_adjusted!C68 -> EA/NRW environmental programme wastewater (WINEP/NEP) - Treatment for chemical removal (WINEP/NEP) wastewater opex - Total | D66: =F_Inputs_adjusted!D68 -> £m | E66: =SUMIFS(F_Inputs_adjusted!R:R,F_Inputs_adjusted!$A:$A,$A66,F_Inputs_adjusted!$B:$B,$B66) -> 0 | F66: =SUMIFS(F_Inputs_adjusted!S:S,F_Inputs_adjusted!$A:$A,$A66,F_Inputs_adjusted!$B:$B,$B66) -> 0 | G66: =SUMIFS(F_Inputs_adjusted!T:T,F_Inputs_adjusted!$A:$A,$A66,F_Inputs_adjusted!$B:$B,$B66) -> 0.03042889788 | H66: =SUMIFS(F_Inputs_adjusted!U:U,F_Inputs_adjusted!$A:$A,$A66,F_Inputs_adjusted!$B:$B,$B66) -> 0.4948076294 | I66: =SUMIFS(F_Inputs_adjusted!V:V,F_Inputs_adjusted!$A:$A,$A66,F_Inputs_adjusted!$B:$B,$B66) -> 0.1069111939 | J66: =SUMIFS(F_Inputs_adjusted!W:W,F_Inputs_adjusted!$A:$A,$A66,F_Inputs_adjusted!$B:$B,$B66) -> 0.8346738745 | K66: =SUMIFS(F_Inputs_adjusted!X:X,F_Inputs_adjusted!$A:$A,$A66,F_Inputs_adjusted!$B:$B,$B66) -> 1.554025705 | L66: =SUMIFS(F_Inputs_adjusted!Y:Y,F_Inputs_adjusted!$A:$A,$A66,F_Inputs_adjusted!$B:$B,$B66) -> 0
A67: =F_Inputs_adjusted!A69 -> SVE | B67: =F_Inputs_adjusted!B69 -> CWW3_051TOT_PR24 | C67: =F_Inputs_adjusted!C69 -> EA/NRW environmental programme wastewater (WINEP/NEP) - Treatment for chemical removal (WINEP/NEP) wastewater totex - Total | D67: =F_Inputs_adjusted!D69 -> £m | E67: =SUMIFS(F_Inputs_adjusted!R:R,F_Inputs_adjusted!$A:$A,$A67,F_Inputs_adjusted!$B:$B,$B67) -> 0 | F67: =SUMIFS(F_Inputs_adjusted!S:S,F_Inputs_adjusted!$A:$A,$A67,F_Inputs_adjusted!$B:$B,$B67) -> 0 | G67: =SUMIFS(F_Inputs_adjusted!T:T,F_Inputs_adjusted!$A:$A,$A67,F_Inputs_adjusted!$B:$B,$B67) -> 1.538766881 | H67: =SUMIFS(F_Inputs_adjusted!U:U,F_Inputs_adjusted!$A:$A,$A67,F_Inputs_adjusted!$B:$B,$B67) -> 6.391042792 | I67: =SUMIFS(F_Inputs_adjusted!V:V,F_Inputs_adjusted!$A:$A,$A67,F_Inputs_adjusted!$B:$B,$B67) -> 36.06731791 | J67: =SUMIFS(F_Inputs_adjusted!W:W,F_Inputs_adjusted!$A:$A,$A67,F_Inputs_adjusted!$B:$B,$B67) -> 34.23713513 | K67: =SUMIFS(F_Inputs_adjusted!X:X,F_Inputs_adjusted!$A:$A,$A67,F_Inputs_adjusted!$B:$B,$B67) -> 5.920187066 | L67: =SUMIFS(F_Inputs_adjusted!Y:Y,F_Inputs_adjusted!$A:$A,$A67,F_Inputs_adjusted!$B:$B,$B67) -> 0
A68: =F_Inputs_adjusted!A70 -> SVE | B68: =F_Inputs_adjusted!B70 -> CWW12_049TOT_PR24 | C68: =F_Inputs_adjusted!C70 -> EA/NRW environmental programme wastewater (WINEP/NEP) - Treatment for chemical removal (WINEP/NEP) wastewater capex - Total | D68: =F_Inputs_adjusted!D70 -> £m | E68: =SUMIFS(F_Inputs_adjusted!R:R,F_Inputs_adjusted!$A:$A,$A68,F_Inputs_adjusted!$B:$B,$B68) -> 0 | F68: =SUMIFS(F_Inputs_adjusted!S:S,F_Inputs_adjusted!$A:$A,$A68,F_Inputs_adjusted!$B:$B,$B68) -> 0 | G68: =SUMIFS(F_Inputs_adjusted!T:T,F_Inputs_adjusted!$A:$A,$A68,F_Inputs_adjusted!$B:$B,$B68) -> 0 | H68: =SUMIFS(F_Inputs_adjusted!U:U,F_Inputs_adjusted!$A:$A,$A68,F_Inputs_adjusted!$B:$B,$B68) -> 0 | I68: =SUMIFS(F_Inputs_adjusted!V:V,F_Inputs_adjusted!$A:$A,$A68,F_Inputs_adjusted!$B:$B,$B68) -> 0 | J68: =SUMIFS(F_Inputs_adjusted!W:W,F_Inputs_adjusted!$A:$A,$A68,F_Inputs_adjusted!$B:$B,$B68) -> 0 | K68: =SUMIFS(F_Inputs_adjusted!X:X,F_Inputs_adjusted!$A:$A,$A68,F_Inputs_adjusted!$B:$B,$B68) -> 0 | L68: =SUMIFS(F_Inputs_adjusted!Y:Y,F_Inputs_adjusted!$A:$A,$A68,F_Inputs_adjusted!$B:$B,$B68) -> 0
A69: =F_Inputs_adjusted!A71 -> SVE | B69: =F_Inputs_adjusted!B71 -> CWW12_050TOT_PR24 | C69: =F_Inputs_adjusted!C71 -> EA/NRW environmental programme wastewater (WINEP/NEP) - Treatment for chemical removal (WINEP/NEP) wastewater opex - Total | D69: =F_Inputs_adjusted!D71 -> £m | E69: =SUMIFS(F_Inputs_adjusted!R:R,F_Inputs_adjusted!$A:$A,$A69,F_Inputs_adjusted!$B:$B,$B69) -> 0 | F69: =SUMIFS(F_Inputs_adjusted!S:S,F_Inputs_adjusted!$A:$A,$A69,F_Inputs_adjusted!$B:$B,$B69) -> 0 | G69: =SUMIFS(F_Inputs_adjusted!T:T,F_Inputs_adjusted!$A:$A,$A69,F_Inputs_adjusted!$B:$B,$B69) -> 0 | H69: =SUMIFS(F_Inputs_adjusted!U:U,F_Inputs_adjusted!$A:$A,$A69,F_Inputs_adjusted!$B:$B,$B69) -> 0 | I69: =SUMIFS(F_Inputs_adjusted!V:V,F_Inputs_adjusted!$A:$A,$A69,F_Inputs_adjusted!$B:$B,$B69) -> 0 | J69: =SUMIFS(F_Inputs_adjusted!W:W,F_Inputs_adjusted!$A:$A,$A69,F_Inputs_adjusted!$B:$B,$B69) -> 0 | K69: =SUMIFS(F_Inputs_adjusted!X:X,F_Inputs_adjusted!$A:$A,$A69,F_Inputs_adjusted!$B:$B,$B69) -> 0 | L69: =SUMIFS(F_Inputs_adjusted!Y:Y,F_Inputs_adjusted!$A:$A,$A69,F_Inputs_adjusted!$B:$B,$B69) -> 0
A70: =F_Inputs_adjusted!A72 -> SVE | B70: =F_Inputs_adjusted!B72 -> CWW12_051TOT_PR24 | C70: =F_Inputs_adjusted!C72 -> EA/NRW environmental programme wastewater (WINEP/NEP) - Treatment for chemical removal (WINEP/NEP) wastewater totex - Total | D70: =F_Inputs_adjusted!D72 -> £m | E70: =SUMIFS(F_Inputs_adjusted!R:R,F_Inputs_adjusted!$A:$A,$A70,F_Inputs_adjusted!$B:$B,$B70) -> 0 | F70: =SUMIFS(F_Inputs_adjusted!S:S,F_Inputs_adjusted!$A:$A,$A70,F_Inputs_adjusted!$B:$B,$B70) -> 0 | G70: =SUMIFS(F_Inputs_adjusted!T:T,F_Inputs_adjusted!$A:$A,$A70,F_Inputs_adjusted!$B:$B,$B70) -> 0 | H70: =SUMIFS(F_Inputs_adjusted!U:U,F_Inputs_adjusted!$A:$A,$A70,F_Inputs_adjusted!$B:$B,$B70) -> 0 | I70: =SUMIFS(F_Inputs_adjusted!V:V,F_Inputs_adjusted!$A:$A,$A70,F_Inputs_adjusted!$B:$B,$B70) -> 0 | J70: =SUMIFS(F_Inputs_adjusted!W:W,F_Inputs_adjusted!$A:$A,$A70,F_Inputs_adjusted!$B:$B,$B70) -> 0 | K70: =SUMIFS(F_Inputs_adjusted!X:X,F_Inputs_adjusted!$A:$A,$A70,F_Inputs_adjusted!$B:$B,$B70) -> 0 | L70: =SUMIFS(F_Inputs_adjusted!Y:Y,F_Inputs_adjusted!$A:$A,$A70,F_Inputs_adjusted!$B:$B,$B70) -> 0
A71: =F_Inputs_adjusted!A73 -> SVE | B71: =F_Inputs_adjusted!B73 -> CWW17_049TOT_PR24 | C71: =F_Inputs_adjusted!C73 -> EA/NRW environmental programme wastewater (WINEP/NEP) - Treatment for chemical removal (WINEP/NEP) wastewater capex - Total | D71: =F_Inputs_adjusted!D73 -> £m | E71: =SUMIFS(F_Inputs_adjusted!R:R,F_Inputs_adjusted!$A:$A,$A71,F_Inputs_adjusted!$B:$B,$B71) -> 0 | F71: =SUMIFS(F_Inputs_adjusted!S:S,F_Inputs_adjusted!$A:$A,$A71,F_Inputs_adjusted!$B:$B,$B71) -> 0 | G71: =SUMIFS(F_Inputs_adjusted!T:T,F_Inputs_adjusted!$A:$A,$A71,F_Inputs_adjusted!$B:$B,$B71) -> 0 | H71: =SUMIFS(F_Inputs_adjusted!U:U,F_Inputs_adjusted!$A:$A,$A71,F_Inputs_adjusted!$B:$B,$B71) -> 0 | I71: =SUMIFS(F_Inputs_adjusted!V:V,F_Inputs_adjusted!$A:$A,$A71,F_Inputs_adjusted!$B:$B,$B71) -> 0 | J71: =SUMIFS(F_Inputs_adjusted!W:W,F_Inputs_adjusted!$A:$A,$A71,F_Inputs_adjusted!$B:$B,$B71) -> 0 | K71: =SUMIFS(F_Inputs_adjusted!X:X,F_Inputs_adjusted!$A:$A,$A71,F_Inputs_adjusted!$B:$B,$B71) -> 0 | L71: =SUMIFS(F_Inputs_adjusted!Y:Y,F_Inputs_adjusted!$A:$A,$A71,F_Inputs_adjusted!$B:$B,$B71) -> 0
A72: =F_Inputs_adjusted!A74 -> SVE | B72: =F_Inputs_adjusted!B74 -> CWW17_050TOT_PR24 | C72: =F_Inputs_adjusted!C74 -> EA/NRW environmental programme wastewater (WINEP/NEP) - Treatment for chemical removal (WINEP/NEP) wastewater opex - Total | D72: =F_Inputs_adjusted!D74 -> £m | E72: =SUMIFS(F_Inputs_adjusted!R:R,F_Inputs_adjusted!$A:$A,$A72,F_Inputs_adjusted!$B:$B,$B72) -> 0 | F72: =SUMIFS(F_Inputs_adjusted!S:S,F_Inputs_adjusted!$A:$A,$A72,F_Inputs_adjusted!$B:$B,$B72) -> 0 | G72: =SUMIFS(F_Inputs_adjusted!T:T,F_Inputs_adjusted!$A:$A,$A72,F_Inputs_adjusted!$B:$B,$B72) -> 0 | H72: =SUMIFS(F_Inputs_adjusted!U:U,F_Inputs_adjusted!$A:$A,$A72,F_Inputs_adjusted!$B:$B,$B72) -> 0 | I72: =SUMIFS(F_Inputs_adjusted!V:V,F_Inputs_adjusted!$A:$A,$A72,F_Inputs_adjusted!$B:$B,$B72) -> 0 | J72: =SUMIFS(F_Inputs_adjusted!W:W,F_Inputs_adjusted!$A:$A,$A72,F_Inputs_adjusted!$B:$B,$B72) -> 0 | K72: =SUMIFS(F_Inputs_adjusted!X:X,F_Inputs_adjusted!$A:$A,$A72,F_Inputs_adjusted!$B:$B,$B72) -> 0 | L72: =SUMIFS(F_Inputs_adjusted!Y:Y,F_Inputs_adjusted!$A:$A,$A72,F_Inputs_adjusted!$B:$B,$B72) -> 0
A73: =F_Inputs_adjusted!A75 -> SVE | B73: =F_Inputs_adjusted!B75 -> CWW17_051TOT_PR24 | C73: =F_Inputs_adjusted!C75 -> EA/NRW environmental programme wastewater (WINEP/NEP) - Treatment for chemical removal (WINEP/NEP) wastewater totex - Total | D73: =F_Inputs_adjusted!D75 -> £m | E73: =SUMIFS(F_Inputs_adjusted!R:R,F_Inputs_adjusted!$A:$A,$A73,F_Inputs_adjusted!$B:$B,$B73) -> 0 | F73: =SUMIFS(F_Inputs_adjusted!S:S,F_Inputs_adjusted!$A:$A,$A73,F_Inputs_adjusted!$B:$B,$B73) -> 0 | G73: =SUMIFS(F_Inputs_adjusted!T:T,F_Inputs_adjusted!$A:$A,$A73,F_Inputs_adjusted!$B:$B,$B73) -> 0 | H73: =SUMIFS(F_Inputs_adjusted!U:U,F_Inputs_adjusted!$A:$A,$A73,F_Inputs_adjusted!$B:$B,$B73) -> 0 | I73: =SUMIFS(F_Inputs_adjusted!V:V,F_Inputs_adjusted!$A:$A,$A73,F_Inputs_adjusted!$B:$B,$B73) -> 0 | J73: =SUMIFS(F_Inputs_adjusted!W:W,F_Inputs_adjusted!$A:$A,$A73,F_Inputs_adjusted!$B:$B,$B73) -> 0 | K73: =SUMIFS(F_Inputs_adjusted!X:X,F_Inputs_adjusted!$A:$A,$A73,F_Inputs_adjusted!$B:$B,$B73) -> 0 | L73: =SUMIFS(F_Inputs_adjusted!Y:Y,F_Inputs_adjusted!$A:$A,$A73,F_Inputs_adjusted!$B:$B,$B73) -> 0
A74: =F_Inputs_adjusted!A76 -> SVE | B74: =F_Inputs_adjusted!B76 -> S4031_PR24 | C74: =F_Inputs_adjusted!C76 -> Sewage treatment data - Current population equivalent served by STWs with tightened/new permits for chemicals / hazardous substances | D74: =F_Inputs_adjusted!D76 -> 000s | E74: =SUMIFS(F_Inputs_adjusted!R:R,F_Inputs_adjusted!$A:$A,$A74,F_Inputs_adjusted!$B:$B,$B74) -> 0 | F74: =SUMIFS(F_Inputs_adjusted!S:S,F_Inputs_adjusted!$A:$A,$A74,F_Inputs_adjusted!$B:$B,$B74) -> 0 | G74: =SUMIFS(F_Inputs_adjusted!T:T,F_Inputs_adjusted!$A:$A,$A74,F_Inputs_adjusted!$B:$B,$B74) -> 119.362 | H74: =SUMIFS(F_Inputs_adjusted!U:U,F_Inputs_adjusted!$A:$A,$A74,F_Inputs_adjusted!$B:$B,$B74) -> 5551.071 | I74: =SUMIFS(F_Inputs_adjusted!V:V,F_Inputs_adjusted!$A:$A,$A74,F_Inputs_adjusted!$B:$B,$B74) -> 0 | J74: =SUMIFS(F_Inputs_adjusted!W:W,F_Inputs_adjusted!$A:$A,$A74,F_Inputs_adjusted!$B:$B,$B74) -> 0 | K74: =SUMIFS(F_Inputs_adjusted!X:X,F_Inputs_adjusted!$A:$A,$A74,F_Inputs_adjusted!$B:$B,$B74) -> 635.706 | L74: =SUMIFS(F_Inputs_adjusted!Y:Y,F_Inputs_adjusted!$A:$A,$A74,F_Inputs_adjusted!$B:$B,$B74) -> 0
A75: =F_Inputs_adjusted!A77 -> SVE | B75: =F_Inputs_adjusted!B77 -> CWW20A_S4031_PR24 | C75: =F_Inputs_adjusted!C77 -> Sewage treatment data - Current population equivalent served by STWs with tightened/new permits for chemicals / hazardous substances | D75: =F_Inputs_adjusted!D77 -> 000s | E75: =SUMIFS(F_Inputs_adjusted!R:R,F_Inputs_adjusted!$A:$A,$A75,F_Inputs_adjusted!$B:$B,$B75) -> 0 | F75: =SUMIFS(F_Inputs_adjusted!S:S,F_Inputs_adjusted!$A:$A,$A75,F_Inputs_adjusted!$B:$B,$B75) -> 0 | G75: =SUMIFS(F_Inputs_adjusted!T:T,F_Inputs_adjusted!$A:$A,$A75,F_Inputs_adjusted!$B:$B,$B75) -> 0 | H75: =SUMIFS(F_Inputs_adjusted!U:U,F_Inputs_adjusted!$A:$A,$A75,F_Inputs_adjusted!$B:$B,$B75) -> 0 | I75: =SUMIFS(F_Inputs_adjusted!V:V,F_Inputs_adjusted!$A:$A,$A75,F_Inputs_adjusted!$B:$B,$B75) -> 0 | J75: =SUMIFS(F_Inputs_adjusted!W:W,F_Inputs_adjusted!$A:$A,$A75,F_Inputs_adjusted!$B:$B,$B75) -> 0 | K75: =SUMIFS(F_Inputs_adjusted!X:X,F_Inputs_adjusted!$A:$A,$A75,F_Inputs_adjusted!$B:$B,$B75) -> 0 | L75: =SUMIFS(F_Inputs_adjusted!Y:Y,F_Inputs_adjusted!$A:$A,$A75,F_Inputs_adjusted!$B:$B,$B75) -> 0
A76: =F_Inputs_adjusted!A78 -> SVE | B76: =F_Inputs_adjusted!B78 -> CWW20_026_PR24 | C76: =F_Inputs_adjusted!C78 -> Sewage treatment data - Total number of schemes with tightened/new chemicals/hazardous substances permits | D76: =F_Inputs_adjusted!D78 -> nr | E76: =SUMIFS(F_Inputs_adjusted!R:R,F_Inputs_adjusted!$A:$A,$A76,F_Inputs_adjusted!$B:$B,$B76) -> 0 | F76: =SUMIFS(F_Inputs_adjusted!S:S,F_Inputs_adjusted!$A:$A,$A76,F_Inputs_adjusted!$B:$B,$B76) -> 0 | G76: =SUMIFS(F_Inputs_adjusted!T:T,F_Inputs_adjusted!$A:$A,$A76,F_Inputs_adjusted!$B:$B,$B76) -> 6 | H76: =SUMIFS(F_Inputs_adjusted!U:U,F_Inputs_adjusted!$A:$A,$A76,F_Inputs_adjusted!$B:$B,$B76) -> 43 | I76: =SUMIFS(F_Inputs_adjusted!V:V,F_Inputs_adjusted!$A:$A,$A76,F_Inputs_adjusted!$B:$B,$B76) -> 0 | J76: =SUMIFS(F_Inputs_adjusted!W:W,F_Inputs_adjusted!$A:$A,$A76,F_Inputs_adjusted!$B:$B,$B76) -> 0 | K76: =SUMIFS(F_Inputs_adjusted!X:X,F_Inputs_adjusted!$A:$A,$A76,F_Inputs_adjusted!$B:$B,$B76) -> 2 | L76: =SUMIFS(F_Inputs_adjusted!Y:Y,F_Inputs_adjusted!$A:$A,$A76,F_Inputs_adjusted!$B:$B,$B76) -> 0
A77: =F_Inputs_adjusted!A79 -> SVE | B77: =F_Inputs_adjusted!B79 -> CWW20A_026_PR24 | C77: =F_Inputs_adjusted!C79 -> Sewage treatment data - Total number of schemes with tightened/new chemicals/hazardous substances permits | D77: =F_Inputs_adjusted!D79 -> nr | E77: =SUMIFS(F_Inputs_adjusted!R:R,F_Inputs_adjusted!$A:$A,$A77,F_Inputs_adjusted!$B:$B,$B77) -> 0 | F77: =SUMIFS(F_Inputs_adjusted!S:S,F_Inputs_adjusted!$A:$A,$A77,F_Inputs_adjusted!$B:$B,$B77) -> 0 | G77: =SUMIFS(F_Inputs_adjusted!T:T,F_Inputs_adjusted!$A:$A,$A77,F_Inputs_adjusted!$B:$B,$B77) -> 0 | H77: =SUMIFS(F_Inputs_adjusted!U:U,F_Inputs_adjusted!$A:$A,$A77,F_Inputs_adjusted!$B:$B,$B77) -> 0 | I77: =SUMIFS(F_Inputs_adjusted!V:V,F_Inputs_adjusted!$A:$A,$A77,F_Inputs_adjusted!$B:$B,$B77) -> 0 | J77: =SUMIFS(F_Inputs_adjusted!W:W,F_Inputs_adjusted!$A:$A,$A77,F_Inputs_adjusted!$B:$B,$B77) -> 0 | K77: =SUMIFS(F_Inputs_adjusted!X:X,F_Inputs_adjusted!$A:$A,$A77,F_Inputs_adjusted!$B:$B,$B77) -> 0 | L77: =SUMIFS(F_Inputs_adjusted!Y:Y,F_Inputs_adjusted!$A:$A,$A77,F_Inputs_adjusted!$B:$B,$B77) -> 0
A78: =F_Inputs_adjusted!A80 -> SVE | B78: =F_Inputs_adjusted!B80 -> PR24_E_WW051_TOTAL | C78: =F_Inputs_adjusted!C80 -> PR24 BP EA/NRW environmental programme wastewater (WINEP/NEP) - Treatment for chemical removal (WINEP/NEP) wastewater totex - Total inc. accelerated & transition costs | D78: =F_Inputs_adjusted!D80 -> £m | E78: =SUMIFS(F_Inputs_adjusted!R:R,F_Inputs_adjusted!$A:$A,$A78,F_Inputs_adjusted!$B:$B,$B78) -> 0 | F78: =SUMIFS(F_Inputs_adjusted!S:S,F_Inputs_adjusted!$A:$A,$A78,F_Inputs_adjusted!$B:$B,$B78) -> 0 | G78: =SUMIFS(F_Inputs_adjusted!T:T,F_Inputs_adjusted!$A:$A,$A78,F_Inputs_adjusted!$B:$B,$B78) -> 0 | H78: =SUMIFS(F_Inputs_adjusted!U:U,F_Inputs_adjusted!$A:$A,$A78,F_Inputs_adjusted!$B:$B,$B78) -> 0 | I78: =SUMIFS(F_Inputs_adjusted!V:V,F_Inputs_adjusted!$A:$A,$A78,F_Inputs_adjusted!$B:$B,$B78) -> 0 | J78: =SUMIFS(F_Inputs_adjusted!W:W,F_Inputs_adjusted!$A:$A,$A78,F_Inputs_adjusted!$B:$B,$B78) -> 0 | K78: =SUMIFS(F_Inputs_adjusted!X:X,F_Inputs_adjusted!$A:$A,$A78,F_Inputs_adjusted!$B:$B,$B78) -> 0 | L78: =SUMIFS(F_Inputs_adjusted!Y:Y,F_Inputs_adjusted!$A:$A,$A78,F_Inputs_adjusted!$B:$B,$B78) -> 84.15444978
A79: =F_Inputs_adjusted!A81 -> SVE | B79: =F_Inputs_adjusted!B81 -> PR24_NETTOTEX_WASTE | C79: =F_Inputs_adjusted!C81 -> PR24 BP Net totex - Total inc. accelerated & transition costs | D79: =F_Inputs_adjusted!D81 -> £m | E79: =SUMIFS(F_Inputs_adjusted!R:R,F_Inputs_adjusted!$A:$A,$A79,F_Inputs_adjusted!$B:$B,$B79) -> 0 | F79: =SUMIFS(F_Inputs_adjusted!S:S,F_Inputs_adjusted!$A:$A,$A79,F_Inputs_adjusted!$B:$B,$B79) -> 0 | G79: =SUMIFS(F_Inputs_adjusted!T:T,F_Inputs_adjusted!$A:$A,$A79,F_Inputs_adjusted!$B:$B,$B79) -> 0 | H79: =SUMIFS(F_Inputs_adjusted!U:U,F_Inputs_adjusted!$A:$A,$A79,F_Inputs_adjusted!$B:$B,$B79) -> 0 | I79: =SUMIFS(F_Inputs_adjusted!V:V,F_Inputs_adjusted!$A:$A,$A79,F_Inputs_adjusted!$B:$B,$B79) -> 0 | J79: =SUMIFS(F_Inputs_adjusted!W:W,F_Inputs_adjusted!$A:$A,$A79,F_Inputs_adjusted!$B:$B,$B79) -> 0 | K79: =SUMIFS(F_Inputs_adjusted!X:X,F_Inputs_adjusted!$A:$A,$A79,F_Inputs_adjusted!$B:$B,$B79) -> 0 | L79: =SUMIFS(F_Inputs_adjusted!Y:Y,F_Inputs_adjusted!$A:$A,$A79,F_Inputs_adjusted!$B:$B,$B79) -> 8618.711997
A80: =F_Inputs_adjusted!A82 -> SWB | B80: =F_Inputs_adjusted!B82 -> CWW3_049TOT_PR24 | C80: =F_Inputs_adjusted!C82 -> EA/NRW environmental programme wastewater (WINEP/NEP) - Treatment for chemical removal (WINEP/NEP) wastewater capex - Total | D80: =F_Inputs_adjusted!D82 -> £m | E80: =SUMIFS(F_Inputs_adjusted!R:R,F_Inputs_adjusted!$A:$A,$A80,F_Inputs_adjusted!$B:$B,$B80) -> 0 | F80: =SUMIFS(F_Inputs_adjusted!S:S,F_Inputs_adjusted!$A:$A,$A80,F_Inputs_adjusted!$B:$B,$B80) -> 0 | G80: =SUMIFS(F_Inputs_adjusted!T:T,F_Inputs_adjusted!$A:$A,$A80,F_Inputs_adjusted!$B:$B,$B80) -> 7.722 | H80: =SUMIFS(F_Inputs_adjusted!U:U,F_Inputs_adjusted!$A:$A,$A80,F_Inputs_adjusted!$B:$B,$B80) -> 6.915 | I80: =SUMIFS(F_Inputs_adjusted!V:V,F_Inputs_adjusted!$A:$A,$A80,F_Inputs_adjusted!$B:$B,$B80) -> 0 | J80: =SUMIFS(F_Inputs_adjusted!W:W,F_Inputs_adjusted!$A:$A,$A80,F_Inputs_adjusted!$B:$B,$B80) -> 0 | K80: =SUMIFS(F_Inputs_adjusted!X:X,F_Inputs_adjusted!$A:$A,$A80,F_Inputs_adjusted!$B:$B,$B80) -> 0 | L80: =SUMIFS(F_Inputs_adjusted!Y:Y,F_Inputs_adjusted!$A:$A,$A80,F_Inputs_adjusted!$B:$B,$B80) -> 0
A81: =F_Inputs_adjusted!A83 -> SWB | B81: =F_Inputs_adjusted!B83 -> CWW3_050TOT_PR24 | C81: =F_Inputs_adjusted!C83 -> EA/NRW environmental programme wastewater (WINEP/NEP) - Treatment for chemical removal (WINEP/NEP) wastewater opex - Total | D81: =F_Inputs_adjusted!D83 -> £m | E81: =SUMIFS(F_Inputs_adjusted!R:R,F_Inputs_adjusted!$A:$A,$A81,F_Inputs_adjusted!$B:$B,$B81) -> 0 | F81: =SUMIFS(F_Inputs_adjusted!S:S,F_Inputs_adjusted!$A:$A,$A81,F_Inputs_adjusted!$B:$B,$B81) -> 0 | G81: =SUMIFS(F_Inputs_adjusted!T:T,F_Inputs_adjusted!$A:$A,$A81,F_Inputs_adjusted!$B:$B,$B81) -> 0 | H81: =SUMIFS(F_Inputs_adjusted!U:U,F_Inputs_adjusted!$A:$A,$A81,F_Inputs_adjusted!$B:$B,$B81) -> 0 | I81: =SUMIFS(F_Inputs_adjusted!V:V,F_Inputs_adjusted!$A:$A,$A81,F_Inputs_adjusted!$B:$B,$B81) -> 0.133 | J81: =SUMIFS(F_Inputs_adjusted!W:W,F_Inputs_adjusted!$A:$A,$A81,F_Inputs_adjusted!$B:$B,$B81) -> 0.133 | K81: =SUMIFS(F_Inputs_adjusted!X:X,F_Inputs_adjusted!$A:$A,$A81,F_Inputs_adjusted!$B:$B,$B81) -> 0.133 | L81: =SUMIFS(F_Inputs_adjusted!Y:Y,F_Inputs_adjusted!$A:$A,$A81,F_Inputs_adjusted!$B:$B,$B81) -> 0
A82: =F_Inputs_adjusted!A84 -> SWB | B82: =F_Inputs_adjusted!B84 -> CWW3_051TOT_PR24 | C82: =F_Inputs_adjusted!C84 -> EA/NRW environmental programme wastewater (WINEP/NEP) - Treatment for chemical removal (WINEP/NEP) wastewater totex - Total | D82: =F_Inputs_adjusted!D84 -> £m | E82: =SUMIFS(F_Inputs_adjusted!R:R,F_Inputs_adjusted!$A:$A,$A82,F_Inputs_adjusted!$B:$B,$B82) -> 0 | F82: =SUMIFS(F_Inputs_adjusted!S:S,F_Inputs_adjusted!$A:$A,$A82,F_Inputs_adjusted!$B:$B,$B82) -> 0 | G82: =SUMIFS(F_Inputs_adjusted!T:T,F_Inputs_adjusted!$A:$A,$A82,F_Inputs_adjusted!$B:$B,$B82) -> 7.722 | H82: =SUMIFS(F_Inputs_adjusted!U:U,F_Inputs_adjusted!$A:$A,$A82,F_Inputs_adjusted!$B:$B,$B82) -> 6.915 | I82: =SUMIFS(F_Inputs_adjusted!V:V,F_Inputs_adjusted!$A:$A,$A82,F_Inputs_adjusted!$B:$B,$B82) -> 0.133 | J82: =SUMIFS(F_Inputs_adjusted!W:W,F_Inputs_adjusted!$A:$A,$A82,F_Inputs_adjusted!$B:$B,$B82) -> 0.133 | K82: =SUMIFS(F_Inputs_adjusted!X:X,F_Inputs_adjusted!$A:$A,$A82,F_Inputs_adjusted!$B:$B,$B82) -> 0.133 | L82: =SUMIFS(F_Inputs_adjusted!Y:Y,F_Inputs_adjusted!$A:$A,$A82,F_Inputs_adjusted!$B:$B,$B82) -> 0
A83: =F_Inputs_adjusted!A85 -> SWB | B83: =F_Inputs_adjusted!B85 -> CWW12_049TOT_PR24 | C83: =F_Inputs_adjusted!C85 -> EA/NRW environmental programme wastewater (WINEP/NEP) - Treatment for chemical removal (WINEP/NEP) wastewater capex - Total | D83: =F_Inputs_adjusted!D85 -> £m | E83: =SUMIFS(F_Inputs_adjusted!R:R,F_Inputs_adjusted!$A:$A,$A83,F_Inputs_adjusted!$B:$B,$B83) -> 0 | F83: =SUMIFS(F_Inputs_adjusted!S:S,F_Inputs_adjusted!$A:$A,$A83,F_Inputs_adjusted!$B:$B,$B83) -> 0 | G83: =SUMIFS(F_Inputs_adjusted!T:T,F_Inputs_adjusted!$A:$A,$A83,F_Inputs_adjusted!$B:$B,$B83) -> 0 | H83: =SUMIFS(F_Inputs_adjusted!U:U,F_Inputs_adjusted!$A:$A,$A83,F_Inputs_adjusted!$B:$B,$B83) -> 0 | I83: =SUMIFS(F_Inputs_adjusted!V:V,F_Inputs_adjusted!$A:$A,$A83,F_Inputs_adjusted!$B:$B,$B83) -> 0 | J83: =SUMIFS(F_Inputs_adjusted!W:W,F_Inputs_adjusted!$A:$A,$A83,F_Inputs_adjusted!$B:$B,$B83) -> 0 | K83: =SUMIFS(F_Inputs_adjusted!X:X,F_Inputs_adjusted!$A:$A,$A83,F_Inputs_adjusted!$B:$B,$B83) -> 0 | L83: =SUMIFS(F_Inputs_adjusted!Y:Y,F_Inputs_adjusted!$A:$A,$A83,F_Inputs_adjusted!$B:$B,$B83) -> 0
A84: =F_Inputs_adjusted!A86 -> SWB | B84: =F_Inputs_adjusted!B86 -> CWW12_050TOT_PR24 | C84: =F_Inputs_adjusted!C86 -> EA/NRW environmental programme wastewater (WINEP/NEP) - Treatment for chemical removal (WINEP/NEP) wastewater opex - Total | D84: =F_Inputs_adjusted!D86 -> £m | E84: =SUMIFS(F_Inputs_adjusted!R:R,F_Inputs_adjusted!$A:$A,$A84,F_Inputs_adjusted!$B:$B,$B84) -> 0 | F84: =SUMIFS(F_Inputs_adjusted!S:S,F_Inputs_adjusted!$A:$A,$A84,F_Inputs_adjusted!$B:$B,$B84) -> 0 | G84: =SUMIFS(F_Inputs_adjusted!T:T,F_Inputs_adjusted!$A:$A,$A84,F_Inputs_adjusted!$B:$B,$B84) -> 0 | H84: =SUMIFS(F_Inputs_adjusted!U:U,F_Inputs_adjusted!$A:$A,$A84,F_Inputs_adjusted!$B:$B,$B84) -> 0 | I84: =SUMIFS(F_Inputs_adjusted!V:V,F_Inputs_adjusted!$A:$A,$A84,F_Inputs_adjusted!$B:$B,$B84) -> 0 | J84: =SUMIFS(F_Inputs_adjusted!W:W,F_Inputs_adjusted!$A:$A,$A84,F_Inputs_adjusted!$B:$B,$B84) -> 0 | K84: =SUMIFS(F_Inputs_adjusted!X:X,F_Inputs_adjusted!$A:$A,$A84,F_Inputs_adjusted!$B:$B,$B84) -> 0 | L84: =SUMIFS(F_Inputs_adjusted!Y:Y,F_Inputs_adjusted!$A:$A,$A84,F_Inputs_adjusted!$B:$B,$B84) -> 0
A85: =F_Inputs_adjusted!A87 -> SWB | B85: =F_Inputs_adjusted!B87 -> CWW12_051TOT_PR24 | C85: =F_Inputs_adjusted!C87 -> EA/NRW environmental programme wastewater (WINEP/NEP) - Treatment for chemical removal (WINEP/NEP) wastewater totex - Total | D85: =F_Inputs_adjusted!D87 -> £m | E85: =SUMIFS(F_Inputs_adjusted!R:R,F_Inputs_adjusted!$A:$A,$A85,F_Inputs_adjusted!$B:$B,$B85) -> 0 | F85: =SUMIFS(F_Inputs_adjusted!S:S,F_Inputs_adjusted!$A:$A,$A85,F_Inputs_adjusted!$B:$B,$B85) -> 0 | G85: =SUMIFS(F_Inputs_adjusted!T:T,F_Inputs_adjusted!$A:$A,$A85,F_Inputs_adjusted!$B:$B,$B85) -> 0 | H85: =SUMIFS(F_Inputs_adjusted!U:U,F_Inputs_adjusted!$A:$A,$A85,F_Inputs_adjusted!$B:$B,$B85) -> 0 | I85: =SUMIFS(F_Inputs_adjusted!V:V,F_Inputs_adjusted!$A:$A,$A85,F_Inputs_adjusted!$B:$B,$B85) -> 0 | J85: =SUMIFS(F_Inputs_adjusted!W:W,F_Inputs_adjusted!$A:$A,$A85,F_Inputs_adjusted!$B:$B,$B85) -> 0 | K85: =SUMIFS(F_Inputs_adjusted!X:X,F_Inputs_adjusted!$A:$A,$A85,F_Inputs_adjusted!$B:$B,$B85) -> 0 | L85: =SUMIFS(F_Inputs_adjusted!Y:Y,F_Inputs_adjusted!$A:$A,$A85,F_Inputs_adjusted!$B:$B,$B85) -> 0
A86: =F_Inputs_adjusted!A88 -> SWB | B86: =F_Inputs_adjusted!B88 -> CWW17_049TOT_PR24 | C86: =F_Inputs_adjusted!C88 -> EA/NRW environmental programme wastewater (WINEP/NEP) - Treatment for chemical removal (WINEP/NEP) wastewater capex - Total | D86: =F_Inputs_adjusted!D88 -> £m | E86: =SUMIFS(F_Inputs_adjusted!R:R,F_Inputs_adjusted!$A:$A,$A86,F_Inputs_adjusted!$B:$B,$B86) -> 0 | F86: =SUMIFS(F_Inputs_adjusted!S:S,F_Inputs_adjusted!$A:$A,$A86,F_Inputs_adjusted!$B:$B,$B86) -> 0 | G86: =SUMIFS(F_Inputs_adjusted!T:T,F_Inputs_adjusted!$A:$A,$A86,F_Inputs_adjusted!$B:$B,$B86) -> 0 | H86: =SUMIFS(F_Inputs_adjusted!U:U,F_Inputs_adjusted!$A:$A,$A86,F_Inputs_adjusted!$B:$B,$B86) -> 0 | I86: =SUMIFS(F_Inputs_adjusted!V:V,F_Inputs_adjusted!$A:$A,$A86,F_Inputs_adjusted!$B:$B,$B86) -> 0 | J86: =SUMIFS(F_Inputs_adjusted!W:W,F_Inputs_adjusted!$A:$A,$A86,F_Inputs_adjusted!$B:$B,$B86) -> 0 | K86: =SUMIFS(F_Inputs_adjusted!X:X,F_Inputs_adjusted!$A:$A,$A86,F_Inputs_adjusted!$B:$B,$B86) -> 0 | L86: =SUMIFS(F_Inputs_adjusted!Y:Y,F_Inputs_adjusted!$A:$A,$A86,F_Inputs_adjusted!$B:$B,$B86) -> 0
A87: =F_Inputs_adjusted!A89 -> SWB | B87: =F_Inputs_adjusted!B89 -> CWW17_050TOT_PR24 | C87: =F_Inputs_adjusted!C89 -> EA/NRW environmental programme wastewater (WINEP/NEP) - Treatment for chemical removal (WINEP/NEP) wastewater opex - Total | D87: =F_Inputs_adjusted!D89 -> £m | E87: =SUMIFS(F_Inputs_adjusted!R:R,F_Inputs_adjusted!$A:$A,$A87,F_Inputs_adjusted!$B:$B,$B87) -> 0 | F87: =SUMIFS(F_Inputs_adjusted!S:S,F_Inputs_adjusted!$A:$A,$A87,F_Inputs_adjusted!$B:$B,$B87) -> 0 | G87: =SUMIFS(F_Inputs_adjusted!T:T,F_Inputs_adjusted!$A:$A,$A87,F_Inputs_adjusted!$B:$B,$B87) -> 0 | H87: =SUMIFS(F_Inputs_adjusted!U:U,F_Inputs_adjusted!$A:$A,$A87,F_Inputs_adjusted!$B:$B,$B87) -> 0 | I87: =SUMIFS(F_Inputs_adjusted!V:V,F_Inputs_adjusted!$A:$A,$A87,F_Inputs_adjusted!$B:$B,$B87) -> 0 | J87: =SUMIFS(F_Inputs_adjusted!W:W,F_Inputs_adjusted!$A:$A,$A87,F_Inputs_adjusted!$B:$B,$B87) -> 0 | K87: =SUMIFS(F_Inputs_adjusted!X:X,F_Inputs_adjusted!$A:$A,$A87,F_Inputs_adjusted!$B:$B,$B87) -> 0 | L87: =SUMIFS(F_Inputs_adjusted!Y:Y,F_Inputs_adjusted!$A:$A,$A87,F_Inputs_adjusted!$B:$B,$B87) -> 0
A88: =F_Inputs_adjusted!A90 -> SWB | B88: =F_Inputs_adjusted!B90 -> CWW17_051TOT_PR24 | C88: =F_Inputs_adjusted!C90 -> EA/NRW environmental programme wastewater (WINEP/NEP) - Treatment for chemical removal (WINEP/NEP) wastewater totex - Total | D88: =F_Inputs_adjusted!D90 -> £m | E88: =SUMIFS(F_Inputs_adjusted!R:R,F_Inputs_adjusted!$A:$A,$A88,F_Inputs_adjusted!$B:$B,$B88) -> 0 | F88: =SUMIFS(F_Inputs_adjusted!S:S,F_Inputs_adjusted!$A:$A,$A88,F_Inputs_adjusted!$B:$B,$B88) -> 0 | G88: =SUMIFS(F_Inputs_adjusted!T:T,F_Inputs_adjusted!$A:$A,$A88,F_Inputs_adjusted!$B:$B,$B88) -> 0 | H88: =SUMIFS(F_Inputs_adjusted!U:U,F_Inputs_adjusted!$A:$A,$A88,F_Inputs_adjusted!$B:$B,$B88) -> 0 | I88: =SUMIFS(F_Inputs_adjusted!V:V,F_Inputs_adjusted!$A:$A,$A88,F_Inputs_adjusted!$B:$B,$B88) -> 0 | J88: =SUMIFS(F_Inputs_adjusted!W:W,F_Inputs_adjusted!$A:$A,$A88,F_Inputs_adjusted!$B:$B,$B88) -> 0 | K88: =SUMIFS(F_Inputs_adjusted!X:X,F_Inputs_adjusted!$A:$A,$A88,F_Inputs_adjusted!$B:$B,$B88) -> 0 | L88: =SUMIFS(F_Inputs_adjusted!Y:Y,F_Inputs_adjusted!$A:$A,$A88,F_Inputs_adjusted!$B:$B,$B88) -> 0
A89: =F_Inputs_adjusted!A91 -> SWB | B89: =F_Inputs_adjusted!B91 -> S4031_PR24 | C89: =F_Inputs_adjusted!C91 -> Sewage treatment data - Current population equivalent served by STWs with tightened/new permits for chemicals / hazardous substances | D89: =F_Inputs_adjusted!D91 -> 000s | E89: =SUMIFS(F_Inputs_adjusted!R:R,F_Inputs_adjusted!$A:$A,$A89,F_Inputs_adjusted!$B:$B,$B89) -> 0 | F89: =SUMIFS(F_Inputs_adjusted!S:S,F_Inputs_adjusted!$A:$A,$A89,F_Inputs_adjusted!$B:$B,$B89) -> 0 | G89: =SUMIFS(F_Inputs_adjusted!T:T,F_Inputs_adjusted!$A:$A,$A89,F_Inputs_adjusted!$B:$B,$B89) -> 0 | H89: =SUMIFS(F_Inputs_adjusted!U:U,F_Inputs_adjusted!$A:$A,$A89,F_Inputs_adjusted!$B:$B,$B89) -> 30.234 | I89: =SUMIFS(F_Inputs_adjusted!V:V,F_Inputs_adjusted!$A:$A,$A89,F_Inputs_adjusted!$B:$B,$B89) -> 0 | J89: =SUMIFS(F_Inputs_adjusted!W:W,F_Inputs_adjusted!$A:$A,$A89,F_Inputs_adjusted!$B:$B,$B89) -> 0 | K89: =SUMIFS(F_Inputs_adjusted!X:X,F_Inputs_adjusted!$A:$A,$A89,F_Inputs_adjusted!$B:$B,$B89) -> 0 | L89: =SUMIFS(F_Inputs_adjusted!Y:Y,F_Inputs_adjusted!$A:$A,$A89,F_Inputs_adjusted!$B:$B,$B89) -> 0
A90: =F_Inputs_adjusted!A92 -> SWB | B90: =F_Inputs_adjusted!B92 -> CWW20A_S4031_PR24 | C90: =F_Inputs_adjusted!C92 -> Sewage treatment data - Current population equivalent served by STWs with tightened/new permits for chemicals / hazardous substances | D90: =F_Inputs_adjusted!D92 -> 000s | E90: =SUMIFS(F_Inputs_adjusted!R:R,F_Inputs_adjusted!$A:$A,$A90,F_Inputs_adjusted!$B:$B,$B90) -> 0 | F90: =SUMIFS(F_Inputs_adjusted!S:S,F_Inputs_adjusted!$A:$A,$A90,F_Inputs_adjusted!$B:$B,$B90) -> 0 | G90: =SUMIFS(F_Inputs_adjusted!T:T,F_Inputs_adjusted!$A:$A,$A90,F_Inputs_adjusted!$B:$B,$B90) -> 0 | H90: =SUMIFS(F_Inputs_adjusted!U:U,F_Inputs_adjusted!$A:$A,$A90,F_Inputs_adjusted!$B:$B,$B90) -> 0 | I90: =SUMIFS(F_Inputs_adjusted!V:V,F_Inputs_adjusted!$A:$A,$A90,F_Inputs_adjusted!$B:$B,$B90) -> 0 | J90: =SUMIFS(F_Inputs_adjusted!W:W,F_Inputs_adjusted!$A:$A,$A90,F_Inputs_adjusted!$B:$B,$B90) -> 0 | K90: =SUMIFS(F_Inputs_adjusted!X:X,F_Inputs_adjusted!$A:$A,$A90,F_Inputs_adjusted!$B:$B,$B90) -> 0 | L90: =SUMIFS(F_Inputs_adjusted!Y:Y,F_Inputs_adjusted!$A:$A,$A90,F_Inputs_adjusted!$B:$B,$B90) -> 0
A91: =F_Inputs_adjusted!A93 -> SWB | B91: =F_Inputs_adjusted!B93 -> CWW20_026_PR24 | C91: =F_Inputs_adjusted!C93 -> Sewage treatment data - Total number of schemes with tightened/new chemicals/hazardous substances permits | D91: =F_Inputs_adjusted!D93 -> nr | E91: =SUMIFS(F_Inputs_adjusted!R:R,F_Inputs_adjusted!$A:$A,$A91,F_Inputs_adjusted!$B:$B,$B91) -> 0 | F91: =SUMIFS(F_Inputs_adjusted!S:S,F_Inputs_adjusted!$A:$A,$A91,F_Inputs_adjusted!$B:$B,$B91) -> 0 | G91: =SUMIFS(F_Inputs_adjusted!T:T,F_Inputs_adjusted!$A:$A,$A91,F_Inputs_adjusted!$B:$B,$B91) -> 0 | H91: =SUMIFS(F_Inputs_adjusted!U:U,F_Inputs_adjusted!$A:$A,$A91,F_Inputs_adjusted!$B:$B,$B91) -> 7 | I91: =SUMIFS(F_Inputs_adjusted!V:V,F_Inputs_adjusted!$A:$A,$A91,F_Inputs_adjusted!$B:$B,$B91) -> 0 | J91: =SUMIFS(F_Inputs_adjusted!W:W,F_Inputs_adjusted!$A:$A,$A91,F_Inputs_adjusted!$B:$B,$B91) -> 0 | K91: =SUMIFS(F_Inputs_adjusted!X:X,F_Inputs_adjusted!$A:$A,$A91,F_Inputs_adjusted!$B:$B,$B91) -> 0 | L91: =SUMIFS(F_Inputs_adjusted!Y:Y,F_Inputs_adjusted!$A:$A,$A91,F_Inputs_adjusted!$B:$B,$B91) -> 0
A92: =F_Inputs_adjusted!A94 -> SWB | B92: =F_Inputs_adjusted!B94 -> CWW20A_026_PR24 | C92: =F_Inputs_adjusted!C94 -> Sewage treatment data - Total number of schemes with tightened/new chemicals/hazardous substances permits | D92: =F_Inputs_adjusted!D94 -> nr | E92: =SUMIFS(F_Inputs_adjusted!R:R,F_Inputs_adjusted!$A:$A,$A92,F_Inputs_adjusted!$B:$B,$B92) -> 0 | F92: =SUMIFS(F_Inputs_adjusted!S:S,F_Inputs_adjusted!$A:$A,$A92,F_Inputs_adjusted!$B:$B,$B92) -> 0 | G92: =SUMIFS(F_Inputs_adjusted!T:T,F_Inputs_adjusted!$A:$A,$A92,F_Inputs_adjusted!$B:$B,$B92) -> 0 | H92: =SUMIFS(F_Inputs_adjusted!U:U,F_Inputs_adjusted!$A:$A,$A92,F_Inputs_adjusted!$B:$B,$B92) -> 0 | I92: =SUMIFS(F_Inputs_adjusted!V:V,F_Inputs_adjusted!$A:$A,$A92,F_Inputs_adjusted!$B:$B,$B92) -> 0 | J92: =SUMIFS(F_Inputs_adjusted!W:W,F_Inputs_adjusted!$A:$A,$A92,F_Inputs_adjusted!$B:$B,$B92) -> 0 | K92: =SUMIFS(F_Inputs_adjusted!X:X,F_Inputs_adjusted!$A:$A,$A92,F_Inputs_adjusted!$B:$B,$B92) -> 0 | L92: =SUMIFS(F_Inputs_adjusted!Y:Y,F_Inputs_adjusted!$A:$A,$A92,F_Inputs_adjusted!$B:$B,$B92) -> 0
A93: =F_Inputs_adjusted!A95 -> SWB | B93: =F_Inputs_adjusted!B95 -> PR24_E_WW051_TOTAL | C93: =F_Inputs_adjusted!C95 -> PR24 BP EA/NRW environmental programme wastewater (WINEP/NEP) - Treatment for chemical removal (WINEP/NEP) wastewater totex - Total inc. accelerated & transition costs | D93: =F_Inputs_adjusted!D95 -> £m | E93: =SUMIFS(F_Inputs_adjusted!R:R,F_Inputs_adjusted!$A:$A,$A93,F_Inputs_adjusted!$B:$B,$B93) -> 0 | F93: =SUMIFS(F_Inputs_adjusted!S:S,F_Inputs_adjusted!$A:$A,$A93,F_Inputs_adjusted!$B:$B,$B93) -> 0 | G93: =SUMIFS(F_Inputs_adjusted!T:T,F_Inputs_adjusted!$A:$A,$A93,F_Inputs_adjusted!$B:$B,$B93) -> 0 | H93: =SUMIFS(F_Inputs_adjusted!U:U,F_Inputs_adjusted!$A:$A,$A93,F_Inputs_adjusted!$B:$B,$B93) -> 0 | I93: =SUMIFS(F_Inputs_adjusted!V:V,F_Inputs_adjusted!$A:$A,$A93,F_Inputs_adjusted!$B:$B,$B93) -> 0 | J93: =SUMIFS(F_Inputs_adjusted!W:W,F_Inputs_adjusted!$A:$A,$A93,F_Inputs_adjusted!$B:$B,$B93) -> 0 | K93: =SUMIFS(F_Inputs_adjusted!X:X,F_Inputs_adjusted!$A:$A,$A93,F_Inputs_adjusted!$B:$B,$B93) -> 0 | L93: =SUMIFS(F_Inputs_adjusted!Y:Y,F_Inputs_adjusted!$A:$A,$A93,F_Inputs_adjusted!$B:$B,$B93) -> 15.036
A94: =F_Inputs_adjusted!A96 -> SWB | B94: =F_Inputs_adjusted!B96 -> PR24_NETTOTEX_WASTE | C94: =F_Inputs_adjusted!C96 -> PR24 BP Net totex - Total inc. accelerated & transition costs | D94: =F_Inputs_adjusted!D96 -> £m | E94: =SUMIFS(F_Inputs_adjusted!R:R,F_Inputs_adjusted!$A:$A,$A94,F_Inputs_adjusted!$B:$B,$B94) -> 0 | F94: =SUMIFS(F_Inputs_adjusted!S:S,F_Inputs_adjusted!$A:$A,$A94,F_Inputs_adjusted!$B:$B,$B94) -> 0 | G94: =SUMIFS(F_Inputs_adjusted!T:T,F_Inputs_adjusted!$A:$A,$A94,F_Inputs_adjusted!$B:$B,$B94) -> 0 | H94: =SUMIFS(F_Inputs_adjusted!U:U,F_Inputs_adjusted!$A:$A,$A94,F_Inputs_adjusted!$B:$B,$B94) -> 0 | I94: =SUMIFS(F_Inputs_adjusted!V:V,F_Inputs_adjusted!$A:$A,$A94,F_Inputs_adjusted!$B:$B,$B94) -> 0 | J94: =SUMIFS(F_Inputs_adjusted!W:W,F_Inputs_adjusted!$A:$A,$A94,F_Inputs_adjusted!$B:$B,$B94) -> 0 | K94: =SUMIFS(F_Inputs_adjusted!X:X,F_Inputs_adjusted!$A:$A,$A94,F_Inputs_adjusted!$B:$B,$B94) -> 0 | L94: =SUMIFS(F_Inputs_adjusted!Y:Y,F_Inputs_adjusted!$A:$A,$A94,F_Inputs_adjusted!$B:$B,$B94) -> 2220.37926
A95: =F_Inputs_adjusted!A97 -> SRN | B95: =F_Inputs_adjusted!B97 -> CWW3_049TOT_PR24 | C95: =F_Inputs_adjusted!C97 -> EA/NRW environmental programme wastewater (WINEP/NEP) - Treatment for chemical removal (WINEP/NEP) wastewater capex - Total | D95: =F_Inputs_adjusted!D97 -> £m | E95: =SUMIFS(F_Inputs_adjusted!R:R,F_Inputs_adjusted!$A:$A,$A95,F_Inputs_adjusted!$B:$B,$B95) -> 0 | F95: =SUMIFS(F_Inputs_adjusted!S:S,F_Inputs_adjusted!$A:$A,$A95,F_Inputs_adjusted!$B:$B,$B95) -> 0 | G95: =SUMIFS(F_Inputs_adjusted!T:T,F_Inputs_adjusted!$A:$A,$A95,F_Inputs_adjusted!$B:$B,$B95) -> 0.665 | H95: =SUMIFS(F_Inputs_adjusted!U:U,F_Inputs_adjusted!$A:$A,$A95,F_Inputs_adjusted!$B:$B,$B95) -> 4.564 | I95: =SUMIFS(F_Inputs_adjusted!V:V,F_Inputs_adjusted!$A:$A,$A95,F_Inputs_adjusted!$B:$B,$B95) -> 5.026 | J95: =SUMIFS(F_Inputs_adjusted!W:W,F_Inputs_adjusted!$A:$A,$A95,F_Inputs_adjusted!$B:$B,$B95) -> 6.647 | K95: =SUMIFS(F_Inputs_adjusted!X:X,F_Inputs_adjusted!$A:$A,$A95,F_Inputs_adjusted!$B:$B,$B95) -> 1.508 | L95: =SUMIFS(F_Inputs_adjusted!Y:Y,F_Inputs_adjusted!$A:$A,$A95,F_Inputs_adjusted!$B:$B,$B95) -> 0
A96: =F_Inputs_adjusted!A98 -> SRN | B96: =F_Inputs_adjusted!B98 -> CWW3_050TOT_PR24 | C96: =F_Inputs_adjusted!C98 -> EA/NRW environmental programme wastewater (WINEP/NEP) - Treatment for chemical removal (WINEP/NEP) wastewater opex - Total | D96: =F_Inputs_adjusted!D98 -> £m | E96: =SUMIFS(F_Inputs_adjusted!R:R,F_Inputs_adjusted!$A:$A,$A96,F_Inputs_adjusted!$B:$B,$B96) -> 0 | F96: =SUMIFS(F_Inputs_adjusted!S:S,F_Inputs_adjusted!$A:$A,$A96,F_Inputs_adjusted!$B:$B,$B96) -> 0 | G96: =SUMIFS(F_Inputs_adjusted!T:T,F_Inputs_adjusted!$A:$A,$A96,F_Inputs_adjusted!$B:$B,$B96) -> 0 | H96: =SUMIFS(F_Inputs_adjusted!U:U,F_Inputs_adjusted!$A:$A,$A96,F_Inputs_adjusted!$B:$B,$B96) -> 0 | I96: =SUMIFS(F_Inputs_adjusted!V:V,F_Inputs_adjusted!$A:$A,$A96,F_Inputs_adjusted!$B:$B,$B96) -> 0.1 | J96: =SUMIFS(F_Inputs_adjusted!W:W,F_Inputs_adjusted!$A:$A,$A96,F_Inputs_adjusted!$B:$B,$B96) -> 0.2 | K96: =SUMIFS(F_Inputs_adjusted!X:X,F_Inputs_adjusted!$A:$A,$A96,F_Inputs_adjusted!$B:$B,$B96) -> 0.244 | L96: =SUMIFS(F_Inputs_adjusted!Y:Y,F_Inputs_adjusted!$A:$A,$A96,F_Inputs_adjusted!$B:$B,$B96) -> 0
A97: =F_Inputs_adjusted!A99 -> SRN | B97: =F_Inputs_adjusted!B99 -> CWW3_051TOT_PR24 | C97: =F_Inputs_adjusted!C99 -> EA/NRW environmental programme wastewater (WINEP/NEP) - Treatment for chemical removal (WINEP/NEP) wastewater totex - Total | D97: =F_Inputs_adjusted!D99 -> £m | E97: =SUMIFS(F_Inputs_adjusted!R:R,F_Inputs_adjusted!$A:$A,$A97,F_Inputs_adjusted!$B:$B,$B97) -> 0 | F97: =SUMIFS(F_Inputs_adjusted!S:S,F_Inputs_adjusted!$A:$A,$A97,F_Inputs_adjusted!$B:$B,$B97) -> 0 | G97: =SUMIFS(F_Inputs_adjusted!T:T,F_Inputs_adjusted!$A:$A,$A97,F_Inputs_adjusted!$B:$B,$B97) -> 0.665 | H97: =SUMIFS(F_Inputs_adjusted!U:U,F_Inputs_adjusted!$A:$A,$A97,F_Inputs_adjusted!$B:$B,$B97) -> 4.564 | I97: =SUMIFS(F_Inputs_adjusted!V:V,F_Inputs_adjusted!$A:$A,$A97,F_Inputs_adjusted!$B:$B,$B97) -> 5.126 | J97: =SUMIFS(F_Inputs_adjusted!W:W,F_Inputs_adjusted!$A:$A,$A97,F_Inputs_adjusted!$B:$B,$B97) -> 6.847 | K97: =SUMIFS(F_Inputs_adjusted!X:X,F_Inputs_adjusted!$A:$A,$A97,F_Inputs_adjusted!$B:$B,$B97) -> 1.752 | L97: =SUMIFS(F_Inputs_adjusted!Y:Y,F_Inputs_adjusted!$A:$A,$A97,F_Inputs_adjusted!$B:$B,$B97) -> 0
A98: =F_Inputs_adjusted!A100 -> SRN | B98: =F_Inputs_adjusted!B100 -> CWW12_049TOT_PR24 | C98: =F_Inputs_adjusted!C100 -> EA/NRW environmental programme wastewater (WINEP/NEP) - Treatment for chemical removal (WINEP/NEP) wastewater capex - Total | D98: =F_Inputs_adjusted!D100 -> £m | E98: =SUMIFS(F_Inputs_adjusted!R:R,F_Inputs_adjusted!$A:$A,$A98,F_Inputs_adjusted!$B:$B,$B98) -> 0 | F98: =SUMIFS(F_Inputs_adjusted!S:S,F_Inputs_adjusted!$A:$A,$A98,F_Inputs_adjusted!$B:$B,$B98) -> 0 | G98: =SUMIFS(F_Inputs_adjusted!T:T,F_Inputs_adjusted!$A:$A,$A98,F_Inputs_adjusted!$B:$B,$B98) -> 0 | H98: =SUMIFS(F_Inputs_adjusted!U:U,F_Inputs_adjusted!$A:$A,$A98,F_Inputs_adjusted!$B:$B,$B98) -> 0 | I98: =SUMIFS(F_Inputs_adjusted!V:V,F_Inputs_adjusted!$A:$A,$A98,F_Inputs_adjusted!$B:$B,$B98) -> 0 | J98: =SUMIFS(F_Inputs_adjusted!W:W,F_Inputs_adjusted!$A:$A,$A98,F_Inputs_adjusted!$B:$B,$B98) -> 0 | K98: =SUMIFS(F_Inputs_adjusted!X:X,F_Inputs_adjusted!$A:$A,$A98,F_Inputs_adjusted!$B:$B,$B98) -> 0 | L98: =SUMIFS(F_Inputs_adjusted!Y:Y,F_Inputs_adjusted!$A:$A,$A98,F_Inputs_adjusted!$B:$B,$B98) -> 0
A99: =F_Inputs_adjusted!A101 -> SRN | B99: =F_Inputs_adjusted!B101 -> CWW12_050TOT_PR24 | C99: =F_Inputs_adjusted!C101 -> EA/NRW environmental programme wastewater (WINEP/NEP) - Treatment for chemical removal (WINEP/NEP) wastewater opex - Total | D99: =F_Inputs_adjusted!D101 -> £m | E99: =SUMIFS(F_Inputs_adjusted!R:R,F_Inputs_adjusted!$A:$A,$A99,F_Inputs_adjusted!$B:$B,$B99) -> 0 | F99: =SUMIFS(F_Inputs_adjusted!S:S,F_Inputs_adjusted!$A:$A,$A99,F_Inputs_adjusted!$B:$B,$B99) -> 0 | G99: =SUMIFS(F_Inputs_adjusted!T:T,F_Inputs_adjusted!$A:$A,$A99,F_Inputs_adjusted!$B:$B,$B99) -> 0 | H99: =SUMIFS(F_Inputs_adjusted!U:U,F_Inputs_adjusted!$A:$A,$A99,F_Inputs_adjusted!$B:$B,$B99) -> 0 | I99: =SUMIFS(F_Inputs_adjusted!V:V,F_Inputs_adjusted!$A:$A,$A99,F_Inputs_adjusted!$B:$B,$B99) -> 0 | J99: =SUMIFS(F_Inputs_adjusted!W:W,F_Inputs_adjusted!$A:$A,$A99,F_Inputs_adjusted!$B:$B,$B99) -> 0 | K99: =SUMIFS(F_Inputs_adjusted!X:X,F_Inputs_adjusted!$A:$A,$A99,F_Inputs_adjusted!$B:$B,$B99) -> 0 | L99: =SUMIFS(F_Inputs_adjusted!Y:Y,F_Inputs_adjusted!$A:$A,$A99,F_Inputs_adjusted!$B:$B,$B99) -> 0
A100: =F_Inputs_adjusted!A102 -> SRN | B100: =F_Inputs_adjusted!B102 -> CWW12_051TOT_PR24 | C100: =F_Inputs_adjusted!C102 -> EA/NRW environmental programme wastewater (WINEP/NEP) - Treatment for chemical removal (WINEP/NEP) wastewater totex - Total | D100: =F_Inputs_adjusted!D102 -> £m | E100: =SUMIFS(F_Inputs_adjusted!R:R,F_Inputs_adjusted!$A:$A,$A100,F_Inputs_adjusted!$B:$B,$B100) -> 0 | F100: =SUMIFS(F_Inputs_adjusted!S:S,F_Inputs_adjusted!$A:$A,$A100,F_Inputs_adjusted!$B:$B,$B100) -> 0 | G100: =SUMIFS(F_Inputs_adjusted!T:T,F_Inputs_adjusted!$A:$A,$A100,F_Inputs_adjusted!$B:$B,$B100) -> 0 | H100: =SUMIFS(F_Inputs_adjusted!U:U,F_Inputs_adjusted!$A:$A,$A100,F_Inputs_adjusted!$B:$B,$B100) -> 0 | I100: =SUMIFS(F_Inputs_adjusted!V:V,F_Inputs_adjusted!$A:$A,$A100,F_Inputs_adjusted!$B:$B,$B100) -> 0 | J100: =SUMIFS(F_Inputs_adjusted!W:W,F_Inputs_adjusted!$A:$A,$A100,F_Inputs_adjusted!$B:$B,$B100) -> 0 | K100: =SUMIFS(F_Inputs_adjusted!X:X,F_Inputs_adjusted!$A:$A,$A100,F_Inputs_adjusted!$B:$B,$B100) -> 0 | L100: =SUMIFS(F_Inputs_adjusted!Y:Y,F_Inputs_adjusted!$A:$A,$A100,F_Inputs_adjusted!$B:$B,$B100) -> 0
A101: =F_Inputs_adjusted!A103 -> SRN | B101: =F_Inputs_adjusted!B103 -> CWW17_049TOT_PR24 | C101: =F_Inputs_adjusted!C103 -> EA/NRW environmental programme wastewater (WINEP/NEP) - Treatment for chemical removal (WINEP/NEP) wastewater capex - Total | D101: =F_Inputs_adjusted!D103 -> £m | E101: =SUMIFS(F_Inputs_adjusted!R:R,F_Inputs_adjusted!$A:$A,$A101,F_Inputs_adjusted!$B:$B,$B101) -> 0 | F101: =SUMIFS(F_Inputs_adjusted!S:S,F_Inputs_adjusted!$A:$A,$A101,F_Inputs_adjusted!$B:$B,$B101) -> 0 | G101: =SUMIFS(F_Inputs_adjusted!T:T,F_Inputs_adjusted!$A:$A,$A101,F_Inputs_adjusted!$B:$B,$B101) -> 0 | H101: =SUMIFS(F_Inputs_adjusted!U:U,F_Inputs_adjusted!$A:$A,$A101,F_Inputs_adjusted!$B:$B,$B101) -> 0 | I101: =SUMIFS(F_Inputs_adjusted!V:V,F_Inputs_adjusted!$A:$A,$A101,F_Inputs_adjusted!$B:$B,$B101) -> 0 | J101: =SUMIFS(F_Inputs_adjusted!W:W,F_Inputs_adjusted!$A:$A,$A101,F_Inputs_adjusted!$B:$B,$B101) -> 0 | K101: =SUMIFS(F_Inputs_adjusted!X:X,F_Inputs_adjusted!$A:$A,$A101,F_Inputs_adjusted!$B:$B,$B101) -> 0 | L101: =SUMIFS(F_Inputs_adjusted!Y:Y,F_Inputs_adjusted!$A:$A,$A101,F_Inputs_adjusted!$B:$B,$B101) -> 0
A102: =F_Inputs_adjusted!A104 -> SRN | B102: =F_Inputs_adjusted!B104 -> CWW17_050TOT_PR24 | C102: =F_Inputs_adjusted!C104 -> EA/NRW environmental programme wastewater (WINEP/NEP) - Treatment for chemical removal (WINEP/NEP) wastewater opex - Total | D102: =F_Inputs_adjusted!D104 -> £m | E102: =SUMIFS(F_Inputs_adjusted!R:R,F_Inputs_adjusted!$A:$A,$A102,F_Inputs_adjusted!$B:$B,$B102) -> 0 | F102: =SUMIFS(F_Inputs_adjusted!S:S,F_Inputs_adjusted!$A:$A,$A102,F_Inputs_adjusted!$B:$B,$B102) -> 0 | G102: =SUMIFS(F_Inputs_adjusted!T:T,F_Inputs_adjusted!$A:$A,$A102,F_Inputs_adjusted!$B:$B,$B102) -> 0 | H102: =SUMIFS(F_Inputs_adjusted!U:U,F_Inputs_adjusted!$A:$A,$A102,F_Inputs_adjusted!$B:$B,$B102) -> 0 | I102: =SUMIFS(F_Inputs_adjusted!V:V,F_Inputs_adjusted!$A:$A,$A102,F_Inputs_adjusted!$B:$B,$B102) -> 0 | J102: =SUMIFS(F_Inputs_adjusted!W:W,F_Inputs_adjusted!$A:$A,$A102,F_Inputs_adjusted!$B:$B,$B102) -> 0 | K102: =SUMIFS(F_Inputs_adjusted!X:X,F_Inputs_adjusted!$A:$A,$A102,F_Inputs_adjusted!$B:$B,$B102) -> 0 | L102: =SUMIFS(F_Inputs_adjusted!Y:Y,F_Inputs_adjusted!$A:$A,$A102,F_Inputs_adjusted!$B:$B,$B102) -> 0
A103: =F_Inputs_adjusted!A105 -> SRN | B103: =F_Inputs_adjusted!B105 -> CWW17_051TOT_PR24 | C103: =F_Inputs_adjusted!C105 -> EA/NRW environmental programme wastewater (WINEP/NEP) - Treatment for chemical removal (WINEP/NEP) wastewater totex - Total | D103: =F_Inputs_adjusted!D105 -> £m | E103: =SUMIFS(F_Inputs_adjusted!R:R,F_Inputs_adjusted!$A:$A,$A103,F_Inputs_adjusted!$B:$B,$B103) -> 0 | F103: =SUMIFS(F_Inputs_adjusted!S:S,F_Inputs_adjusted!$A:$A,$A103,F_Inputs_adjusted!$B:$B,$B103) -> 0 | G103: =SUMIFS(F_Inputs_adjusted!T:T,F_Inputs_adjusted!$A:$A,$A103,F_Inputs_adjusted!$B:$B,$B103) -> 0 | H103: =SUMIFS(F_Inputs_adjusted!U:U,F_Inputs_adjusted!$A:$A,$A103,F_Inputs_adjusted!$B:$B,$B103) -> 0 | I103: =SUMIFS(F_Inputs_adjusted!V:V,F_Inputs_adjusted!$A:$A,$A103,F_Inputs_adjusted!$B:$B,$B103) -> 0 | J103: =SUMIFS(F_Inputs_adjusted!W:W,F_Inputs_adjusted!$A:$A,$A103,F_Inputs_adjusted!$B:$B,$B103) -> 0 | K103: =SUMIFS(F_Inputs_adjusted!X:X,F_Inputs_adjusted!$A:$A,$A103,F_Inputs_adjusted!$B:$B,$B103) -> 0 | L103: =SUMIFS(F_Inputs_adjusted!Y:Y,F_Inputs_adjusted!$A:$A,$A103,F_Inputs_adjusted!$B:$B,$B103) -> 0
A104: =F_Inputs_adjusted!A106 -> SRN | B104: =F_Inputs_adjusted!B106 -> S4031_PR24 | C104: =F_Inputs_adjusted!C106 -> Sewage treatment data - Current population equivalent served by STWs with tightened/new permits for chemicals / hazardous substances | D104: =F_Inputs_adjusted!D106 -> 000s | E104: =SUMIFS(F_Inputs_adjusted!R:R,F_Inputs_adjusted!$A:$A,$A104,F_Inputs_adjusted!$B:$B,$B104) -> 0 | F104: =SUMIFS(F_Inputs_adjusted!S:S,F_Inputs_adjusted!$A:$A,$A104,F_Inputs_adjusted!$B:$B,$B104) -> 0 | G104: =SUMIFS(F_Inputs_adjusted!T:T,F_Inputs_adjusted!$A:$A,$A104,F_Inputs_adjusted!$B:$B,$B104) -> 0 | H104: =SUMIFS(F_Inputs_adjusted!U:U,F_Inputs_adjusted!$A:$A,$A104,F_Inputs_adjusted!$B:$B,$B104) -> 571.596 | I104: =SUMIFS(F_Inputs_adjusted!V:V,F_Inputs_adjusted!$A:$A,$A104,F_Inputs_adjusted!$B:$B,$B104) -> 0 | J104: =SUMIFS(F_Inputs_adjusted!W:W,F_Inputs_adjusted!$A:$A,$A104,F_Inputs_adjusted!$B:$B,$B104) -> 0 | K104: =SUMIFS(F_Inputs_adjusted!X:X,F_Inputs_adjusted!$A:$A,$A104,F_Inputs_adjusted!$B:$B,$B104) -> 261.359 | L104: =SUMIFS(F_Inputs_adjusted!Y:Y,F_Inputs_adjusted!$A:$A,$A104,F_Inputs_adjusted!$B:$B,$B104) -> 0
A105: =F_Inputs_adjusted!A107 -> SRN | B105: =F_Inputs_adjusted!B107 -> CWW20A_S4031_PR24 | C105: =F_Inputs_adjusted!C107 -> Sewage treatment data - Current population equivalent served by STWs with tightened/new permits for chemicals / hazardous substances | D105: =F_Inputs_adjusted!D107 -> 000s | E105: =SUMIFS(F_Inputs_adjusted!R:R,F_Inputs_adjusted!$A:$A,$A105,F_Inputs_adjusted!$B:$B,$B105) -> 0 | F105: =SUMIFS(F_Inputs_adjusted!S:S,F_Inputs_adjusted!$A:$A,$A105,F_Inputs_adjusted!$B:$B,$B105) -> 0 | G105: =SUMIFS(F_Inputs_adjusted!T:T,F_Inputs_adjusted!$A:$A,$A105,F_Inputs_adjusted!$B:$B,$B105) -> 0 | H105: =SUMIFS(F_Inputs_adjusted!U:U,F_Inputs_adjusted!$A:$A,$A105,F_Inputs_adjusted!$B:$B,$B105) -> 0 | I105: =SUMIFS(F_Inputs_adjusted!V:V,F_Inputs_adjusted!$A:$A,$A105,F_Inputs_adjusted!$B:$B,$B105) -> 0 | J105: =SUMIFS(F_Inputs_adjusted!W:W,F_Inputs_adjusted!$A:$A,$A105,F_Inputs_adjusted!$B:$B,$B105) -> 0 | K105: =SUMIFS(F_Inputs_adjusted!X:X,F_Inputs_adjusted!$A:$A,$A105,F_Inputs_adjusted!$B:$B,$B105) -> 0 | L105: =SUMIFS(F_Inputs_adjusted!Y:Y,F_Inputs_adjusted!$A:$A,$A105,F_Inputs_adjusted!$B:$B,$B105) -> 0
A106: =F_Inputs_adjusted!A108 -> SRN | B106: =F_Inputs_adjusted!B108 -> CWW20_026_PR24 | C106: =F_Inputs_adjusted!C108 -> Sewage treatment data - Total number of schemes with tightened/new chemicals/hazardous substances permits | D106: =F_Inputs_adjusted!D108 -> nr | E106: =SUMIFS(F_Inputs_adjusted!R:R,F_Inputs_adjusted!$A:$A,$A106,F_Inputs_adjusted!$B:$B,$B106) -> 0 | F106: =SUMIFS(F_Inputs_adjusted!S:S,F_Inputs_adjusted!$A:$A,$A106,F_Inputs_adjusted!$B:$B,$B106) -> 0 | G106: =SUMIFS(F_Inputs_adjusted!T:T,F_Inputs_adjusted!$A:$A,$A106,F_Inputs_adjusted!$B:$B,$B106) -> 0 | H106: =SUMIFS(F_Inputs_adjusted!U:U,F_Inputs_adjusted!$A:$A,$A106,F_Inputs_adjusted!$B:$B,$B106) -> 22 | I106: =SUMIFS(F_Inputs_adjusted!V:V,F_Inputs_adjusted!$A:$A,$A106,F_Inputs_adjusted!$B:$B,$B106) -> 0 | J106: =SUMIFS(F_Inputs_adjusted!W:W,F_Inputs_adjusted!$A:$A,$A106,F_Inputs_adjusted!$B:$B,$B106) -> 0 | K106: =SUMIFS(F_Inputs_adjusted!X:X,F_Inputs_adjusted!$A:$A,$A106,F_Inputs_adjusted!$B:$B,$B106) -> 13 | L106: =SUMIFS(F_Inputs_adjusted!Y:Y,F_Inputs_adjusted!$A:$A,$A106,F_Inputs_adjusted!$B:$B,$B106) -> 0
A107: =F_Inputs_adjusted!A109 -> SRN | B107: =F_Inputs_adjusted!B109 -> CWW20A_026_PR24 | C107: =F_Inputs_adjusted!C109 -> Sewage treatment data - Total number of schemes with tightened/new chemicals/hazardous substances permits | D107: =F_Inputs_adjusted!D109 -> nr | E107: =SUMIFS(F_Inputs_adjusted!R:R,F_Inputs_adjusted!$A:$A,$A107,F_Inputs_adjusted!$B:$B,$B107) -> 0 | F107: =SUMIFS(F_Inputs_adjusted!S:S,F_Inputs_adjusted!$A:$A,$A107,F_Inputs_adjusted!$B:$B,$B107) -> 0 | G107: =SUMIFS(F_Inputs_adjusted!T:T,F_Inputs_adjusted!$A:$A,$A107,F_Inputs_adjusted!$B:$B,$B107) -> 0 | H107: =SUMIFS(F_Inputs_adjusted!U:U,F_Inputs_adjusted!$A:$A,$A107,F_Inputs_adjusted!$B:$B,$B107) -> 0 | I107: =SUMIFS(F_Inputs_adjusted!V:V,F_Inputs_adjusted!$A:$A,$A107,F_Inputs_adjusted!$B:$B,$B107) -> 0 | J107: =SUMIFS(F_Inputs_adjusted!W:W,F_Inputs_adjusted!$A:$A,$A107,F_Inputs_adjusted!$B:$B,$B107) -> 0 | K107: =SUMIFS(F_Inputs_adjusted!X:X,F_Inputs_adjusted!$A:$A,$A107,F_Inputs_adjusted!$B:$B,$B107) -> 0 | L107: =SUMIFS(F_Inputs_adjusted!Y:Y,F_Inputs_adjusted!$A:$A,$A107,F_Inputs_adjusted!$B:$B,$B107) -> 0
A108: =F_Inputs_adjusted!A110 -> SRN | B108: =F_Inputs_adjusted!B110 -> PR24_E_WW051_TOTAL | C108: =F_Inputs_adjusted!C110 -> PR24 BP EA/NRW environmental programme wastewater (WINEP/NEP) - Treatment for chemical removal (WINEP/NEP) wastewater totex - Total inc. accelerated & transition costs | D108: =F_Inputs_adjusted!D110 -> £m | E108: =SUMIFS(F_Inputs_adjusted!R:R,F_Inputs_adjusted!$A:$A,$A108,F_Inputs_adjusted!$B:$B,$B108) -> 0 | F108: =SUMIFS(F_Inputs_adjusted!S:S,F_Inputs_adjusted!$A:$A,$A108,F_Inputs_adjusted!$B:$B,$B108) -> 0 | G108: =SUMIFS(F_Inputs_adjusted!T:T,F_Inputs_adjusted!$A:$A,$A108,F_Inputs_adjusted!$B:$B,$B108) -> 0 | H108: =SUMIFS(F_Inputs_adjusted!U:U,F_Inputs_adjusted!$A:$A,$A108,F_Inputs_adjusted!$B:$B,$B108) -> 0 | I108: =SUMIFS(F_Inputs_adjusted!V:V,F_Inputs_adjusted!$A:$A,$A108,F_Inputs_adjusted!$B:$B,$B108) -> 0 | J108: =SUMIFS(F_Inputs_adjusted!W:W,F_Inputs_adjusted!$A:$A,$A108,F_Inputs_adjusted!$B:$B,$B108) -> 0 | K108: =SUMIFS(F_Inputs_adjusted!X:X,F_Inputs_adjusted!$A:$A,$A108,F_Inputs_adjusted!$B:$B,$B108) -> 0 | L108: =SUMIFS(F_Inputs_adjusted!Y:Y,F_Inputs_adjusted!$A:$A,$A108,F_Inputs_adjusted!$B:$B,$B108) -> 18.954
A109: =F_Inputs_adjusted!A111 -> SRN | B109: =F_Inputs_adjusted!B111 -> PR24_NETTOTEX_WASTE | C109: =F_Inputs_adjusted!C111 -> PR24 BP Net totex - Total inc. accelerated & transition costs | D109: =F_Inputs_adjusted!D111 -> £m | E109: =SUMIFS(F_Inputs_adjusted!R:R,F_Inputs_adjusted!$A:$A,$A109,F_Inputs_adjusted!$B:$B,$B109) -> 0 | F109: =SUMIFS(F_Inputs_adjusted!S:S,F_Inputs_adjusted!$A:$A,$A109,F_Inputs_adjusted!$B:$B,$B109) -> 0 | G109: =SUMIFS(F_Inputs_adjusted!T:T,F_Inputs_adjusted!$A:$A,$A109,F_Inputs_adjusted!$B:$B,$B109) -> 0 | H109: =SUMIFS(F_Inputs_adjusted!U:U,F_Inputs_adjusted!$A:$A,$A109,F_Inputs_adjusted!$B:$B,$B109) -> 0 | I109: =SUMIFS(F_Inputs_adjusted!V:V,F_Inputs_adjusted!$A:$A,$A109,F_Inputs_adjusted!$B:$B,$B109) -> 0 | J109: =SUMIFS(F_Inputs_adjusted!W:W,F_Inputs_adjusted!$A:$A,$A109,F_Inputs_adjusted!$B:$B,$B109) -> 0 | K109: =SUMIFS(F_Inputs_adjusted!X:X,F_Inputs_adjusted!$A:$A,$A109,F_Inputs_adjusted!$B:$B,$B109) -> 0 | L109: =SUMIFS(F_Inputs_adjusted!Y:Y,F_Inputs_adjusted!$A:$A,$A109,F_Inputs_adjusted!$B:$B,$B109) -> 5114.195692
A110: =F_Inputs_adjusted!A112 -> TMS | B110: =F_Inputs_adjusted!B112 -> CWW3_049TOT_PR24 | C110: =F_Inputs_adjusted!C112 -> EA/NRW environmental programme wastewater (WINEP/NEP) - Treatment for chemical removal (WINEP/NEP) wastewater capex - Total | D110: =F_Inputs_adjusted!D112 -> £m | E110: =SUMIFS(F_Inputs_adjusted!R:R,F_Inputs_adjusted!$A:$A,$A110,F_Inputs_adjusted!$B:$B,$B110) -> 0 | F110: =SUMIFS(F_Inputs_adjusted!S:S,F_Inputs_adjusted!$A:$A,$A110,F_Inputs_adjusted!$B:$B,$B110) -> 0 | G110: =SUMIFS(F_Inputs_adjusted!T:T,F_Inputs_adjusted!$A:$A,$A110,F_Inputs_adjusted!$B:$B,$B110) -> 0 | H110: =SUMIFS(F_Inputs_adjusted!U:U,F_Inputs_adjusted!$A:$A,$A110,F_Inputs_adjusted!$B:$B,$B110) -> 0 | I110: =SUMIFS(F_Inputs_adjusted!V:V,F_Inputs_adjusted!$A:$A,$A110,F_Inputs_adjusted!$B:$B,$B110) -> 20.777 | J110: =SUMIFS(F_Inputs_adjusted!W:W,F_Inputs_adjusted!$A:$A,$A110,F_Inputs_adjusted!$B:$B,$B110) -> 51.942 | K110: =SUMIFS(F_Inputs_adjusted!X:X,F_Inputs_adjusted!$A:$A,$A110,F_Inputs_adjusted!$B:$B,$B110) -> 135.05 | L110: =SUMIFS(F_Inputs_adjusted!Y:Y,F_Inputs_adjusted!$A:$A,$A110,F_Inputs_adjusted!$B:$B,$B110) -> 0
A111: =F_Inputs_adjusted!A113 -> TMS | B111: =F_Inputs_adjusted!B113 -> CWW3_050TOT_PR24 | C111: =F_Inputs_adjusted!C113 -> EA/NRW environmental programme wastewater (WINEP/NEP) - Treatment for chemical removal (WINEP/NEP) wastewater opex - Total | D111: =F_Inputs_adjusted!D113 -> £m | E111: =SUMIFS(F_Inputs_adjusted!R:R,F_Inputs_adjusted!$A:$A,$A111,F_Inputs_adjusted!$B:$B,$B111) -> 0 | F111: =SUMIFS(F_Inputs_adjusted!S:S,F_Inputs_adjusted!$A:$A,$A111,F_Inputs_adjusted!$B:$B,$B111) -> 0 | G111: =SUMIFS(F_Inputs_adjusted!T:T,F_Inputs_adjusted!$A:$A,$A111,F_Inputs_adjusted!$B:$B,$B111) -> 0.467 | H111: =SUMIFS(F_Inputs_adjusted!U:U,F_Inputs_adjusted!$A:$A,$A111,F_Inputs_adjusted!$B:$B,$B111) -> 0.314 | I111: =SUMIFS(F_Inputs_adjusted!V:V,F_Inputs_adjusted!$A:$A,$A111,F_Inputs_adjusted!$B:$B,$B111) -> 1.549 | J111: =SUMIFS(F_Inputs_adjusted!W:W,F_Inputs_adjusted!$A:$A,$A111,F_Inputs_adjusted!$B:$B,$B111) -> 3.65 | K111: =SUMIFS(F_Inputs_adjusted!X:X,F_Inputs_adjusted!$A:$A,$A111,F_Inputs_adjusted!$B:$B,$B111) -> 4.302 | L111: =SUMIFS(F_Inputs_adjusted!Y:Y,F_Inputs_adjusted!$A:$A,$A111,F_Inputs_adjusted!$B:$B,$B111) -> 0
A112: =F_Inputs_adjusted!A114 -> TMS | B112: =F_Inputs_adjusted!B114 -> CWW3_051TOT_PR24 | C112: =F_Inputs_adjusted!C114 -> EA/NRW environmental programme wastewater (WINEP/NEP) - Treatment for chemical removal (WINEP/NEP) wastewater totex - Total | D112: =F_Inputs_adjusted!D114 -> £m | E112: =SUMIFS(F_Inputs_adjusted!R:R,F_Inputs_adjusted!$A:$A,$A112,F_Inputs_adjusted!$B:$B,$B112) -> 0 | F112: =SUMIFS(F_Inputs_adjusted!S:S,F_Inputs_adjusted!$A:$A,$A112,F_Inputs_adjusted!$B:$B,$B112) -> 0 | G112: =SUMIFS(F_Inputs_adjusted!T:T,F_Inputs_adjusted!$A:$A,$A112,F_Inputs_adjusted!$B:$B,$B112) -> 0.467 | H112: =SUMIFS(F_Inputs_adjusted!U:U,F_Inputs_adjusted!$A:$A,$A112,F_Inputs_adjusted!$B:$B,$B112) -> 0.314 | I112: =SUMIFS(F_Inputs_adjusted!V:V,F_Inputs_adjusted!$A:$A,$A112,F_Inputs_adjusted!$B:$B,$B112) -> 22.326 | J112: =SUMIFS(F_Inputs_adjusted!W:W,F_Inputs_adjusted!$A:$A,$A112,F_Inputs_adjusted!$B:$B,$B112) -> 55.592 | K112: =SUMIFS(F_Inputs_adjusted!X:X,F_Inputs_adjusted!$A:$A,$A112,F_Inputs_adjusted!$B:$B,$B112) -> 139.352 | L112: =SUMIFS(F_Inputs_adjusted!Y:Y,F_Inputs_adjusted!$A:$A,$A112,F_Inputs_adjusted!$B:$B,$B112) -> 0
A113: =F_Inputs_adjusted!A115 -> TMS | B113: =F_Inputs_adjusted!B115 -> CWW12_049TOT_PR24 | C113: =F_Inputs_adjusted!C115 -> EA/NRW environmental programme wastewater (WINEP/NEP) - Treatment for chemical removal (WINEP/NEP) wastewater capex - Total | D113: =F_Inputs_adjusted!D115 -> £m | E113: =SUMIFS(F_Inputs_adjusted!R:R,F_Inputs_adjusted!$A:$A,$A113,F_Inputs_adjusted!$B:$B,$B113) -> 0 | F113: =SUMIFS(F_Inputs_adjusted!S:S,F_Inputs_adjusted!$A:$A,$A113,F_Inputs_adjusted!$B:$B,$B113) -> 0 | G113: =SUMIFS(F_Inputs_adjusted!T:T,F_Inputs_adjusted!$A:$A,$A113,F_Inputs_adjusted!$B:$B,$B113) -> 0 | H113: =SUMIFS(F_Inputs_adjusted!U:U,F_Inputs_adjusted!$A:$A,$A113,F_Inputs_adjusted!$B:$B,$B113) -> 0 | I113: =SUMIFS(F_Inputs_adjusted!V:V,F_Inputs_adjusted!$A:$A,$A113,F_Inputs_adjusted!$B:$B,$B113) -> 0 | J113: =SUMIFS(F_Inputs_adjusted!W:W,F_Inputs_adjusted!$A:$A,$A113,F_Inputs_adjusted!$B:$B,$B113) -> 0 | K113: =SUMIFS(F_Inputs_adjusted!X:X,F_Inputs_adjusted!$A:$A,$A113,F_Inputs_adjusted!$B:$B,$B113) -> 0 | L113: =SUMIFS(F_Inputs_adjusted!Y:Y,F_Inputs_adjusted!$A:$A,$A113,F_Inputs_adjusted!$B:$B,$B113) -> 0
A114: =F_Inputs_adjusted!A116 -> TMS | B114: =F_Inputs_adjusted!B116 -> CWW12_050TOT_PR24 | C114: =F_Inputs_adjusted!C116 -> EA/NRW environmental programme wastewater (WINEP/NEP) - Treatment for chemical removal (WINEP/NEP) wastewater opex - Total | D114: =F_Inputs_adjusted!D116 -> £m | E114: =SUMIFS(F_Inputs_adjusted!R:R,F_Inputs_adjusted!$A:$A,$A114,F_Inputs_adjusted!$B:$B,$B114) -> 0 | F114: =SUMIFS(F_Inputs_adjusted!S:S,F_Inputs_adjusted!$A:$A,$A114,F_Inputs_adjusted!$B:$B,$B114) -> 0 | G114: =SUMIFS(F_Inputs_adjusted!T:T,F_Inputs_adjusted!$A:$A,$A114,F_Inputs_adjusted!$B:$B,$B114) -> 0 | H114: =SUMIFS(F_Inputs_adjusted!U:U,F_Inputs_adjusted!$A:$A,$A114,F_Inputs_adjusted!$B:$B,$B114) -> 0 | I114: =SUMIFS(F_Inputs_adjusted!V:V,F_Inputs_adjusted!$A:$A,$A114,F_Inputs_adjusted!$B:$B,$B114) -> 0 | J114: =SUMIFS(F_Inputs_adjusted!W:W,F_Inputs_adjusted!$A:$A,$A114,F_Inputs_adjusted!$B:$B,$B114) -> 0 | K114: =SUMIFS(F_Inputs_adjusted!X:X,F_Inputs_adjusted!$A:$A,$A114,F_Inputs_adjusted!$B:$B,$B114) -> 0 | L114: =SUMIFS(F_Inputs_adjusted!Y:Y,F_Inputs_adjusted!$A:$A,$A114,F_Inputs_adjusted!$B:$B,$B114) -> 0
A115: =F_Inputs_adjusted!A117 -> TMS | B115: =F_Inputs_adjusted!B117 -> CWW12_051TOT_PR24 | C115: =F_Inputs_adjusted!C117 -> EA/NRW environmental programme wastewater (WINEP/NEP) - Treatment for chemical removal (WINEP/NEP) wastewater totex - Total | D115: =F_Inputs_adjusted!D117 -> £m | E115: =SUMIFS(F_Inputs_adjusted!R:R,F_Inputs_adjusted!$A:$A,$A115,F_Inputs_adjusted!$B:$B,$B115) -> 0 | F115: =SUMIFS(F_Inputs_adjusted!S:S,F_Inputs_adjusted!$A:$A,$A115,F_Inputs_adjusted!$B:$B,$B115) -> 0 | G115: =SUMIFS(F_Inputs_adjusted!T:T,F_Inputs_adjusted!$A:$A,$A115,F_Inputs_adjusted!$B:$B,$B115) -> 0 | H115: =SUMIFS(F_Inputs_adjusted!U:U,F_Inputs_adjusted!$A:$A,$A115,F_Inputs_adjusted!$B:$B,$B115) -> 0 | I115: =SUMIFS(F_Inputs_adjusted!V:V,F_Inputs_adjusted!$A:$A,$A115,F_Inputs_adjusted!$B:$B,$B115) -> 0 | J115: =SUMIFS(F_Inputs_adjusted!W:W,F_Inputs_adjusted!$A:$A,$A115,F_Inputs_adjusted!$B:$B,$B115) -> 0 | K115: =SUMIFS(F_Inputs_adjusted!X:X,F_Inputs_adjusted!$A:$A,$A115,F_Inputs_adjusted!$B:$B,$B115) -> 0 | L115: =SUMIFS(F_Inputs_adjusted!Y:Y,F_Inputs_adjusted!$A:$A,$A115,F_Inputs_adjusted!$B:$B,$B115) -> 0
A116: =F_Inputs_adjusted!A118 -> TMS | B116: =F_Inputs_adjusted!B118 -> CWW17_049TOT_PR24 | C116: =F_Inputs_adjusted!C118 -> EA/NRW environmental programme wastewater (WINEP/NEP) - Treatment for chemical removal (WINEP/NEP) wastewater capex - Total | D116: =F_Inputs_adjusted!D118 -> £m | E116: =SUMIFS(F_Inputs_adjusted!R:R,F_Inputs_adjusted!$A:$A,$A116,F_Inputs_adjusted!$B:$B,$B116) -> 0 | F116: =SUMIFS(F_Inputs_adjusted!S:S,F_Inputs_adjusted!$A:$A,$A116,F_Inputs_adjusted!$B:$B,$B116) -> 0 | G116: =SUMIFS(F_Inputs_adjusted!T:T,F_Inputs_adjusted!$A:$A,$A116,F_Inputs_adjusted!$B:$B,$B116) -> 0 | H116: =SUMIFS(F_Inputs_adjusted!U:U,F_Inputs_adjusted!$A:$A,$A116,F_Inputs_adjusted!$B:$B,$B116) -> 0 | I116: =SUMIFS(F_Inputs_adjusted!V:V,F_Inputs_adjusted!$A:$A,$A116,F_Inputs_adjusted!$B:$B,$B116) -> 0 | J116: =SUMIFS(F_Inputs_adjusted!W:W,F_Inputs_adjusted!$A:$A,$A116,F_Inputs_adjusted!$B:$B,$B116) -> 0 | K116: =SUMIFS(F_Inputs_adjusted!X:X,F_Inputs_adjusted!$A:$A,$A116,F_Inputs_adjusted!$B:$B,$B116) -> 0 | L116: =SUMIFS(F_Inputs_adjusted!Y:Y,F_Inputs_adjusted!$A:$A,$A116,F_Inputs_adjusted!$B:$B,$B116) -> 0
A117: =F_Inputs_adjusted!A119 -> TMS | B117: =F_Inputs_adjusted!B119 -> CWW17_050TOT_PR24 | C117: =F_Inputs_adjusted!C119 -> EA/NRW environmental programme wastewater (WINEP/NEP) - Treatment for chemical removal (WINEP/NEP) wastewater opex - Total | D117: =F_Inputs_adjusted!D119 -> £m | E117: =SUMIFS(F_Inputs_adjusted!R:R,F_Inputs_adjusted!$A:$A,$A117,F_Inputs_adjusted!$B:$B,$B117) -> 0 | F117: =SUMIFS(F_Inputs_adjusted!S:S,F_Inputs_adjusted!$A:$A,$A117,F_Inputs_adjusted!$B:$B,$B117) -> 0 | G117: =SUMIFS(F_Inputs_adjusted!T:T,F_Inputs_adjusted!$A:$A,$A117,F_Inputs_adjusted!$B:$B,$B117) -> 0 | H117: =SUMIFS(F_Inputs_adjusted!U:U,F_Inputs_adjusted!$A:$A,$A117,F_Inputs_adjusted!$B:$B,$B117) -> 0 | I117: =SUMIFS(F_Inputs_adjusted!V:V,F_Inputs_adjusted!$A:$A,$A117,F_Inputs_adjusted!$B:$B,$B117) -> 0 | J117: =SUMIFS(F_Inputs_adjusted!W:W,F_Inputs_adjusted!$A:$A,$A117,F_Inputs_adjusted!$B:$B,$B117) -> 0 | K117: =SUMIFS(F_Inputs_adjusted!X:X,F_Inputs_adjusted!$A:$A,$A117,F_Inputs_adjusted!$B:$B,$B117) -> 0 | L117: =SUMIFS(F_Inputs_adjusted!Y:Y,F_Inputs_adjusted!$A:$A,$A117,F_Inputs_adjusted!$B:$B,$B117) -> 0
A118: =F_Inputs_adjusted!A120 -> TMS | B118: =F_Inputs_adjusted!B120 -> CWW17_051TOT_PR24 | C118: =F_Inputs_adjusted!C120 -> EA/NRW environmental programme wastewater (WINEP/NEP) - Treatment for chemical removal (WINEP/NEP) wastewater totex - Total | D118: =F_Inputs_adjusted!D120 -> £m | E118: =SUMIFS(F_Inputs_adjusted!R:R,F_Inputs_adjusted!$A:$A,$A118,F_Inputs_adjusted!$B:$B,$B118) -> 0 | F118: =SUMIFS(F_Inputs_adjusted!S:S,F_Inputs_adjusted!$A:$A,$A118,F_Inputs_adjusted!$B:$B,$B118) -> 0 | G118: =SUMIFS(F_Inputs_adjusted!T:T,F_Inputs_adjusted!$A:$A,$A118,F_Inputs_adjusted!$B:$B,$B118) -> 0 | H118: =SUMIFS(F_Inputs_adjusted!U:U,F_Inputs_adjusted!$A:$A,$A118,F_Inputs_adjusted!$B:$B,$B118) -> 0 | I118: =SUMIFS(F_Inputs_adjusted!V:V,F_Inputs_adjusted!$A:$A,$A118,F_Inputs_adjusted!$B:$B,$B118) -> 0 | J118: =SUMIFS(F_Inputs_adjusted!W:W,F_Inputs_adjusted!$A:$A,$A118,F_Inputs_adjusted!$B:$B,$B118) -> 0 | K118: =SUMIFS(F_Inputs_adjusted!X:X,F_Inputs_adjusted!$A:$A,$A118,F_Inputs_adjusted!$B:$B,$B118) -> 0 | L118: =SUMIFS(F_Inputs_adjusted!Y:Y,F_Inputs_adjusted!$A:$A,$A118,F_Inputs_adjusted!$B:$B,$B118) -> 0
A119: =F_Inputs_adjusted!A121 -> TMS | B119: =F_Inputs_adjusted!B121 -> S4031_PR24 | C119: =F_Inputs_adjusted!C121 -> Sewage treatment data - Current population equivalent served by STWs with tightened/new permits for chemicals / hazardous substances | D119: =F_Inputs_adjusted!D121 -> 000s | E119: =SUMIFS(F_Inputs_adjusted!R:R,F_Inputs_adjusted!$A:$A,$A119,F_Inputs_adjusted!$B:$B,$B119) -> 0 | F119: =SUMIFS(F_Inputs_adjusted!S:S,F_Inputs_adjusted!$A:$A,$A119,F_Inputs_adjusted!$B:$B,$B119) -> 0 | G119: =SUMIFS(F_Inputs_adjusted!T:T,F_Inputs_adjusted!$A:$A,$A119,F_Inputs_adjusted!$B:$B,$B119) -> 0 | H119: =SUMIFS(F_Inputs_adjusted!U:U,F_Inputs_adjusted!$A:$A,$A119,F_Inputs_adjusted!$B:$B,$B119) -> 6588.013961 | I119: =SUMIFS(F_Inputs_adjusted!V:V,F_Inputs_adjusted!$A:$A,$A119,F_Inputs_adjusted!$B:$B,$B119) -> 0 | J119: =SUMIFS(F_Inputs_adjusted!W:W,F_Inputs_adjusted!$A:$A,$A119,F_Inputs_adjusted!$B:$B,$B119) -> 0 | K119: =SUMIFS(F_Inputs_adjusted!X:X,F_Inputs_adjusted!$A:$A,$A119,F_Inputs_adjusted!$B:$B,$B119) -> 264.7884228 | L119: =SUMIFS(F_Inputs_adjusted!Y:Y,F_Inputs_adjusted!$A:$A,$A119,F_Inputs_adjusted!$B:$B,$B119) -> 0
A120: =F_Inputs_adjusted!A122 -> TMS | B120: =F_Inputs_adjusted!B122 -> CWW20A_S4031_PR24 | C120: =F_Inputs_adjusted!C122 -> Sewage treatment data - Current population equivalent served by STWs with tightened/new permits for chemicals / hazardous substances | D120: =F_Inputs_adjusted!D122 -> 000s | E120: =SUMIFS(F_Inputs_adjusted!R:R,F_Inputs_adjusted!$A:$A,$A120,F_Inputs_adjusted!$B:$B,$B120) -> 0 | F120: =SUMIFS(F_Inputs_adjusted!S:S,F_Inputs_adjusted!$A:$A,$A120,F_Inputs_adjusted!$B:$B,$B120) -> 0 | G120: =SUMIFS(F_Inputs_adjusted!T:T,F_Inputs_adjusted!$A:$A,$A120,F_Inputs_adjusted!$B:$B,$B120) -> 0 | H120: =SUMIFS(F_Inputs_adjusted!U:U,F_Inputs_adjusted!$A:$A,$A120,F_Inputs_adjusted!$B:$B,$B120) -> 0 | I120: =SUMIFS(F_Inputs_adjusted!V:V,F_Inputs_adjusted!$A:$A,$A120,F_Inputs_adjusted!$B:$B,$B120) -> 0 | J120: =SUMIFS(F_Inputs_adjusted!W:W,F_Inputs_adjusted!$A:$A,$A120,F_Inputs_adjusted!$B:$B,$B120) -> 0 | K120: =SUMIFS(F_Inputs_adjusted!X:X,F_Inputs_adjusted!$A:$A,$A120,F_Inputs_adjusted!$B:$B,$B120) -> 0 | L120: =SUMIFS(F_Inputs_adjusted!Y:Y,F_Inputs_adjusted!$A:$A,$A120,F_Inputs_adjusted!$B:$B,$B120) -> 0
A121: =F_Inputs_adjusted!A123 -> TMS | B121: =F_Inputs_adjusted!B123 -> CWW20_026_PR24 | C121: =F_Inputs_adjusted!C123 -> Sewage treatment data - Total number of schemes with tightened/new chemicals/hazardous substances permits | D121: =F_Inputs_adjusted!D123 -> nr | E121: =SUMIFS(F_Inputs_adjusted!R:R,F_Inputs_adjusted!$A:$A,$A121,F_Inputs_adjusted!$B:$B,$B121) -> 0 | F121: =SUMIFS(F_Inputs_adjusted!S:S,F_Inputs_adjusted!$A:$A,$A121,F_Inputs_adjusted!$B:$B,$B121) -> 0 | G121: =SUMIFS(F_Inputs_adjusted!T:T,F_Inputs_adjusted!$A:$A,$A121,F_Inputs_adjusted!$B:$B,$B121) -> 0 | H121: =SUMIFS(F_Inputs_adjusted!U:U,F_Inputs_adjusted!$A:$A,$A121,F_Inputs_adjusted!$B:$B,$B121) -> 1 | I121: =SUMIFS(F_Inputs_adjusted!V:V,F_Inputs_adjusted!$A:$A,$A121,F_Inputs_adjusted!$B:$B,$B121) -> 22 | J121: =SUMIFS(F_Inputs_adjusted!W:W,F_Inputs_adjusted!$A:$A,$A121,F_Inputs_adjusted!$B:$B,$B121) -> 0 | K121: =SUMIFS(F_Inputs_adjusted!X:X,F_Inputs_adjusted!$A:$A,$A121,F_Inputs_adjusted!$B:$B,$B121) -> 73 | L121: =SUMIFS(F_Inputs_adjusted!Y:Y,F_Inputs_adjusted!$A:$A,$A121,F_Inputs_adjusted!$B:$B,$B121) -> 0
A122: =F_Inputs_adjusted!A124 -> TMS | B122: =F_Inputs_adjusted!B124 -> CWW20A_026_PR24 | C122: =F_Inputs_adjusted!C124 -> Sewage treatment data - Total number of schemes with tightened/new chemicals/hazardous substances permits | D122: =F_Inputs_adjusted!D124 -> nr | E122: =SUMIFS(F_Inputs_adjusted!R:R,F_Inputs_adjusted!$A:$A,$A122,F_Inputs_adjusted!$B:$B,$B122) -> 0 | F122: =SUMIFS(F_Inputs_adjusted!S:S,F_Inputs_adjusted!$A:$A,$A122,F_Inputs_adjusted!$B:$B,$B122) -> 0 | G122: =SUMIFS(F_Inputs_adjusted!T:T,F_Inputs_adjusted!$A:$A,$A122,F_Inputs_adjusted!$B:$B,$B122) -> 0 | H122: =SUMIFS(F_Inputs_adjusted!U:U,F_Inputs_adjusted!$A:$A,$A122,F_Inputs_adjusted!$B:$B,$B122) -> 0 | I122: =SUMIFS(F_Inputs_adjusted!V:V,F_Inputs_adjusted!$A:$A,$A122,F_Inputs_adjusted!$B:$B,$B122) -> 0 | J122: =SUMIFS(F_Inputs_adjusted!W:W,F_Inputs_adjusted!$A:$A,$A122,F_Inputs_adjusted!$B:$B,$B122) -> 0 | K122: =SUMIFS(F_Inputs_adjusted!X:X,F_Inputs_adjusted!$A:$A,$A122,F_Inputs_adjusted!$B:$B,$B122) -> 0 | L122: =SUMIFS(F_Inputs_adjusted!Y:Y,F_Inputs_adjusted!$A:$A,$A122,F_Inputs_adjusted!$B:$B,$B122) -> 0
A123: =F_Inputs_adjusted!A125 -> TMS | B123: =F_Inputs_adjusted!B125 -> PR24_E_WW051_TOTAL | C123: =F_Inputs_adjusted!C125 -> PR24 BP EA/NRW environmental programme wastewater (WINEP/NEP) - Treatment for chemical removal (WINEP/NEP) wastewater totex - Total inc. accelerated & transition costs | D123: =F_Inputs_adjusted!D125 -> £m | E123: =SUMIFS(F_Inputs_adjusted!R:R,F_Inputs_adjusted!$A:$A,$A123,F_Inputs_adjusted!$B:$B,$B123) -> 0 | F123: =SUMIFS(F_Inputs_adjusted!S:S,F_Inputs_adjusted!$A:$A,$A123,F_Inputs_adjusted!$B:$B,$B123) -> 0 | G123: =SUMIFS(F_Inputs_adjusted!T:T,F_Inputs_adjusted!$A:$A,$A123,F_Inputs_adjusted!$B:$B,$B123) -> 0 | H123: =SUMIFS(F_Inputs_adjusted!U:U,F_Inputs_adjusted!$A:$A,$A123,F_Inputs_adjusted!$B:$B,$B123) -> 0 | I123: =SUMIFS(F_Inputs_adjusted!V:V,F_Inputs_adjusted!$A:$A,$A123,F_Inputs_adjusted!$B:$B,$B123) -> 0 | J123: =SUMIFS(F_Inputs_adjusted!W:W,F_Inputs_adjusted!$A:$A,$A123,F_Inputs_adjusted!$B:$B,$B123) -> 0 | K123: =SUMIFS(F_Inputs_adjusted!X:X,F_Inputs_adjusted!$A:$A,$A123,F_Inputs_adjusted!$B:$B,$B123) -> 0 | L123: =SUMIFS(F_Inputs_adjusted!Y:Y,F_Inputs_adjusted!$A:$A,$A123,F_Inputs_adjusted!$B:$B,$B123) -> 218.051
A124: =F_Inputs_adjusted!A126 -> TMS | B124: =F_Inputs_adjusted!B126 -> PR24_NETTOTEX_WASTE | C124: =F_Inputs_adjusted!C126 -> PR24 BP Net totex - Total inc. accelerated & transition costs | D124: =F_Inputs_adjusted!D126 -> £m | E124: =SUMIFS(F_Inputs_adjusted!R:R,F_Inputs_adjusted!$A:$A,$A124,F_Inputs_adjusted!$B:$B,$B124) -> 0 | F124: =SUMIFS(F_Inputs_adjusted!S:S,F_Inputs_adjusted!$A:$A,$A124,F_Inputs_adjusted!$B:$B,$B124) -> 0 | G124: =SUMIFS(F_Inputs_adjusted!T:T,F_Inputs_adjusted!$A:$A,$A124,F_Inputs_adjusted!$B:$B,$B124) -> 0 | H124: =SUMIFS(F_Inputs_adjusted!U:U,F_Inputs_adjusted!$A:$A,$A124,F_Inputs_adjusted!$B:$B,$B124) -> 0 | I124: =SUMIFS(F_Inputs_adjusted!V:V,F_Inputs_adjusted!$A:$A,$A124,F_Inputs_adjusted!$B:$B,$B124) -> 0 | J124: =SUMIFS(F_Inputs_adjusted!W:W,F_Inputs_adjusted!$A:$A,$A124,F_Inputs_adjusted!$B:$B,$B124) -> 0 | K124: =SUMIFS(F_Inputs_adjusted!X:X,F_Inputs_adjusted!$A:$A,$A124,F_Inputs_adjusted!$B:$B,$B124) -> 0 | L124: =SUMIFS(F_Inputs_adjusted!Y:Y,F_Inputs_adjusted!$A:$A,$A124,F_Inputs_adjusted!$B:$B,$B124) -> 12775.4738
A125: =F_Inputs_adjusted!A127 -> NWT | B125: =F_Inputs_adjusted!B127 -> CWW3_049TOT_PR24 | C125: =F_Inputs_adjusted!C127 -> EA/NRW environmental programme wastewater (WINEP/NEP) - Treatment for chemical removal (WINEP/NEP) wastewater capex - Total | D125: =F_Inputs_adjusted!D127 -> £m | E125: =SUMIFS(F_Inputs_adjusted!R:R,F_Inputs_adjusted!$A:$A,$A125,F_Inputs_adjusted!$B:$B,$B125) -> 0 | F125: =SUMIFS(F_Inputs_adjusted!S:S,F_Inputs_adjusted!$A:$A,$A125,F_Inputs_adjusted!$B:$B,$B125) -> 0 | G125: =SUMIFS(F_Inputs_adjusted!T:T,F_Inputs_adjusted!$A:$A,$A125,F_Inputs_adjusted!$B:$B,$B125) -> 0 | H125: =SUMIFS(F_Inputs_adjusted!U:U,F_Inputs_adjusted!$A:$A,$A125,F_Inputs_adjusted!$B:$B,$B125) -> 0 | I125: =SUMIFS(F_Inputs_adjusted!V:V,F_Inputs_adjusted!$A:$A,$A125,F_Inputs_adjusted!$B:$B,$B125) -> 0 | J125: =SUMIFS(F_Inputs_adjusted!W:W,F_Inputs_adjusted!$A:$A,$A125,F_Inputs_adjusted!$B:$B,$B125) -> 0 | K125: =SUMIFS(F_Inputs_adjusted!X:X,F_Inputs_adjusted!$A:$A,$A125,F_Inputs_adjusted!$B:$B,$B125) -> 0 | L125: =SUMIFS(F_Inputs_adjusted!Y:Y,F_Inputs_adjusted!$A:$A,$A125,F_Inputs_adjusted!$B:$B,$B125) -> 0
A126: =F_Inputs_adjusted!A128 -> NWT | B126: =F_Inputs_adjusted!B128 -> CWW3_050TOT_PR24 | C126: =F_Inputs_adjusted!C128 -> EA/NRW environmental programme wastewater (WINEP/NEP) - Treatment for chemical removal (WINEP/NEP) wastewater opex - Total | D126: =F_Inputs_adjusted!D128 -> £m | E126: =SUMIFS(F_Inputs_adjusted!R:R,F_Inputs_adjusted!$A:$A,$A126,F_Inputs_adjusted!$B:$B,$B126) -> 0 | F126: =SUMIFS(F_Inputs_adjusted!S:S,F_Inputs_adjusted!$A:$A,$A126,F_Inputs_adjusted!$B:$B,$B126) -> 0 | G126: =SUMIFS(F_Inputs_adjusted!T:T,F_Inputs_adjusted!$A:$A,$A126,F_Inputs_adjusted!$B:$B,$B126) -> 0 | H126: =SUMIFS(F_Inputs_adjusted!U:U,F_Inputs_adjusted!$A:$A,$A126,F_Inputs_adjusted!$B:$B,$B126) -> 0 | I126: =SUMIFS(F_Inputs_adjusted!V:V,F_Inputs_adjusted!$A:$A,$A126,F_Inputs_adjusted!$B:$B,$B126) -> 0 | J126: =SUMIFS(F_Inputs_adjusted!W:W,F_Inputs_adjusted!$A:$A,$A126,F_Inputs_adjusted!$B:$B,$B126) -> 0 | K126: =SUMIFS(F_Inputs_adjusted!X:X,F_Inputs_adjusted!$A:$A,$A126,F_Inputs_adjusted!$B:$B,$B126) -> 0 | L126: =SUMIFS(F_Inputs_adjusted!Y:Y,F_Inputs_adjusted!$A:$A,$A126,F_Inputs_adjusted!$B:$B,$B126) -> 0
A127: =F_Inputs_adjusted!A129 -> NWT | B127: =F_Inputs_adjusted!B129 -> CWW3_051TOT_PR24 | C127: =F_Inputs_adjusted!C129 -> EA/NRW environmental programme wastewater (WINEP/NEP) - Treatment for chemical removal (WINEP/NEP) wastewater totex - Total | D127: =F_Inputs_adjusted!D129 -> £m | E127: =SUMIFS(F_Inputs_adjusted!R:R,F_Inputs_adjusted!$A:$A,$A127,F_Inputs_adjusted!$B:$B,$B127) -> 0 | F127: =SUMIFS(F_Inputs_adjusted!S:S,F_Inputs_adjusted!$A:$A,$A127,F_Inputs_adjusted!$B:$B,$B127) -> 0 | G127: =SUMIFS(F_Inputs_adjusted!T:T,F_Inputs_adjusted!$A:$A,$A127,F_Inputs_adjusted!$B:$B,$B127) -> 0 | H127: =SUMIFS(F_Inputs_adjusted!U:U,F_Inputs_adjusted!$A:$A,$A127,F_Inputs_adjusted!$B:$B,$B127) -> 0 | I127: =SUMIFS(F_Inputs_adjusted!V:V,F_Inputs_adjusted!$A:$A,$A127,F_Inputs_adjusted!$B:$B,$B127) -> 0 | J127: =SUMIFS(F_Inputs_adjusted!W:W,F_Inputs_adjusted!$A:$A,$A127,F_Inputs_adjusted!$B:$B,$B127) -> 0 | K127: =SUMIFS(F_Inputs_adjusted!X:X,F_Inputs_adjusted!$A:$A,$A127,F_Inputs_adjusted!$B:$B,$B127) -> 0 | L127: =SUMIFS(F_Inputs_adjusted!Y:Y,F_Inputs_adjusted!$A:$A,$A127,F_Inputs_adjusted!$B:$B,$B127) -> 0
A128: =F_Inputs_adjusted!A130 -> NWT | B128: =F_Inputs_adjusted!B130 -> CWW12_049TOT_PR24 | C128: =F_Inputs_adjusted!C130 -> EA/NRW environmental programme wastewater (WINEP/NEP) - Treatment for chemical removal (WINEP/NEP) wastewater capex - Total | D128: =F_Inputs_adjusted!D130 -> £m | E128: =SUMIFS(F_Inputs_adjusted!R:R,F_Inputs_adjusted!$A:$A,$A128,F_Inputs_adjusted!$B:$B,$B128) -> 0 | F128: =SUMIFS(F_Inputs_adjusted!S:S,F_Inputs_adjusted!$A:$A,$A128,F_Inputs_adjusted!$B:$B,$B128) -> 0 | G128: =SUMIFS(F_Inputs_adjusted!T:T,F_Inputs_adjusted!$A:$A,$A128,F_Inputs_adjusted!$B:$B,$B128) -> 0 | H128: =SUMIFS(F_Inputs_adjusted!U:U,F_Inputs_adjusted!$A:$A,$A128,F_Inputs_adjusted!$B:$B,$B128) -> 0 | I128: =SUMIFS(F_Inputs_adjusted!V:V,F_Inputs_adjusted!$A:$A,$A128,F_Inputs_adjusted!$B:$B,$B128) -> 0 | J128: =SUMIFS(F_Inputs_adjusted!W:W,F_Inputs_adjusted!$A:$A,$A128,F_Inputs_adjusted!$B:$B,$B128) -> 0 | K128: =SUMIFS(F_Inputs_adjusted!X:X,F_Inputs_adjusted!$A:$A,$A128,F_Inputs_adjusted!$B:$B,$B128) -> 0 | L128: =SUMIFS(F_Inputs_adjusted!Y:Y,F_Inputs_adjusted!$A:$A,$A128,F_Inputs_adjusted!$B:$B,$B128) -> 0
A129: =F_Inputs_adjusted!A131 -> NWT | B129: =F_Inputs_adjusted!B131 -> CWW12_050TOT_PR24 | C129: =F_Inputs_adjusted!C131 -> EA/NRW environmental programme wastewater (WINEP/NEP) - Treatment for chemical removal (WINEP/NEP) wastewater opex - Total | D129: =F_Inputs_adjusted!D131 -> £m | E129: =SUMIFS(F_Inputs_adjusted!R:R,F_Inputs_adjusted!$A:$A,$A129,F_Inputs_adjusted!$B:$B,$B129) -> 0 | F129: =SUMIFS(F_Inputs_adjusted!S:S,F_Inputs_adjusted!$A:$A,$A129,F_Inputs_adjusted!$B:$B,$B129) -> 0 | G129: =SUMIFS(F_Inputs_adjusted!T:T,F_Inputs_adjusted!$A:$A,$A129,F_Inputs_adjusted!$B:$B,$B129) -> 0 | H129: =SUMIFS(F_Inputs_adjusted!U:U,F_Inputs_adjusted!$A:$A,$A129,F_Inputs_adjusted!$B:$B,$B129) -> 0 | I129: =SUMIFS(F_Inputs_adjusted!V:V,F_Inputs_adjusted!$A:$A,$A129,F_Inputs_adjusted!$B:$B,$B129) -> 0 | J129: =SUMIFS(F_Inputs_adjusted!W:W,F_Inputs_adjusted!$A:$A,$A129,F_Inputs_adjusted!$B:$B,$B129) -> 0 | K129: =SUMIFS(F_Inputs_adjusted!X:X,F_Inputs_adjusted!$A:$A,$A129,F_Inputs_adjusted!$B:$B,$B129) -> 0 | L129: =SUMIFS(F_Inputs_adjusted!Y:Y,F_Inputs_adjusted!$A:$A,$A129,F_Inputs_adjusted!$B:$B,$B129) -> 0
A130: =F_Inputs_adjusted!A132 -> NWT | B130: =F_Inputs_adjusted!B132 -> CWW12_051TOT_PR24 | C130: =F_Inputs_adjusted!C132 -> EA/NRW environmental programme wastewater (WINEP/NEP) - Treatment for chemical removal (WINEP/NEP) wastewater totex - Total | D130: =F_Inputs_adjusted!D132 -> £m | E130: =SUMIFS(F_Inputs_adjusted!R:R,F_Inputs_adjusted!$A:$A,$A130,F_Inputs_adjusted!$B:$B,$B130) -> 0 | F130: =SUMIFS(F_Inputs_adjusted!S:S,F_Inputs_adjusted!$A:$A,$A130,F_Inputs_adjusted!$B:$B,$B130) -> 0 | G130: =SUMIFS(F_Inputs_adjusted!T:T,F_Inputs_adjusted!$A:$A,$A130,F_Inputs_adjusted!$B:$B,$B130) -> 0 | H130: =SUMIFS(F_Inputs_adjusted!U:U,F_Inputs_adjusted!$A:$A,$A130,F_Inputs_adjusted!$B:$B,$B130) -> 0 | I130: =SUMIFS(F_Inputs_adjusted!V:V,F_Inputs_adjusted!$A:$A,$A130,F_Inputs_adjusted!$B:$B,$B130) -> 0 | J130: =SUMIFS(F_Inputs_adjusted!W:W,F_Inputs_adjusted!$A:$A,$A130,F_Inputs_adjusted!$B:$B,$B130) -> 0 | K130: =SUMIFS(F_Inputs_adjusted!X:X,F_Inputs_adjusted!$A:$A,$A130,F_Inputs_adjusted!$B:$B,$B130) -> 0 | L130: =SUMIFS(F_Inputs_adjusted!Y:Y,F_Inputs_adjusted!$A:$A,$A130,F_Inputs_adjusted!$B:$B,$B130) -> 0
A131: =F_Inputs_adjusted!A133 -> NWT | B131: =F_Inputs_adjusted!B133 -> CWW17_049TOT_PR24 | C131: =F_Inputs_adjusted!C133 -> EA/NRW environmental programme wastewater (WINEP/NEP) - Treatment for chemical removal (WINEP/NEP) wastewater capex - Total | D131: =F_Inputs_adjusted!D133 -> £m | E131: =SUMIFS(F_Inputs_adjusted!R:R,F_Inputs_adjusted!$A:$A,$A131,F_Inputs_adjusted!$B:$B,$B131) -> 0 | F131: =SUMIFS(F_Inputs_adjusted!S:S,F_Inputs_adjusted!$A:$A,$A131,F_Inputs_adjusted!$B:$B,$B131) -> 0 | G131: =SUMIFS(F_Inputs_adjusted!T:T,F_Inputs_adjusted!$A:$A,$A131,F_Inputs_adjusted!$B:$B,$B131) -> 0 | H131: =SUMIFS(F_Inputs_adjusted!U:U,F_Inputs_adjusted!$A:$A,$A131,F_Inputs_adjusted!$B:$B,$B131) -> 0 | I131: =SUMIFS(F_Inputs_adjusted!V:V,F_Inputs_adjusted!$A:$A,$A131,F_Inputs_adjusted!$B:$B,$B131) -> 0 | J131: =SUMIFS(F_Inputs_adjusted!W:W,F_Inputs_adjusted!$A:$A,$A131,F_Inputs_adjusted!$B:$B,$B131) -> 0 | K131: =SUMIFS(F_Inputs_adjusted!X:X,F_Inputs_adjusted!$A:$A,$A131,F_Inputs_adjusted!$B:$B,$B131) -> 0 | L131: =SUMIFS(F_Inputs_adjusted!Y:Y,F_Inputs_adjusted!$A:$A,$A131,F_Inputs_adjusted!$B:$B,$B131) -> 0
A132: =F_Inputs_adjusted!A134 -> NWT | B132: =F_Inputs_adjusted!B134 -> CWW17_050TOT_PR24 | C132: =F_Inputs_adjusted!C134 -> EA/NRW environmental programme wastewater (WINEP/NEP) - Treatment for chemical removal (WINEP/NEP) wastewater opex - Total | D132: =F_Inputs_adjusted!D134 -> £m | E132: =SUMIFS(F_Inputs_adjusted!R:R,F_Inputs_adjusted!$A:$A,$A132,F_Inputs_adjusted!$B:$B,$B132) -> 0 | F132: =SUMIFS(F_Inputs_adjusted!S:S,F_Inputs_adjusted!$A:$A,$A132,F_Inputs_adjusted!$B:$B,$B132) -> 0 | G132: =SUMIFS(F_Inputs_adjusted!T:T,F_Inputs_adjusted!$A:$A,$A132,F_Inputs_adjusted!$B:$B,$B132) -> 0 | H132: =SUMIFS(F_Inputs_adjusted!U:U,F_Inputs_adjusted!$A:$A,$A132,F_Inputs_adjusted!$B:$B,$B132) -> 0 | I132: =SUMIFS(F_Inputs_adjusted!V:V,F_Inputs_adjusted!$A:$A,$A132,F_Inputs_adjusted!$B:$B,$B132) -> 0 | J132: =SUMIFS(F_Inputs_adjusted!W:W,F_Inputs_adjusted!$A:$A,$A132,F_Inputs_adjusted!$B:$B,$B132) -> 0 | K132: =SUMIFS(F_Inputs_adjusted!X:X,F_Inputs_adjusted!$A:$A,$A132,F_Inputs_adjusted!$B:$B,$B132) -> 0 | L132: =SUMIFS(F_Inputs_adjusted!Y:Y,F_Inputs_adjusted!$A:$A,$A132,F_Inputs_adjusted!$B:$B,$B132) -> 0
A133: =F_Inputs_adjusted!A135 -> NWT | B133: =F_Inputs_adjusted!B135 -> CWW17_051TOT_PR24 | C133: =F_Inputs_adjusted!C135 -> EA/NRW environmental programme wastewater (WINEP/NEP) - Treatment for chemical removal (WINEP/NEP) wastewater totex - Total | D133: =F_Inputs_adjusted!D135 -> £m | E133: =SUMIFS(F_Inputs_adjusted!R:R,F_Inputs_adjusted!$A:$A,$A133,F_Inputs_adjusted!$B:$B,$B133) -> 0 | F133: =SUMIFS(F_Inputs_adjusted!S:S,F_Inputs_adjusted!$A:$A,$A133,F_Inputs_adjusted!$B:$B,$B133) -> 0 | G133: =SUMIFS(F_Inputs_adjusted!T:T,F_Inputs_adjusted!$A:$A,$A133,F_Inputs_adjusted!$B:$B,$B133) -> 0 | H133: =SUMIFS(F_Inputs_adjusted!U:U,F_Inputs_adjusted!$A:$A,$A133,F_Inputs_adjusted!$B:$B,$B133) -> 0 | I133: =SUMIFS(F_Inputs_adjusted!V:V,F_Inputs_adjusted!$A:$A,$A133,F_Inputs_adjusted!$B:$B,$B133) -> 0 | J133: =SUMIFS(F_Inputs_adjusted!W:W,F_Inputs_adjusted!$A:$A,$A133,F_Inputs_adjusted!$B:$B,$B133) -> 0 | K133: =SUMIFS(F_Inputs_adjusted!X:X,F_Inputs_adjusted!$A:$A,$A133,F_Inputs_adjusted!$B:$B,$B133) -> 0 | L133: =SUMIFS(F_Inputs_adjusted!Y:Y,F_Inputs_adjusted!$A:$A,$A133,F_Inputs_adjusted!$B:$B,$B133) -> 0
A134: =F_Inputs_adjusted!A136 -> NWT | B134: =F_Inputs_adjusted!B136 -> S4031_PR24 | C134: =F_Inputs_adjusted!C136 -> Sewage treatment data - Current population equivalent served by STWs with tightened/new permits for chemicals / hazardous substances | D134: =F_Inputs_adjusted!D136 -> 000s | E134: =SUMIFS(F_Inputs_adjusted!R:R,F_Inputs_adjusted!$A:$A,$A134,F_Inputs_adjusted!$B:$B,$B134) -> 0 | F134: =SUMIFS(F_Inputs_adjusted!S:S,F_Inputs_adjusted!$A:$A,$A134,F_Inputs_adjusted!$B:$B,$B134) -> 0 | G134: =SUMIFS(F_Inputs_adjusted!T:T,F_Inputs_adjusted!$A:$A,$A134,F_Inputs_adjusted!$B:$B,$B134) -> 0 | H134: =SUMIFS(F_Inputs_adjusted!U:U,F_Inputs_adjusted!$A:$A,$A134,F_Inputs_adjusted!$B:$B,$B134) -> 5043.511143 | I134: =SUMIFS(F_Inputs_adjusted!V:V,F_Inputs_adjusted!$A:$A,$A134,F_Inputs_adjusted!$B:$B,$B134) -> 0 | J134: =SUMIFS(F_Inputs_adjusted!W:W,F_Inputs_adjusted!$A:$A,$A134,F_Inputs_adjusted!$B:$B,$B134) -> 129.9300152 | K134: =SUMIFS(F_Inputs_adjusted!X:X,F_Inputs_adjusted!$A:$A,$A134,F_Inputs_adjusted!$B:$B,$B134) -> 502.7675796 | L134: =SUMIFS(F_Inputs_adjusted!Y:Y,F_Inputs_adjusted!$A:$A,$A134,F_Inputs_adjusted!$B:$B,$B134) -> 0
A135: =F_Inputs_adjusted!A137 -> NWT | B135: =F_Inputs_adjusted!B137 -> CWW20A_S4031_PR24 | C135: =F_Inputs_adjusted!C137 -> Sewage treatment data - Current population equivalent served by STWs with tightened/new permits for chemicals / hazardous substances | D135: =F_Inputs_adjusted!D137 -> 000s | E135: =SUMIFS(F_Inputs_adjusted!R:R,F_Inputs_adjusted!$A:$A,$A135,F_Inputs_adjusted!$B:$B,$B135) -> 0 | F135: =SUMIFS(F_Inputs_adjusted!S:S,F_Inputs_adjusted!$A:$A,$A135,F_Inputs_adjusted!$B:$B,$B135) -> 0 | G135: =SUMIFS(F_Inputs_adjusted!T:T,F_Inputs_adjusted!$A:$A,$A135,F_Inputs_adjusted!$B:$B,$B135) -> 0 | H135: =SUMIFS(F_Inputs_adjusted!U:U,F_Inputs_adjusted!$A:$A,$A135,F_Inputs_adjusted!$B:$B,$B135) -> 0 | I135: =SUMIFS(F_Inputs_adjusted!V:V,F_Inputs_adjusted!$A:$A,$A135,F_Inputs_adjusted!$B:$B,$B135) -> 0 | J135: =SUMIFS(F_Inputs_adjusted!W:W,F_Inputs_adjusted!$A:$A,$A135,F_Inputs_adjusted!$B:$B,$B135) -> 0 | K135: =SUMIFS(F_Inputs_adjusted!X:X,F_Inputs_adjusted!$A:$A,$A135,F_Inputs_adjusted!$B:$B,$B135) -> 0 | L135: =SUMIFS(F_Inputs_adjusted!Y:Y,F_Inputs_adjusted!$A:$A,$A135,F_Inputs_adjusted!$B:$B,$B135) -> 0
A136: =F_Inputs_adjusted!A138 -> NWT | B136: =F_Inputs_adjusted!B138 -> CWW20_026_PR24 | C136: =F_Inputs_adjusted!C138 -> Sewage treatment data - Total number of schemes with tightened/new chemicals/hazardous substances permits | D136: =F_Inputs_adjusted!D138 -> nr | E136: =SUMIFS(F_Inputs_adjusted!R:R,F_Inputs_adjusted!$A:$A,$A136,F_Inputs_adjusted!$B:$B,$B136) -> 0 | F136: =SUMIFS(F_Inputs_adjusted!S:S,F_Inputs_adjusted!$A:$A,$A136,F_Inputs_adjusted!$B:$B,$B136) -> 0 | G136: =SUMIFS(F_Inputs_adjusted!T:T,F_Inputs_adjusted!$A:$A,$A136,F_Inputs_adjusted!$B:$B,$B136) -> 0 | H136: =SUMIFS(F_Inputs_adjusted!U:U,F_Inputs_adjusted!$A:$A,$A136,F_Inputs_adjusted!$B:$B,$B136) -> 47 | I136: =SUMIFS(F_Inputs_adjusted!V:V,F_Inputs_adjusted!$A:$A,$A136,F_Inputs_adjusted!$B:$B,$B136) -> 0 | J136: =SUMIFS(F_Inputs_adjusted!W:W,F_Inputs_adjusted!$A:$A,$A136,F_Inputs_adjusted!$B:$B,$B136) -> 1 | K136: =SUMIFS(F_Inputs_adjusted!X:X,F_Inputs_adjusted!$A:$A,$A136,F_Inputs_adjusted!$B:$B,$B136) -> 3 | L136: =SUMIFS(F_Inputs_adjusted!Y:Y,F_Inputs_adjusted!$A:$A,$A136,F_Inputs_adjusted!$B:$B,$B136) -> 0
A137: =F_Inputs_adjusted!A139 -> NWT | B137: =F_Inputs_adjusted!B139 -> CWW20A_026_PR24 | C137: =F_Inputs_adjusted!C139 -> Sewage treatment data - Total number of schemes with tightened/new chemicals/hazardous substances permits | D137: =F_Inputs_adjusted!D139 -> nr | E137: =SUMIFS(F_Inputs_adjusted!R:R,F_Inputs_adjusted!$A:$A,$A137,F_Inputs_adjusted!$B:$B,$B137) -> 0 | F137: =SUMIFS(F_Inputs_adjusted!S:S,F_Inputs_adjusted!$A:$A,$A137,F_Inputs_adjusted!$B:$B,$B137) -> 0 | G137: =SUMIFS(F_Inputs_adjusted!T:T,F_Inputs_adjusted!$A:$A,$A137,F_Inputs_adjusted!$B:$B,$B137) -> 0 | H137: =SUMIFS(F_Inputs_adjusted!U:U,F_Inputs_adjusted!$A:$A,$A137,F_Inputs_adjusted!$B:$B,$B137) -> 0 | I137: =SUMIFS(F_Inputs_adjusted!V:V,F_Inputs_adjusted!$A:$A,$A137,F_Inputs_adjusted!$B:$B,$B137) -> 0 | J137: =SUMIFS(F_Inputs_adjusted!W:W,F_Inputs_adjusted!$A:$A,$A137,F_Inputs_adjusted!$B:$B,$B137) -> 0 | K137: =SUMIFS(F_Inputs_adjusted!X:X,F_Inputs_adjusted!$A:$A,$A137,F_Inputs_adjusted!$B:$B,$B137) -> 0 | L137: =SUMIFS(F_Inputs_adjusted!Y:Y,F_Inputs_adjusted!$A:$A,$A137,F_Inputs_adjusted!$B:$B,$B137) -> 0
A138: =F_Inputs_adjusted!A140 -> NWT | B138: =F_Inputs_adjusted!B140 -> PR24_E_WW051_TOTAL | C138: =F_Inputs_adjusted!C140 -> PR24 BP EA/NRW environmental programme wastewater (WINEP/NEP) - Treatment for chemical removal (WINEP/NEP) wastewater totex - Total inc. accelerated & transition costs | D138: =F_Inputs_adjusted!D140 -> £m | E138: =SUMIFS(F_Inputs_adjusted!R:R,F_Inputs_adjusted!$A:$A,$A138,F_Inputs_adjusted!$B:$B,$B138) -> 0 | F138: =SUMIFS(F_Inputs_adjusted!S:S,F_Inputs_adjusted!$A:$A,$A138,F_Inputs_adjusted!$B:$B,$B138) -> 0 | G138: =SUMIFS(F_Inputs_adjusted!T:T,F_Inputs_adjusted!$A:$A,$A138,F_Inputs_adjusted!$B:$B,$B138) -> 0 | H138: =SUMIFS(F_Inputs_adjusted!U:U,F_Inputs_adjusted!$A:$A,$A138,F_Inputs_adjusted!$B:$B,$B138) -> 0 | I138: =SUMIFS(F_Inputs_adjusted!V:V,F_Inputs_adjusted!$A:$A,$A138,F_Inputs_adjusted!$B:$B,$B138) -> 0 | J138: =SUMIFS(F_Inputs_adjusted!W:W,F_Inputs_adjusted!$A:$A,$A138,F_Inputs_adjusted!$B:$B,$B138) -> 0 | K138: =SUMIFS(F_Inputs_adjusted!X:X,F_Inputs_adjusted!$A:$A,$A138,F_Inputs_adjusted!$B:$B,$B138) -> 0 | L138: =SUMIFS(F_Inputs_adjusted!Y:Y,F_Inputs_adjusted!$A:$A,$A138,F_Inputs_adjusted!$B:$B,$B138) -> 0
A139: =F_Inputs_adjusted!A141 -> NWT | B139: =F_Inputs_adjusted!B141 -> PR24_NETTOTEX_WASTE | C139: =F_Inputs_adjusted!C141 -> PR24 BP Net totex - Total inc. accelerated & transition costs | D139: =F_Inputs_adjusted!D141 -> £m | E139: =SUMIFS(F_Inputs_adjusted!R:R,F_Inputs_adjusted!$A:$A,$A139,F_Inputs_adjusted!$B:$B,$B139) -> 0 | F139: =SUMIFS(F_Inputs_adjusted!S:S,F_Inputs_adjusted!$A:$A,$A139,F_Inputs_adjusted!$B:$B,$B139) -> 0 | G139: =SUMIFS(F_Inputs_adjusted!T:T,F_Inputs_adjusted!$A:$A,$A139,F_Inputs_adjusted!$B:$B,$B139) -> 0 | H139: =SUMIFS(F_Inputs_adjusted!U:U,F_Inputs_adjusted!$A:$A,$A139,F_Inputs_adjusted!$B:$B,$B139) -> 0 | I139: =SUMIFS(F_Inputs_adjusted!V:V,F_Inputs_adjusted!$A:$A,$A139,F_Inputs_adjusted!$B:$B,$B139) -> 0 | J139: =SUMIFS(F_Inputs_adjusted!W:W,F_Inputs_adjusted!$A:$A,$A139,F_Inputs_adjusted!$B:$B,$B139) -> 0 | K139: =SUMIFS(F_Inputs_adjusted!X:X,F_Inputs_adjusted!$A:$A,$A139,F_Inputs_adjusted!$B:$B,$B139) -> 0 | L139: =SUMIFS(F_Inputs_adjusted!Y:Y,F_Inputs_adjusted!$A:$A,$A139,F_Inputs_adjusted!$B:$B,$B139) -> 8993.179575
A140: =F_Inputs_adjusted!A142 -> WSX | B140: =F_Inputs_adjusted!B142 -> CWW3_049TOT_PR24 | C140: =F_Inputs_adjusted!C142 -> EA/NRW environmental programme wastewater (WINEP/NEP) - Treatment for chemical removal (WINEP/NEP) wastewater capex - Total | D140: =F_Inputs_adjusted!D142 -> £m | E140: =SUMIFS(F_Inputs_adjusted!R:R,F_Inputs_adjusted!$A:$A,$A140,F_Inputs_adjusted!$B:$B,$B140) -> 0 | F140: =SUMIFS(F_Inputs_adjusted!S:S,F_Inputs_adjusted!$A:$A,$A140,F_Inputs_adjusted!$B:$B,$B140) -> 0 | G140: =SUMIFS(F_Inputs_adjusted!T:T,F_Inputs_adjusted!$A:$A,$A140,F_Inputs_adjusted!$B:$B,$B140) -> 0.204452 | H140: =SUMIFS(F_Inputs_adjusted!U:U,F_Inputs_adjusted!$A:$A,$A140,F_Inputs_adjusted!$B:$B,$B140) -> 0.837309 | I140: =SUMIFS(F_Inputs_adjusted!V:V,F_Inputs_adjusted!$A:$A,$A140,F_Inputs_adjusted!$B:$B,$B140) -> 1.829495 | J140: =SUMIFS(F_Inputs_adjusted!W:W,F_Inputs_adjusted!$A:$A,$A140,F_Inputs_adjusted!$B:$B,$B140) -> 4.61958 | K140: =SUMIFS(F_Inputs_adjusted!X:X,F_Inputs_adjusted!$A:$A,$A140,F_Inputs_adjusted!$B:$B,$B140) -> 3.945597 | L140: =SUMIFS(F_Inputs_adjusted!Y:Y,F_Inputs_adjusted!$A:$A,$A140,F_Inputs_adjusted!$B:$B,$B140) -> 0
